Workbook

Sheet Data Input Instructions (hidden)
A3: Worksheet ID | B3: Worksheet | C3: Input Data Notes
A4: 1 | B4: Data Current Rates | C4: R2 Service Charge should already be net of RRRP credit
A5: 1 | B5: Data Current Rates | C5: Demand billed RTSR should already be loss adjusted
A6: 2 | B6: Data Proposed Rates | C6: Mapped from Draft Rates file prepared for Claude
A7: 2 | B7: Data Proposed Rates | C7: Row 5 with header name TEXT is precedent to templates; changes to TEXT need to reflected in templates
A8: 2 | B8: Data Proposed Rates | C8: Templates are set up with 2-dimension vlookups so it will accommodate inserted/deleted rows and/or columns
A9: 3 | B9: Data Billing Quantities | C9: Row 4 with header name TEXT is precedent to templates; changes to TEXT need to reflected in templates
A10: 3 | B10: Data Billing Quantities | C10: Templates are set up with 2-dimension vlookups so it will accommodate inserted/deleted rows and/or columns
A11: 4 | B11: Data Pass Through | C11: Changes to Pass Through rates can be manually input on this sheet, which is precedent to the templates
A12: 4 | B12: Data Pass Through | C12: Links to templates from Column A TEXT; any changes in the TEXT of the charge names must be reflected in the templates
A13: 5 | B13: Data BI List | C13: Instruction Sheet for macro to create individual bill impact worksheets
A14: 5 | B14: Data BI List | C14: Need to MANUALLY update Test Year to appear as header on all bill impact worksheets
A15: 6 | B15: Data BI Summary | C15: This replaces the need for cell references in summary sheet, and displays value for totals so rows can be added to templates and worksheets without having to update the summary sheet
B16: Bill Impact Summary | C16: This file has 2 hidden columns needed to link to worksheets; see Col E and F

Sheet Data Current Rates (hidden)
A1: Approved 2022 rates for HONI Legacy and Acquired customers | B1: 2 | C1: 3 | D1: 4 | E1: 5 | F1: 6 | G1: 7 | H1: 8 | I1: 9 | J1: 10 | K1: 11 | L1: 12 | M1: 13 | N1: 14 | O1: 15 | P1: 16 | Q1: 17
H2: Charges inherited from Acquisition | M2: New rate riders for 2022
A3: 1 | B3: 2 | C3: 3 | D3: 4 | E3: 5 | F3: 6 | G3: 7 | H3: NPDI & HCHI | I3: NPDI | J3: WHSI | K3: WHSI | L3: HCHI | M3: NPDI/HCHI/WHSI | N3: NPDI/HCHI/WHSI | O3: NPDI/HCHI/WHSI | P3: WHSI | Q3: WHSI
A4: Rate Class | B4: Fixed Charge ($/month) | C4: Current Variable Charge ($/kWh or $/kW) | D4: Fixed Base Rate Adjustment for Past Tax Amounts ($/month) | E4: Volumetric Base Rate Adjustment for Past Tax Amounts ($/kWh or $/kW) | F4: Current RTSR-NW ($/kWh or $/kW) | G4: Current RTSR-CONN ($/kWh or $/kW) | H4: Current Low Voltage Volumetric ($/kWh or $/kW) | I4: Current Rate Rider for Application of Tax Changes | J4: Current Rate Rider for Recovery of Smart Meter | K4: Rate Rider for Recovery of Incremental Capital | L4: Funding Adder for Renewable Energy Generation | M4: Rate Rider for Group 2 DVA - Fixed ($/month) | N4: Rate Rider for Group 2 DVA - Volumetric ($/kWh or $/kW) | O4: Rate Rider for LRAMVA - Volumetric ($/kWh or $/kW) | P4: Rate Rider for Account 1576 - Fixed ($/month) | Q4: Rate Rider for Account 1576 - Volumetric ($/kWh or $/kW)
A5: Rate as shown on Bill Impact Sheet | B5: Service Charge | C5: Distribution Volumetric Charge | D5: Fixed Base Rate Adjustment to Recover Past Tax Amounts | E5: Volumetric Base Rate Adjustment to Recover Past Tax Amounts | F5: Retail Transmission Rate – Network Service Rate | G5: Retail Transmission Rate – Line and Transformation Connection Service Rate | H5: Low Voltage Service Rate | I5: Rate Rider for Application of Tax Change | J5: Rate Rider for Recovery of Smart Meter Incremental Revenue Requirement | K5: Rate Rider for Recovery of Incremental Capital | L5: Funding Adder for Renewable Energy Generation | M5: Group 2 Fixed DVA Rider | N5: Group 2 Volumetric DVA Rider | O5: LRAMVA Volumetric Rate Rider | P5: Account 1576 Fixed Rate Rider | Q5: Account 1576 Volumetric Rate Rider
A6: UR | B6: 38.03 | C6: 0 | D6: 0.83 | F6: 0.0112 | G6: 0.0081
A7: R1 | B7: 56.06 | C7: 0.01 | D7: 1.56 | F7: 0.0103 | G7: 0.0076
A8: R2 | B8: 68.03 | C8: 0.016 | D8: 4.42 | F8: 0.0096 | G8: 0.0072
A9: Seasonal | B9: 58.43 | C9: 0.0311 | D9: 1.79 | F9: 0.0081 | G9: 0.0064
A10: GSe | B10: 34.13 | C10: 0.068 | D10: 1.11 | E10: 0.0022 | F10: 0.0081 | G10: 0.0059
A11: UGe | B11: 26.95 | C11: 0.0324 | D11: 0.81 | E11: 0.001 | F11: 0.0087 | G11: 0.006
A12: St Lgt | B12: 3.71 | C12: 0.1134 | D12: 0.11 | E12: 0.0034 | F12: 0.0067 | G12: 0.0038
A13: Sen Lgt | B13: 3.2 | C13: 0.1737 | D13: 0.14 | E13: 0.0078 | F13: 0.0068 | G13: 0.0039
A14: USL | B14: 39.8 | C14: 0.0265 | D14: 0.89 | E14: 0.0006 | F14: 0.0068 | G14: 0.0049
A15: GSd | B15: 113.67 | C15: 19.3834 | D15: 4.34 | E15: 0.7338 | F15: 2.5526 | G15: 1.7916
A16: UGd | B16: 104.78 | C16: 11.1722 | D16: 3.92 | E16: 0.4134 | F16: 3.2715 | G16: 2.2766
A17: Dgen | B17: 199.36 | C17: 11.0093 | D17: 1.74 | E17: 0.0883 | F17: 1.2408 | G17: 0.8728
A18: ST | B18: 1383.03 | C18: 1.6208 | D18: 36.18 | E18: 0.054 | F18: 4.4951 | G18: 3.1077
A19: WHSI_RES | B19: 31.42 | C19: 0 | F19: 0.0077 | G19: 0.0064 | J19: 0.64 | M19: 0.62 | O19: 0.0003 | P19: -8.64
A20: WHSI_GS<50 | B20: 26.36 | C20: 0.0152 | F20: 0.007 | G20: 0.006 | J20: 4.24 | N20: 0.0005 | O20: 0.0037 | Q20: -0.0068
A21: WHSI_GS 50-999 | B21: 146.47 | C21: 2.6975 | F21: 2.9915 | G21: 2.5605 | N21: 0.0724 | O21: 0.6839 | Q21: -1.0156
A22: WHSI_GS >1,000kW | B22: 542.98 | C22: 2.8671 | F22: 2.9915 | G22: 2.5605 | N22: 0.0621 | O22: 0.5521 | Q22: -0.8709
A23: WHSI_St Lgt | B23: 3.23 | C23: 13.0344 | F23: 2.2078 | G23: 1.8899 | N23: 0.7382 | Q23: -10.3543
A24: WHSI_USL | B24: 11.02 | C24: 0.0128 | F24: 0.007 | G24: 0.006 | N24: 0.0004 | Q24: -0.0058
A25: NPDI_RES | B25: 39.1 | C25: 0 | F25: 0.0072 | G25: 0.0041 | H25: 0.0009 | I25: 0.0002 | M25: -0.14 | O25: 0.0004
A26: NPDI_GS<50 | B26: 53.11 | C26: 0.0166 | F26: 0.0067 | G26: 0.0034 | H26: 0.0008 | I26: 0.0001 | N26: -0.0001 | O26: 0.0081
A27: NPDI_GS >50 | B27: 260.95 | C27: 4.2086 | F27: 2.7046 | G27: 1.3772 | H27: 0.305 | I27: 0.0211 | N27: -0.0203 | O27: 0.2853
A28: NPDI_St Lgt | B28: 2.1 | C28: 7.8927 | F28: 2.0398 | G28: 1.0647 | H28: 0.2358 | I28: 0.0655 | N28: -0.0946
A29: NPDI_Sen Lgt | B29: 6.94 | C29: 20.6518 | F29: 2.0502 | G29: 1.0868 | H29: 0.2407 | I29: 0.2079 | N29: -0.1921
A30: NPDI_USL | B30: 16.47 | C30: 0.0093 | F30: 0.0067 | G30: 0.0034 | H30: 0.0008 | I30: 0.0002 | N30: -0.0001
A31: HCHI_RES | B31: 37.31 | C31: 0 | F31: 0.0069 | G31: 0.0061 | H31: 0.0004 | L31: 0.0002 | M31: -0.83 | O31: 0.0003
A32: HCHI_GS<50 | B32: 28.19 | C32: 0.0199 | F32: 0.0063 | G32: 0.0057 | H32: 0.0004 | L32: 0.0002 | N32: -0.0007 | O32: -0.0002
A33: HCHI_GS >50 | B33: 87.49 | C33: 4.1168 | F33: 2.6512 | G33: 2.4073 | H33: 0.155 | L33: 0.0195 | N33: -0.1031 | O33: -0.0575
A34: HCHI_St Lgt | B34: 5.97 | C34: 15.2665 | F34: 1.915 | G34: 1.7294 | H34: 0.113 | L34: 0.2152 | N34: -1.4539
A35: HCHI_Sen Lgt | B35: 14.89 | C35: 38.4338 | F35: 1.9246 | G35: 1.7655 | H35: 0.1099 | L35: 0.6224 | N35: -1.0258
A36: HCHI_USL | B36: 20.42 | C36: 0.0026 | F36: 0.0063 | G36: 0.0057 | H36: 0.0004 | L36: 0.0002 | N36: -0.001

Sheet Data Proposed Rates (hidden)
A1: Proposed 2023 Rates
A3: 1 | B3: 2 | C3: 3 | D3: 4 | E3: 5 | F3: 6 | G3: 7 | H3: 8 | I3: 9 | J3: 10 | K3: 11 | L3: 12 | M3: 13 | N3: 14
A4: Rate Class | B4: Proposed Fixed Charge ($/month) | C4: Proposed Volumetric Charge ($/kWh or $/kW) | D4: Proposed Group 1 DVA Rider - Volumetric ($/kWh or $/kW) | E4: Porposed Group 1 DVA Rider - Volumetric Applicable to Non-WMP Only ($/kWh or $/kW) | F4: Proposed Rate Rider for Disposition of Global Adjustment (Non WMP, Non-RPP, Non-LDC, and Class B) ($/kWh) | G4: Proposed Rate Rider for CBR (Non-WMP Class B) ($/kWh or $/kW) | H4: Proposed Group 2 Rate Rider - Fixed ($/month) | I4: Proposed Group 2 Rate Rider - Volumetric ($/kWh or $/kW) | J4: Proposed Base Rate Adjustment for Past Tax Amounts - Fixed ($/month) | K4: Proposed Base Rate Adjustment for Past Tax Amounts - Volumetric ($/kWh or $/kW) | L4: Rate Rider for LRAMVA - Volumetric ($/kWh or $/kW) | M4: Proposed RTSR-NW ($/kWh or $/kW) | N4: Proposed RTSR-CONN ($/kWh or $/kW)
A5: Rate as shown on Bill Impact Sheet | B5: Service Charge | C5: Distribution Volumetric Charge | D5: Group 1 Volumetric DVA Rider (General) | E5: Group 1 Volumetric Deferral/Variance Account Rider (Sub-Account RSVA Wholesale Market Service Charge & RSVA Power) | F5: Group 1 Volumetric Deferral/Variance Account Rider (Sub-Account Global Adjustment) | G5: Group 1 Volumetric Deferral/Variance Account Rider (Sub Account CBR) | H5: Group 2 Fixed DVA Rider | I5: Group 2 Volumetric DVA Rider | J5: Fixed Base Rate Adjustment to Recover Past Tax Amounts | K5: Volumetric Base Rate Adjustment to Recover Past Tax Amounts | L5: LRAMVA Volumetric Rate Rider | M5: Retail Transmission Rate – Network Service Rate | N5: Retail Transmission Rate – Line and Transformation Connection Service Rate
A6: Rounding Factor | B6: 2 | C6: 4 | D6: 4 | E6: 4 | F6: 4 | G6: 4 | H6: 2 | I6: 4 | J6: 2 | K6: 4 | L6: 4 | M6: 4 | N6: 4
A7: UR | B7: 36.88 | C7: 0 | D7: -0.0004 | E7: 0 | F7: -0.0007 | H7: -0.08 | J7: 0.8 | K7: 0 | M7: 0.0109 | N7: 0.008
A8: R1 | B8: 58.76 | C8: 0.0054 | D8: -0.0004 | E8: 0 | F8: -0.0007 | H8: -0.14 | J8: 1.44 | K8: 0 | M8: 0.0101 | N8: 0.0075
A9: R2 | B9: 59.18 | C9: 0.0083 | D9: -0.0004 | E9: 0 | F9: -0.0007 | H9: -0.29 | J9: 4 | K9: 0 | M9: 0.0093 | N9: 0.0069
A10: GSe | B10: 31.42 | C10: 0.0668 | D10: -0.0004 | E10: 0 | F10: -0.0007 | I10: -0.0002 | J10: 1.1 | K10: 0.0023 | M10: 0.008 | N10: 0.006
A11: UGe | B11: 24.47 | C11: 0.0321 | D11: -0.0004 | E11: 0 | F11: -0.0007 | I11: -0.0001 | J11: 0.82 | K11: 0.0011 | M11: 0.0086 | N11: 0.0064
A12: St Lgt | B12: 3.01 | C12: 0.1094 | D12: -0.0004 | E12: 0 | F12: -0.0007 | I12: -0.0003 | J12: 0.11 | K12: 0.0042 | M12: 0.0059 | N12: 0.0042
A13: Sen Lgt | B13: 2.78 | C13: 0.1547 | D13: -0.0004 | E13: 0 | F13: -0.0007 | I13: -0.0003 | J13: 0.16 | K13: 0.0091 | M13: 0.0059 | N13: 0.0042
A14: USL | B14: 34.45 | C14: 0.0218 | D14: -0.0004 | E14: 0 | F14: -0.0007 | I14: -0.0002 | J14: 0.87 | K14: 0.0006 | M14: 0.0068 | N14: 0.0049
A15: GSd | B15: 100.96 | C15: 18.9446 | D15: -0.0519 | E15: -0.0726 | F15: -0.0007 | I15: -0.0475 | J15: 4.43 | K15: 0.8249 | M15: 2.5967 | N15: 1.922
A16: UGd | B16: 92.31 | C16: 10.9806 | D16: -0.0641 | E16: -0.0897 | F16: -0.0007 | I16: -0.0282 | J16: 4.01 | K16: 0.4717 | M16: 3.3197 | N16: 2.4419
A17: Dgen | B17: 191.95 | C17: 10.8499 | D17: -0.0239 | E17: -0.0344 | F17: -0.0007 | I17: -0.061 | J17: 1.77 | K17: 0.0928 | M17: 1.4257 | N17: 0.8995
A18: ST | B18: 1192.8 | C18: 1.5 | D18: -0.0814 | E18: -0.1144 | F18: -0.0007 | I18: -0.0048 | J18: 32.54 | K18: 0.0504 | M18: 4.3192 | N18: 3.3968
A19: AUR | B19: 30.46 | C19: 0 | D19: -0.0004 | E19: 0 | F19: -0.0007 | M19: 0.0113 | N19: 0.0082
A20: AUGe | B20: 26.3 | C20: 0.0152 | D20: -0.0004 | E20: 0 | F20: -0.0007 | M20: 0.0087 | N20: 0.0063
A21: AUGd | B21: 159.51 | C21: 2.5877 | D21: -0.059 | E21: -0.0821 | F21: -0.0007 | M21: 3.021 | N21: 2.1978
A22: AR | B22: 36.98 | C22: 0 | D22: -0.0004 | E22: 0 | F22: -0.0007 | M22: 0.0107 | N22: 0.0079
A23: AGSe | B23: 38.74 | C23: 0.0177 | D23: -0.0004 | E23: 0 | F23: -0.0007 | M23: 0.0085 | N23: 0.0063
A24: AGSd | B24: 186.87 | C24: 4.3771 | D24: -0.0595 | E24: -0.0829 | F24: -0.0007 | M24: 2.6521 | N24: 1.9934
A25: AUR-WHSI | B25: 30.46 | C25: 0 | D25: -0.0005 | E25: 0 | F25: -0.0007 | L25: ='Data Current Rates'!O19 -> 0.0003 | M25: 0.0113 | N25: 0.0082
A26: AUGe-WHSI | B26: 26.3 | C26: 0.0152 | D26: -0.0005 | E26: 0 | F26: -0.0007 | L26: ='Data Current Rates'!O20 -> 0.0037 | M26: 0.0087 | N26: 0.0063
A27: AUGd-WHSI | B27: 159.51 | C27: 2.5877 | D27: -0.0394 | E27: -0.0821 | F27: -0.0007 | L27: ='Data Current Rates'!O21 -> 0.6839 | M27: =M21 -> 3.021 | N27: =N21 -> 2.1978
A28: ST-WHSI | B28: 1192.8 | C28: 1.5 | D28: -0.0648 | E28: 0 | F28: 0 | L28: ='Data Current Rates'!O22 -> 0.5521 | M28: =M18 -> 4.3192 | N28: =N18 -> 3.3968
A29: St Lgt-WHSI | B29: 3.01 | C29: 0.1094 | D29: -0.0003 | E29: 0 | F29: -0.0007 | M29: 0.0059 | N29: 0.0042
A30: USL-WHSI | B30: 34.45 | C30: 0.0218 | D30: -0.0005 | E30: 0 | F30: -0.0007 | M30: 0.0068 | N30: 0.0049
A31: AR-NPDI | B31: 36.98 | C31: 0 | D31: -0.0005 | E31: 0 | F31: -0.0007 | L31: ='Data Current Rates'!O25 -> 0.0004 | M31: 0.0107 | N31: 0.0079
A32: AGSe-NPDI | B32: 38.74 | C32: 0.0177 | D32: -0.0005 | E32: 0 | F32: -0.0007 | L32: ='Data Current Rates'!O26 -> 0.0081 | M32: 0.0085 | N32: 0.0063
A33: AGSd-NPDI | B33: 186.87 | C33: 4.3771 | D33: -0.0399 | E33: -0.0829 | F33: -0.0007 | L33: ='Data Current Rates'!O27 -> 0.2853 | M33: =M24 -> 2.6521 | N33: =N24 -> 1.9934
A34: St Lgt-NPDI | B34: 3.01 | C34: 0.1094 | D34: -0.0007 | E34: 0 | F34: -0.0007 | M34: 0.0059 | N34: 0.0042
A35: Sen Lgt-NPDI | B35: 2.78 | C35: 0.1547 | D35: -0.0007 | E35: 0 | F35: -0.0007 | M35: 0.0059 | N35: 0.0042
A36: USL-NPDI | B36: 34.45 | C36: 0.0218 | D36: -0.0009 | E36: 0 | F36: -0.0007 | M36: 0.0068 | N36: 0.0049
A37: AR-HCHI | B37: 36.98 | C37: 0 | D37: -0.0004 | E37: 0 | F37: -0.0007 | L37: ='Data Current Rates'!O31 -> 0.0003 | M37: 0.0107 | N37: 0.0079
A38: AGSe-HCHI | B38: 38.74 | C38: 0.0177 | D38: -0.0004 | E38: 0 | F38: -0.0007 | L38: ='Data Current Rates'!O32 -> -0.0002 | M38: 0.0085 | N38: 0.0063
A39: AGSd-HCHI | B39: 186.87 | C39: 4.3771 | D39: -0.0595 | E39: -0.0829 | F39: -0.0007 | L39: ='Data Current Rates'!O33 -> -0.0575 | M39: =M24 -> 2.6521 | N39: =N24 -> 1.9934
A40: St Lgt-HCHI | B40: 3.01 | C40: 0.1094 | D40: -0.0004 | E40: 0 | F40: -0.0007 | M40: 0.0059 | N40: 0.0042
A41: Sen Lgt-HCHI | B41: 2.78 | C41: 0.1547 | D41: -0.0004 | E41: 0 | F41: -0.0007 | M41: 0.0059 | N41: 0.0042
A42: USL-HCHI | B42: 34.45 | C42: 0.0218 | D42: -0.0004 | E42: 0 | F42: -0.0007 | M42: 0.0068 | N42: 0.0049

Sheet Data Billing Quantities (hidden)
A1: Rate Class-Specific Billing Quantities (Applied to Current and Proposed Bill)
E3: Consumption (kWh) | I3: Peak (kW) | M3: TOU Split
A4: Rate Class | B4: Loss Factor | C4: Charge Determinant | D4: Commodity Threshold | E4: Low kWh | F4: Typical kWh | G4: Average kWh | H4: High kWh | I4: Low kW | J4: Typical kW | K4: Average kW | L4: High kW | M4: TOU-Off Peak | N4: TOU-Mid Peak | O4: TOU-On Peak | P4: Acquired Street Light Service Charge
A5: UR | B5: 1.057 | C5: kWh | D5: 600 | E5: 340 | F5: 750 | G5: 690 | H5: 1260 | M5: 0.64 | N5: 0.18 | O5: 0.18
A6: R1 | B6: 1.076 | C6: kWh | D6: 600 | E6: 370 | F6: 750 | G6: 784 | H6: 1650 | M6: =M$5 -> 0.64 | N6: =N$5 -> 0.18 | O6: =O$5 -> 0.18
A7: R2 | B7: 1.105 | C7: kWh | D7: 600 | E7: 440 | F7: 750 | G7: 978 | H7: 2110 | M7: =M$5 -> 0.64 | N7: 0.18 | O7: 0.18
A8: Seasonal | B8: 1.104 | C8: kWh | D8: 600 | E8: 40 | G8: 369 | H8: 1040 | M8: 0.64 | N8: 0.18 | O8: 0.18
A9: GSe | B9: 1.096 | C9: kWh | D9: 750 | E9: 60 | F9: 2000 | G9: 1887 | H9: 5570 | M9: 0.64 | N9: 0.18 | O9: 0.18
A10: UGe | B10: 1.067 | C10: kWh | D10: 750 | E10: 180 | F10: 2000 | G10: 2494 | H10: 6930 | M10: 0.64 | N10: 0.18 | O10: 0.18
A11: St Lgt | B11: 1.092 | C11: kWh | D11: 750 | E11: 30 | G11: 1274 | H11: 2310
A12: Sen Lgt | B12: 1.092 | C12: kWh | D12: 750 | E12: 20 | G12: 49 | H12: 80
A13: USL | B13: 1.092 | C13: kWh | D13: 750 | E13: 100 | G13: 477 | H13: 550
A14: GSd | B14: 1.061 | C14: kW | D14: 0 | E14: 9310 | G14: 34334 | H14: 75790 | I14: 55 | K14: 110 | L14: 250
A15: UGd | B15: 1.05 | C15: kW | D15: 0 | E15: 13900 | G15: 42592 | H15: 97610 | I15: 55 | K15: 111 | L15: 280
A16: Dgen | B16: 1.061 | C16: kW | D16: 0 | E16: 10 | G16: 1709 | H16: 8490 | I16: 0.02941666667 | K16: 12 | L16: 45
A17: ST | B17: 1.034 | C17: kW | D17: 0 | E17: 88780 | G17: 1373443 | H17: 2641420 | I17: 500 | K17: 2808 | L17: 13730
A18: WHSI_RES | B18: 1.0431 | C18: kWh | D18: 600 | E18: 310 | F18: 750 | G18: 636 | H18: 1160 | M18: =M$5 -> 0.64 | N18: 0.18 | O18: 0.18
A19: WHSI_GS<50 | B19: 1.0431 | C19: kWh | D19: 750 | E19: 190 | F19: 2000 | G19: 2471 | H19: 7240 | M19: 0.64 | N19: 0.18 | O19: 0.18
A20: WHSI_GS 50-999 | B20: 1.0431 | C20: kW | E20: 9370 | G20: 47636 | H20: 137890 | I20: 50 | K20: 134 | L20: 340
A21: WHSI_GS >1,000kW | B21: 1.0326 | C21: kW | G21: 895853 | K21: 3301
A22: WHSI_St Lgt | B22: 1.0431 | C22: kW | D22: 750 | G22: 37079 | K22: 104 | P22: 786
A23: WHSI_USL | B23: 1.0431 | C23: kWh | D23: 750 | G23: 1349 | M23: =M$5 -> 0.64 | N23: 0.18 | O23: 0.18
A24: NPDI_RES | B24: 1.0564 | C24: kWh | D24: 600 | E24: 290 | F24: 750 | G24: 692 | H24: 1230 | M24: 0.64 | N24: 0.18 | O24: 0.18
A25: NPDI_GS<50 | B25: 1.0564 | C25: kWh | D25: 750 | E25: 110 | F25: 2000 | G25: 2377 | H25: 6410 | M25: 0.64 | N25: 0.18 | O25: 0.18
A26: NPDI_GS >50 | B26: 1.0464 | C26: kW | E26: 13020 | G26: 70294 | H26: 129420 | I26: 55 | K26: 181 | L26: 300
A27: NPDI_St Lgt | B27: 1.0564 | C27: kW | D27: 750 | G27: 11389 | K27: 39 | P27: 328
A28: NPDI_Sen Lgt | B28: 1.0564 | C28: kW | D28: 750 | G28: 108 | K28: 0.3368027211
A29: NPDI_USL | B29: 1.0564 | C29: kWh | D29: 750 | G29: 904 | M29: =M$5 -> 0.64 | N29: 0.18 | O29: 0.18
A30: HCHI_RES | B30: 1.0655 | C30: kWh | D30: 600 | E30: 250 | F30: 750 | G30: 742 | H30: 1410 | M30: 0.64 | N30: 0.18 | O30: 0.18
A31: HCHI_GS<50 | B31: 1.0655 | C31: kWh | D31: 750 | E31: 90 | F31: 2000 | G31: 2261 | H31: 5430 | M31: 0.64 | N31: 0.18 | O31: 0.18
A32: HCHI_GS >50 | B32: 1.0548 | C32: kW | E32: 10880 | G32: 57529 | H32: 135160 | I32: 55 | K32: 175 | L32: 375
A33: HCHI_St Lgt | B33: 1.0655 | C33: kW | D33: 750 | G33: 31001 | K33: 85 | P33: 701
A34: HCHI_Sen Lgt | B34: 1.0655 | C34: kW | D34: 750 | G34: 61 | K34: 0.1956473214
A35: HCHI_USL | B35: 1.0655 | C35: kWh | D35: 750 | G35: 471 | M35: =M$5 -> 0.64 | N35: 0.18 | O35: 0.18
A36: AUR | B36: 1.043 | C36: kWh | D36: 750 | E36: 310 | F36: 750 | G36: 636 | H36: 1160 | M36: 0.64 | N36: 0.18 | O36: 0.18
A37: AUGe | B37: =B36 -> 1.043 | C37: kWh | D37: 750 | E37: 190 | F37: 2000 | G37: 2471 | H37: 7240 | M37: 0.64 | N37: 0.18 | O37: 0.18
A38: AUGd | B38: 1.033 | C38: kW | E38: 9370 | G38: 47636 | H38: 137890 | I38: 50 | K38: 134 | L38: 340
A39: AR | B39: 1.064 | C39: kWh | D39: 750 | F39: 750 | M39: =M$5 -> 0.64 | N39: 0.18 | O39: 0.18
A40: AGSe | B40: =B39 -> 1.064 | C40: kWh | D40: 750 | F40: 2000 | M40: 0.64 | N40: 0.18 | O40: 0.18
A41: AGSd | B41: 1.053 | C41: kW
A42: AUR-WHSI | B42: =B36 -> 1.043 | C42: kWh | D42: =D36 -> 750 | E42: 310 | F42: 750 | G42: 636 | H42: 1160 | M42: =M$5 -> 0.64 | N42: 0.18 | O42: 0.18
A43: AUGe-WHSI | B43: =B37 -> 1.043 | C43: kWh | D43: =D37 -> 750 | E43: 190 | F43: 2000 | G43: 2471 | H43: 7240 | M43: 0.64 | N43: 0.18 | O43: 0.18
A44: AUGd-WHSI | B44: =B38 -> 1.033 | C44: kW | E44: 9370 | G44: 47636 | H44: 137890 | I44: 50 | K44: 134 | L44: 340
A45: ST-WHSI | B45: =B17 -> 1.034 | C45: kW | G45: 895853 | K45: 3301
A46: St Lgt-WHSI | B46: =B11 -> 1.092 | C46: kWh | D46: =D11 -> 750 | G46: =G22 -> 37079 | K46: =K22 -> 104 | P46: =P22 -> 786
A47: USL-WHSI | B47: =B13 -> 1.092 | C47: kWh | D47: =D13 -> 750 | G47: =G23 -> 1349 | M47: =M$5 -> 0.64 | N47: 0.18 | O47: 0.18
A48: AR-NPDI | B48: =B39 -> 1.064 | C48: kWh | D48: =D39 -> 750 | E48: 290 | F48: 750 | G48: 692 | H48: 1230 | M48: 0.64 | N48: 0.18 | O48: 0.18
A49: AGSe-NPDI | B49: =B40 -> 1.064 | C49: kWh | D49: =D40 -> 750 | E49: 110 | F49: 2000 | G49: 2377 | H49: 6410 | M49: 0.64 | N49: 0.18 | O49: 0.18
A50: AGSd-NPDI | B50: =B41 -> 1.053 | C50: kW | D50: =D41 -> 0 | E50: 13020 | G50: 70294 | H50: 129420 | I50: 55 | K50: 181 | L50: 300
A51: St Lgt-NPDI | B51: =B11 -> 1.092 | C51: kWh | D51: =D11 -> 750 | G51: =G27 -> 11389 | K51: =K27 -> 39 | P51: =P27 -> 328
A52: Sen Lgt-NPDI | B52: =B12 -> 1.092 | C52: kWh | D52: =D12 -> 750 | G52: =G28 -> 108 | K52: =K28 -> 0.3368027211
A53: USL-NPDI | B53: =B13 -> 1.092 | C53: kWh | D53: =D13 -> 750 | G53: =G29 -> 904 | M53: =M$5 -> 0.64 | N53: 0.18 | O53: 0.18
A54: AR-HCHI | B54: =B48 -> 1.064 | C54: kWh | D54: 750 | E54: 250 | F54: 750 | G54: 742 | H54: 1410 | M54: 0.64 | N54: 0.18 | O54: 0.18
A55: AGSe-HCHI | B55: 1.064 | C55: kWh | D55: 750 | E55: 90 | F55: 2000 | G55: 2261 | H55: 5430 | M55: 0.64 | N55: 0.18 | O55: 0.18
A56: AGSd-HCHI | B56: 1.053 | C56: kW | D56: 0 | E56: 10880 | G56: 57529 | H56: 135160 | I56: 55 | K56: 175 | L56: 375
A57: St Lgt-HCHI | B57: 1.092 | C57: kWh | D57: 750 | G57: =G33 -> 31001 | K57: =K33 -> 85 | P57: =P33 -> 701
A58: Sen Lgt-HCHI | B58: 1.092 | C58: kWh | D58: 750 | G58: =G34 -> 61 | K58: =K34 -> 0.1956473214
A59: USL-HCHI | B59: 1.092 | C59: kWh | D59: 750 | G59: =G35 -> 471 | M59: =M$5 -> 0.64 | N59: 0.18 | O59: 0.18

Sheet Data Pass Through (hidden)
A1: 3. Pass Through Charges
B2: Current Bill | C2: Proposed Bill
A3: Effective Date | B3: 2022-01-01 | C3: 2023-01-01 | D3: TOU % | E3: Notes
A4: R2 Credit | B4: 60.5 | C4: =B4 -> 60.5
A5: Energy First Tier | B5: 0.098 | C5: =B5 -> 0.098 | E5: Effective May 1 2018
A6: Energy Second Tier | B6: 0.115 | C6: 0.115 | E6: Effective May 1 2018
A7: Weighted Average Hourly Spot Price | B7: 0.119 | C7: =B7 -> 0.119 | E7: Avg for May 2020 to Apr 2021 (source: Commodity prices_SPOTv2.xls file at RAinternal/Niki/Misc
A8: TOU-Off Peak | B8: 0.082 | C8: 0.082 | D8: 0.64 | E8: Effective May 1 2018
A9: TOU-Mid Peak | B9: 0.113 | C9: 0.113 | D9: 0.18 | E9: Effective May 1 2018
A10: TOU-On Peak | B10: 0.17 | C10: 0.17 | D10: 0.18 | E10: Effective May 1 2018
A11: Wholesale Market Service Rate (WMS) - not including CBR | B11: 0.003 | C11: 0.003 | E11: Effective May 1 2017, 0.0036 WMSC broken up between WMSC and CBR
A12: Capacity Based Recovery (CBR) - Applicable for Class B Customers | B12: 0.0004 | C12: 0.0004 | E12: Effective May 1 2017, 0.0036 WMSC broken up between WMSC and CBR
A13: Rural Rate Protection Charge | B13: 0.0005 | C13: 0.0005 | E13: RRRP charge reduced from $0.0021/kWh to $0.0003/kWh effective July 1, 2017.
A14: Ontario Electricity Support Program Charge | B14: 0 | C14: 0 | E14: OESP charge removed for all rate classes effective May 1, 2017. ROW HIDDEN IN BILL IMPACT FILE
A15: Standard Supply Service – Administration Charge (if applicable) | B15: 0.25 | C15: 0.25
A16: Fair Hydro Plan - Distribution Rate Protection Savings* | B16: =IF('Bill Impact Summary'!L6="TOU",0,IF('Bill Impact Summary'!L6="TOU (DRP applied)",B17,"error")) -> 36.86 | C16: =IF('Bill Impact Summary'!L6="TOU",0,IF('Bill Impact Summary'!L6="TOU (DRP applied)",C17,"error")) -> 36.86 | E16: Highlighted cells are FORMULAS; do not overwrite with hard-entered values. Input DRP limit values in row 17 below
A17: DRP limit (applied when selected from Bill Impact Summary) | B17: 36.86 | C17: 36.86 | E17: Make change to FHP DRP limit here, but to apply DRP, must do in Bill Impact Summary sheet cell L6
A18: Smart Metering Entity Charge | B18: 0.57 | C18: 0.57 | E18: Change from 0.79 to 0.57 effective March 1 2018; only for metered energy-billed (UR, R1, R2, SEA, GSE, UGE)
A19: Debt Retirement Charge (DRC) | B19: 0 | C19: 0 | E19: DRC removed from all rate classes Apr 1 2018 ROW HIDDEN IN BILL IMPACT FILE
A20: Ontario Electricity Rebate (OER) | B20: -0.189 | C20: =B20 -> -0.189
A22: Customer Attributes - Assumptions
A23: ST customers are assumed to be Non-WMP, Class A

Sheet Data BI Summary (hidden)
A2: Summary Column | B2: Current Total Bill | C2: Change in DX Bill ($) | D2: Change in DX Bill (%) | E2: Change in Total Bill ($) | F2: Change in Total Bill (%)
A3: BI Template_Energy | B3: Total Amount on TOU | C3: Sub-Total: Distribution (excluding pass through) | D3: Sub-Total: Distribution (excluding pass through) | E3: Total Amount on TOU | F3: Total Amount on TOU
A4: BI Template_EnergyUNM | B4: Total Amount on Two-Tier RPP | C4: Sub-Total: Distribution (excluding pass through) | D4: Sub-Total: Distribution (excluding pass through) | E4: Total Amount on Two-Tier RPP | F4: Total Amount on Two-Tier RPP
A5: BI Template_Demand | B5: Total Amount on WAHSP | C5: Sub-Total: Distribution | D5: Sub-Total: Distribution | E5: Total Amount on WAHSP | F5: Total Amount on WAHSP
A6: BI Template_EnergyNPDI | B6: Total Amount on TOU | C6: Sub-Total: Distribution (excluding pass through) | D6: Sub-Total: Distribution (excluding pass through) | E6: Total Amount on TOU | F6: Total Amount on TOU
A7: BI Template_UNMNPDI | B7: Total Amount on Two-Tier RPP | C7: Sub-Total: Distribution (excluding pass through) | D7: Sub-Total: Distribution (excluding pass through) | E7: Total Amount on Two-Tier RPP | F7: Total Amount on Two-Tier RPP
A8: BI Template_DemandNPDI | B8: Total Amount on WAHSP | C8: Sub-Total: Distribution | D8: Sub-Total: Distribution | E8: Total Amount on WAHSP | F8: Total Amount on WAHSP
A9: BI Template_EnergyHCHI | B9: Total Amount on TOU | C9: Sub-Total: Distribution (excluding pass through) | D9: Sub-Total: Distribution (excluding pass through) | E9: Total Amount on TOU | F9: Total Amount on TOU
A10: BI Template_UNMHCHI | B10: Total Amount on Two-Tier RPP | C10: Sub-Total: Distribution (excluding pass through) | D10: Sub-Total: Distribution (excluding pass through) | E10: Total Amount on Two-Tier RPP | F10: Total Amount on Two-Tier RPP
A11: BI Template_DemandHCHI | B11: Total Amount on WAHSP | C11: Sub-Total: Distribution | D11: Sub-Total: Distribution | E11: Total Amount on WAHSP | F11: Total Amount on WAHSP
A12: BI Template_EnergyWHSI | B12: Total Amount on TOU | C12: Sub-Total: Distribution (excluding pass through) | D12: Sub-Total: Distribution (excluding pass through) | E12: Total Amount on TOU | F12: Total Amount on TOU
A13: BI Template_UNMWHSI | B13: Total Amount on Two-Tier RPP | C13: Sub-Total: Distribution (excluding pass through) | D13: Sub-Total: Distribution (excluding pass through) | E13: Total Amount on Two-Tier RPP | F13: Total Amount on Two-Tier RPP
A14: BI Template_DemandWHSI | B14: Total Amount on WAHSP | C14: Sub-Total: Distribution | D14: Sub-Total: Distribution | E14: Total Amount on WAHSP | F14: Total Amount on WAHSP
A15: BI Template_Seasonal | B15: Total Amount on TOU | C15: Sub-Total: Distribution (excluding pass through) | D15: Sub-Total: Distribution (excluding pass through) | E15: Total Amount on TOU | F15: Total Amount on TOU

Sheet Data BI List (hidden)
A1: Template Name | B1: Bill Impact Worksheet Name | C1: Bill Impact Header
A2: BI Template_Energy | B2: BI_UR_Low | C2: 2023 Bill Impacts (Low Consumption Level) - UR
A3: BI Template_Energy | B3: BI_UR_Typical | C3: 2023 Bill Impacts (Typical Consumption Level) - UR
A4: BI Template_Energy | B4: BI_UR_Avg | C4: 2023 Bill Impacts (Average Consumption Level) - UR
A5: BI Template_Energy | B5: BI_UR_High | C5: 2023 Bill Impacts (High Consumption Level) - UR
A6: BI Template_Energy | B6: BI_R1_Low (with DRP) | C6: 2023 Bill Impacts (Low Consumption Level) - R1
A7: BI Template_Energy | B7: BI_R1_Typical (with DRP) | C7: 2023 Bill Impacts (Typical Consumption Level) - R1
A8: BI Template_Energy | B8: BI_R1_Avg (with DRP) | C8: 2023 Bill Impacts (Average Consumption Level) - R1
A9: BI Template_Energy | B9: BI_R1_High (with DRP) | C9: 2023 Bill Impacts (High Consumption Level) - R1
A10: BI Template_Energy | B10: BI_R1_Low (without DRP) | C10: 2023 Bill Impacts (Low Consumption Level) - R1
A11: BI Template_Energy | B11: BI_R1_Typical (without DRP) | C11: 2023 Bill Impacts (Typical Consumption Level) - R1
A12: BI Template_Energy | B12: BI_R1_Avg (without DRP) | C12: 2023 Bill Impacts (Average Consumption Level) - R1
A13: BI Template_Energy | B13: BI_R1_High (without DRP) | C13: 2023 Bill Impacts (High Consumption Level) - R1
A14: BI Template_Energy | B14: BI_R2_Low (with DRP) | C14: 2023 Bill Impacts (Low Consumption Level) - R2
A15: BI Template_Energy | B15: BI_R2_Typical (with DRP) | C15: 2023 Bill Impacts (Typical Consumption Level) - R2
A16: BI Template_Energy | B16: BI_R2_Avg (with DRP) | C16: 2023 Bill Impacts (Average Consumption Level) - R2
A17: BI Template_Energy | B17: BI_R2_High (with DRP) | C17: 2023 Bill Impacts (High Consumption Level) - R2
A18: BI Template_Energy | B18: BI_R2_Low (without DRP) | C18: 2023 Bill Impacts (Low Consumption Level) - R2
A19: BI Template_Energy | B19: BI_R2_Typical (without DRP) | C19: 2023 Bill Impacts (Typical Consumption Level) - R2
A20: BI Template_Energy | B20: BI_R2_Avg (without DRP) | C20: 2023 Bill Impacts (Average Consumption Level) - R2
A21: BI Template_Energy | B21: BI_R2_High (without DRP) | C21: 2023 Bill Impacts (High Consumption Level) - R2
A22: BI Template_Energy | B22: BI_GSe_Low | C22: 2023 Bill Impacts (Low Consumption Level) - GSe
A23: BI Template_Energy | B23: BI_GSe_Typical | C23: 2023 Bill Impacts (Typical Consumption Level) - GSe
A24: BI Template_Energy | B24: BI_GSe_Avg | C24: 2023 Bill Impacts (Average Consumption Level) - GSe
A25: BI Template_Energy | B25: BI_GSe_High | C25: 2023 Bill Impacts (High Consumption Level) - GSe
A26: BI Template_Energy | B26: BI_UGe_Low | C26: 2023 Bill Impacts (Low Consumption Level) - UGe
A27: BI Template_Energy | B27: BI_UGe_Typical | C27: 2023 Bill Impacts (Typical Consumption Level) - UGe
A28: BI Template_Energy | B28: BI_UGe_Avg | C28: 2023 Bill Impacts (Average Consumption Level) - UGe
A29: BI Template_Energy | B29: BI_UGe_High | C29: 2023 Bill Impacts (High Consumption Level) - UGe
A30: BI Template_Demand | B30: BI_GSd_Low | C30: 2023 Bill Impacts (Low Consumption Level) - GSd
A31: BI Template_Demand | B31: BI_GSd_Avg | C31: 2023 Bill Impacts (Average Consumption Level) - GSd
A32: BI Template_Demand | B32: BI_GSd_High | C32: 2023 Bill Impacts (High Consumption Level) - GSd
A33: BI Template_Demand | B33: BI_UGd_Low | C33: 2023 Bill Impacts (Low Consumption Level) - UGd
A34: BI Template_Demand | B34: BI_UGd_Avg | C34: 2023 Bill Impacts (Average Consumption Level) - UGd
A35: BI Template_Demand | B35: BI_UGd_High | C35: 2023 Bill Impacts (High Consumption Level) - UGd
A36: BI Template_EnergyUNM | B36: BI_StLgt_Low | C36: 2023 Bill Impacts (Low Consumption Level) - St Lgt
A37: BI Template_EnergyUNM | B37: BI_StLgt_Avg | C37: 2023 Bill Impacts (Average Consumption Level) - St Lgt
A38: BI Template_EnergyUNM | B38: BI_StLgt_High | C38: 2023 Bill Impacts (High Consumption Level) - St Lgt
A39: BI Template_EnergyUNM | B39: BI_SenLgt_Low | C39: 2023 Bill Impacts (Low Consumption Level) - Sen Lgt
A40: BI Template_EnergyUNM | B40: BI_SenLgt_Avg | C40: 2023 Bill Impacts (Average Consumption Level) - Sen Lgt
A41: BI Template_EnergyUNM | B41: BI_SenLgt_High | C41: 2023 Bill Impacts (High Consumption Level) - Sen Lgt
A42: BI Template_EnergyUNM | B42: BI_USL_Low | C42: 2023 Bill Impacts (Low Consumption Level) - USL
A43: BI Template_EnergyUNM | B43: BI_USL_Avg | C43: 2023 Bill Impacts (Average Consumption Level) - USL
A44: BI Template_EnergyUNM | B44: BI_USL_High | C44: 2023 Bill Impacts (High Consumption Level) - USL
A45: BI Template_Demand | B45: BI_Dgen_Low | C45: 2023 Bill Impacts (Low Consumption Level) - Dgen
A46: BI Template_Demand | B46: BI_Dgen_Avg | C46: 2023 Bill Impacts (Average Consumption Level) - Dgen
A47: BI Template_Demand | B47: BI_Dgen_High | C47: 2023 Bill Impacts (High Consumption Level) - Dgen
A48: BI Template_Demand | B48: BI_ST_Low | C48: 2023 Bill Impacts (Low Consumption Level) - ST
A49: BI Template_Demand | B49: BI_ST_Avg | C49: 2023 Bill Impacts (Average Consumption Level) - ST
A50: BI Template_Demand | B50: BI_ST_High | C50: 2023 Bill Impacts (High Consumption Level) - ST
A51: BI Template_EnergyWHSI | B51: BI_WHSI_AUR_Low | C51: 2023 Bill Impacts (Low Consumption Level) - AUR_WHSI
A52: BI Template_EnergyWHSI | B52: BI_WHSI_AUR_Typical | C52: 2023 Bill Impacts (Typical Consumption Level) - AUR_WHSI
A53: BI Template_EnergyWHSI | B53: BI_WHSI_AUR_Avg | C53: 2023 Bill Impacts (Average Consumption Level) - AUR_WHSI
A54: BI Template_EnergyWHSI | B54: BI_WHSI_AUR_High | C54: 2023 Bill Impacts (High Consumption Level) - AUR_WHSI
A55: BI Template_EnergyWHSI | B55: BI_WHSI_AUGe_Low | C55: 2023 Bill Impacts (Low Consumption Level) - AUGe_WHSI
A56: BI Template_EnergyWHSI | B56: BI_WHSI_AUGe_Typical | C56: 2023 Bill Impacts (Typical Consumption Level) - AUGe_WHSI
A57: BI Template_EnergyWHSI | B57: BI_WHSI_AUGe_Avg | C57: 2023 Bill Impacts (Average Consumption Level) - AUGe_WHSI
A58: BI Template_EnergyWHSI | B58: BI_WHSI_AUGe_High | C58: 2023 Bill Impacts (High Consumption Level) - AUGe_WHSI
A59: BI Template_DemandWHSI | B59: BI_WHSI_AUGd_Low | C59: 2023 Bill Impacts (Low Consumption Level) - AUGd_WHSI
A60: BI Template_DemandWHSI | B60: BI_WHSI_AUGd_Avg | C60: 2023 Bill Impacts (Average Consumption Level) - AUGd_WHSI
A61: BI Template_DemandWHSI | B61: BI_WHSI_AUGd_High | C61: 2023 Bill Impacts (High Consumption Level) - AUGd_WHSI
A62: BI Template_DemandWHSI | B62: BI_WHSI_ST_Avg | C62: 2023 Bill Impacts (Average Consumption Level) - ST_WHSI
A63: BI Template_EnergyNPDI | B63: BI_NPDI_AR_Low | C63: 2023 Bill Impacts (Low Consumption Level) - AR_NPDI
A64: BI Template_EnergyNPDI | B64: BI_NPDI_AR_Typical | C64: 2023 Bill Impacts (Typical Consumption Level) - AR_NPDI
A65: BI Template_EnergyNPDI | B65: BI_NPDI_AR_Avg | C65: 2023 Bill Impacts (Average Consumption Level) - AR_NPDI
A66: BI Template_EnergyNPDI | B66: BI_NPDI_AR_High | C66: 2023 Bill Impacts (High Consumption Level) - AR_NPDI
A67: BI Template_EnergyHCHI | B67: BI_HCHI_AR_Low | C67: 2023 Bill Impacts (Low Consumption Level) - AR_HCHI
A68: BI Template_EnergyHCHI | B68: BI_HCHI_AR_Typical | C68: 2023 Bill Impacts (Typical Consumption Level) - AR_HCHI
A69: BI Template_EnergyHCHI | B69: BI_HCHI_AR_Avg | C69: 2023 Bill Impacts (Average Consumption Level) - AR_HCHI
A70: BI Template_EnergyHCHI | B70: BI_HCHI_AR_High | C70: 2023 Bill Impacts (High Consumption Level) - AR_HCHI
A71: BI Template_EnergyNPDI | B71: BI_NPDI_AGSe_Low | C71: 2023 Bill Impacts (Low Consumption Level) - AGSe_NPDI
A72: BI Template_EnergyNPDI | B72: BI_NPDI_AGSe_Typical | C72: 2023 Bill Impacts (Typical Consumption Level) - AGSe_NPDI
A73: BI Template_EnergyNPDI | B73: BI_NPDI_AGSe_Avg | C73: 2023 Bill Impacts (Average Consumption Level) - AGSe_NPDI
A74: BI Template_EnergyNPDI | B74: BI_NPDI_AGSe_High | C74: 2023 Bill Impacts (High Consumption Level) - AGSe_NPDI
A75: BI Template_EnergyHCHI | B75: BI_HCHI_AGSe_Low | C75: 2023 Bill Impacts (Low Consumption Level) - AGSe_HCHI
A76: BI Template_EnergyHCHI | B76: BI_HCHI_AGSe_Typical | C76: 2023 Bill Impacts (Typical Consumption Level) - AGSe_HCHI
A77: BI Template_EnergyHCHI | B77: BI_HCHI_AGSe_Avg | C77: 2023 Bill Impacts (Average Consumption Level) - AGSe_HCHI
A78: BI Template_EnergyHCHI | B78: BI_HCHI_AGSe_High | C78: 2023 Bill Impacts (High Consumption Level) - AGSe_HCHI
A79: BI Template_DemandNPDI | B79: BI_NPDI_AGSd_Low | C79: 2023 Bill Impacts (Low Consumption Level) - AGSd_NPDI
A80: BI Template_DemandNPDI | B80: BI_NPDI_AGSd_Avg | C80: 2023 Bill Impacts (Average Consumption Level) - AGSd_NPDI
A81: BI Template_DemandNPDI | B81: BI_NPDI_AGSd_High | C81: 2023 Bill Impacts (High Consumption Level) - AGSd_NPDI
A82: BI Template_DemandHCHI | B82: BI_HCHI_AGSd_Low | C82: 2023 Bill Impacts (Low Consumption Level) - AGSd_HCHI
A83: BI Template_DemandHCHI | B83: BI_HCHI_AGSd_Avg | C83: 2023 Bill Impacts (Average Consumption Level) - AGSd_HCHI
A84: BI Template_DemandHCHI | B84: BI_HCHI_AGSd_High | C84: 2023 Bill Impacts (High Consumption Level) - AGSd_HCHI
A85: BI Template_unmWHSI | B85: BI_WHSI_USL_Avg | C85: 2023 Bill Impacts (Average Consumption Level) - USL_WHSI
A86: BI Template_unmNPDI | B86: BI_NPDI_USL_Avg | C86: 2023 Bill Impacts (Average Consumption Level) - USL_NPDI
A87: BI Template_unmHCHI | B87: BI_HCHI_USL_Avg | C87: 2023 Bill Impacts (Average Consumption Level) - USL_HCHI
A88: BI Template_unmWHSI | B88: BI_WHSI_StLgt_Avg | C88: 2023 Bill Impacts (Average Consumption Level) - St Lgt_WHSI
A89: BI Template_unmNPDI | B89: BI_NPDI_StLgt_Avg | C89: 2023 Bill Impacts (Average Consumption Level) - St Lgt_NPDI
A90: BI Template_unmHCHI | B90: BI_HCHI_StLgt_Avg | C90: 2023 Bill Impacts (Average Consumption Level) - St Lgt_HCHI
A91: BI Template_unmNPDI | B91: BI_NPDI_SenLgt_Avg | C91: 2023 Bill Impacts (Average Consumption Level) - Sen Lgt_NPDI
A92: BI Template_unmHCHI | B92: BI_HCHI_SenLgt_Avg | C92: 2023 Bill Impacts (Average Consumption Level) - Sen Lgt_HCHI
A93: BI Template_Seasonal | B93: BI_Seas_UR_Low | C93: 2023 Bill Impacts (Low Consumption Level) - Seas-UR
A94: BI Template_Seasonal | B94: BI_Seas_UR_Avg | C94: 2023 Bill Impacts (Average Consumption Level) - Seas-UR
A95: BI Template_Seasonal | B95: BI_Seas_UR_High | C95: 2023 Bill Impacts (High Consumption Level) - Seas-UR
A96: BI Template_Seasonal | B96: BI_Seas_R1_Low | C96: 2023 Bill Impacts (Low Consumption Level) - Seas-R1
A97: BI Template_Seasonal | B97: BI_Seas_R1_Avg | C97: 2023 Bill Impacts (Average Consumption Level) - Seas-R1
A98: BI Template_Seasonal | B98: BI_Seas_R1_High | C98: 2023 Bill Impacts (High Consumption Level) - Seas-R1
A99: BI Template_Seasonal | B99: BI_Seas_R2_Low | C99: 2023 Bill Impacts (Low Consumption Level) - Seas-R2
A100: BI Template_Seasonal | B100: BI_Seas_R2_Avg | C100: 2023 Bill Impacts (Average Consumption Level) - Seas-R2
A101: BI Template_Seasonal | B101: BI_Seas_R2_High | C101: 2023 Bill Impacts (High Consumption Level) - Seas-R2

Sheet Data BI List Acq_Seas (hidden)
A1: Template Name | B1: Bill Impact Worksheet Name | C1: Bill Impact Header | D1: Current Rate Class (Acq) | E1: Proposed Rate Class
A2: BI Template_EnergyWHSI | B2: BI_AUR_Low | C2: 2023 Bill Impacts (Low Consumption Level) - AUR_WHSI | D2: WHSI_RES | E2: AUR-WHSI
A3: BI Template_EnergyWHSI | B3: BI_AUR_Typical | C3: 2023 Bill Impacts (Typical Consumption Level) - AUR_WHSI | D3: WHSI_RES | E3: AUR-WHSI
A4: BI Template_EnergyWHSI | B4: BI_AUR_Avg | C4: 2023 Bill Impacts (Average Consumption Level) - AUR_WHSI | D4: WHSI_RES | E4: AUR-WHSI
A5: BI Template_EnergyWHSI | B5: BI_AUR_High | C5: 2023 Bill Impacts (High Consumption Level) - AUR_WHSI | D5: WHSI_RES | E5: AUR-WHSI
A6: BI Template_EnergyWHSI | B6: BI_AUGe_Low | C6: 2023 Bill Impacts (Low Consumption Level) - AUGe_WHSI | D6: WHSI_GS<50 | E6: AUGe-WHSI
A7: BI Template_EnergyWHSI | B7: BI_AUGe_Typical | C7: 2023 Bill Impacts (Typical Consumption Level) - AUGe_WHSI | D7: WHSI_GS<50 | E7: AUGe-WHSI
A8: BI Template_EnergyWHSI | B8: BI_AUGe_Avg | C8: 2023 Bill Impacts (Average Consumption Level) - AUGe_WHSI | D8: WHSI_GS<50 | E8: AUGe-WHSI
A9: BI Template_EnergyWHSI | B9: BI_AUGe_High | C9: 2023 Bill Impacts (High Consumption Level) - AUGe_WHSI | D9: WHSI_GS<50 | E9: AUGe-WHSI
A10: BI Template_DemandWHSI | B10: BI_AUGd_Low | C10: 2023 Bill Impacts (Low Consumption Level) - AUGd_WHSI | D10: WHSI_GS 50-999 | E10: AUGd-WHSI
A11: BI Template_DemandWHSI | B11: BI_AUGd_Avg | C11: 2023 Bill Impacts (Average Consumption Level) - AUGd_WHSI | D11: WHSI_GS 50-999 | E11: AUGd-WHSI
A12: BI Template_DemandWHSI | B12: BI_AUGd_High | C12: 2023 Bill Impacts (High Consumption Level) - AUGd_WHSI | D12: WHSI_GS 50-999 | E12: AUGd-WHSI
A13: BI Template_DemandWHSI | B13: BI_WHSI_ST_Avg | C13: 2023 Bill Impacts (Average Consumption Level) - ST_WHSI | D13: WHSI_GS >1,000kW | E13: ST-WHSI
A14: BI Template_EnergyNPDI | B14: BI_NPDI_AR_Low | C14: 2023 Bill Impacts (Low Consumption Level) - AR_NPDI | D14: NPDI_RES | E14: AR-NPDI
A15: BI Template_EnergyNPDI | B15: BI_NPDI_AR_Typical | C15: 2023 Bill Impacts (Typical Consumption Level) - AR_NPDI | D15: NPDI_RES | E15: AR-NPDI
A16: BI Template_EnergyNPDI | B16: BI_NPDI_AR_Avg | C16: 2023 Bill Impacts (Average Consumption Level) - AR_NPDI | D16: NPDI_RES | E16: AR-NPDI
A17: BI Template_EnergyNPDI | B17: BI_NPDI_AR_High | C17: 2023 Bill Impacts (High Consumption Level) - AR_NPDI | D17: NPDI_RES | E17: AR-NPDI
A18: BI Template_EnergyHCHI | B18: BI_HCHI_AR_Low | C18: 2023 Bill Impacts (Low Consumption Level) - AR_HCHI | D18: HCHI_RES | E18: AR-HCHI
A19: BI Template_EnergyHCHI | B19: BI_HCHI_AR_Typical | C19: 2023 Bill Impacts (Typical Consumption Level) - AR_HCHI | D19: HCHI_RES | E19: AR-HCHI
A20: BI Template_EnergyHCHI | B20: BI_HCHI_AR_Avg | C20: 2023 Bill Impacts (Average Consumption Level) - AR_HCHI | D20: HCHI_RES | E20: AR-HCHI
A21: BI Template_EnergyHCHI | B21: BI_HCHI_AR_High | C21: 2023 Bill Impacts (High Consumption Level) - AR_HCHI | D21: HCHI_RES | E21: AR-HCHI
A22: BI Template_EnergyNPDI | B22: BI_NPDI_AGSe_Low | C22: 2023 Bill Impacts (Low Consumption Level) - AGSe_NPDI | D22: NPDI_GS<50 | E22: AGSe-NPDI
A23: BI Template_EnergyNPDI | B23: BI_NPDI_AGSe_Typical | C23: 2023 Bill Impacts (Typical Consumption Level) - AGSe_NPDI | D23: NPDI_GS<50 | E23: AGSe-NPDI
A24: BI Template_EnergyNPDI | B24: BI_NPDI_AGSe_Avg | C24: 2023 Bill Impacts (Average Consumption Level) - AGSe_NPDI | D24: NPDI_GS<50 | E24: AGSe-NPDI
A25: BI Template_EnergyNPDI | B25: BI_NPDI_AGSe_High | C25: 2023 Bill Impacts (High Consumption Level) - AGSe_NPDI | D25: NPDI_GS<50 | E25: AGSe-NPDI
A26: BI Template_EnergyHCHI | B26: BI_HCHI_AGSe_Low | C26: 2023 Bill Impacts (Low Consumption Level) - AGSe_HCHI | D26: HCHI_GS<50 | E26: AGSe-HCHI
A27: BI Template_EnergyHCHI | B27: BI_HCHI_AGSe_Typical | C27: 2023 Bill Impacts (Typical Consumption Level) - AGSe_HCHI | D27: HCHI_GS<50 | E27: AGSe-HCHI
A28: BI Template_EnergyHCHI | B28: BI_HCHI_AGSe_Avg | C28: 2023 Bill Impacts (Average Consumption Level) - AGSe_HCHI | D28: HCHI_GS<50 | E28: AGSe-HCHI
A29: BI Template_EnergyHCHI | B29: BI_HCHI_AGSe_High | C29: 2023 Bill Impacts (High Consumption Level) - AGSe_HCHI | D29: HCHI_GS<50 | E29: AGSe-HCHI
A30: BI Template_DemandNPDI | B30: BI_NPDI_AGSd_Low | C30: 2023 Bill Impacts (Low Consumption Level) - AGSd_NPDI | D30: NPDI_GS >50 | E30: AGSd-NPDI
A31: BI Template_DemandNPDI | B31: BI_NPDI_AGSd_Avg | C31: 2023 Bill Impacts (Average Consumption Level) - AGSd_NPDI | D31: NPDI_GS >50 | E31: AGSd-NPDI
A32: BI Template_DemandNPDI | B32: BI_NPDI_AGSd_High | C32: 2023 Bill Impacts (High Consumption Level) - AGSd_NPDI | D32: NPDI_GS >50 | E32: AGSd-NPDI
A33: BI Template_DemandHCHI | B33: BI_HCHI_AGSd_Low | C33: 2023 Bill Impacts (Low Consumption Level) - AGSd_HCHI | D33: HCHI_GS >50 | E33: AGSd-HCHI
A34: BI Template_DemandHCHI | B34: BI_HCHI_AGSd_Avg | C34: 2023 Bill Impacts (Average Consumption Level) - AGSd_HCHI | D34: HCHI_GS >50 | E34: AGSd-HCHI
A35: BI Template_DemandHCHI | B35: BI_HCHI_AGSd_High | C35: 2023 Bill Impacts (High Consumption Level) - AGSd_HCHI | D35: HCHI_GS >50 | E35: AGSd-HCHI
A36: BI Template_EnergyUNM | B36: BI_WHSI_USL_Avg | C36: 2023 Bill Impacts (Average Consumption Level) - USL_WHSI | D36: WHSI_USL | E36: USL-WHSI
A37: BI Template_unmNPDI | B37: BI_NPDI_USL_Avg | C37: 2023 Bill Impacts (Average Consumption Level) - USL_NPDI | D37: NPDI_USL | E37: USL-NPDI
A38: BI Template_unmHCHI | B38: BI_HCHI_USL_Avg | C38: 2023 Bill Impacts (Average Consumption Level) - USL_HCHI | D38: HCHI_USL | E38: USL-HCHI
A39: BI Template_unmWHSI | B39: BI_WHSI_StLgt_Avg | C39: 2023 Bill Impacts (Average Consumption Level) - St Lgt_WHSI | D39: WHSI_St Lgt | E39: St Lgt-WHSI
A40: BI Template_unmNPDI | B40: BI_NPDI_StLgt_Avg | C40: 2023 Bill Impacts (Average Consumption Level) - St Lgt_NPDI | D40: NPDI_St Lgt | E40: St Lgt-NPDI
A41: BI Template_unmHCHI | B41: BI_HCHI_StLgt_Avg | C41: 2023 Bill Impacts (Average Consumption Level) - St Lgt_HCHI | D41: HCHI_St Lgt | E41: St Lgt-HCHI
A42: BI Template_unmNPDI | B42: BI_NPDI_SenLgt_Avg | C42: 2023 Bill Impacts (Average Consumption Level) - Sen Lgt_NPDI | D42: NPDI_Sen Lgt | E42: Sen Lgt-NPDI
A43: BI Template_unmHCHI | B43: BI_HCHI_SenLgt_Avg | C43: 2023 Bill Impacts (Average Consumption Level) - Sen Lgt_HCHI | D43: HCHI_Sen Lgt | E43: Sen Lgt-HCHI
A44: BI Template_Seasonal | B44: BI_Seas_UR_Low | C44: 2023 Bill Impacts (Low Consumption Level) - Seas-UR | D44: Seasonal | E44: UR
A45: BI Template_Seasonal | B45: BI_Seas_UR_Avg | C45: 2023 Bill Impacts (Average Consumption Level) - Seas-UR | D45: Seasonal | E45: UR
A46: BI Template_Seasonal | B46: BI_Seas_UR_High | C46: 2023 Bill Impacts (High Consumption Level) - Seas-UR | D46: Seasonal | E46: UR
A47: BI Template_Seasonal | B47: BI_Seas_R1_Low | C47: 2023 Bill Impacts (Low Consumption Level) - Seas-R1 | D47: Seasonal | E47: R1
A48: BI Template_Seasonal | B48: BI_Seas_R1_Avg | C48: 2023 Bill Impacts (Average Consumption Level) - Seas-R1 | D48: Seasonal | E48: R1
A49: BI Template_Seasonal | B49: BI_Seas_R1_High | C49: 2023 Bill Impacts (High Consumption Level) - Seas-R1 | D49: Seasonal | E49: R1
A50: BI Template_Seasonal | B50: BI_Seas_R2_Low | C50: 2023 Bill Impacts (Low Consumption Level) - Seas-R2 | D50: Seasonal | E50: R2
A51: BI Template_Seasonal | B51: BI_Seas_R2_Avg | C51: 2023 Bill Impacts (Average Consumption Level) - Seas-R2 | D51: Seasonal | E51: R2
A52: BI Template_Seasonal | B52: BI_Seas_R2_High | C52: 2023 Bill Impacts (High Consumption Level) - Seas-R2 | D52: Seasonal | E52: R2

Sheet Bill Impact Summary (hidden)
A1: Rate Class | B1: Consumption Level | C1: Monthly Consumption (kWh) | D1: Monthly Peak (kW) | E1: BI Worksheet | F1: Template | G1: Current Total Bill | H1: Change in DX Bill ($) | I1: Change in DX Bill (%) | J1: Change in Total Bill ($) | K1: Change in Total Bill (%) | L1: Commodity Price Used | O1: List for Data Validation of cell L6; do not remove
A2: UR | B2: Low | C2: =VLOOKUP(A$2,'Data Billing Quantities'!A:P,MATCH(B2&" kWh",'Data Billing Quantities'!$4:$4,0),FALSE) -> 340 | E2: BI_UR_Low | F2: BI Template_Energy | G2: =VLOOKUP(VLOOKUP($F2,'Data BI Summary'!$A:$F,MATCH(G$1,'Data BI Summary'!$2:$2,0),FALSE),INDIRECT("'"&$E2&"'!"&"$A:$K"),4,FALSE) -> 80.15879856 | H2: =VLOOKUP(VLOOKUP($F2,'Data BI Summary'!$A:$F,MATCH(H$1,'Data BI Summary'!$2:$2,0),FALSE),INDIRECT("'"&$E2&"'!"&"$A:$K"),8,FALSE) -> -1.396 | I2: =VLOOKUP(VLOOKUP($F2,'Data BI Summary'!$A:$F,MATCH(I$1,'Data BI Summary'!$2:$2,0),FALSE),INDIRECT("'"&$E2&"'!"&"$A:$K"),9,FALSE) -> -0.03592382913 | J2: =VLOOKUP(VLOOKUP($F2,'Data BI Summary'!$A:$F,MATCH(J$1,'Data BI Summary'!$2:$2,0),FALSE),INDIRECT("'"&$E2&"'!"&"$A:$K"),8,FALSE) -> -1.448906632 | K2: =VLOOKUP(VLOOKUP($F2,'Data BI Summary'!$A:$F,MATCH(K$1,'Data BI Summary'!$2:$2,0),FALSE),INDIRECT("'"&$E2&"'!"&"$A:$K"),9,FALSE) -> -0.01807545345 | L2: TOU
B3: Typical | C3: =VLOOKUP(A$2,'Data Billing Quantities'!A:P,MATCH(B3&" kWh",'Data Billing Quantities'!$4:$4,0),FALSE) -> 750 | E3: BI_UR_Typical | F3: BI Template_Energy | G3: =VLOOKUP(VLOOKUP($F3,'Data BI Summary'!$A:$F,MATCH(G$1,'Data BI Summary'!$2:$2,0),FALSE),INDIRECT("'"&$E3&"'!"&"$A:$K"),4,FALSE) -> 131.7945827 | H3: =VLOOKUP(VLOOKUP($F3,'Data BI Summary'!$A:$F,MATCH(H$1,'Data BI Summary'!$2:$2,0),FALSE),INDIRECT("'"&$E3&"'!"&"$A:$K"),8,FALSE) -> -1.56 | I3: =VLOOKUP(VLOOKUP($F3,'Data BI Summary'!$A:$F,MATCH(I$1,'Data BI Summary'!$2:$2,0),FALSE),INDIRECT("'"&$E3&"'!"&"$A:$K"),9,FALSE) -> -0.04014410705 | J3: =VLOOKUP(VLOOKUP($F3,'Data BI Summary'!$A:$F,MATCH(J$1,'Data BI Summary'!$2:$2,0),FALSE),INDIRECT("'"&$E3&"'!"&"$A:$K"),8,FALSE) -> -1.7663511 | K3: =VLOOKUP(VLOOKUP($F3,'Data BI Summary'!$A:$F,MATCH(K$1,'Data BI Summary'!$2:$2,0),FALSE),INDIRECT("'"&$E3&"'!"&"$A:$K"),9,FALSE) -> -0.01340230428
B4: Average | C4: =VLOOKUP(A$2,'Data Billing Quantities'!A:P,MATCH(B4&" kWh",'Data Billing Quantities'!$4:$4,0),FALSE) -> 690 | E4: BI_UR_Avg | F4: BI Template_Energy | G4: =VLOOKUP(VLOOKUP($F4,'Data BI Summary'!$A:$F,MATCH(G$1,'Data BI Summary'!$2:$2,0),FALSE),INDIRECT("'"&$E4&"'!"&"$A:$K"),4,FALSE) -> 124.2381265 | H4: =VLOOKUP(VLOOKUP($F4,'Data BI Summary'!$A:$F,MATCH(H$1,'Data BI Summary'!$2:$2,0),FALSE),INDIRECT("'"&$E4&"'!"&"$A:$K"),8,FALSE) -> -1.536 | I4: =VLOOKUP(VLOOKUP($F4,'Data BI Summary'!$A:$F,MATCH(I$1,'Data BI Summary'!$2:$2,0),FALSE),INDIRECT("'"&$E4&"'!"&"$A:$K"),9,FALSE) -> -0.0395265054 | J4: =VLOOKUP(VLOOKUP($F4,'Data BI Summary'!$A:$F,MATCH(J$1,'Data BI Summary'!$2:$2,0),FALSE),INDIRECT("'"&$E4&"'!"&"$A:$K"),8,FALSE) -> -1.719895812 | K4: =VLOOKUP(VLOOKUP($F4,'Data BI Summary'!$A:$F,MATCH(K$1,'Data BI Summary'!$2:$2,0),FALSE),INDIRECT("'"&$E4&"'!"&"$A:$K"),9,FALSE) -> -0.01384354272
B5: High | C5: =VLOOKUP(A$2,'Data Billing Quantities'!A:P,MATCH(B5&" kWh",'Data Billing Quantities'!$4:$4,0),FALSE) -> 1260 | E5: BI_UR_High | F5: BI Template_Energy | G5: =VLOOKUP(VLOOKUP($F5,'Data BI Summary'!$A:$F,MATCH(G$1,'Data BI Summary'!$2:$2,0),FALSE),INDIRECT("'"&$E5&"'!"&"$A:$K"),4,FALSE) -> 196.0244605 | H5: =VLOOKUP(VLOOKUP($F5,'Data BI Summary'!$A:$F,MATCH(H$1,'Data BI Summary'!$2:$2,0),FALSE),INDIRECT("'"&$E5&"'!"&"$A:$K"),8,FALSE) -> -1.764 | I5: =VLOOKUP(VLOOKUP($F5,'Data BI Summary'!$A:$F,MATCH(I$1,'Data BI Summary'!$2:$2,0),FALSE),INDIRECT("'"&$E5&"'!"&"$A:$K"),9,FALSE) -> -0.04539372105 | J5: =VLOOKUP(VLOOKUP($F5,'Data BI Summary'!$A:$F,MATCH(J$1,'Data BI Summary'!$2:$2,0),FALSE),INDIRECT("'"&$E5&"'!"&"$A:$K"),8,FALSE) -> -2.161221048 | K5: =VLOOKUP(VLOOKUP($F5,'Data BI Summary'!$A:$F,MATCH(K$1,'Data BI Summary'!$2:$2,0),FALSE),INDIRECT("'"&$E5&"'!"&"$A:$K"),9,FALSE) -> -0.01102526206
A6: R1 (with DRP) | B6: Low | C6: =VLOOKUP("R1",'Data Billing Quantities'!A:P,MATCH(B6&" kWh",'Data Billing Quantities'!$4:$4,0),FALSE) -> 370 | E6: BI_R1_Low (with DRP) | F6: BI Template_Energy | G6: =VLOOKUP(VLOOKUP($F6,'Data BI Summary'!$A:$F,MATCH(G$1,'Data BI Summary'!$2:$2,0),FALSE),INDIRECT("'"&$E6&"'!"&"$A:$K"),4,FALSE) -> 82.3681638 | H6: =VLOOKUP(VLOOKUP($F6,'Data BI Summary'!$A:$F,MATCH(H$1,'Data BI Summary'!$2:$2,0),FALSE),INDIRECT("'"&$E6&"'!"&"$A:$K"),8,FALSE) -> -0.288 | I6: =VLOOKUP(VLOOKUP($F6,'Data BI Summary'!$A:$F,MATCH(I$1,'Data BI Summary'!$2:$2,0),FALSE),INDIRECT("'"&$E6&"'!"&"$A:$K"),9,FALSE) -> -0.007813347802 | J6: =VLOOKUP(VLOOKUP($F6,'Data BI Summary'!$A:$F,MATCH(J$1,'Data BI Summary'!$2:$2,0),FALSE),INDIRECT("'"&$E6&"'!"&"$A:$K"),8,FALSE) -> -0.383397276 | K6: =VLOOKUP(VLOOKUP($F6,'Data BI Summary'!$A:$F,MATCH(K$1,'Data BI Summary'!$2:$2,0),FALSE),INDIRECT("'"&$E6&"'!"&"$A:$K"),9,FALSE) -> -0.004654677952 | L6: TOU (DRP applied) | O6: TOU
B7: Typical | C7: =VLOOKUP("R1",'Data Billing Quantities'!A:P,MATCH(B7&" kWh",'Data Billing Quantities'!$4:$4,0),FALSE) -> 750 | E7: BI_R1_Typical (with DRP) | F7: BI Template_Energy | G7: =VLOOKUP(VLOOKUP($F7,'Data BI Summary'!$A:$F,MATCH(G$1,'Data BI Summary'!$2:$2,0),FALSE),INDIRECT("'"&$E7&"'!"&"$A:$K"),4,FALSE) -> 130.5473201 | H7: =VLOOKUP(VLOOKUP($F7,'Data BI Summary'!$A:$F,MATCH(H$1,'Data BI Summary'!$2:$2,0),FALSE),INDIRECT("'"&$E7&"'!"&"$A:$K"),8,FALSE) -> -0.44 | I7: =VLOOKUP(VLOOKUP($F7,'Data BI Summary'!$A:$F,MATCH(I$1,'Data BI Summary'!$2:$2,0),FALSE),INDIRECT("'"&$E7&"'!"&"$A:$K"),9,FALSE) -> -0.01193705914 | J7: =VLOOKUP(VLOOKUP($F7,'Data BI Summary'!$A:$F,MATCH(J$1,'Data BI Summary'!$2:$2,0),FALSE),INDIRECT("'"&$E7&"'!"&"$A:$K"),8,FALSE) -> -0.6418561 | K7: =VLOOKUP(VLOOKUP($F7,'Data BI Summary'!$A:$F,MATCH(K$1,'Data BI Summary'!$2:$2,0),FALSE),INDIRECT("'"&$E7&"'!"&"$A:$K"),9,FALSE) -> -0.004916654737 | O7: TOU (DRP applied)
B8: Average | C8: =VLOOKUP("R1",'Data Billing Quantities'!A:P,MATCH(B8&" kWh",'Data Billing Quantities'!$4:$4,0),FALSE) -> 784 | E8: BI_R1_Avg (with DRP) | F8: BI Template_Energy | G8: =VLOOKUP(VLOOKUP($F8,'Data BI Summary'!$A:$F,MATCH(G$1,'Data BI Summary'!$2:$2,0),FALSE),INDIRECT("'"&$E8&"'!"&"$A:$K"),4,FALSE) -> 134.8580868 | H8: =VLOOKUP(VLOOKUP($F8,'Data BI Summary'!$A:$F,MATCH(H$1,'Data BI Summary'!$2:$2,0),FALSE),INDIRECT("'"&$E8&"'!"&"$A:$K"),8,FALSE) -> -0.4536 | I8: =VLOOKUP(VLOOKUP($F8,'Data BI Summary'!$A:$F,MATCH(I$1,'Data BI Summary'!$2:$2,0),FALSE),INDIRECT("'"&$E8&"'!"&"$A:$K"),9,FALSE) -> -0.01230602279 | J8: =VLOOKUP(VLOOKUP($F8,'Data BI Summary'!$A:$F,MATCH(J$1,'Data BI Summary'!$2:$2,0),FALSE),INDIRECT("'"&$E8&"'!"&"$A:$K"),8,FALSE) -> -0.6649813632 | K8: =VLOOKUP(VLOOKUP($F8,'Data BI Summary'!$A:$F,MATCH(K$1,'Data BI Summary'!$2:$2,0),FALSE),INDIRECT("'"&$E8&"'!"&"$A:$K"),9,FALSE) -> -0.004930971358
B9: High | C9: =VLOOKUP("R1",'Data Billing Quantities'!A:P,MATCH(B9&" kWh",'Data Billing Quantities'!$4:$4,0),FALSE) -> 1650 | E9: BI_R1_High (with DRP) | F9: BI Template_Energy | G9: =VLOOKUP(VLOOKUP($F9,'Data BI Summary'!$A:$F,MATCH(G$1,'Data BI Summary'!$2:$2,0),FALSE),INDIRECT("'"&$E9&"'!"&"$A:$K"),4,FALSE) -> 244.6558483 | H9: =VLOOKUP(VLOOKUP($F9,'Data BI Summary'!$A:$F,MATCH(H$1,'Data BI Summary'!$2:$2,0),FALSE),INDIRECT("'"&$E9&"'!"&"$A:$K"),8,FALSE) -> -0.8 | I9: =VLOOKUP(VLOOKUP($F9,'Data BI Summary'!$A:$F,MATCH(I$1,'Data BI Summary'!$2:$2,0),FALSE),INDIRECT("'"&$E9&"'!"&"$A:$K"),9,FALSE) -> -0.0217037439 | J9: =VLOOKUP(VLOOKUP($F9,'Data BI Summary'!$A:$F,MATCH(J$1,'Data BI Summary'!$2:$2,0),FALSE),INDIRECT("'"&$E9&"'!"&"$A:$K"),8,FALSE) -> -1.25399542 | K9: =VLOOKUP(VLOOKUP($F9,'Data BI Summary'!$A:$F,MATCH(K$1,'Data BI Summary'!$2:$2,0),FALSE),INDIRECT("'"&$E9&"'!"&"$A:$K"),9,FALSE) -> -0.005125548515
A10: R1 (without DRP) | B10: Low | C10: =VLOOKUP("R1",'Data Billing Quantities'!A:P,MATCH(B10&" kWh",'Data Billing Quantities'!$4:$4,0),FALSE) -> 370 | E10: BI_R1_Low (without DRP) | F10: BI Template_Energy | G10: =VLOOKUP(VLOOKUP($F10,'Data BI Summary'!$A:$F,MATCH(G$1,'Data BI Summary'!$2:$2,0),FALSE),INDIRECT("'"&$E10&"'!"&"$A:$K"),4,FALSE) -> 105.3850238 | H10: =VLOOKUP(VLOOKUP($F10,'Data BI Summary'!$A:$F,MATCH(H$1,'Data BI Summary'!$2:$2,0),FALSE),INDIRECT("'"&$E10&"'!"&"$A:$K"),8,FALSE) -> 0.59 | I10: =VLOOKUP(VLOOKUP($F10,'Data BI Summary'!$A:$F,MATCH(I$1,'Data BI Summary'!$2:$2,0),FALSE),INDIRECT("'"&$E10&"'!"&"$A:$K"),9,FALSE) -> 0.009621656882 | J10: =VLOOKUP(VLOOKUP($F10,'Data BI Summary'!$A:$F,MATCH(J$1,'Data BI Summary'!$2:$2,0),FALSE),INDIRECT("'"&$E10&"'!"&"$A:$K"),8,FALSE) -> 0.442800724 | K10: =VLOOKUP(VLOOKUP($F10,'Data BI Summary'!$A:$F,MATCH(K$1,'Data BI Summary'!$2:$2,0),FALSE),INDIRECT("'"&$E10&"'!"&"$A:$K"),9,FALSE) -> 0.004201742411 | L10: TOU | M10: Make sure to zero out DRP credit in individual sheets
B11: Typical | C11: =VLOOKUP("R1",'Data Billing Quantities'!A:P,MATCH(B11&" kWh",'Data Billing Quantities'!$4:$4,0),FALSE) -> 750 | E11: BI_R1_Typical (without DRP) | F11: BI Template_Energy | G11: =VLOOKUP(VLOOKUP($F11,'Data BI Summary'!$A:$F,MATCH(G$1,'Data BI Summary'!$2:$2,0),FALSE),INDIRECT("'"&$E11&"'!"&"$A:$K"),4,FALSE) -> 157.1399801 | H11: =VLOOKUP(VLOOKUP($F11,'Data BI Summary'!$A:$F,MATCH(H$1,'Data BI Summary'!$2:$2,0),FALSE),INDIRECT("'"&$E11&"'!"&"$A:$K"),8,FALSE) -> -1.31 | I11: =VLOOKUP(VLOOKUP($F11,'Data BI Summary'!$A:$F,MATCH(I$1,'Data BI Summary'!$2:$2,0),FALSE),INDIRECT("'"&$E11&"'!"&"$A:$K"),9,FALSE) -> -0.02011670762 | J11: =VLOOKUP(VLOOKUP($F11,'Data BI Summary'!$A:$F,MATCH(J$1,'Data BI Summary'!$2:$2,0),FALSE),INDIRECT("'"&$E11&"'!"&"$A:$K"),8,FALSE) -> -1.4605261 | K11: =VLOOKUP(VLOOKUP($F11,'Data BI Summary'!$A:$F,MATCH(K$1,'Data BI Summary'!$2:$2,0),FALSE),INDIRECT("'"&$E11&"'!"&"$A:$K"),9,FALSE) -> -0.009294427164
B12: Average | C12: =VLOOKUP("R1",'Data Billing Quantities'!A:P,MATCH(B12&" kWh",'Data Billing Quantities'!$4:$4,0),FALSE) -> 784 | E12: BI_R1_Avg (without DRP) | F12: BI Template_Energy | G12: =VLOOKUP(VLOOKUP($F12,'Data BI Summary'!$A:$F,MATCH(G$1,'Data BI Summary'!$2:$2,0),FALSE),INDIRECT("'"&$E12&"'!"&"$A:$K"),4,FALSE) -> 161.7706868 | H12: =VLOOKUP(VLOOKUP($F12,'Data BI Summary'!$A:$F,MATCH(H$1,'Data BI Summary'!$2:$2,0),FALSE),INDIRECT("'"&$E12&"'!"&"$A:$K"),8,FALSE) -> -1.48 | I12: =VLOOKUP(VLOOKUP($F12,'Data BI Summary'!$A:$F,MATCH(I$1,'Data BI Summary'!$2:$2,0),FALSE),INDIRECT("'"&$E12&"'!"&"$A:$K"),9,FALSE) -> -0.02260922701 | J12: =VLOOKUP(VLOOKUP($F12,'Data BI Summary'!$A:$F,MATCH(J$1,'Data BI Summary'!$2:$2,0),FALSE),INDIRECT("'"&$E12&"'!"&"$A:$K"),8,FALSE) -> -1.630823763 | K12: =VLOOKUP(VLOOKUP($F12,'Data BI Summary'!$A:$F,MATCH(K$1,'Data BI Summary'!$2:$2,0),FALSE),INDIRECT("'"&$E12&"'!"&"$A:$K"),9,FALSE) -> -0.01008108327
B13: High | C13: =VLOOKUP("R1",'Data Billing Quantities'!A:P,MATCH(B13&" kWh",'Data Billing Quantities'!$4:$4,0),FALSE) -> 1650 | E13: BI_R1_High (without DRP) | F13: BI Template_Energy | G13: =VLOOKUP(VLOOKUP($F13,'Data BI Summary'!$A:$F,MATCH(G$1,'Data BI Summary'!$2:$2,0),FALSE),INDIRECT("'"&$E13&"'!"&"$A:$K"),4,FALSE) -> 279.7175083 | H13: =VLOOKUP(VLOOKUP($F13,'Data BI Summary'!$A:$F,MATCH(H$1,'Data BI Summary'!$2:$2,0),FALSE),INDIRECT("'"&$E13&"'!"&"$A:$K"),8,FALSE) -> -5.81 | I13: =VLOOKUP(VLOOKUP($F13,'Data BI Summary'!$A:$F,MATCH(I$1,'Data BI Summary'!$2:$2,0),FALSE),INDIRECT("'"&$E13&"'!"&"$A:$K"),9,FALSE) -> -0.07838640043 | J13: =VLOOKUP(VLOOKUP($F13,'Data BI Summary'!$A:$F,MATCH(J$1,'Data BI Summary'!$2:$2,0),FALSE),INDIRECT("'"&$E13&"'!"&"$A:$K"),8,FALSE) -> -5.96840542 | K13: =VLOOKUP(VLOOKUP($F13,'Data BI Summary'!$A:$F,MATCH(K$1,'Data BI Summary'!$2:$2,0),FALSE),INDIRECT("'"&$E13&"'!"&"$A:$K"),9,FALSE) -> -0.02133726078
A14: R2 (with DRP) | B14: Low | C14: =VLOOKUP("R2",'Data Billing Quantities'!A:P,MATCH(B14&" kWh",'Data Billing Quantities'!$4:$4,0),FALSE) -> 440 | E14: BI_R2_Low (with DRP) | F14: BI Template_Energy | G14: =VLOOKUP(VLOOKUP($F14,'Data BI Summary'!$A:$F,MATCH(G$1,'Data BI Summary'!$2:$2,0),FALSE),INDIRECT("'"&$E14&"'!"&"$A:$K"),4,FALSE) -> 92.2435425 | H14: =VLOOKUP(VLOOKUP($F14,'Data BI Summary'!$A:$F,MATCH(H$1,'Data BI Summary'!$2:$2,0),FALSE),INDIRECT("'"&$E14&"'!"&"$A:$K"),8,FALSE) -> -0.466 | I14: =VLOOKUP(VLOOKUP($F14,'Data BI Summary'!$A:$F,MATCH(I$1,'Data BI Summary'!$2:$2,0),FALSE),INDIRECT("'"&$E14&"'!"&"$A:$K"),9,FALSE) -> -0.01264243082 | J14: =VLOOKUP(VLOOKUP($F14,'Data BI Summary'!$A:$F,MATCH(J$1,'Data BI Summary'!$2:$2,0),FALSE),INDIRECT("'"&$E14&"'!"&"$A:$K"),8,FALSE) -> -0.71301452 | K14: =VLOOKUP(VLOOKUP($F14,'Data BI Summary'!$A:$F,MATCH(K$1,'Data BI Summary'!$2:$2,0),FALSE),INDIRECT("'"&$E14&"'!"&"$A:$K"),9,FALSE) -> -0.007729695767 | L14: =L6 -> TOU (DRP applied)
B15: Typical | C15: =VLOOKUP("R2",'Data Billing Quantities'!A:P,MATCH(B15&" kWh",'Data Billing Quantities'!$4:$4,0),FALSE) -> 750 | E15: BI_R2_Typical (with DRP) | F15: BI Template_Energy | G15: =VLOOKUP(VLOOKUP($F15,'Data BI Summary'!$A:$F,MATCH(G$1,'Data BI Summary'!$2:$2,0),FALSE),INDIRECT("'"&$E15&"'!"&"$A:$K"),4,FALSE) -> 132.2523274 | H15: =VLOOKUP(VLOOKUP($F15,'Data BI Summary'!$A:$F,MATCH(H$1,'Data BI Summary'!$2:$2,0),FALSE),INDIRECT("'"&$E15&"'!"&"$A:$K"),8,FALSE) -> -0.59 | I15: =VLOOKUP(VLOOKUP($F15,'Data BI Summary'!$A:$F,MATCH(I$1,'Data BI Summary'!$2:$2,0),FALSE),INDIRECT("'"&$E15&"'!"&"$A:$K"),9,FALSE) -> -0.01600651112 | J15: =VLOOKUP(VLOOKUP($F15,'Data BI Summary'!$A:$F,MATCH(J$1,'Data BI Summary'!$2:$2,0),FALSE),INDIRECT("'"&$E15&"'!"&"$A:$K"),8,FALSE) -> -1.02310225 | K15: =VLOOKUP(VLOOKUP($F15,'Data BI Summary'!$A:$F,MATCH(K$1,'Data BI Summary'!$2:$2,0),FALSE),INDIRECT("'"&$E15&"'!"&"$A:$K"),9,FALSE) -> -0.007735986729
B16: Average | C16: =VLOOKUP("R2",'Data Billing Quantities'!A:P,MATCH(B16&" kWh",'Data Billing Quantities'!$4:$4,0),FALSE) -> 978 | E16: BI_R2_Avg (with DRP) | F16: BI Template_Energy | G16: =VLOOKUP(VLOOKUP($F16,'Data BI Summary'!$A:$F,MATCH(G$1,'Data BI Summary'!$2:$2,0),FALSE),INDIRECT("'"&$E16&"'!"&"$A:$K"),4,FALSE) -> 161.6781435 | H16: =VLOOKUP(VLOOKUP($F16,'Data BI Summary'!$A:$F,MATCH(H$1,'Data BI Summary'!$2:$2,0),FALSE),INDIRECT("'"&$E16&"'!"&"$A:$K"),8,FALSE) -> -0.6812 | I16: =VLOOKUP(VLOOKUP($F16,'Data BI Summary'!$A:$F,MATCH(I$1,'Data BI Summary'!$2:$2,0),FALSE),INDIRECT("'"&$E16&"'!"&"$A:$K"),9,FALSE) -> -0.01848073793 | J16: =VLOOKUP(VLOOKUP($F16,'Data BI Summary'!$A:$F,MATCH(J$1,'Data BI Summary'!$2:$2,0),FALSE),INDIRECT("'"&$E16&"'!"&"$A:$K"),8,FALSE) -> -1.251166774 | K16: =VLOOKUP(VLOOKUP($F16,'Data BI Summary'!$A:$F,MATCH(K$1,'Data BI Summary'!$2:$2,0),FALSE),INDIRECT("'"&$E16&"'!"&"$A:$K"),9,FALSE) -> -0.007738626552
B17: High | C17: =VLOOKUP("R2",'Data Billing Quantities'!A:P,MATCH(B17&" kWh",'Data Billing Quantities'!$4:$4,0),FALSE) -> 2110 | E17: BI_R2_High (with DRP) | F17: BI Template_Energy | G17: =VLOOKUP(VLOOKUP($F17,'Data BI Summary'!$A:$F,MATCH(G$1,'Data BI Summary'!$2:$2,0),FALSE),INDIRECT("'"&$E17&"'!"&"$A:$K"),4,FALSE) -> 307.7747388 | H17: =VLOOKUP(VLOOKUP($F17,'Data BI Summary'!$A:$F,MATCH(H$1,'Data BI Summary'!$2:$2,0),FALSE),INDIRECT("'"&$E17&"'!"&"$A:$K"),8,FALSE) -> -1.134 | I17: =VLOOKUP(VLOOKUP($F17,'Data BI Summary'!$A:$F,MATCH(I$1,'Data BI Summary'!$2:$2,0),FALSE),INDIRECT("'"&$E17&"'!"&"$A:$K"),9,FALSE) -> -0.03076505697 | J17: =VLOOKUP(VLOOKUP($F17,'Data BI Summary'!$A:$F,MATCH(J$1,'Data BI Summary'!$2:$2,0),FALSE),INDIRECT("'"&$E17&"'!"&"$A:$K"),8,FALSE) -> -2.38348713 | K17: =VLOOKUP(VLOOKUP($F17,'Data BI Summary'!$A:$F,MATCH(K$1,'Data BI Summary'!$2:$2,0),FALSE),INDIRECT("'"&$E17&"'!"&"$A:$K"),9,FALSE) -> -0.007744258476
A18: R2 (without DRP) | B18: Low | C18: =VLOOKUP("R2",'Data Billing Quantities'!A:P,MATCH(B18&" kWh",'Data Billing Quantities'!$4:$4,0),FALSE) -> 440 | E18: BI_R2_Low (without DRP) | F18: BI Template_Energy | G18: =VLOOKUP(VLOOKUP($F18,'Data BI Summary'!$A:$F,MATCH(G$1,'Data BI Summary'!$2:$2,0),FALSE),INDIRECT("'"&$E18&"'!"&"$A:$K"),4,FALSE) -> 132.3583725 | H18: =VLOOKUP(VLOOKUP($F18,'Data BI Summary'!$A:$F,MATCH(H$1,'Data BI Summary'!$2:$2,0),FALSE),INDIRECT("'"&$E18&"'!"&"$A:$K"),8,FALSE) -> -13.124 | I18: =VLOOKUP(VLOOKUP($F18,'Data BI Summary'!$A:$F,MATCH(I$1,'Data BI Summary'!$2:$2,0),FALSE),INDIRECT("'"&$E18&"'!"&"$A:$K"),9,FALSE) -> -0.1651025286 | J18: =VLOOKUP(VLOOKUP($F18,'Data BI Summary'!$A:$F,MATCH(J$1,'Data BI Summary'!$2:$2,0),FALSE),INDIRECT("'"&$E18&"'!"&"$A:$K"),8,FALSE) -> -12.62419252 | K18: =VLOOKUP(VLOOKUP($F18,'Data BI Summary'!$A:$F,MATCH(K$1,'Data BI Summary'!$2:$2,0),FALSE),INDIRECT("'"&$E18&"'!"&"$A:$K"),9,FALSE) -> -0.09537887389 | L18: =L10 -> TOU | M18: Make sure to zero out DRP credit in individual sheets
B19: Typical | C19: =VLOOKUP("R2",'Data Billing Quantities'!A:P,MATCH(B19&" kWh",'Data Billing Quantities'!$4:$4,0),FALSE) -> 750 | E19: BI_R2_Typical (without DRP) | F19: BI Template_Energy | G19: =VLOOKUP(VLOOKUP($F19,'Data BI Summary'!$A:$F,MATCH(G$1,'Data BI Summary'!$2:$2,0),FALSE),INDIRECT("'"&$E19&"'!"&"$A:$K"),4,FALSE) -> 177.0345175 | H19: =VLOOKUP(VLOOKUP($F19,'Data BI Summary'!$A:$F,MATCH(H$1,'Data BI Summary'!$2:$2,0),FALSE),INDIRECT("'"&$E19&"'!"&"$A:$K"),8,FALSE) -> -15.635 | I19: =VLOOKUP(VLOOKUP($F19,'Data BI Summary'!$A:$F,MATCH(I$1,'Data BI Summary'!$2:$2,0),FALSE),INDIRECT("'"&$E19&"'!"&"$A:$K"),9,FALSE) -> -0.1851391356 | J19: =VLOOKUP(VLOOKUP($F19,'Data BI Summary'!$A:$F,MATCH(J$1,'Data BI Summary'!$2:$2,0),FALSE),INDIRECT("'"&$E19&"'!"&"$A:$K"),8,FALSE) -> -15.18044725 | K19: =VLOOKUP(VLOOKUP($F19,'Data BI Summary'!$A:$F,MATCH(K$1,'Data BI Summary'!$2:$2,0),FALSE),INDIRECT("'"&$E19&"'!"&"$A:$K"),9,FALSE) -> -0.08574851655
B20: Average | C20: =VLOOKUP("R2",'Data Billing Quantities'!A:P,MATCH(B20&" kWh",'Data Billing Quantities'!$4:$4,0),FALSE) -> 978 | E20: BI_R2_Avg (without DRP) | F20: BI Template_Energy | G20: =VLOOKUP(VLOOKUP($F20,'Data BI Summary'!$A:$F,MATCH(G$1,'Data BI Summary'!$2:$2,0),FALSE),INDIRECT("'"&$E20&"'!"&"$A:$K"),4,FALSE) -> 209.8931015 | H20: =VLOOKUP(VLOOKUP($F20,'Data BI Summary'!$A:$F,MATCH(H$1,'Data BI Summary'!$2:$2,0),FALSE),INDIRECT("'"&$E20&"'!"&"$A:$K"),8,FALSE) -> -17.4818 | I20: =VLOOKUP(VLOOKUP($F20,'Data BI Summary'!$A:$F,MATCH(I$1,'Data BI Summary'!$2:$2,0),FALSE),INDIRECT("'"&$E20&"'!"&"$A:$K"),9,FALSE) -> -0.1984358328 | J20: =VLOOKUP(VLOOKUP($F20,'Data BI Summary'!$A:$F,MATCH(J$1,'Data BI Summary'!$2:$2,0),FALSE),INDIRECT("'"&$E20&"'!"&"$A:$K"),8,FALSE) -> -17.06053137 | K20: =VLOOKUP(VLOOKUP($F20,'Data BI Summary'!$A:$F,MATCH(K$1,'Data BI Summary'!$2:$2,0),FALSE),INDIRECT("'"&$E20&"'!"&"$A:$K"),9,FALSE) -> -0.08128200143
B21: High | C21: =VLOOKUP("R2",'Data Billing Quantities'!A:P,MATCH(B21&" kWh",'Data Billing Quantities'!$4:$4,0),FALSE) -> 2110 | E21: BI_R2_High (without DRP) | F21: BI Template_Energy | G21: =VLOOKUP(VLOOKUP($F21,'Data BI Summary'!$A:$F,MATCH(G$1,'Data BI Summary'!$2:$2,0),FALSE),INDIRECT("'"&$E21&"'!"&"$A:$K"),4,FALSE) -> 373.0330888 | H21: =VLOOKUP(VLOOKUP($F21,'Data BI Summary'!$A:$F,MATCH(H$1,'Data BI Summary'!$2:$2,0),FALSE),INDIRECT("'"&$E21&"'!"&"$A:$K"),8,FALSE) -> -26.651 | I21: =VLOOKUP(VLOOKUP($F21,'Data BI Summary'!$A:$F,MATCH(I$1,'Data BI Summary'!$2:$2,0),FALSE),INDIRECT("'"&$E21&"'!"&"$A:$K"),9,FALSE) -> -0.250927408 | J21: =VLOOKUP(VLOOKUP($F21,'Data BI Summary'!$A:$F,MATCH(J$1,'Data BI Summary'!$2:$2,0),FALSE),INDIRECT("'"&$E21&"'!"&"$A:$K"),8,FALSE) -> -26.39498413 | K21: =VLOOKUP(VLOOKUP($F21,'Data BI Summary'!$A:$F,MATCH(K$1,'Data BI Summary'!$2:$2,0),FALSE),INDIRECT("'"&$E21&"'!"&"$A:$K"),9,FALSE) -> -0.0707577556
A22: Seasonal-UR | B22: Low | C22: =VLOOKUP("Seasonal",'Data Billing Quantities'!A:P,MATCH(B22&" kWh",'Data Billing Quantities'!$4:$4,0),FALSE) -> 40 | E22: BI_Seas_UR_Low | F22: BI Template_Seasonal | G22: =VLOOKUP(VLOOKUP($F22,'Data BI Summary'!$A:$F,MATCH(G$1,'Data BI Summary'!$2:$2,0),FALSE),INDIRECT("'"&$E22&"'!"&"$A:$K"),4,FALSE) -> 63.6714205 | H22: =VLOOKUP(VLOOKUP($F22,'Data BI Summary'!$A:$F,MATCH(H$1,'Data BI Summary'!$2:$2,0),FALSE),INDIRECT("'"&$E22&"'!"&"$A:$K"),8,FALSE) -> -23.88 | I22: =VLOOKUP(VLOOKUP($F22,'Data BI Summary'!$A:$F,MATCH(I$1,'Data BI Summary'!$2:$2,0),FALSE),INDIRECT("'"&$E22&"'!"&"$A:$K"),9,FALSE) -> -0.3885201093 | J22: =VLOOKUP(VLOOKUP($F22,'Data BI Summary'!$A:$F,MATCH(J$1,'Data BI Summary'!$2:$2,0),FALSE),INDIRECT("'"&$E22&"'!"&"$A:$K"),8,FALSE) -> -22.51153321 | K22: =VLOOKUP(VLOOKUP($F22,'Data BI Summary'!$A:$F,MATCH(K$1,'Data BI Summary'!$2:$2,0),FALSE),INDIRECT("'"&$E22&"'!"&"$A:$K"),9,FALSE) -> -0.353557892 | L22: TOU
B23: Average | C23: =VLOOKUP("Seasonal",'Data Billing Quantities'!A:P,MATCH(B23&" kWh",'Data Billing Quantities'!$4:$4,0),FALSE) -> 369 | E23: BI_Seas_UR_Avg | F23: BI Template_Seasonal | G23: =VLOOKUP(VLOOKUP($F23,'Data BI Summary'!$A:$F,MATCH(G$1,'Data BI Summary'!$2:$2,0),FALSE),INDIRECT("'"&$E23&"'!"&"$A:$K"),4,FALSE) -> 114.9360401 | H23: =VLOOKUP(VLOOKUP($F23,'Data BI Summary'!$A:$F,MATCH(H$1,'Data BI Summary'!$2:$2,0),FALSE),INDIRECT("'"&$E23&"'!"&"$A:$K"),8,FALSE) -> -34.2435 | I23: =VLOOKUP(VLOOKUP($F23,'Data BI Summary'!$A:$F,MATCH(I$1,'Data BI Summary'!$2:$2,0),FALSE),INDIRECT("'"&$E23&"'!"&"$A:$K"),9,FALSE) -> -0.4776214539 | J23: =VLOOKUP(VLOOKUP($F23,'Data BI Summary'!$A:$F,MATCH(J$1,'Data BI Summary'!$2:$2,0),FALSE),INDIRECT("'"&$E23&"'!"&"$A:$K"),8,FALSE) -> -32.5963144 | K23: =VLOOKUP(VLOOKUP($F23,'Data BI Summary'!$A:$F,MATCH(K$1,'Data BI Summary'!$2:$2,0),FALSE),INDIRECT("'"&$E23&"'!"&"$A:$K"),9,FALSE) -> -0.283603945
B24: High | C24: =VLOOKUP("Seasonal",'Data Billing Quantities'!A:P,MATCH(B24&" kWh",'Data Billing Quantities'!$4:$4,0),FALSE) -> 1040 | E24: BI_Seas_UR_High | F24: BI Template_Seasonal | G24: =VLOOKUP(VLOOKUP($F24,'Data BI Summary'!$A:$F,MATCH(G$1,'Data BI Summary'!$2:$2,0),FALSE),INDIRECT("'"&$E24&"'!"&"$A:$K"),4,FALSE) -> 219.490933 | H24: =VLOOKUP(VLOOKUP($F24,'Data BI Summary'!$A:$F,MATCH(H$1,'Data BI Summary'!$2:$2,0),FALSE),INDIRECT("'"&$E24&"'!"&"$A:$K"),8,FALSE) -> -55.38 | I24: =VLOOKUP(VLOOKUP($F24,'Data BI Summary'!$A:$F,MATCH(I$1,'Data BI Summary'!$2:$2,0),FALSE),INDIRECT("'"&$E24&"'!"&"$A:$K"),9,FALSE) -> -0.5982887516 | J24: =VLOOKUP(VLOOKUP($F24,'Data BI Summary'!$A:$F,MATCH(J$1,'Data BI Summary'!$2:$2,0),FALSE),INDIRECT("'"&$E24&"'!"&"$A:$K"),8,FALSE) -> -53.16436355 | K24: =VLOOKUP(VLOOKUP($F24,'Data BI Summary'!$A:$F,MATCH(K$1,'Data BI Summary'!$2:$2,0),FALSE),INDIRECT("'"&$E24&"'!"&"$A:$K"),9,FALSE) -> -0.2422166731
A25: Seasonal-R1 | B25: Low | C25: =VLOOKUP("Seasonal",'Data Billing Quantities'!A:P,MATCH(B25&" kWh",'Data Billing Quantities'!$4:$4,0),FALSE) -> 40 | E25: BI_Seas_R1_Low | F25: BI Template_Seasonal | G25: =VLOOKUP(VLOOKUP($F25,'Data BI Summary'!$A:$F,MATCH(G$1,'Data BI Summary'!$2:$2,0),FALSE),INDIRECT("'"&$E25&"'!"&"$A:$K"),4,FALSE) -> 63.6714205 | H25: =VLOOKUP(VLOOKUP($F25,'Data BI Summary'!$A:$F,MATCH(H$1,'Data BI Summary'!$2:$2,0),FALSE),INDIRECT("'"&$E25&"'!"&"$A:$K"),8,FALSE) -> -1.204 | I25: =VLOOKUP(VLOOKUP($F25,'Data BI Summary'!$A:$F,MATCH(I$1,'Data BI Summary'!$2:$2,0),FALSE),INDIRECT("'"&$E25&"'!"&"$A:$K"),9,FALSE) -> -0.01958870233 | J25: =VLOOKUP(VLOOKUP($F25,'Data BI Summary'!$A:$F,MATCH(J$1,'Data BI Summary'!$2:$2,0),FALSE),INDIRECT("'"&$E25&"'!"&"$A:$K"),8,FALSE) -> -1.13580055 | K25: =VLOOKUP(VLOOKUP($F25,'Data BI Summary'!$A:$F,MATCH(K$1,'Data BI Summary'!$2:$2,0),FALSE),INDIRECT("'"&$E25&"'!"&"$A:$K"),9,FALSE) -> -0.01783846727 | L25: TOU
B26: Average | C26: =VLOOKUP("Seasonal",'Data Billing Quantities'!A:P,MATCH(B26&" kWh",'Data Billing Quantities'!$4:$4,0),FALSE) -> 369 | E26: BI_Seas_R1_Avg | F26: BI Template_Seasonal | G26: =VLOOKUP(VLOOKUP($F26,'Data BI Summary'!$A:$F,MATCH(G$1,'Data BI Summary'!$2:$2,0),FALSE),INDIRECT("'"&$E26&"'!"&"$A:$K"),4,FALSE) -> 114.9360401 | H26: =VLOOKUP(VLOOKUP($F26,'Data BI Summary'!$A:$F,MATCH(H$1,'Data BI Summary'!$2:$2,0),FALSE),INDIRECT("'"&$E26&"'!"&"$A:$K"),8,FALSE) -> -9.7909 | I26: =VLOOKUP(VLOOKUP($F26,'Data BI Summary'!$A:$F,MATCH(I$1,'Data BI Summary'!$2:$2,0),FALSE),INDIRECT("'"&$E26&"'!"&"$A:$K"),9,FALSE) -> -0.1365615049 | J26: =VLOOKUP(VLOOKUP($F26,'Data BI Summary'!$A:$F,MATCH(J$1,'Data BI Summary'!$2:$2,0),FALSE),INDIRECT("'"&$E26&"'!"&"$A:$K"),8,FALSE) -> -9.239404077 | K26: =VLOOKUP(VLOOKUP($F26,'Data BI Summary'!$A:$F,MATCH(K$1,'Data BI Summary'!$2:$2,0),FALSE),INDIRECT("'"&$E26&"'!"&"$A:$K"),9,FALSE) -> -0.08038735343
B27: High | C27: =VLOOKUP("Seasonal",'Data Billing Quantities'!A:P,MATCH(B27&" kWh",'Data Billing Quantities'!$4:$4,0),FALSE) -> 1040 | E27: BI_Seas_R1_High | F27: BI Template_Seasonal | G27: =VLOOKUP(VLOOKUP($F27,'Data BI Summary'!$A:$F,MATCH(G$1,'Data BI Summary'!$2:$2,0),FALSE),INDIRECT("'"&$E27&"'!"&"$A:$K"),4,FALSE) -> 219.490933 | H27: =VLOOKUP(VLOOKUP($F27,'Data BI Summary'!$A:$F,MATCH(H$1,'Data BI Summary'!$2:$2,0),FALSE),INDIRECT("'"&$E27&"'!"&"$A:$K"),8,FALSE) -> -27.304 | I27: =VLOOKUP(VLOOKUP($F27,'Data BI Summary'!$A:$F,MATCH(I$1,'Data BI Summary'!$2:$2,0),FALSE),INDIRECT("'"&$E27&"'!"&"$A:$K"),9,FALSE) -> -0.2949742881 | J27: =VLOOKUP(VLOOKUP($F27,'Data BI Summary'!$A:$F,MATCH(J$1,'Data BI Summary'!$2:$2,0),FALSE),INDIRECT("'"&$E27&"'!"&"$A:$K"),8,FALSE) -> -25.76681431 | K27: =VLOOKUP(VLOOKUP($F27,'Data BI Summary'!$A:$F,MATCH(K$1,'Data BI Summary'!$2:$2,0),FALSE),INDIRECT("'"&$E27&"'!"&"$A:$K"),9,FALSE) -> -0.1173935249
A28: Seasonal-R2 | B28: Low | C28: =VLOOKUP("Seasonal",'Data Billing Quantities'!A:P,MATCH(B28&" kWh",'Data Billing Quantities'!$4:$4,0),FALSE) -> 40 | E28: BI_Seas_R2_Low | F28: BI Template_Seasonal | G28: =VLOOKUP(VLOOKUP($F28,'Data BI Summary'!$A:$F,MATCH(G$1,'Data BI Summary'!$2:$2,0),FALSE),INDIRECT("'"&$E28&"'!"&"$A:$K"),4,FALSE) -> 63.6714205 | H28: =VLOOKUP(VLOOKUP($F28,'Data BI Summary'!$A:$F,MATCH(H$1,'Data BI Summary'!$2:$2,0),FALSE),INDIRECT("'"&$E28&"'!"&"$A:$K"),8,FALSE) -> 62.242 | I28: =VLOOKUP(VLOOKUP($F28,'Data BI Summary'!$A:$F,MATCH(I$1,'Data BI Summary'!$2:$2,0),FALSE),INDIRECT("'"&$E28&"'!"&"$A:$K"),9,FALSE) -> 1.012657816 | J28: =VLOOKUP(VLOOKUP($F28,'Data BI Summary'!$A:$F,MATCH(J$1,'Data BI Summary'!$2:$2,0),FALSE),INDIRECT("'"&$E28&"'!"&"$A:$K"),8,FALSE) -> 58.64501404 | K28: =VLOOKUP(VLOOKUP($F28,'Data BI Summary'!$A:$F,MATCH(K$1,'Data BI Summary'!$2:$2,0),FALSE),INDIRECT("'"&$E28&"'!"&"$A:$K"),9,FALSE) -> 0.921057102 | L28: TOU
B29: Average | C29: =VLOOKUP("Seasonal",'Data Billing Quantities'!A:P,MATCH(B29&" kWh",'Data Billing Quantities'!$4:$4,0),FALSE) -> 369 | E29: BI_Seas_R2_Avg | F29: BI Template_Seasonal | G29: =VLOOKUP(VLOOKUP($F29,'Data BI Summary'!$A:$F,MATCH(G$1,'Data BI Summary'!$2:$2,0),FALSE),INDIRECT("'"&$E29&"'!"&"$A:$K"),4,FALSE) -> 114.9360401 | H29: =VLOOKUP(VLOOKUP($F29,'Data BI Summary'!$A:$F,MATCH(H$1,'Data BI Summary'!$2:$2,0),FALSE),INDIRECT("'"&$E29&"'!"&"$A:$K"),8,FALSE) -> 54.6092 | I29: =VLOOKUP(VLOOKUP($F29,'Data BI Summary'!$A:$F,MATCH(I$1,'Data BI Summary'!$2:$2,0),FALSE),INDIRECT("'"&$E29&"'!"&"$A:$K"),9,FALSE) -> 0.7616781434 | J29: =VLOOKUP(VLOOKUP($F29,'Data BI Summary'!$A:$F,MATCH(J$1,'Data BI Summary'!$2:$2,0),FALSE),INDIRECT("'"&$E29&"'!"&"$A:$K"),8,FALSE) -> 52.08182631 | K29: =VLOOKUP(VLOOKUP($F29,'Data BI Summary'!$A:$F,MATCH(K$1,'Data BI Summary'!$2:$2,0),FALSE),INDIRECT("'"&$E29&"'!"&"$A:$K"),9,FALSE) -> 0.453137469
B30: High | C30: =VLOOKUP("Seasonal",'Data Billing Quantities'!A:P,MATCH(B30&" kWh",'Data Billing Quantities'!$4:$4,0),FALSE) -> 1040 | E30: BI_Seas_R2_High | F30: BI Template_Seasonal | G30: =VLOOKUP(VLOOKUP($F30,'Data BI Summary'!$A:$F,MATCH(G$1,'Data BI Summary'!$2:$2,0),FALSE),INDIRECT("'"&$E30&"'!"&"$A:$K"),4,FALSE) -> 219.490933 | H30: =VLOOKUP(VLOOKUP($F30,'Data BI Summary'!$A:$F,MATCH(H$1,'Data BI Summary'!$2:$2,0),FALSE),INDIRECT("'"&$E30&"'!"&"$A:$K"),8,FALSE) -> 39.042 | I30: =VLOOKUP(VLOOKUP($F30,'Data BI Summary'!$A:$F,MATCH(I$1,'Data BI Summary'!$2:$2,0),FALSE),INDIRECT("'"&$E30&"'!"&"$A:$K"),9,FALSE) -> 0.4217838469 | J30: =VLOOKUP(VLOOKUP($F30,'Data BI Summary'!$A:$F,MATCH(J$1,'Data BI Summary'!$2:$2,0),FALSE),INDIRECT("'"&$E30&"'!"&"$A:$K"),8,FALSE) -> 38.69611516 | K30: =VLOOKUP(VLOOKUP($F30,'Data BI Summary'!$A:$F,MATCH(K$1,'Data BI Summary'!$2:$2,0),FALSE),INDIRECT("'"&$E30&"'!"&"$A:$K"),9,FALSE) -> 0.1762993789
A31: GSe | B31: Low | C31: =VLOOKUP(A$31,'Data Billing Quantities'!A:P,MATCH(B31&" kWh",'Data Billing Quantities'!$4:$4,0),FALSE) -> 60 | E31: BI_GSe_Low | F31: BI Template_Energy | G31: =VLOOKUP(VLOOKUP($F31,'Data BI Summary'!$A:$F,MATCH(G$1,'Data BI Summary'!$2:$2,0),FALSE),INDIRECT("'"&$E31&"'!"&"$A:$K"),4,FALSE) -> 45.40325301 | H31: =VLOOKUP(VLOOKUP($F31,'Data BI Summary'!$A:$F,MATCH(H$1,'Data BI Summary'!$2:$2,0),FALSE),INDIRECT("'"&$E31&"'!"&"$A:$K"),8,FALSE) -> -2.822 | I31: =VLOOKUP(VLOOKUP($F31,'Data BI Summary'!$A:$F,MATCH(I$1,'Data BI Summary'!$2:$2,0),FALSE),INDIRECT("'"&$E31&"'!"&"$A:$K"),9,FALSE) -> -0.07152996046 | J31: =VLOOKUP(VLOOKUP($F31,'Data BI Summary'!$A:$F,MATCH(J$1,'Data BI Summary'!$2:$2,0),FALSE),INDIRECT("'"&$E31&"'!"&"$A:$K"),8,FALSE) -> -2.655502 | K31: =VLOOKUP(VLOOKUP($F31,'Data BI Summary'!$A:$F,MATCH(K$1,'Data BI Summary'!$2:$2,0),FALSE),INDIRECT("'"&$E31&"'!"&"$A:$K"),9,FALSE) -> -0.05848704275 | L31: TOU
B32: Typical | C32: =VLOOKUP(A$31,'Data Billing Quantities'!A:P,MATCH(B32&" kWh",'Data Billing Quantities'!$4:$4,0),FALSE) -> 2000 | E32: BI_GSe_Typical | F32: BI Template_Energy | G32: =VLOOKUP(VLOOKUP($F32,'Data BI Summary'!$A:$F,MATCH(G$1,'Data BI Summary'!$2:$2,0),FALSE),INDIRECT("'"&$E32&"'!"&"$A:$K"),4,FALSE) -> 416.292227 | H32: =VLOOKUP(VLOOKUP($F32,'Data BI Summary'!$A:$F,MATCH(H$1,'Data BI Summary'!$2:$2,0),FALSE),INDIRECT("'"&$E32&"'!"&"$A:$K"),8,FALSE) -> -6.12 | I32: =VLOOKUP(VLOOKUP($F32,'Data BI Summary'!$A:$F,MATCH(I$1,'Data BI Summary'!$2:$2,0),FALSE),INDIRECT("'"&$E32&"'!"&"$A:$K"),9,FALSE) -> -0.03484399909 | J32: =VLOOKUP(VLOOKUP($F32,'Data BI Summary'!$A:$F,MATCH(J$1,'Data BI Summary'!$2:$2,0),FALSE),INDIRECT("'"&$E32&"'!"&"$A:$K"),8,FALSE) -> -5.75892 | K32: =VLOOKUP(VLOOKUP($F32,'Data BI Summary'!$A:$F,MATCH(K$1,'Data BI Summary'!$2:$2,0),FALSE),INDIRECT("'"&$E32&"'!"&"$A:$K"),9,FALSE) -> -0.01383383985
B33: Average | C33: =VLOOKUP(A$31,'Data Billing Quantities'!A:P,MATCH(B33&" kWh",'Data Billing Quantities'!$4:$4,0),FALSE) -> 1887 | E33: BI_GSe_Avg | F33: BI Template_Energy | G33: =VLOOKUP(VLOOKUP($F33,'Data BI Summary'!$A:$F,MATCH(G$1,'Data BI Summary'!$2:$2,0),FALSE),INDIRECT("'"&$E33&"'!"&"$A:$K"),4,FALSE) -> 394.6889002 | H33: =VLOOKUP(VLOOKUP($F33,'Data BI Summary'!$A:$F,MATCH(H$1,'Data BI Summary'!$2:$2,0),FALSE),INDIRECT("'"&$E33&"'!"&"$A:$K"),8,FALSE) -> -5.9279 | I33: =VLOOKUP(VLOOKUP($F33,'Data BI Summary'!$A:$F,MATCH(I$1,'Data BI Summary'!$2:$2,0),FALSE),INDIRECT("'"&$E33&"'!"&"$A:$K"),9,FALSE) -> -0.03534668118 | J33: =VLOOKUP(VLOOKUP($F33,'Data BI Summary'!$A:$F,MATCH(J$1,'Data BI Summary'!$2:$2,0),FALSE),INDIRECT("'"&$E33&"'!"&"$A:$K"),8,FALSE) -> -5.5781539 | K33: =VLOOKUP(VLOOKUP($F33,'Data BI Summary'!$A:$F,MATCH(K$1,'Data BI Summary'!$2:$2,0),FALSE),INDIRECT("'"&$E33&"'!"&"$A:$K"),9,FALSE) -> -0.01413303971
B34: High | C34: =VLOOKUP(A$31,'Data Billing Quantities'!A:P,MATCH(B34&" kWh",'Data Billing Quantities'!$4:$4,0),FALSE) -> 5570 | E34: BI_GSe_High | F34: BI Template_Energy | G34: =VLOOKUP(VLOOKUP($F34,'Data BI Summary'!$A:$F,MATCH(G$1,'Data BI Summary'!$2:$2,0),FALSE),INDIRECT("'"&$E34&"'!"&"$A:$K"),4,FALSE) -> 1098.804411 | H34: =VLOOKUP(VLOOKUP($F34,'Data BI Summary'!$A:$F,MATCH(H$1,'Data BI Summary'!$2:$2,0),FALSE),INDIRECT("'"&$E34&"'!"&"$A:$K"),8,FALSE) -> -12.189 | I34: =VLOOKUP(VLOOKUP($F34,'Data BI Summary'!$A:$F,MATCH(I$1,'Data BI Summary'!$2:$2,0),FALSE),INDIRECT("'"&$E34&"'!"&"$A:$K"),9,FALSE) -> -0.02859562608 | J34: =VLOOKUP(VLOOKUP($F34,'Data BI Summary'!$A:$F,MATCH(J$1,'Data BI Summary'!$2:$2,0),FALSE),INDIRECT("'"&$E34&"'!"&"$A:$K"),8,FALSE) -> -11.469849 | K34: =VLOOKUP(VLOOKUP($F34,'Data BI Summary'!$A:$F,MATCH(K$1,'Data BI Summary'!$2:$2,0),FALSE),INDIRECT("'"&$E34&"'!"&"$A:$K"),9,FALSE) -> -0.01043848103
A35: UGe | B35: Low | C35: =VLOOKUP(A$35,'Data Billing Quantities'!A:P,MATCH(B35&" kWh",'Data Billing Quantities'!$4:$4,0),FALSE) -> 180 | E35: BI_UGe_Low | F35: BI Template_Energy | G35: =VLOOKUP(VLOOKUP($F35,'Data BI Summary'!$A:$F,MATCH(G$1,'Data BI Summary'!$2:$2,0),FALSE),INDIRECT("'"&$E35&"'!"&"$A:$K"),4,FALSE) -> 54.60355869 | H35: =VLOOKUP(VLOOKUP($F35,'Data BI Summary'!$A:$F,MATCH(H$1,'Data BI Summary'!$2:$2,0),FALSE),INDIRECT("'"&$E35&"'!"&"$A:$K"),8,FALSE) -> -2.596 | I35: =VLOOKUP(VLOOKUP($F35,'Data BI Summary'!$A:$F,MATCH(I$1,'Data BI Summary'!$2:$2,0),FALSE),INDIRECT("'"&$E35&"'!"&"$A:$K"),9,FALSE) -> -0.0768684117 | J35: =VLOOKUP(VLOOKUP($F35,'Data BI Summary'!$A:$F,MATCH(J$1,'Data BI Summary'!$2:$2,0),FALSE),INDIRECT("'"&$E35&"'!"&"$A:$K"),8,FALSE) -> -2.388617462 | K35: =VLOOKUP(VLOOKUP($F35,'Data BI Summary'!$A:$F,MATCH(K$1,'Data BI Summary'!$2:$2,0),FALSE),INDIRECT("'"&$E35&"'!"&"$A:$K"),9,FALSE) -> -0.04374472139 | L35: TOU
B36: Typical | C36: =VLOOKUP(A$35,'Data Billing Quantities'!A:P,MATCH(B36&" kWh",'Data Billing Quantities'!$4:$4,0),FALSE) -> 2000 | E36: BI_UGe_Typical | F36: BI Template_Energy | G36: =VLOOKUP(VLOOKUP($F36,'Data BI Summary'!$A:$F,MATCH(G$1,'Data BI Summary'!$2:$2,0),FALSE),INDIRECT("'"&$E36&"'!"&"$A:$K"),4,FALSE) -> 334.7802099 | H36: =VLOOKUP(VLOOKUP($F36,'Data BI Summary'!$A:$F,MATCH(H$1,'Data BI Summary'!$2:$2,0),FALSE),INDIRECT("'"&$E36&"'!"&"$A:$K"),8,FALSE) -> -3.87 | I36: =VLOOKUP(VLOOKUP($F36,'Data BI Summary'!$A:$F,MATCH(I$1,'Data BI Summary'!$2:$2,0),FALSE),INDIRECT("'"&$E36&"'!"&"$A:$K"),9,FALSE) -> -0.04092639594 | J36: =VLOOKUP(VLOOKUP($F36,'Data BI Summary'!$A:$F,MATCH(J$1,'Data BI Summary'!$2:$2,0),FALSE),INDIRECT("'"&$E36&"'!"&"$A:$K"),8,FALSE) -> -3.0392418 | K36: =VLOOKUP(VLOOKUP($F36,'Data BI Summary'!$A:$F,MATCH(K$1,'Data BI Summary'!$2:$2,0),FALSE),INDIRECT("'"&$E36&"'!"&"$A:$K"),9,FALSE) -> -0.009078319776
B37: Average | C37: =VLOOKUP(A$35,'Data Billing Quantities'!A:P,MATCH(B37&" kWh",'Data Billing Quantities'!$4:$4,0),FALSE) -> 2494 | E37: BI_UGe_Avg | F37: BI Template_Energy | G37: =VLOOKUP(VLOOKUP($F37,'Data BI Summary'!$A:$F,MATCH(G$1,'Data BI Summary'!$2:$2,0),FALSE),INDIRECT("'"&$E37&"'!"&"$A:$K"),4,FALSE) -> 410.8281581 | H37: =VLOOKUP(VLOOKUP($F37,'Data BI Summary'!$A:$F,MATCH(H$1,'Data BI Summary'!$2:$2,0),FALSE),INDIRECT("'"&$E37&"'!"&"$A:$K"),8,FALSE) -> -4.2158 | I37: =VLOOKUP(VLOOKUP($F37,'Data BI Summary'!$A:$F,MATCH(I$1,'Data BI Summary'!$2:$2,0),FALSE),INDIRECT("'"&$E37&"'!"&"$A:$K"),9,FALSE) -> -0.03795979816 | J37: =VLOOKUP(VLOOKUP($F37,'Data BI Summary'!$A:$F,MATCH(J$1,'Data BI Summary'!$2:$2,0),FALSE),INDIRECT("'"&$E37&"'!"&"$A:$K"),8,FALSE) -> -3.215839835 | K37: =VLOOKUP(VLOOKUP($F37,'Data BI Summary'!$A:$F,MATCH(K$1,'Data BI Summary'!$2:$2,0),FALSE),INDIRECT("'"&$E37&"'!"&"$A:$K"),9,FALSE) -> -0.007827700637
B38: High | C38: =VLOOKUP(A$35,'Data Billing Quantities'!A:P,MATCH(B38&" kWh",'Data Billing Quantities'!$4:$4,0),FALSE) -> 6930 | E38: BI_UGe_High | F38: BI Template_Energy | G38: =VLOOKUP(VLOOKUP($F38,'Data BI Summary'!$A:$F,MATCH(G$1,'Data BI Summary'!$2:$2,0),FALSE),INDIRECT("'"&$E38&"'!"&"$A:$K"),4,FALSE) -> 1093.72026 | H38: =VLOOKUP(VLOOKUP($F38,'Data BI Summary'!$A:$F,MATCH(H$1,'Data BI Summary'!$2:$2,0),FALSE),INDIRECT("'"&$E38&"'!"&"$A:$K"),8,FALSE) -> -7.321 | I38: =VLOOKUP(VLOOKUP($F38,'Data BI Summary'!$A:$F,MATCH(I$1,'Data BI Summary'!$2:$2,0),FALSE),INDIRECT("'"&$E38&"'!"&"$A:$K"),9,FALSE) -> -0.02824220166 | J38: =VLOOKUP(VLOOKUP($F38,'Data BI Summary'!$A:$F,MATCH(J$1,'Data BI Summary'!$2:$2,0),FALSE),INDIRECT("'"&$E38&"'!"&"$A:$K"),8,FALSE) -> -4.801647287 | K38: =VLOOKUP(VLOOKUP($F38,'Data BI Summary'!$A:$F,MATCH(K$1,'Data BI Summary'!$2:$2,0),FALSE),INDIRECT("'"&$E38&"'!"&"$A:$K"),9,FALSE) -> -0.004390196895
A39: GSd | B39: Low | C39: =VLOOKUP(A$39,'Data Billing Quantities'!A:P,MATCH(B39&" kWh",'Data Billing Quantities'!$4:$4,0),FALSE) -> 9310 | D39: =VLOOKUP(A$39,'Data Billing Quantities'!A:P,MATCH(B39&" kW",'Data Billing Quantities'!$4:$4,0),FALSE) -> 55 | E39: BI_GSd_Low | F39: BI Template_Demand | G39: =VLOOKUP(VLOOKUP($F39,'Data BI Summary'!$A:$F,MATCH(G$1,'Data BI Summary'!$2:$2,0),FALSE),INDIRECT("'"&$E39&"'!"&"$A:$K"),4,FALSE) -> 3025.724317 | H39: =VLOOKUP(VLOOKUP($F39,'Data BI Summary'!$A:$F,MATCH(H$1,'Data BI Summary'!$2:$2,0),FALSE),INDIRECT("'"&$E39&"'!"&"$A:$K"),8,FALSE) -> -47.7205 | I39: =VLOOKUP(VLOOKUP($F39,'Data BI Summary'!$A:$F,MATCH(I$1,'Data BI Summary'!$2:$2,0),FALSE),INDIRECT("'"&$E39&"'!"&"$A:$K"),9,FALSE) -> -0.03897281732 | J39: =VLOOKUP(VLOOKUP($F39,'Data BI Summary'!$A:$F,MATCH(J$1,'Data BI Summary'!$2:$2,0),FALSE),INDIRECT("'"&$E39&"'!"&"$A:$K"),8,FALSE) -> -43.07899 | K39: =VLOOKUP(VLOOKUP($F39,'Data BI Summary'!$A:$F,MATCH(K$1,'Data BI Summary'!$2:$2,0),FALSE),INDIRECT("'"&$E39&"'!"&"$A:$K"),9,FALSE) -> -0.01423757933 | L39: WAHSP
B40: Average | C40: =VLOOKUP(A$39,'Data Billing Quantities'!A:P,MATCH(B40&" kWh",'Data Billing Quantities'!$4:$4,0),FALSE) -> 34334 | D40: =VLOOKUP(A$39,'Data Billing Quantities'!A:P,MATCH(B40&" kW",'Data Billing Quantities'!$4:$4,0),FALSE) -> 110 | E40: BI_GSd_Avg | F40: BI Template_Demand | G40: =VLOOKUP(VLOOKUP($F40,'Data BI Summary'!$A:$F,MATCH(G$1,'Data BI Summary'!$2:$2,0),FALSE),INDIRECT("'"&$E40&"'!"&"$A:$K"),4,FALSE) -> 8233.249116 | H40: =VLOOKUP(VLOOKUP($F40,'Data BI Summary'!$A:$F,MATCH(H$1,'Data BI Summary'!$2:$2,0),FALSE),INDIRECT("'"&$E40&"'!"&"$A:$K"),8,FALSE) -> -93.8208 | I40: =VLOOKUP(VLOOKUP($F40,'Data BI Summary'!$A:$F,MATCH(I$1,'Data BI Summary'!$2:$2,0),FALSE),INDIRECT("'"&$E40&"'!"&"$A:$K"),9,FALSE) -> -0.04025085568 | J40: =VLOOKUP(VLOOKUP($F40,'Data BI Summary'!$A:$F,MATCH(J$1,'Data BI Summary'!$2:$2,0),FALSE),INDIRECT("'"&$E40&"'!"&"$A:$K"),8,FALSE) -> -84.327154 | K40: =VLOOKUP(VLOOKUP($F40,'Data BI Summary'!$A:$F,MATCH(K$1,'Data BI Summary'!$2:$2,0),FALSE),INDIRECT("'"&$E40&"'!"&"$A:$K"),9,FALSE) -> -0.01024226922
B41: High | C41: =VLOOKUP(A$39,'Data Billing Quantities'!A:P,MATCH(B41&" kWh",'Data Billing Quantities'!$4:$4,0),FALSE) -> 75790 | D41: =VLOOKUP(A$39,'Data Billing Quantities'!A:P,MATCH(B41&" kW",'Data Billing Quantities'!$4:$4,0),FALSE) -> 250 | E41: BI_GSd_High | F41: BI Template_Demand | G41: =VLOOKUP(VLOOKUP($F41,'Data BI Summary'!$A:$F,MATCH(G$1,'Data BI Summary'!$2:$2,0),FALSE),INDIRECT("'"&$E41&"'!"&"$A:$K"),4,FALSE) -> 18211.52189 | H41: =VLOOKUP(VLOOKUP($F41,'Data BI Summary'!$A:$F,MATCH(H$1,'Data BI Summary'!$2:$2,0),FALSE),INDIRECT("'"&$E41&"'!"&"$A:$K"),8,FALSE) -> -195.598 | I41: =VLOOKUP(VLOOKUP($F41,'Data BI Summary'!$A:$F,MATCH(I$1,'Data BI Summary'!$2:$2,0),FALSE),INDIRECT("'"&$E41&"'!"&"$A:$K"),9,FALSE) -> -0.03800004274 | J41: =VLOOKUP(VLOOKUP($F41,'Data BI Summary'!$A:$F,MATCH(J$1,'Data BI Summary'!$2:$2,0),FALSE),INDIRECT("'"&$E41&"'!"&"$A:$K"),8,FALSE) -> -171.72949 | K41: =VLOOKUP(VLOOKUP($F41,'Data BI Summary'!$A:$F,MATCH(K$1,'Data BI Summary'!$2:$2,0),FALSE),INDIRECT("'"&$E41&"'!"&"$A:$K"),9,FALSE) -> -0.009429716586
A42: UGd | B42: Low | C42: =VLOOKUP(A$42,'Data Billing Quantities'!A:P,MATCH(B42&" kWh",'Data Billing Quantities'!$4:$4,0),FALSE) -> 13900 | D42: =VLOOKUP(A$42,'Data Billing Quantities'!A:P,MATCH(B42&" kW",'Data Billing Quantities'!$4:$4,0),FALSE) -> 55 | E42: BI_UGd_Low | F42: BI Template_Demand | G42: =VLOOKUP(VLOOKUP($F42,'Data BI Summary'!$A:$F,MATCH(G$1,'Data BI Summary'!$2:$2,0),FALSE),INDIRECT("'"&$E42&"'!"&"$A:$K"),4,FALSE) -> 3214.88277 | H42: =VLOOKUP(VLOOKUP($F42,'Data BI Summary'!$A:$F,MATCH(H$1,'Data BI Summary'!$2:$2,0),FALSE),INDIRECT("'"&$E42&"'!"&"$A:$K"),8,FALSE) -> -39.4515 | I42: =VLOOKUP(VLOOKUP($F42,'Data BI Summary'!$A:$F,MATCH(I$1,'Data BI Summary'!$2:$2,0),FALSE),INDIRECT("'"&$E42&"'!"&"$A:$K"),9,FALSE) -> -0.05289057096 | J42: =VLOOKUP(VLOOKUP($F42,'Data BI Summary'!$A:$F,MATCH(J$1,'Data BI Summary'!$2:$2,0),FALSE),INDIRECT("'"&$E42&"'!"&"$A:$K"),8,FALSE) -> -31.31117 | K42: =VLOOKUP(VLOOKUP($F42,'Data BI Summary'!$A:$F,MATCH(K$1,'Data BI Summary'!$2:$2,0),FALSE),INDIRECT("'"&$E42&"'!"&"$A:$K"),9,FALSE) -> -0.009739443781 | L42: WAHSP
B43: Average | C43: =VLOOKUP(A$42,'Data Billing Quantities'!A:P,MATCH(B43&" kWh",'Data Billing Quantities'!$4:$4,0),FALSE) -> 42592 | D43: =VLOOKUP(A$42,'Data Billing Quantities'!A:P,MATCH(B43&" kW",'Data Billing Quantities'!$4:$4,0),FALSE) -> 111 | E43: BI_UGd_Avg | F43: BI Template_Demand | G43: =VLOOKUP(VLOOKUP($F43,'Data BI Summary'!$A:$F,MATCH(G$1,'Data BI Summary'!$2:$2,0),FALSE),INDIRECT("'"&$E43&"'!"&"$A:$K"),4,FALSE) -> 8482.995134 | H43: =VLOOKUP(VLOOKUP($F43,'Data BI Summary'!$A:$F,MATCH(H$1,'Data BI Summary'!$2:$2,0),FALSE),INDIRECT("'"&$E43&"'!"&"$A:$K"),8,FALSE) -> -77.1927 | I43: =VLOOKUP(VLOOKUP($F43,'Data BI Summary'!$A:$F,MATCH(I$1,'Data BI Summary'!$2:$2,0),FALSE),INDIRECT("'"&$E43&"'!"&"$A:$K"),9,FALSE) -> -0.05534710794 | J43: =VLOOKUP(VLOOKUP($F43,'Data BI Summary'!$A:$F,MATCH(J$1,'Data BI Summary'!$2:$2,0),FALSE),INDIRECT("'"&$E43&"'!"&"$A:$K"),8,FALSE) -> -60.448446 | K43: =VLOOKUP(VLOOKUP($F43,'Data BI Summary'!$A:$F,MATCH(K$1,'Data BI Summary'!$2:$2,0),FALSE),INDIRECT("'"&$E43&"'!"&"$A:$K"),9,FALSE) -> -0.007125837637
B44: High | C44: =VLOOKUP(A$42,'Data Billing Quantities'!A:P,MATCH(B44&" kWh",'Data Billing Quantities'!$4:$4,0),FALSE) -> 97610 | D44: =VLOOKUP(A$42,'Data Billing Quantities'!A:P,MATCH(B44&" kW",'Data Billing Quantities'!$4:$4,0),FALSE) -> 280 | E44: BI_UGd_High | F44: BI Template_Demand | G44: =VLOOKUP(VLOOKUP($F44,'Data BI Summary'!$A:$F,MATCH(G$1,'Data BI Summary'!$2:$2,0),FALSE),INDIRECT("'"&$E44&"'!"&"$A:$K"),4,FALSE) -> 19777.78935 | H44: =VLOOKUP(VLOOKUP($F44,'Data BI Summary'!$A:$F,MATCH(H$1,'Data BI Summary'!$2:$2,0),FALSE),INDIRECT("'"&$E44&"'!"&"$A:$K"),8,FALSE) -> -168.991 | I44: =VLOOKUP(VLOOKUP($F44,'Data BI Summary'!$A:$F,MATCH(I$1,'Data BI Summary'!$2:$2,0),FALSE),INDIRECT("'"&$E44&"'!"&"$A:$K"),9,FALSE) -> -0.05040493124 | J44: =VLOOKUP(VLOOKUP($F44,'Data BI Summary'!$A:$F,MATCH(J$1,'Data BI Summary'!$2:$2,0),FALSE),INDIRECT("'"&$E44&"'!"&"$A:$K"),8,FALSE) -> -123.40843 | K44: =VLOOKUP(VLOOKUP($F44,'Data BI Summary'!$A:$F,MATCH(K$1,'Data BI Summary'!$2:$2,0),FALSE),INDIRECT("'"&$E44&"'!"&"$A:$K"),9,FALSE) -> -0.006239748428
A45: St Lgt | B45: Low | C45: =VLOOKUP(A$45,'Data Billing Quantities'!A:P,MATCH(B45&" kWh",'Data Billing Quantities'!$4:$4,0),FALSE) -> 30 | E45: BI_StLgt_Low | F45: BI Template_EnergyUNM | G45: =VLOOKUP(VLOOKUP($F45,'Data BI Summary'!$A:$F,MATCH(G$1,'Data BI Summary'!$2:$2,0),FALSE),INDIRECT("'"&$E45&"'!"&"$A:$K"),4,FALSE) -> 10.59210678 | H45: =VLOOKUP(VLOOKUP($F45,'Data BI Summary'!$A:$F,MATCH(H$1,'Data BI Summary'!$2:$2,0),FALSE),INDIRECT("'"&$E45&"'!"&"$A:$K"),8,FALSE) -> -0.817 | I45: =VLOOKUP(VLOOKUP($F45,'Data BI Summary'!$A:$F,MATCH(I$1,'Data BI Summary'!$2:$2,0),FALSE),INDIRECT("'"&$E45&"'!"&"$A:$K"),9,FALSE) -> -0.111551065 | J45: =VLOOKUP(VLOOKUP($F45,'Data BI Summary'!$A:$F,MATCH(J$1,'Data BI Summary'!$2:$2,0),FALSE),INDIRECT("'"&$E45&"'!"&"$A:$K"),8,FALSE) -> -0.781127864 | K45: =VLOOKUP(VLOOKUP($F45,'Data BI Summary'!$A:$F,MATCH(K$1,'Data BI Summary'!$2:$2,0),FALSE),INDIRECT("'"&$E45&"'!"&"$A:$K"),9,FALSE) -> -0.07374622253 | L45: Two-tier RPP
B46: Average | C46: =VLOOKUP(A$45,'Data Billing Quantities'!A:P,MATCH(B46&" kWh",'Data Billing Quantities'!$4:$4,0),FALSE) -> 1274 | E46: BI_StLgt_Avg | F46: BI Template_EnergyUNM | G46: =VLOOKUP(VLOOKUP($F46,'Data BI Summary'!$A:$F,MATCH(G$1,'Data BI Summary'!$2:$2,0),FALSE),INDIRECT("'"&$E46&"'!"&"$A:$K"),4,FALSE) -> 301.2569298 | H46: =VLOOKUP(VLOOKUP($F46,'Data BI Summary'!$A:$F,MATCH(H$1,'Data BI Summary'!$2:$2,0),FALSE),INDIRECT("'"&$E46&"'!"&"$A:$K"),8,FALSE) -> -5.6686 | I46: =VLOOKUP(VLOOKUP($F46,'Data BI Summary'!$A:$F,MATCH(I$1,'Data BI Summary'!$2:$2,0),FALSE),INDIRECT("'"&$E46&"'!"&"$A:$K"),9,FALSE) -> -0.03714114237 | J46: =VLOOKUP(VLOOKUP($F46,'Data BI Summary'!$A:$F,MATCH(J$1,'Data BI Summary'!$2:$2,0),FALSE),INDIRECT("'"&$E46&"'!"&"$A:$K"),8,FALSE) -> -5.857803291 | K46: =VLOOKUP(VLOOKUP($F46,'Data BI Summary'!$A:$F,MATCH(K$1,'Data BI Summary'!$2:$2,0),FALSE),INDIRECT("'"&$E46&"'!"&"$A:$K"),9,FALSE) -> -0.01944454289
B47: High | C47: =VLOOKUP(A$45,'Data Billing Quantities'!A:P,MATCH(B47&" kWh",'Data Billing Quantities'!$4:$4,0),FALSE) -> 2310 | E47: BI_StLgt_High | F47: BI Template_EnergyUNM | G47: =VLOOKUP(VLOOKUP($F47,'Data BI Summary'!$A:$F,MATCH(G$1,'Data BI Summary'!$2:$2,0),FALSE),INDIRECT("'"&$E47&"'!"&"$A:$K"),4,FALSE) -> 552.8771048 | H47: =VLOOKUP(VLOOKUP($F47,'Data BI Summary'!$A:$F,MATCH(H$1,'Data BI Summary'!$2:$2,0),FALSE),INDIRECT("'"&$E47&"'!"&"$A:$K"),8,FALSE) -> -9.709 | I47: =VLOOKUP(VLOOKUP($F47,'Data BI Summary'!$A:$F,MATCH(I$1,'Data BI Summary'!$2:$2,0),FALSE),INDIRECT("'"&$E47&"'!"&"$A:$K"),9,FALSE) -> -0.03548247986 | J47: =VLOOKUP(VLOOKUP($F47,'Data BI Summary'!$A:$F,MATCH(J$1,'Data BI Summary'!$2:$2,0),FALSE),INDIRECT("'"&$E47&"'!"&"$A:$K"),8,FALSE) -> -10.08564553 | K47: =VLOOKUP(VLOOKUP($F47,'Data BI Summary'!$A:$F,MATCH(K$1,'Data BI Summary'!$2:$2,0),FALSE),INDIRECT("'"&$E47&"'!"&"$A:$K"),9,FALSE) -> -0.01824211102
A48: Sen Lgt | B48: Low | C48: =VLOOKUP(A$48,'Data Billing Quantities'!A:P,MATCH(B48&" kWh",'Data Billing Quantities'!$4:$4,0),FALSE) -> 20 | E48: BI_SenLgt_Low | F48: BI Template_EnergyUNM | G48: =VLOOKUP(VLOOKUP($F48,'Data BI Summary'!$A:$F,MATCH(G$1,'Data BI Summary'!$2:$2,0),FALSE),INDIRECT("'"&$E48&"'!"&"$A:$K"),4,FALSE) -> 9.108112144 | H48: =VLOOKUP(VLOOKUP($F48,'Data BI Summary'!$A:$F,MATCH(H$1,'Data BI Summary'!$2:$2,0),FALSE),INDIRECT("'"&$E48&"'!"&"$A:$K"),8,FALSE) -> -0.768 | I48: =VLOOKUP(VLOOKUP($F48,'Data BI Summary'!$A:$F,MATCH(I$1,'Data BI Summary'!$2:$2,0),FALSE),INDIRECT("'"&$E48&"'!"&"$A:$K"),9,FALSE) -> -0.1101865136 | J48: =VLOOKUP(VLOOKUP($F48,'Data BI Summary'!$A:$F,MATCH(J$1,'Data BI Summary'!$2:$2,0),FALSE),INDIRECT("'"&$E48&"'!"&"$A:$K"),8,FALSE) -> -0.735018864 | K48: =VLOOKUP(VLOOKUP($F48,'Data BI Summary'!$A:$F,MATCH(K$1,'Data BI Summary'!$2:$2,0),FALSE),INDIRECT("'"&$E48&"'!"&"$A:$K"),9,FALSE) -> -0.08069936474 | L48: Two-tier RPP
B49: Average | C49: =VLOOKUP(A$48,'Data Billing Quantities'!A:P,MATCH(B49&" kWh",'Data Billing Quantities'!$4:$4,0),FALSE) -> 49 | E49: BI_SenLgt_Avg | F49: BI Template_EnergyUNM | G49: =VLOOKUP(VLOOKUP($F49,'Data BI Summary'!$A:$F,MATCH(G$1,'Data BI Summary'!$2:$2,0),FALSE),INDIRECT("'"&$E49&"'!"&"$A:$K"),4,FALSE) -> 17.41649925 | H49: =VLOOKUP(VLOOKUP($F49,'Data BI Summary'!$A:$F,MATCH(H$1,'Data BI Summary'!$2:$2,0),FALSE),INDIRECT("'"&$E49&"'!"&"$A:$K"),8,FALSE) -> -1.3016 | I49: =VLOOKUP(VLOOKUP($F49,'Data BI Summary'!$A:$F,MATCH(I$1,'Data BI Summary'!$2:$2,0),FALSE),INDIRECT("'"&$E49&"'!"&"$A:$K"),9,FALSE) -> -0.1063963706 | J49: =VLOOKUP(VLOOKUP($F49,'Data BI Summary'!$A:$F,MATCH(J$1,'Data BI Summary'!$2:$2,0),FALSE),INDIRECT("'"&$E49&"'!"&"$A:$K"),8,FALSE) -> -1.255016217 | K49: =VLOOKUP(VLOOKUP($F49,'Data BI Summary'!$A:$F,MATCH(K$1,'Data BI Summary'!$2:$2,0),FALSE),INDIRECT("'"&$E49&"'!"&"$A:$K"),9,FALSE) -> -0.07205904003
B50: High | C50: =VLOOKUP(A$48,'Data Billing Quantities'!A:P,MATCH(B50&" kWh",'Data Billing Quantities'!$4:$4,0),FALSE) -> 80 | E50: BI_SenLgt_High | F50: BI Template_EnergyUNM | G50: =VLOOKUP(VLOOKUP($F50,'Data BI Summary'!$A:$F,MATCH(G$1,'Data BI Summary'!$2:$2,0),FALSE),INDIRECT("'"&$E50&"'!"&"$A:$K"),4,FALSE) -> 26.29787858 | H50: =VLOOKUP(VLOOKUP($F50,'Data BI Summary'!$A:$F,MATCH(H$1,'Data BI Summary'!$2:$2,0),FALSE),INDIRECT("'"&$E50&"'!"&"$A:$K"),8,FALSE) -> -1.872 | I50: =VLOOKUP(VLOOKUP($F50,'Data BI Summary'!$A:$F,MATCH(I$1,'Data BI Summary'!$2:$2,0),FALSE),INDIRECT("'"&$E50&"'!"&"$A:$K"),9,FALSE) -> -0.1048152296 | J50: =VLOOKUP(VLOOKUP($F50,'Data BI Summary'!$A:$F,MATCH(J$1,'Data BI Summary'!$2:$2,0),FALSE),INDIRECT("'"&$E50&"'!"&"$A:$K"),8,FALSE) -> -1.810875456 | K50: =VLOOKUP(VLOOKUP($F50,'Data BI Summary'!$A:$F,MATCH(K$1,'Data BI Summary'!$2:$2,0),FALSE),INDIRECT("'"&$E50&"'!"&"$A:$K"),9,FALSE) -> -0.06886013451
A51: USL | B51: Low | C51: =VLOOKUP(A$51,'Data Billing Quantities'!A:P,MATCH(B51&" kWh",'Data Billing Quantities'!$4:$4,0),FALSE) -> 100 | E51: BI_USL_Low | F51: BI Template_EnergyUNM | G51: =VLOOKUP(VLOOKUP($F51,'Data BI Summary'!$A:$F,MATCH(G$1,'Data BI Summary'!$2:$2,0),FALSE),INDIRECT("'"&$E51&"'!"&"$A:$K"),4,FALSE) -> 52.74786792 | H51: =VLOOKUP(VLOOKUP($F51,'Data BI Summary'!$A:$F,MATCH(H$1,'Data BI Summary'!$2:$2,0),FALSE),INDIRECT("'"&$E51&"'!"&"$A:$K"),8,FALSE) -> -5.9 | I51: =VLOOKUP(VLOOKUP($F51,'Data BI Summary'!$A:$F,MATCH(I$1,'Data BI Summary'!$2:$2,0),FALSE),INDIRECT("'"&$E51&"'!"&"$A:$K"),9,FALSE) -> -0.1359447005 | J51: =VLOOKUP(VLOOKUP($F51,'Data BI Summary'!$A:$F,MATCH(J$1,'Data BI Summary'!$2:$2,0),FALSE),INDIRECT("'"&$E51&"'!"&"$A:$K"),8,FALSE) -> -5.5519 | K51: =VLOOKUP(VLOOKUP($F51,'Data BI Summary'!$A:$F,MATCH(K$1,'Data BI Summary'!$2:$2,0),FALSE),INDIRECT("'"&$E51&"'!"&"$A:$K"),9,FALSE) -> -0.1052535433 | L51: Two-tier RPP
B52: Average | C52: =VLOOKUP(A$51,'Data Billing Quantities'!A:P,MATCH(B52&" kWh",'Data Billing Quantities'!$4:$4,0),FALSE) -> 477 | E52: BI_USL_Avg | F52: BI Template_EnergyUNM | G52: =VLOOKUP(VLOOKUP($F52,'Data BI Summary'!$A:$F,MATCH(G$1,'Data BI Summary'!$2:$2,0),FALSE),INDIRECT("'"&$E52&"'!"&"$A:$K"),4,FALSE) -> 106.3698142 | H52: =VLOOKUP(VLOOKUP($F52,'Data BI Summary'!$A:$F,MATCH(H$1,'Data BI Summary'!$2:$2,0),FALSE),INDIRECT("'"&$E52&"'!"&"$A:$K"),8,FALSE) -> -7.8981 | I52: =VLOOKUP(VLOOKUP($F52,'Data BI Summary'!$A:$F,MATCH(I$1,'Data BI Summary'!$2:$2,0),FALSE),INDIRECT("'"&$E52&"'!"&"$A:$K"),9,FALSE) -> -0.147306716 | J52: =VLOOKUP(VLOOKUP($F52,'Data BI Summary'!$A:$F,MATCH(J$1,'Data BI Summary'!$2:$2,0),FALSE),INDIRECT("'"&$E52&"'!"&"$A:$K"),8,FALSE) -> -7.4321121 | K52: =VLOOKUP(VLOOKUP($F52,'Data BI Summary'!$A:$F,MATCH(K$1,'Data BI Summary'!$2:$2,0),FALSE),INDIRECT("'"&$E52&"'!"&"$A:$K"),9,FALSE) -> -0.06987049999
B53: High | C53: =VLOOKUP(A$51,'Data Billing Quantities'!A:P,MATCH(B53&" kWh",'Data Billing Quantities'!$4:$4,0),FALSE) -> 550 | E53: BI_USL_High | F53: BI Template_EnergyUNM | G53: =VLOOKUP(VLOOKUP($F53,'Data BI Summary'!$A:$F,MATCH(G$1,'Data BI Summary'!$2:$2,0),FALSE),INDIRECT("'"&$E53&"'!"&"$A:$K"),4,FALSE) -> 116.7528436 | H53: =VLOOKUP(VLOOKUP($F53,'Data BI Summary'!$A:$F,MATCH(H$1,'Data BI Summary'!$2:$2,0),FALSE),INDIRECT("'"&$E53&"'!"&"$A:$K"),8,FALSE) -> -8.285 | I53: =VLOOKUP(VLOOKUP($F53,'Data BI Summary'!$A:$F,MATCH(I$1,'Data BI Summary'!$2:$2,0),FALSE),INDIRECT("'"&$E53&"'!"&"$A:$K"),9,FALSE) -> -0.1490241928 | J53: =VLOOKUP(VLOOKUP($F53,'Data BI Summary'!$A:$F,MATCH(J$1,'Data BI Summary'!$2:$2,0),FALSE),INDIRECT("'"&$E53&"'!"&"$A:$K"),8,FALSE) -> -7.796185 | K53: =VLOOKUP(VLOOKUP($F53,'Data BI Summary'!$A:$F,MATCH(K$1,'Data BI Summary'!$2:$2,0),FALSE),INDIRECT("'"&$E53&"'!"&"$A:$K"),9,FALSE) -> -0.06677511881
A54: DGen | B54: Low | C54: =VLOOKUP(A$54,'Data Billing Quantities'!A:P,MATCH($B54&" kWh",'Data Billing Quantities'!$4:$4,0),FALSE) -> 10 | D54: =VLOOKUP(A$54,'Data Billing Quantities'!A:P,MATCH($B54&" kW",'Data Billing Quantities'!$4:$4,0),FALSE) -> 0.02941666667 | E54: BI_Dgen_Low | F54: BI Template_Demand | G54: =VLOOKUP(VLOOKUP($F54,'Data BI Summary'!$A:$F,MATCH(G$1,'Data BI Summary'!$2:$2,0),FALSE),INDIRECT("'"&$E54&"'!"&"$A:$K"),4,FALSE) -> 229.4381363 | H54: =VLOOKUP(VLOOKUP($F54,'Data BI Summary'!$A:$F,MATCH(H$1,'Data BI Summary'!$2:$2,0),FALSE),INDIRECT("'"&$E54&"'!"&"$A:$K"),8,FALSE) -> -7.39506605 | I54: =VLOOKUP(VLOOKUP($F54,'Data BI Summary'!$A:$F,MATCH(I$1,'Data BI Summary'!$2:$2,0),FALSE),INDIRECT("'"&$E54&"'!"&"$A:$K"),9,FALSE) -> -0.03671347973 | J54: =VLOOKUP(VLOOKUP($F54,'Data BI Summary'!$A:$F,MATCH(J$1,'Data BI Summary'!$2:$2,0),FALSE),INDIRECT("'"&$E54&"'!"&"$A:$K"),8,FALSE) -> -8.349390876 | K54: =VLOOKUP(VLOOKUP($F54,'Data BI Summary'!$A:$F,MATCH(K$1,'Data BI Summary'!$2:$2,0),FALSE),INDIRECT("'"&$E54&"'!"&"$A:$K"),9,FALSE) -> -0.03639059754 | L54: WAHSP
B55: Average | C55: =VLOOKUP(A$54,'Data Billing Quantities'!A:P,MATCH($B55&" kWh",'Data Billing Quantities'!$4:$4,0),FALSE) -> 1709 | D55: =VLOOKUP(A$54,'Data Billing Quantities'!A:P,MATCH($B55&" kW",'Data Billing Quantities'!$4:$4,0),FALSE) -> 12 | E55: BI_Dgen_Avg | F55: BI Template_Demand | G55: =VLOOKUP(VLOOKUP($F55,'Data BI Summary'!$A:$F,MATCH(G$1,'Data BI Summary'!$2:$2,0),FALSE),INDIRECT("'"&$E55&"'!"&"$A:$K"),4,FALSE) -> 658.4879534 | H55: =VLOOKUP(VLOOKUP($F55,'Data BI Summary'!$A:$F,MATCH(H$1,'Data BI Summary'!$2:$2,0),FALSE),INDIRECT("'"&$E55&"'!"&"$A:$K"),8,FALSE) -> -11.8667 | I55: =VLOOKUP(VLOOKUP($F55,'Data BI Summary'!$A:$F,MATCH(I$1,'Data BI Summary'!$2:$2,0),FALSE),INDIRECT("'"&$E55&"'!"&"$A:$K"),9,FALSE) -> -0.03550021659 | J55: =VLOOKUP(VLOOKUP($F55,'Data BI Summary'!$A:$F,MATCH(J$1,'Data BI Summary'!$2:$2,0),FALSE),INDIRECT("'"&$E55&"'!"&"$A:$K"),8,FALSE) -> -10.540075 | K55: =VLOOKUP(VLOOKUP($F55,'Data BI Summary'!$A:$F,MATCH(K$1,'Data BI Summary'!$2:$2,0),FALSE),INDIRECT("'"&$E55&"'!"&"$A:$K"),9,FALSE) -> -0.01600648113
B56: High | C56: =VLOOKUP(A$54,'Data Billing Quantities'!A:P,MATCH($B56&" kWh",'Data Billing Quantities'!$4:$4,0),FALSE) -> 8490 | D56: =VLOOKUP(A$54,'Data Billing Quantities'!A:P,MATCH($B56&" kW",'Data Billing Quantities'!$4:$4,0),FALSE) -> 45 | E56: BI_Dgen_High | F56: BI Template_Demand | G56: =VLOOKUP(VLOOKUP($F56,'Data BI Summary'!$A:$F,MATCH(G$1,'Data BI Summary'!$2:$2,0),FALSE),INDIRECT("'"&$E56&"'!"&"$A:$K"),4,FALSE) -> 2150.30376 | H56: =VLOOKUP(VLOOKUP($F56,'Data BI Summary'!$A:$F,MATCH(H$1,'Data BI Summary'!$2:$2,0),FALSE),INDIRECT("'"&$E56&"'!"&"$A:$K"),8,FALSE) -> -25.662 | I56: =VLOOKUP(VLOOKUP($F56,'Data BI Summary'!$A:$F,MATCH(I$1,'Data BI Summary'!$2:$2,0),FALSE),INDIRECT("'"&$E56&"'!"&"$A:$K"),9,FALSE) -> -0.03663425135 | J56: =VLOOKUP(VLOOKUP($F56,'Data BI Summary'!$A:$F,MATCH(J$1,'Data BI Summary'!$2:$2,0),FALSE),INDIRECT("'"&$E56&"'!"&"$A:$K"),8,FALSE) -> -18.2382 | K56: =VLOOKUP(VLOOKUP($F56,'Data BI Summary'!$A:$F,MATCH(K$1,'Data BI Summary'!$2:$2,0),FALSE),INDIRECT("'"&$E56&"'!"&"$A:$K"),9,FALSE) -> -0.008481685399
A57: ST | B57: Low | C57: =VLOOKUP(A$57,'Data Billing Quantities'!A:P,MATCH($B57&" kWh",'Data Billing Quantities'!$4:$4,0),FALSE) -> 88780 | D57: =VLOOKUP(A$57,'Data Billing Quantities'!A:P,MATCH($B57&" kW",'Data Billing Quantities'!$4:$4,0),FALSE) -> 500 | E57: BI_ST_Low | F57: BI Template_Demand | G57: =VLOOKUP(VLOOKUP($F57,'Data BI Summary'!$A:$F,MATCH(G$1,'Data BI Summary'!$2:$2,0),FALSE),INDIRECT("'"&$E57&"'!"&"$A:$K"),4,FALSE) -> 19594.53686 | H57: =VLOOKUP(VLOOKUP($F57,'Data BI Summary'!$A:$F,MATCH(H$1,'Data BI Summary'!$2:$2,0),FALSE),INDIRECT("'"&$E57&"'!"&"$A:$K"),8,FALSE) -> -418.516 | I57: =VLOOKUP(VLOOKUP($F57,'Data BI Summary'!$A:$F,MATCH(I$1,'Data BI Summary'!$2:$2,0),FALSE),INDIRECT("'"&$E57&"'!"&"$A:$K"),9,FALSE) -> -0.1854622642 | J57: =VLOOKUP(VLOOKUP($F57,'Data BI Summary'!$A:$F,MATCH(J$1,'Data BI Summary'!$2:$2,0),FALSE),INDIRECT("'"&$E57&"'!"&"$A:$K"),8,FALSE) -> -408.96508 | K57: =VLOOKUP(VLOOKUP($F57,'Data BI Summary'!$A:$F,MATCH(K$1,'Data BI Summary'!$2:$2,0),FALSE),INDIRECT("'"&$E57&"'!"&"$A:$K"),9,FALSE) -> -0.02087138282 | L57: WAHSP
B58: Average | C58: =VLOOKUP(A$57,'Data Billing Quantities'!A:P,MATCH($B58&" kWh",'Data Billing Quantities'!$4:$4,0),FALSE) -> 1373443 | D58: =VLOOKUP(A$57,'Data Billing Quantities'!A:P,MATCH($B58&" kW",'Data Billing Quantities'!$4:$4,0),FALSE) -> 2808 | E58: BI_ST_Avg | F58: BI Template_Demand | G58: =VLOOKUP(VLOOKUP($F58,'Data BI Summary'!$A:$F,MATCH(G$1,'Data BI Summary'!$2:$2,0),FALSE),INDIRECT("'"&$E58&"'!"&"$A:$K"),4,FALSE) -> 228266.9771 | H58: =VLOOKUP(VLOOKUP($F58,'Data BI Summary'!$A:$F,MATCH(H$1,'Data BI Summary'!$2:$2,0),FALSE),INDIRECT("'"&$E58&"'!"&"$A:$K"),8,FALSE) -> -2067.8801 | I58: =VLOOKUP(VLOOKUP($F58,'Data BI Summary'!$A:$F,MATCH(I$1,'Data BI Summary'!$2:$2,0),FALSE),INDIRECT("'"&$E58&"'!"&"$A:$K"),9,FALSE) -> -0.3377758497 | J58: =VLOOKUP(VLOOKUP($F58,'Data BI Summary'!$A:$F,MATCH(J$1,'Data BI Summary'!$2:$2,0),FALSE),INDIRECT("'"&$E58&"'!"&"$A:$K"),8,FALSE) -> -1977.516385 | K58: =VLOOKUP(VLOOKUP($F58,'Data BI Summary'!$A:$F,MATCH(K$1,'Data BI Summary'!$2:$2,0),FALSE),INDIRECT("'"&$E58&"'!"&"$A:$K"),9,FALSE) -> -0.008663173316
B59: High | C59: =VLOOKUP(A$57,'Data Billing Quantities'!A:P,MATCH($B59&" kWh",'Data Billing Quantities'!$4:$4,0),FALSE) -> 2641420 | D59: =VLOOKUP(A$57,'Data Billing Quantities'!A:P,MATCH($B59&" kW",'Data Billing Quantities'!$4:$4,0),FALSE) -> 13730 | E59: BI_ST_High | F59: BI Template_Demand | G59: =VLOOKUP(VLOOKUP($F59,'Data BI Summary'!$A:$F,MATCH(G$1,'Data BI Summary'!$2:$2,0),FALSE),INDIRECT("'"&$E59&"'!"&"$A:$K"),4,FALSE) -> 524849.8159 | H59: =VLOOKUP(VLOOKUP($F59,'Data BI Summary'!$A:$F,MATCH(H$1,'Data BI Summary'!$2:$2,0),FALSE),INDIRECT("'"&$E59&"'!"&"$A:$K"),8,FALSE) -> -6505.114 | I59: =VLOOKUP(VLOOKUP($F59,'Data BI Summary'!$A:$F,MATCH(I$1,'Data BI Summary'!$2:$2,0),FALSE),INDIRECT("'"&$E59&"'!"&"$A:$K"),9,FALSE) -> -0.266447816 | J59: =VLOOKUP(VLOOKUP($F59,'Data BI Summary'!$A:$F,MATCH(J$1,'Data BI Summary'!$2:$2,0),FALSE),INDIRECT("'"&$E59&"'!"&"$A:$K"),8,FALSE) -> -5594.49214 | K59: =VLOOKUP(VLOOKUP($F59,'Data BI Summary'!$A:$F,MATCH(K$1,'Data BI Summary'!$2:$2,0),FALSE),INDIRECT("'"&$E59&"'!"&"$A:$K"),9,FALSE) -> -0.01065922474

Sheet Bill Impact Summary_Acq (hidden)
A1: Rate Class | B1: Consumption Level | C1: Monthly Consumption (kWh) | D1: Monthly Peak (kW) | E1: BI Worksheet | F1: Template | G1: Current Total Bill | H1: Change in DX Bill ($) | I1: Change in DX Bill (%) | J1: Change in Total Bill ($) | K1: Change in Total Bill (%) | L1: Commodity Price Used
A2: WHSI to HONI
A3: AUR-WHSI | B3: Low | C3: =VLOOKUP(A$3,'Data Billing Quantities'!A:P,MATCH($B3&" kWh",'Data Billing Quantities'!$4:$4,0),FALSE) -> 310 | E3: BI_WHSI_AUR_Low | F3: BI Template_EnergyWHSI | G3: =VLOOKUP(VLOOKUP($F3,'Data BI Summary'!$A:$F,MATCH(G$1,'Data BI Summary'!$2:$2,0),FALSE),INDIRECT("'"&$E3&"'!"&"$A:$K"),4,FALSE) -> 60.42677856 | H3: =VLOOKUP(VLOOKUP($F3,'Data BI Summary'!$A:$F,MATCH(H$1,'Data BI Summary'!$2:$2,0),FALSE),INDIRECT("'"&$E3&"'!"&"$A:$K"),8,FALSE) -> 6.265 | I3: =VLOOKUP(VLOOKUP($F3,'Data BI Summary'!$A:$F,MATCH(I$1,'Data BI Summary'!$2:$2,0),FALSE),INDIRECT("'"&$E3&"'!"&"$A:$K"),9,FALSE) -> 0.2596030332 | J3: =VLOOKUP(VLOOKUP($F3,'Data BI Summary'!$A:$F,MATCH(J$1,'Data BI Summary'!$2:$2,0),FALSE),INDIRECT("'"&$E3&"'!"&"$A:$K"),8,FALSE) -> 7.534792119 | K3: =VLOOKUP(VLOOKUP($F3,'Data BI Summary'!$A:$F,MATCH(K$1,'Data BI Summary'!$2:$2,0),FALSE),INDIRECT("'"&$E3&"'!"&"$A:$K"),9,FALSE) -> 0.1246929308 | L3: TOU
B4: Typical | C4: =VLOOKUP(A$3,'Data Billing Quantities'!A:P,MATCH($B4&" kWh",'Data Billing Quantities'!$4:$4,0),FALSE) -> 750 | E4: BI_WHSI_AUR_Typical | F4: BI Template_EnergyWHSI | G4: =VLOOKUP(VLOOKUP($F4,'Data BI Summary'!$A:$F,MATCH(G$1,'Data BI Summary'!$2:$2,0),FALSE),INDIRECT("'"&$E4&"'!"&"$A:$K"),4,FALSE) -> 112.9904823 | H4: =VLOOKUP(VLOOKUP($F4,'Data BI Summary'!$A:$F,MATCH(H$1,'Data BI Summary'!$2:$2,0),FALSE),INDIRECT("'"&$E4&"'!"&"$A:$K"),8,FALSE) -> 6.045 | I4: =VLOOKUP(VLOOKUP($F4,'Data BI Summary'!$A:$F,MATCH(I$1,'Data BI Summary'!$2:$2,0),FALSE),INDIRECT("'"&$E4&"'!"&"$A:$K"),9,FALSE) -> 0.249124253 | J4: =VLOOKUP(VLOOKUP($F4,'Data BI Summary'!$A:$F,MATCH(J$1,'Data BI Summary'!$2:$2,0),FALSE),INDIRECT("'"&$E4&"'!"&"$A:$K"),8,FALSE) -> 9.654700933 | K4: =VLOOKUP(VLOOKUP($F4,'Data BI Summary'!$A:$F,MATCH(K$1,'Data BI Summary'!$2:$2,0),FALSE),INDIRECT("'"&$E4&"'!"&"$A:$K"),9,FALSE) -> 0.08544702825
B5: Average | C5: =VLOOKUP(A$3,'Data Billing Quantities'!A:P,MATCH($B5&" kWh",'Data Billing Quantities'!$4:$4,0),FALSE) -> 636 | E5: BI_WHSI_AUR_Avg | F5: BI Template_EnergyWHSI | G5: =VLOOKUP(VLOOKUP($F5,'Data BI Summary'!$A:$F,MATCH(G$1,'Data BI Summary'!$2:$2,0),FALSE),INDIRECT("'"&$E5&"'!"&"$A:$K"),4,FALSE) -> 99.37170452 | H5: =VLOOKUP(VLOOKUP($F5,'Data BI Summary'!$A:$F,MATCH(H$1,'Data BI Summary'!$2:$2,0),FALSE),INDIRECT("'"&$E5&"'!"&"$A:$K"),8,FALSE) -> 6.102 | I5: =VLOOKUP(VLOOKUP($F5,'Data BI Summary'!$A:$F,MATCH(I$1,'Data BI Summary'!$2:$2,0),FALSE),INDIRECT("'"&$E5&"'!"&"$A:$K"),9,FALSE) -> 0.2518282516 | J5: =VLOOKUP(VLOOKUP($F5,'Data BI Summary'!$A:$F,MATCH(J$1,'Data BI Summary'!$2:$2,0),FALSE),INDIRECT("'"&$E5&"'!"&"$A:$K"),8,FALSE) -> 9.105451832 | K5: =VLOOKUP(VLOOKUP($F5,'Data BI Summary'!$A:$F,MATCH(K$1,'Data BI Summary'!$2:$2,0),FALSE),INDIRECT("'"&$E5&"'!"&"$A:$K"),9,FALSE) -> 0.09163022689
B6: High | C6: =VLOOKUP(A$3,'Data Billing Quantities'!A:P,MATCH($B6&" kWh",'Data Billing Quantities'!$4:$4,0),FALSE) -> 1160 | E6: BI_WHSI_AUR_High | F6: BI Template_EnergyWHSI | G6: =VLOOKUP(VLOOKUP($F6,'Data BI Summary'!$A:$F,MATCH(G$1,'Data BI Summary'!$2:$2,0),FALSE),INDIRECT("'"&$E6&"'!"&"$A:$K"),4,FALSE) -> 161.9702972 | H6: =VLOOKUP(VLOOKUP($F6,'Data BI Summary'!$A:$F,MATCH(H$1,'Data BI Summary'!$2:$2,0),FALSE),INDIRECT("'"&$E6&"'!"&"$A:$K"),8,FALSE) -> 5.84 | I6: =VLOOKUP(VLOOKUP($F6,'Data BI Summary'!$A:$F,MATCH(I$1,'Data BI Summary'!$2:$2,0),FALSE),INDIRECT("'"&$E6&"'!"&"$A:$K"),9,FALSE) -> 0.2394620305 | J6: =VLOOKUP(VLOOKUP($F6,'Data BI Summary'!$A:$F,MATCH(J$1,'Data BI Summary'!$2:$2,0),FALSE),INDIRECT("'"&$E6&"'!"&"$A:$K"),8,FALSE) -> 11.63007051 | K6: =VLOOKUP(VLOOKUP($F6,'Data BI Summary'!$A:$F,MATCH(K$1,'Data BI Summary'!$2:$2,0),FALSE),INDIRECT("'"&$E6&"'!"&"$A:$K"),9,FALSE) -> 0.07180372397
A7: AUGe-WHSI | B7: Low | C7: =VLOOKUP(A$7,'Data Billing Quantities'!A:P,MATCH($B7&" kWh",'Data Billing Quantities'!$4:$4,0),FALSE) -> 190 | E7: BI_WHSI_AUGe_Low | F7: BI Template_EnergyWHSI | G7: =VLOOKUP(VLOOKUP($F7,'Data BI Summary'!$A:$F,MATCH(G$1,'Data BI Summary'!$2:$2,0),FALSE),INDIRECT("'"&$E7&"'!"&"$A:$K"),4,FALSE) -> 54.25815455 | H7: =VLOOKUP(VLOOKUP($F7,'Data BI Summary'!$A:$F,MATCH(H$1,'Data BI Summary'!$2:$2,0),FALSE),INDIRECT("'"&$E7&"'!"&"$A:$K"),8,FALSE) -> -3.198 | I7: =VLOOKUP(VLOOKUP($F7,'Data BI Summary'!$A:$F,MATCH(I$1,'Data BI Summary'!$2:$2,0),FALSE),INDIRECT("'"&$E7&"'!"&"$A:$K"),9,FALSE) -> -0.09692671395 | J7: =VLOOKUP(VLOOKUP($F7,'Data BI Summary'!$A:$F,MATCH(J$1,'Data BI Summary'!$2:$2,0),FALSE),INDIRECT("'"&$E7&"'!"&"$A:$K"),8,FALSE) -> -2.638513261 | K7: =VLOOKUP(VLOOKUP($F7,'Data BI Summary'!$A:$F,MATCH(K$1,'Data BI Summary'!$2:$2,0),FALSE),INDIRECT("'"&$E7&"'!"&"$A:$K"),9,FALSE) -> -0.04862887953 | L7: TOU
B8: Typical | C8: =VLOOKUP(A$7,'Data Billing Quantities'!A:P,MATCH($B8&" kWh",'Data Billing Quantities'!$4:$4,0),FALSE) -> 2000 | E8: BI_WHSI_AUGe_Typical | F8: BI Template_EnergyWHSI | G8: =VLOOKUP(VLOOKUP($F8,'Data BI Summary'!$A:$F,MATCH(G$1,'Data BI Summary'!$2:$2,0),FALSE),INDIRECT("'"&$E8&"'!"&"$A:$K"),4,FALSE) -> 289.4813205 | H8: =VLOOKUP(VLOOKUP($F8,'Data BI Summary'!$A:$F,MATCH(H$1,'Data BI Summary'!$2:$2,0),FALSE),INDIRECT("'"&$E8&"'!"&"$A:$K"),8,FALSE) -> 7.3 | I8: =VLOOKUP(VLOOKUP($F8,'Data BI Summary'!$A:$F,MATCH(I$1,'Data BI Summary'!$2:$2,0),FALSE),INDIRECT("'"&$E8&"'!"&"$A:$K"),9,FALSE) -> 0.1308243728 | J8: =VLOOKUP(VLOOKUP($F8,'Data BI Summary'!$A:$F,MATCH(J$1,'Data BI Summary'!$2:$2,0),FALSE),INDIRECT("'"&$E8&"'!"&"$A:$K"),8,FALSE) -> 10.77250778 | K8: =VLOOKUP(VLOOKUP($F8,'Data BI Summary'!$A:$F,MATCH(K$1,'Data BI Summary'!$2:$2,0),FALSE),INDIRECT("'"&$E8&"'!"&"$A:$K"),9,FALSE) -> 0.03721313609
B9: Average | C9: =VLOOKUP(A$7,'Data Billing Quantities'!A:P,MATCH($B9&" kWh",'Data Billing Quantities'!$4:$4,0),FALSE) -> 2471 | E9: BI_WHSI_AUGe_Avg | F9: BI Template_EnergyWHSI | G9: =VLOOKUP(VLOOKUP($F9,'Data BI Summary'!$A:$F,MATCH(G$1,'Data BI Summary'!$2:$2,0),FALSE),INDIRECT("'"&$E9&"'!"&"$A:$K"),4,FALSE) -> 350.6913267 | H9: =VLOOKUP(VLOOKUP($F9,'Data BI Summary'!$A:$F,MATCH(H$1,'Data BI Summary'!$2:$2,0),FALSE),INDIRECT("'"&$E9&"'!"&"$A:$K"),8,FALSE) -> 10.0318 | I9: =VLOOKUP(VLOOKUP($F9,'Data BI Summary'!$A:$F,MATCH(I$1,'Data BI Summary'!$2:$2,0),FALSE),INDIRECT("'"&$E9&"'!"&"$A:$K"),9,FALSE) -> 0.1624988256 | J9: =VLOOKUP(VLOOKUP($F9,'Data BI Summary'!$A:$F,MATCH(J$1,'Data BI Summary'!$2:$2,0),FALSE),INDIRECT("'"&$E9&"'!"&"$A:$K"),8,FALSE) -> 14.26233701 | K9: =VLOOKUP(VLOOKUP($F9,'Data BI Summary'!$A:$F,MATCH(K$1,'Data BI Summary'!$2:$2,0),FALSE),INDIRECT("'"&$E9&"'!"&"$A:$K"),9,FALSE) -> 0.04066920371
B10: High | C10: =VLOOKUP(A$7,'Data Billing Quantities'!A:P,MATCH($B10&" kWh",'Data Billing Quantities'!$4:$4,0),FALSE) -> 7240 | E10: BI_WHSI_AUGe_High | F10: BI Template_EnergyWHSI | G10: =VLOOKUP(VLOOKUP($F10,'Data BI Summary'!$A:$F,MATCH(G$1,'Data BI Summary'!$2:$2,0),FALSE),INDIRECT("'"&$E10&"'!"&"$A:$K"),4,FALSE) -> 970.458884 | H10: =VLOOKUP(VLOOKUP($F10,'Data BI Summary'!$A:$F,MATCH(H$1,'Data BI Summary'!$2:$2,0),FALSE),INDIRECT("'"&$E10&"'!"&"$A:$K"),8,FALSE) -> 37.692 | I10: =VLOOKUP(VLOOKUP($F10,'Data BI Summary'!$A:$F,MATCH(I$1,'Data BI Summary'!$2:$2,0),FALSE),INDIRECT("'"&$E10&"'!"&"$A:$K"),9,FALSE) -> 0.3093971631 | J10: =VLOOKUP(VLOOKUP($F10,'Data BI Summary'!$A:$F,MATCH(J$1,'Data BI Summary'!$2:$2,0),FALSE),INDIRECT("'"&$E10&"'!"&"$A:$K"),8,FALSE) -> 49.59778415 | K10: =VLOOKUP(VLOOKUP($F10,'Data BI Summary'!$A:$F,MATCH(K$1,'Data BI Summary'!$2:$2,0),FALSE),INDIRECT("'"&$E10&"'!"&"$A:$K"),9,FALSE) -> 0.05110755846
A11: AUGd-WHSI | B11: Low | C11: =VLOOKUP(A$11,'Data Billing Quantities'!A:P,MATCH($B11&" kWh",'Data Billing Quantities'!$4:$4,0),FALSE) -> 9370 | D11: =VLOOKUP(A$11,'Data Billing Quantities'!A:P,MATCH(B11&" kW",'Data Billing Quantities'!$4:$4,0),FALSE) -> 50 | E11: BI_WHSI_AUGd_Low | F11: BI Template_DemandWHSI | G11: =VLOOKUP(VLOOKUP($F11,'Data BI Summary'!$A:$F,MATCH(G$1,'Data BI Summary'!$2:$2,0),FALSE),INDIRECT("'"&$E11&"'!"&"$A:$K"),4,FALSE) -> 1974.60245 | H11: =VLOOKUP(VLOOKUP($F11,'Data BI Summary'!$A:$F,MATCH(H$1,'Data BI Summary'!$2:$2,0),FALSE),INDIRECT("'"&$E11&"'!"&"$A:$K"),8,FALSE) -> 42.076 | I11: =VLOOKUP(VLOOKUP($F11,'Data BI Summary'!$A:$F,MATCH(I$1,'Data BI Summary'!$2:$2,0),FALSE),INDIRECT("'"&$E11&"'!"&"$A:$K"),9,FALSE) -> 0.1567777033 | J11: =VLOOKUP(VLOOKUP($F11,'Data BI Summary'!$A:$F,MATCH(J$1,'Data BI Summary'!$2:$2,0),FALSE),INDIRECT("'"&$E11&"'!"&"$A:$K"),8,FALSE) -> 15.57717735 | K11: =VLOOKUP(VLOOKUP($F11,'Data BI Summary'!$A:$F,MATCH(K$1,'Data BI Summary'!$2:$2,0),FALSE),INDIRECT("'"&$E11&"'!"&"$A:$K"),9,FALSE) -> 0.007888766345 | L11: WAHSP
B12: Average | C12: =VLOOKUP(A$11,'Data Billing Quantities'!A:P,MATCH($B12&" kWh",'Data Billing Quantities'!$4:$4,0),FALSE) -> 47636 | D12: =VLOOKUP(A$11,'Data Billing Quantities'!A:P,MATCH(B12&" kW",'Data Billing Quantities'!$4:$4,0),FALSE) -> 134 | E12: BI_WHSI_AUGd_Avg | F12: BI Template_DemandWHSI | G12: =VLOOKUP(VLOOKUP($F12,'Data BI Summary'!$A:$F,MATCH(G$1,'Data BI Summary'!$2:$2,0),FALSE),INDIRECT("'"&$E12&"'!"&"$A:$K"),4,FALSE) -> 8276.344436 | H12: =VLOOKUP(VLOOKUP($F12,'Data BI Summary'!$A:$F,MATCH(H$1,'Data BI Summary'!$2:$2,0),FALSE),INDIRECT("'"&$E12&"'!"&"$A:$K"),8,FALSE) -> 75.0894 | I12: =VLOOKUP(VLOOKUP($F12,'Data BI Summary'!$A:$F,MATCH(I$1,'Data BI Summary'!$2:$2,0),FALSE),INDIRECT("'"&$E12&"'!"&"$A:$K"),9,FALSE) -> 0.1586880332 | J12: =VLOOKUP(VLOOKUP($F12,'Data BI Summary'!$A:$F,MATCH(J$1,'Data BI Summary'!$2:$2,0),FALSE),INDIRECT("'"&$E12&"'!"&"$A:$K"),8,FALSE) -> -32.4191242 | K12: =VLOOKUP(VLOOKUP($F12,'Data BI Summary'!$A:$F,MATCH(K$1,'Data BI Summary'!$2:$2,0),FALSE),INDIRECT("'"&$E12&"'!"&"$A:$K"),9,FALSE) -> -0.00391708253
B13: High | C13: =VLOOKUP(A$11,'Data Billing Quantities'!A:P,MATCH($B13&" kWh",'Data Billing Quantities'!$4:$4,0),FALSE) -> 137890 | D13: =VLOOKUP(A$11,'Data Billing Quantities'!A:P,MATCH(B13&" kW",'Data Billing Quantities'!$4:$4,0),FALSE) -> 340 | E13: BI_WHSI_AUGd_High | F13: BI Template_DemandWHSI | G13: =VLOOKUP(VLOOKUP($F13,'Data BI Summary'!$A:$F,MATCH(G$1,'Data BI Summary'!$2:$2,0),FALSE),INDIRECT("'"&$E13&"'!"&"$A:$K"),4,FALSE) -> 23210.73217 | H13: =VLOOKUP(VLOOKUP($F13,'Data BI Summary'!$A:$F,MATCH(H$1,'Data BI Summary'!$2:$2,0),FALSE),INDIRECT("'"&$E13&"'!"&"$A:$K"),8,FALSE) -> 158.563 | I13: =VLOOKUP(VLOOKUP($F13,'Data BI Summary'!$A:$F,MATCH(I$1,'Data BI Summary'!$2:$2,0),FALSE),INDIRECT("'"&$E13&"'!"&"$A:$K"),9,FALSE) -> 0.16255236 | J13: =VLOOKUP(VLOOKUP($F13,'Data BI Summary'!$A:$F,MATCH(J$1,'Data BI Summary'!$2:$2,0),FALSE),INDIRECT("'"&$E13&"'!"&"$A:$K"),8,FALSE) -> -142.2517203 | K13: =VLOOKUP(VLOOKUP($F13,'Data BI Summary'!$A:$F,MATCH(K$1,'Data BI Summary'!$2:$2,0),FALSE),INDIRECT("'"&$E13&"'!"&"$A:$K"),9,FALSE) -> -0.006128704566
A14: St Lgt-WHSI | B14: Average | C14: =VLOOKUP(A14,'Data Billing Quantities'!A:P,MATCH($B14&" kWh",'Data Billing Quantities'!$4:$4,0),FALSE) -> 37079 | D14: =VLOOKUP(A$14,'Data Billing Quantities'!A:P,MATCH(B14&" kW",'Data Billing Quantities'!$4:$4,0),FALSE) -> 104 | E14: BI_WHSI_StLgt_Avg | F14: BI Template_unmWHSI | G14: =VLOOKUP(VLOOKUP($F14,'Data BI Summary'!$A:$F,MATCH(G$1,'Data BI Summary'!$2:$2,0),FALSE),INDIRECT("'"&$E14&"'!"&"$A:$K"),4,FALSE) -> 8934.516503 | H14: =VLOOKUP(VLOOKUP($F14,'Data BI Summary'!$A:$F,MATCH(H$1,'Data BI Summary'!$2:$2,0),FALSE),INDIRECT("'"&$E14&"'!"&"$A:$K"),8,FALSE) -> 1154.0457 | I14: =VLOOKUP(VLOOKUP($F14,'Data BI Summary'!$A:$F,MATCH(I$1,'Data BI Summary'!$2:$2,0),FALSE),INDIRECT("'"&$E14&"'!"&"$A:$K"),9,FALSE) -> 0.3987328192 | J14: =VLOOKUP(VLOOKUP($F14,'Data BI Summary'!$A:$F,MATCH(J$1,'Data BI Summary'!$2:$2,0),FALSE),INDIRECT("'"&$E14&"'!"&"$A:$K"),8,FALSE) -> 1528.23652 | K14: =VLOOKUP(VLOOKUP($F14,'Data BI Summary'!$A:$F,MATCH(K$1,'Data BI Summary'!$2:$2,0),FALSE),INDIRECT("'"&$E14&"'!"&"$A:$K"),9,FALSE) -> 0.1710485978 | L14: Two-tier RPP
A15: USL-WHSI | B15: Average | C15: =VLOOKUP(A15,'Data Billing Quantities'!A:P,MATCH($B15&" kWh",'Data Billing Quantities'!$4:$4,0),FALSE) -> 1349 | E15: BI_WHSI_USL_Avg | F15: BI Template_unmWHSI | G15: =VLOOKUP(VLOOKUP($F15,'Data BI Summary'!$A:$F,MATCH(G$1,'Data BI Summary'!$2:$2,0),FALSE),INDIRECT("'"&$E15&"'!"&"$A:$K"),4,FALSE) -> 182.6524442 | H15: =VLOOKUP(VLOOKUP($F15,'Data BI Summary'!$A:$F,MATCH(H$1,'Data BI Summary'!$2:$2,0),FALSE),INDIRECT("'"&$E15&"'!"&"$A:$K"),8,FALSE) -> 42.1811 | I15: =VLOOKUP(VLOOKUP($F15,'Data BI Summary'!$A:$F,MATCH(I$1,'Data BI Summary'!$2:$2,0),FALSE),INDIRECT("'"&$E15&"'!"&"$A:$K"),9,FALSE) -> 2.008375154 | J15: =VLOOKUP(VLOOKUP($F15,'Data BI Summary'!$A:$F,MATCH(J$1,'Data BI Summary'!$2:$2,0),FALSE),INDIRECT("'"&$E15&"'!"&"$A:$K"),8,FALSE) -> 46.07793589 | K15: =VLOOKUP(VLOOKUP($F15,'Data BI Summary'!$A:$F,MATCH(K$1,'Data BI Summary'!$2:$2,0),FALSE),INDIRECT("'"&$E15&"'!"&"$A:$K"),9,FALSE) -> 0.2522711157 | L15: Two-tier RPP
A16: ST-WHSI | B16: Average | C16: =VLOOKUP(A16,'Data Billing Quantities'!A:P,MATCH($B16&" kWh",'Data Billing Quantities'!$4:$4,0),FALSE) -> 895853 | D16: =VLOOKUP(A$16,'Data Billing Quantities'!A:P,MATCH(B16&" kW",'Data Billing Quantities'!$4:$4,0),FALSE) -> 3301 | E16: BI_WHSI_ST_Avg | F16: BI Template_DemandWHSI | G16: =VLOOKUP(VLOOKUP($F16,'Data BI Summary'!$A:$F,MATCH(G$1,'Data BI Summary'!$2:$2,0),FALSE),INDIRECT("'"&$E16&"'!"&"$A:$K"),4,FALSE) -> 159529.9162 | H16: =VLOOKUP(VLOOKUP($F16,'Data BI Summary'!$A:$F,MATCH(H$1,'Data BI Summary'!$2:$2,0),FALSE),INDIRECT("'"&$E16&"'!"&"$A:$K"),8,FALSE) -> -1407.0331 | I16: =VLOOKUP(VLOOKUP($F16,'Data BI Summary'!$A:$F,MATCH(I$1,'Data BI Summary'!$2:$2,0),FALSE),INDIRECT("'"&$E16&"'!"&"$A:$K"),9,FALSE) -> -0.1536077362 | J16: =VLOOKUP(VLOOKUP($F16,'Data BI Summary'!$A:$F,MATCH(J$1,'Data BI Summary'!$2:$2,0),FALSE),INDIRECT("'"&$E16&"'!"&"$A:$K"),8,FALSE) -> 6656.232645 | K16: =VLOOKUP(VLOOKUP($F16,'Data BI Summary'!$A:$F,MATCH(K$1,'Data BI Summary'!$2:$2,0),FALSE),INDIRECT("'"&$E16&"'!"&"$A:$K"),9,FALSE) -> 0.04172404026 | L16: WAHSP
A17: NPDI to HONI
A18: AR-NPDI | B18: Low | C18: =VLOOKUP(A$18,'Data Billing Quantities'!A:P,MATCH($B18&" kWh",'Data Billing Quantities'!$4:$4,0),FALSE) -> 290 | E18: BI_NPDI_AR_Low | F18: BI Template_EnergyNPDI | G18: =VLOOKUP(VLOOKUP($F18,'Data BI Summary'!$A:$F,MATCH(G$1,'Data BI Summary'!$2:$2,0),FALSE),INDIRECT("'"&$E18&"'!"&"$A:$K"),4,FALSE) -> 72.03820675 | H18: =VLOOKUP(VLOOKUP($F18,'Data BI Summary'!$A:$F,MATCH(H$1,'Data BI Summary'!$2:$2,0),FALSE),INDIRECT("'"&$E18&"'!"&"$A:$K"),8,FALSE) -> -2.444 | I18: =VLOOKUP(VLOOKUP($F18,'Data BI Summary'!$A:$F,MATCH(I$1,'Data BI Summary'!$2:$2,0),FALSE),INDIRECT("'"&$E18&"'!"&"$A:$K"),9,FALSE) -> -0.06203832974 | J18: =VLOOKUP(VLOOKUP($F18,'Data BI Summary'!$A:$F,MATCH(J$1,'Data BI Summary'!$2:$2,0),FALSE),INDIRECT("'"&$E18&"'!"&"$A:$K"),8,FALSE) -> 0.06580081768 | K18: =VLOOKUP(VLOOKUP($F18,'Data BI Summary'!$A:$F,MATCH(K$1,'Data BI Summary'!$2:$2,0),FALSE),INDIRECT("'"&$E18&"'!"&"$A:$K"),9,FALSE) -> 0.0009134155423 | L18: TOU
B19: Typical | C19: =VLOOKUP(A$18,'Data Billing Quantities'!A:P,MATCH($B19&" kWh",'Data Billing Quantities'!$4:$4,0),FALSE) -> 750 | E19: BI_NPDI_AR_Typical | F19: BI Template_EnergyNPDI | G19: =VLOOKUP(VLOOKUP($F19,'Data BI Summary'!$A:$F,MATCH(G$1,'Data BI Summary'!$2:$2,0),FALSE),INDIRECT("'"&$E19&"'!"&"$A:$K"),4,FALSE) -> 126.9292561 | H19: =VLOOKUP(VLOOKUP($F19,'Data BI Summary'!$A:$F,MATCH(H$1,'Data BI Summary'!$2:$2,0),FALSE),INDIRECT("'"&$E19&"'!"&"$A:$K"),8,FALSE) -> -3.18 | I19: =VLOOKUP(VLOOKUP($F19,'Data BI Summary'!$A:$F,MATCH(I$1,'Data BI Summary'!$2:$2,0),FALSE),INDIRECT("'"&$E19&"'!"&"$A:$K"),9,FALSE) -> -0.07933142073 | J19: =VLOOKUP(VLOOKUP($F19,'Data BI Summary'!$A:$F,MATCH(J$1,'Data BI Summary'!$2:$2,0),FALSE),INDIRECT("'"&$E19&"'!"&"$A:$K"),8,FALSE) -> 3.125563494 | K19: =VLOOKUP(VLOOKUP($F19,'Data BI Summary'!$A:$F,MATCH(K$1,'Data BI Summary'!$2:$2,0),FALSE),INDIRECT("'"&$E19&"'!"&"$A:$K"),9,FALSE) -> 0.02462445295
B20: Average | C20: =VLOOKUP(A$18,'Data Billing Quantities'!A:P,MATCH($B20&" kWh",'Data Billing Quantities'!$4:$4,0),FALSE) -> 692 | E20: BI_NPDI_AR_Avg | F20: BI Template_EnergyNPDI | G20: =VLOOKUP(VLOOKUP($F20,'Data BI Summary'!$A:$F,MATCH(G$1,'Data BI Summary'!$2:$2,0),FALSE),INDIRECT("'"&$E20&"'!"&"$A:$K"),4,FALSE) -> 120.0082107 | H20: =VLOOKUP(VLOOKUP($F20,'Data BI Summary'!$A:$F,MATCH(H$1,'Data BI Summary'!$2:$2,0),FALSE),INDIRECT("'"&$E20&"'!"&"$A:$K"),8,FALSE) -> -3.0872 | I20: =VLOOKUP(VLOOKUP($F20,'Data BI Summary'!$A:$F,MATCH(I$1,'Data BI Summary'!$2:$2,0),FALSE),INDIRECT("'"&$E20&"'!"&"$A:$K"),9,FALSE) -> -0.07718385919 | J20: =VLOOKUP(VLOOKUP($F20,'Data BI Summary'!$A:$F,MATCH(J$1,'Data BI Summary'!$2:$2,0),FALSE),INDIRECT("'"&$E20&"'!"&"$A:$K"),8,FALSE) -> 2.73976733 | K20: =VLOOKUP(VLOOKUP($F20,'Data BI Summary'!$A:$F,MATCH(K$1,'Data BI Summary'!$2:$2,0),FALSE),INDIRECT("'"&$E20&"'!"&"$A:$K"),9,FALSE) -> 0.02282983234
B21: High | C21: =VLOOKUP(A$18,'Data Billing Quantities'!A:P,MATCH($B21&" kWh",'Data Billing Quantities'!$4:$4,0),FALSE) -> 1230 | E21: BI_NPDI_AR_High | F21: BI Template_EnergyNPDI | G21: =VLOOKUP(VLOOKUP($F21,'Data BI Summary'!$A:$F,MATCH(G$1,'Data BI Summary'!$2:$2,0),FALSE),INDIRECT("'"&$E21&"'!"&"$A:$K"),4,FALSE) -> 184.2068727 | H21: =VLOOKUP(VLOOKUP($F21,'Data BI Summary'!$A:$F,MATCH(H$1,'Data BI Summary'!$2:$2,0),FALSE),INDIRECT("'"&$E21&"'!"&"$A:$K"),8,FALSE) -> -3.948 | I21: =VLOOKUP(VLOOKUP($F21,'Data BI Summary'!$A:$F,MATCH(I$1,'Data BI Summary'!$2:$2,0),FALSE),INDIRECT("'"&$E21&"'!"&"$A:$K"),9,FALSE) -> -0.09675284892 | J21: =VLOOKUP(VLOOKUP($F21,'Data BI Summary'!$A:$F,MATCH(J$1,'Data BI Summary'!$2:$2,0),FALSE),INDIRECT("'"&$E21&"'!"&"$A:$K"),8,FALSE) -> 6.31835933 | K21: =VLOOKUP(VLOOKUP($F21,'Data BI Summary'!$A:$F,MATCH(K$1,'Data BI Summary'!$2:$2,0),FALSE),INDIRECT("'"&$E21&"'!"&"$A:$K"),9,FALSE) -> 0.03430034524
A22: AGSe-NPDI | B22: Low | C22: =VLOOKUP(A$22,'Data Billing Quantities'!A:P,MATCH($B22&" kWh",'Data Billing Quantities'!$4:$4,0),FALSE) -> 110 | E22: BI_NPDI_AGSe_Low | F22: BI Template_EnergyNPDI | G22: =VLOOKUP(VLOOKUP($F22,'Data BI Summary'!$A:$F,MATCH(G$1,'Data BI Summary'!$2:$2,0),FALSE),INDIRECT("'"&$E22&"'!"&"$A:$K"),4,FALSE) -> 66.22727293 | H22: =VLOOKUP(VLOOKUP($F22,'Data BI Summary'!$A:$F,MATCH(H$1,'Data BI Summary'!$2:$2,0),FALSE),INDIRECT("'"&$E22&"'!"&"$A:$K"),8,FALSE) -> -14.392 | I22: =VLOOKUP(VLOOKUP($F22,'Data BI Summary'!$A:$F,MATCH(I$1,'Data BI Summary'!$2:$2,0),FALSE),INDIRECT("'"&$E22&"'!"&"$A:$K"),9,FALSE) -> -0.2573906823 | J22: =VLOOKUP(VLOOKUP($F22,'Data BI Summary'!$A:$F,MATCH(J$1,'Data BI Summary'!$2:$2,0),FALSE),INDIRECT("'"&$E22&"'!"&"$A:$K"),8,FALSE) -> -12.9328677 | K22: =VLOOKUP(VLOOKUP($F22,'Data BI Summary'!$A:$F,MATCH(K$1,'Data BI Summary'!$2:$2,0),FALSE),INDIRECT("'"&$E22&"'!"&"$A:$K"),9,FALSE) -> -0.1952800881 | L22: TOU
B23: Typical | C23: =VLOOKUP(A$22,'Data Billing Quantities'!A:P,MATCH($B23&" kWh",'Data Billing Quantities'!$4:$4,0),FALSE) -> 2000 | E23: BI_NPDI_AGSe_Typical | F23: BI Template_EnergyNPDI | G23: =VLOOKUP(VLOOKUP($F23,'Data BI Summary'!$A:$F,MATCH(G$1,'Data BI Summary'!$2:$2,0),FALSE),INDIRECT("'"&$E23&"'!"&"$A:$K"),4,FALSE) -> 332.1870924 | H23: =VLOOKUP(VLOOKUP($F23,'Data BI Summary'!$A:$F,MATCH(H$1,'Data BI Summary'!$2:$2,0),FALSE),INDIRECT("'"&$E23&"'!"&"$A:$K"),8,FALSE) -> -14.77 | I23: =VLOOKUP(VLOOKUP($F23,'Data BI Summary'!$A:$F,MATCH(I$1,'Data BI Summary'!$2:$2,0),FALSE),INDIRECT("'"&$E23&"'!"&"$A:$K"),9,FALSE) -> -0.1418691768 | J23: =VLOOKUP(VLOOKUP($F23,'Data BI Summary'!$A:$F,MATCH(J$1,'Data BI Summary'!$2:$2,0),FALSE),INDIRECT("'"&$E23&"'!"&"$A:$K"),8,FALSE) -> -2.807582656 | K23: =VLOOKUP(VLOOKUP($F23,'Data BI Summary'!$A:$F,MATCH(K$1,'Data BI Summary'!$2:$2,0),FALSE),INDIRECT("'"&$E23&"'!"&"$A:$K"),9,FALSE) -> -0.008451811404
B24: Average | C24: =VLOOKUP(A$22,'Data Billing Quantities'!A:P,MATCH($B24&" kWh",'Data Billing Quantities'!$4:$4,0),FALSE) -> 2377 | E24: BI_NPDI_AGSe_Avg | F24: BI Template_EnergyNPDI | G24: =VLOOKUP(VLOOKUP($F24,'Data BI Summary'!$A:$F,MATCH(G$1,'Data BI Summary'!$2:$2,0),FALSE),INDIRECT("'"&$E24&"'!"&"$A:$K"),4,FALSE) -> 385.2383368 | H24: =VLOOKUP(VLOOKUP($F24,'Data BI Summary'!$A:$F,MATCH(H$1,'Data BI Summary'!$2:$2,0),FALSE),INDIRECT("'"&$E24&"'!"&"$A:$K"),8,FALSE) -> -14.8454 | I24: =VLOOKUP(VLOOKUP($F24,'Data BI Summary'!$A:$F,MATCH(I$1,'Data BI Summary'!$2:$2,0),FALSE),INDIRECT("'"&$E24&"'!"&"$A:$K"),9,FALSE) -> -0.1305394224 | J24: =VLOOKUP(VLOOKUP($F24,'Data BI Summary'!$A:$F,MATCH(J$1,'Data BI Summary'!$2:$2,0),FALSE),INDIRECT("'"&$E24&"'!"&"$A:$K"),8,FALSE) -> -0.7878829417 | K24: =VLOOKUP(VLOOKUP($F24,'Data BI Summary'!$A:$F,MATCH(K$1,'Data BI Summary'!$2:$2,0),FALSE),INDIRECT("'"&$E24&"'!"&"$A:$K"),9,FALSE) -> -0.002045183115
B25: High | C25: =VLOOKUP(A$22,'Data Billing Quantities'!A:P,MATCH($B25&" kWh",'Data Billing Quantities'!$4:$4,0),FALSE) -> 6410 | E25: BI_NPDI_AGSe_High | F25: BI Template_EnergyNPDI | G25: =VLOOKUP(VLOOKUP($F25,'Data BI Summary'!$A:$F,MATCH(G$1,'Data BI Summary'!$2:$2,0),FALSE),INDIRECT("'"&$E25&"'!"&"$A:$K"),4,FALSE) -> 952.7600045 | H25: =VLOOKUP(VLOOKUP($F25,'Data BI Summary'!$A:$F,MATCH(H$1,'Data BI Summary'!$2:$2,0),FALSE),INDIRECT("'"&$E25&"'!"&"$A:$K"),8,FALSE) -> -15.652 | I25: =VLOOKUP(VLOOKUP($F25,'Data BI Summary'!$A:$F,MATCH(I$1,'Data BI Summary'!$2:$2,0),FALSE),INDIRECT("'"&$E25&"'!"&"$A:$K"),9,FALSE) -> -0.07227391314 | J25: =VLOOKUP(VLOOKUP($F25,'Data BI Summary'!$A:$F,MATCH(J$1,'Data BI Summary'!$2:$2,0),FALSE),INDIRECT("'"&$E25&"'!"&"$A:$K"),8,FALSE) -> 20.81808244 | K25: =VLOOKUP(VLOOKUP($F25,'Data BI Summary'!$A:$F,MATCH(K$1,'Data BI Summary'!$2:$2,0),FALSE),INDIRECT("'"&$E25&"'!"&"$A:$K"),9,FALSE) -> 0.02185029004
A26: AGSd-NPDI | B26: Low | C26: =VLOOKUP(A$26,'Data Billing Quantities'!A:P,MATCH($B26&" kWh",'Data Billing Quantities'!$4:$4,0),FALSE) -> 13020 | D26: =VLOOKUP(A$26,'Data Billing Quantities'!A:P,MATCH(B26&" kW",'Data Billing Quantities'!$4:$4,0),FALSE) -> 55 | E26: BI_NPDI_AGSd_Low | F26: BI Template_DemandNPDI | G26: =VLOOKUP(VLOOKUP($F26,'Data BI Summary'!$A:$F,MATCH(G$1,'Data BI Summary'!$2:$2,0),FALSE),INDIRECT("'"&$E26&"'!"&"$A:$K"),4,FALSE) -> 2739.219249 | H26: =VLOOKUP(VLOOKUP($F26,'Data BI Summary'!$A:$F,MATCH(H$1,'Data BI Summary'!$2:$2,0),FALSE),INDIRECT("'"&$E26&"'!"&"$A:$K"),8,FALSE) -> -97.4995 | I26: =VLOOKUP(VLOOKUP($F26,'Data BI Summary'!$A:$F,MATCH(I$1,'Data BI Summary'!$2:$2,0),FALSE),INDIRECT("'"&$E26&"'!"&"$A:$K"),9,FALSE) -> -0.18573686 | J26: =VLOOKUP(VLOOKUP($F26,'Data BI Summary'!$A:$F,MATCH(J$1,'Data BI Summary'!$2:$2,0),FALSE),INDIRECT("'"&$E26&"'!"&"$A:$K"),8,FALSE) -> -63.20650164 | K26: =VLOOKUP(VLOOKUP($F26,'Data BI Summary'!$A:$F,MATCH(K$1,'Data BI Summary'!$2:$2,0),FALSE),INDIRECT("'"&$E26&"'!"&"$A:$K"),9,FALSE) -> -0.02307464131 | L26: WAHSP
B27: Average | C27: =VLOOKUP(A$26,'Data Billing Quantities'!A:P,MATCH($B27&" kWh",'Data Billing Quantities'!$4:$4,0),FALSE) -> 70294 | D27: =VLOOKUP(A$26,'Data Billing Quantities'!A:P,MATCH(B27&" kW",'Data Billing Quantities'!$4:$4,0),FALSE) -> 181 | E27: BI_NPDI_AGSd_Avg | F27: BI Template_DemandNPDI | G27: =VLOOKUP(VLOOKUP($F27,'Data BI Summary'!$A:$F,MATCH(G$1,'Data BI Summary'!$2:$2,0),FALSE),INDIRECT("'"&$E27&"'!"&"$A:$K"),4,FALSE) -> 12326.87603 | H27: =VLOOKUP(VLOOKUP($F27,'Data BI Summary'!$A:$F,MATCH(H$1,'Data BI Summary'!$2:$2,0),FALSE),INDIRECT("'"&$E27&"'!"&"$A:$K"),8,FALSE) -> -170.3639 | I27: =VLOOKUP(VLOOKUP($F27,'Data BI Summary'!$A:$F,MATCH(I$1,'Data BI Summary'!$2:$2,0),FALSE),INDIRECT("'"&$E27&"'!"&"$A:$K"),9,FALSE) -> -0.1508051239 | J27: =VLOOKUP(VLOOKUP($F27,'Data BI Summary'!$A:$F,MATCH(J$1,'Data BI Summary'!$2:$2,0),FALSE),INDIRECT("'"&$E27&"'!"&"$A:$K"),8,FALSE) -> -12.78699507 | K27: =VLOOKUP(VLOOKUP($F27,'Data BI Summary'!$A:$F,MATCH(K$1,'Data BI Summary'!$2:$2,0),FALSE),INDIRECT("'"&$E27&"'!"&"$A:$K"),9,FALSE) -> -0.001037326492
B28: High | C28: =VLOOKUP(A$26,'Data Billing Quantities'!A:P,MATCH($B28&" kWh",'Data Billing Quantities'!$4:$4,0),FALSE) -> 129420 | D28: =VLOOKUP(A$26,'Data Billing Quantities'!A:P,MATCH(B28&" kW",'Data Billing Quantities'!$4:$4,0),FALSE) -> 300 | E28: BI_NPDI_AGSd_High | F28: BI Template_DemandNPDI | G28: =VLOOKUP(VLOOKUP($F28,'Data BI Summary'!$A:$F,MATCH(G$1,'Data BI Summary'!$2:$2,0),FALSE),INDIRECT("'"&$E28&"'!"&"$A:$K"),4,FALSE) -> 22113.41445 | H28: =VLOOKUP(VLOOKUP($F28,'Data BI Summary'!$A:$F,MATCH(H$1,'Data BI Summary'!$2:$2,0),FALSE),INDIRECT("'"&$E28&"'!"&"$A:$K"),8,FALSE) -> -242.704 | I28: =VLOOKUP(VLOOKUP($F28,'Data BI Summary'!$A:$F,MATCH(I$1,'Data BI Summary'!$2:$2,0),FALSE),INDIRECT("'"&$E28&"'!"&"$A:$K"),9,FALSE) -> -0.142694872 | J28: =VLOOKUP(VLOOKUP($F28,'Data BI Summary'!$A:$F,MATCH(J$1,'Data BI Summary'!$2:$2,0),FALSE),INDIRECT("'"&$E28&"'!"&"$A:$K"),8,FALSE) -> 35.46362484 | K28: =VLOOKUP(VLOOKUP($F28,'Data BI Summary'!$A:$F,MATCH(K$1,'Data BI Summary'!$2:$2,0),FALSE),INDIRECT("'"&$E28&"'!"&"$A:$K"),9,FALSE) -> 0.00160371547
A29: St Lgt-NPDI | B29: Average | C29: =VLOOKUP(A$29,'Data Billing Quantities'!A:P,MATCH($B29&" kWh",'Data Billing Quantities'!$4:$4,0),FALSE) -> 11389 | D29: =VLOOKUP(A$29,'Data Billing Quantities'!A:P,MATCH(B29&" kW",'Data Billing Quantities'!$4:$4,0),FALSE) -> 39 | E29: BI_NPDI_StLgt_Avg | F29: BI Template_unmNPDI | G29: =VLOOKUP(VLOOKUP($F29,'Data BI Summary'!$A:$F,MATCH(G$1,'Data BI Summary'!$2:$2,0),FALSE),INDIRECT("'"&$E29&"'!"&"$A:$K"),4,FALSE) -> 2393.695454 | H29: =VLOOKUP(VLOOKUP($F29,'Data BI Summary'!$A:$F,MATCH(H$1,'Data BI Summary'!$2:$2,0),FALSE),INDIRECT("'"&$E29&"'!"&"$A:$K"),8,FALSE) -> 236.3177 | I29: =VLOOKUP(VLOOKUP($F29,'Data BI Summary'!$A:$F,MATCH(I$1,'Data BI Summary'!$2:$2,0),FALSE),INDIRECT("'"&$E29&"'!"&"$A:$K"),9,FALSE) -> 0.235217681 | J29: =VLOOKUP(VLOOKUP($F29,'Data BI Summary'!$A:$F,MATCH(J$1,'Data BI Summary'!$2:$2,0),FALSE),INDIRECT("'"&$E29&"'!"&"$A:$K"),8,FALSE) -> 272.0069407 | K29: =VLOOKUP(VLOOKUP($F29,'Data BI Summary'!$A:$F,MATCH(K$1,'Data BI Summary'!$2:$2,0),FALSE),INDIRECT("'"&$E29&"'!"&"$A:$K"),9,FALSE) -> 0.1136347317 | L29: Two-tier RPP
A30: Sen Lgt-NPDI | B30: Average | C30: =VLOOKUP(A$30,'Data Billing Quantities'!A:P,MATCH($B30&" kWh",'Data Billing Quantities'!$4:$4,0),FALSE) -> 108 | D30: =VLOOKUP(A$30,'Data Billing Quantities'!A:P,MATCH(B30&" kW",'Data Billing Quantities'!$4:$4,0),FALSE) -> 0.3368027211 | E30: BI_NPDI_SenLgt_Avg | F30: BI Template_unmNPDI | G30: =VLOOKUP(VLOOKUP($F30,'Data BI Summary'!$A:$F,MATCH(G$1,'Data BI Summary'!$2:$2,0),FALSE),INDIRECT("'"&$E30&"'!"&"$A:$K"),4,FALSE) -> 25.32646522 | H30: =VLOOKUP(VLOOKUP($F30,'Data BI Summary'!$A:$F,MATCH(H$1,'Data BI Summary'!$2:$2,0),FALSE),INDIRECT("'"&$E30&"'!"&"$A:$K"),8,FALSE) -> 5.430027667 | I30: =VLOOKUP(VLOOKUP($F30,'Data BI Summary'!$A:$F,MATCH(I$1,'Data BI Summary'!$2:$2,0),FALSE),INDIRECT("'"&$E30&"'!"&"$A:$K"),9,FALSE) -> 0.3883592055 | J30: =VLOOKUP(VLOOKUP($F30,'Data BI Summary'!$A:$F,MATCH(J$1,'Data BI Summary'!$2:$2,0),FALSE),INDIRECT("'"&$E30&"'!"&"$A:$K"),8,FALSE) -> 5.604987692 | K30: =VLOOKUP(VLOOKUP($F30,'Data BI Summary'!$A:$F,MATCH(K$1,'Data BI Summary'!$2:$2,0),FALSE),INDIRECT("'"&$E30&"'!"&"$A:$K"),9,FALSE) -> 0.2213095133 | L30: Two-tier RPP
A31: USL-NPDI | B31: Average | C31: =VLOOKUP(A$31,'Data Billing Quantities'!A:P,MATCH($B31&" kWh",'Data Billing Quantities'!$4:$4,0),FALSE) -> 904 | E31: BI_NPDI_USL_Avg | F31: BI Template_unmNPDI | G31: =VLOOKUP(VLOOKUP($F31,'Data BI Summary'!$A:$F,MATCH(G$1,'Data BI Summary'!$2:$2,0),FALSE),INDIRECT("'"&$E31&"'!"&"$A:$K"),4,FALSE) -> 128.3372898 | H31: =VLOOKUP(VLOOKUP($F31,'Data BI Summary'!$A:$F,MATCH(H$1,'Data BI Summary'!$2:$2,0),FALSE),INDIRECT("'"&$E31&"'!"&"$A:$K"),8,FALSE) -> 27.6528 | I31: =VLOOKUP(VLOOKUP($F31,'Data BI Summary'!$A:$F,MATCH(I$1,'Data BI Summary'!$2:$2,0),FALSE),INDIRECT("'"&$E31&"'!"&"$A:$K"),9,FALSE) -> 1.076369751 | J31: =VLOOKUP(VLOOKUP($F31,'Data BI Summary'!$A:$F,MATCH(J$1,'Data BI Summary'!$2:$2,0),FALSE),INDIRECT("'"&$E31&"'!"&"$A:$K"),8,FALSE) -> 31.41415429 | K31: =VLOOKUP(VLOOKUP($F31,'Data BI Summary'!$A:$F,MATCH(K$1,'Data BI Summary'!$2:$2,0),FALSE),INDIRECT("'"&$E31&"'!"&"$A:$K"),9,FALSE) -> 0.2447780715 | L31: Two-tier RPP
A32: HCHI to HONI
A33: AR-HCHI | B33: Low | C33: =VLOOKUP(A$33,'Data Billing Quantities'!A:P,MATCH($B33&" kWh",'Data Billing Quantities'!$4:$4,0),FALSE) -> 250 | E33: BI_HCHI_AR_Low | F33: BI Template_EnergyHCHI | G33: =VLOOKUP(VLOOKUP($F33,'Data BI Summary'!$A:$F,MATCH(G$1,'Data BI Summary'!$2:$2,0),FALSE),INDIRECT("'"&$E33&"'!"&"$A:$K"),4,FALSE) -> 65.47030084 | H33: =VLOOKUP(VLOOKUP($F33,'Data BI Summary'!$A:$F,MATCH(H$1,'Data BI Summary'!$2:$2,0),FALSE),INDIRECT("'"&$E33&"'!"&"$A:$K"),8,FALSE) -> 0.25 | I33: =VLOOKUP(VLOOKUP($F33,'Data BI Summary'!$A:$F,MATCH(I$1,'Data BI Summary'!$2:$2,0),FALSE),INDIRECT("'"&$E33&"'!"&"$A:$K"),9,FALSE) -> 0.006811061163 | J33: =VLOOKUP(VLOOKUP($F33,'Data BI Summary'!$A:$F,MATCH(J$1,'Data BI Summary'!$2:$2,0),FALSE),INDIRECT("'"&$E33&"'!"&"$A:$K"),8,FALSE) -> 1.59450568 | K33: =VLOOKUP(VLOOKUP($F33,'Data BI Summary'!$A:$F,MATCH(K$1,'Data BI Summary'!$2:$2,0),FALSE),INDIRECT("'"&$E33&"'!"&"$A:$K"),9,FALSE) -> 0.02435464111 | L33: TOU
B34: Typical | C34: =VLOOKUP(A$33,'Data Billing Quantities'!A:P,MATCH($B34&" kWh",'Data Billing Quantities'!$4:$4,0),FALSE) -> 750 | E34: BI_HCHI_AR_Typical | F34: BI Template_EnergyHCHI | G34: =VLOOKUP(VLOOKUP($F34,'Data BI Summary'!$A:$F,MATCH(G$1,'Data BI Summary'!$2:$2,0),FALSE),INDIRECT("'"&$E34&"'!"&"$A:$K"),4,FALSE) -> 126.2123025 | H34: =VLOOKUP(VLOOKUP($F34,'Data BI Summary'!$A:$F,MATCH(H$1,'Data BI Summary'!$2:$2,0),FALSE),INDIRECT("'"&$E34&"'!"&"$A:$K"),8,FALSE) -> -0.25 | I34: =VLOOKUP(VLOOKUP($F34,'Data BI Summary'!$A:$F,MATCH(I$1,'Data BI Summary'!$2:$2,0),FALSE),INDIRECT("'"&$E34&"'!"&"$A:$K"),9,FALSE) -> -0.006728569506 | J34: =VLOOKUP(VLOOKUP($F34,'Data BI Summary'!$A:$F,MATCH(J$1,'Data BI Summary'!$2:$2,0),FALSE),INDIRECT("'"&$E34&"'!"&"$A:$K"),8,FALSE) -> 3.84251704 | K34: =VLOOKUP(VLOOKUP($F34,'Data BI Summary'!$A:$F,MATCH(K$1,'Data BI Summary'!$2:$2,0),FALSE),INDIRECT("'"&$E34&"'!"&"$A:$K"),9,FALSE) -> 0.03044486919
B35: Average | C35: =VLOOKUP(A$33,'Data Billing Quantities'!A:P,MATCH($B35&" kWh",'Data Billing Quantities'!$4:$4,0),FALSE) -> 742 | E35: BI_HCHI_AR_Avg | F35: BI Template_EnergyHCHI | G35: =VLOOKUP(VLOOKUP($F35,'Data BI Summary'!$A:$F,MATCH(G$1,'Data BI Summary'!$2:$2,0),FALSE),INDIRECT("'"&$E35&"'!"&"$A:$K"),4,FALSE) -> 125.2404305 | H35: =VLOOKUP(VLOOKUP($F35,'Data BI Summary'!$A:$F,MATCH(H$1,'Data BI Summary'!$2:$2,0),FALSE),INDIRECT("'"&$E35&"'!"&"$A:$K"),8,FALSE) -> -0.242 | I35: =VLOOKUP(VLOOKUP($F35,'Data BI Summary'!$A:$F,MATCH(I$1,'Data BI Summary'!$2:$2,0),FALSE),INDIRECT("'"&$E35&"'!"&"$A:$K"),9,FALSE) -> -0.006514517683 | J35: =VLOOKUP(VLOOKUP($F35,'Data BI Summary'!$A:$F,MATCH(J$1,'Data BI Summary'!$2:$2,0),FALSE),INDIRECT("'"&$E35&"'!"&"$A:$K"),8,FALSE) -> 3.806548858 | K35: =VLOOKUP(VLOOKUP($F35,'Data BI Summary'!$A:$F,MATCH(K$1,'Data BI Summary'!$2:$2,0),FALSE),INDIRECT("'"&$E35&"'!"&"$A:$K"),9,FALSE) -> 0.03039392985
B36: High | C36: =VLOOKUP(A$33,'Data Billing Quantities'!A:P,MATCH($B36&" kWh",'Data Billing Quantities'!$4:$4,0),FALSE) -> 1410 | E36: BI_HCHI_AR_High | F36: BI Template_EnergyHCHI | G36: =VLOOKUP(VLOOKUP($F36,'Data BI Summary'!$A:$F,MATCH(G$1,'Data BI Summary'!$2:$2,0),FALSE),INDIRECT("'"&$E36&"'!"&"$A:$K"),4,FALSE) -> 206.3917447 | H36: =VLOOKUP(VLOOKUP($F36,'Data BI Summary'!$A:$F,MATCH(H$1,'Data BI Summary'!$2:$2,0),FALSE),INDIRECT("'"&$E36&"'!"&"$A:$K"),8,FALSE) -> -0.91 | I36: =VLOOKUP(VLOOKUP($F36,'Data BI Summary'!$A:$F,MATCH(I$1,'Data BI Summary'!$2:$2,0),FALSE),INDIRECT("'"&$E36&"'!"&"$A:$K"),9,FALSE) -> -0.02410659885 | J36: =VLOOKUP(VLOOKUP($F36,'Data BI Summary'!$A:$F,MATCH(J$1,'Data BI Summary'!$2:$2,0),FALSE),INDIRECT("'"&$E36&"'!"&"$A:$K"),8,FALSE) -> 6.809892035 | K36: =VLOOKUP(VLOOKUP($F36,'Data BI Summary'!$A:$F,MATCH(K$1,'Data BI Summary'!$2:$2,0),FALSE),INDIRECT("'"&$E36&"'!"&"$A:$K"),9,FALSE) -> 0.03299498264
A37: AGSe-HCHI | B37: Low | C37: =VLOOKUP(A$37,'Data Billing Quantities'!A:P,MATCH($B37&" kWh",'Data Billing Quantities'!$4:$4,0),FALSE) -> 90 | E37: BI_HCHI_AGSe_Low | F37: BI Template_EnergyHCHI | G37: =VLOOKUP(VLOOKUP($F37,'Data BI Summary'!$A:$F,MATCH(G$1,'Data BI Summary'!$2:$2,0),FALSE),INDIRECT("'"&$E37&"'!"&"$A:$K"),4,FALSE) -> 39.72543611 | H37: =VLOOKUP(VLOOKUP($F37,'Data BI Summary'!$A:$F,MATCH(H$1,'Data BI Summary'!$2:$2,0),FALSE),INDIRECT("'"&$E37&"'!"&"$A:$K"),8,FALSE) -> 10.325 | I37: =VLOOKUP(VLOOKUP($F37,'Data BI Summary'!$A:$F,MATCH(I$1,'Data BI Summary'!$2:$2,0),FALSE),INDIRECT("'"&$E37&"'!"&"$A:$K"),9,FALSE) -> 0.3446951993 | J37: =VLOOKUP(VLOOKUP($F37,'Data BI Summary'!$A:$F,MATCH(J$1,'Data BI Summary'!$2:$2,0),FALSE),INDIRECT("'"&$E37&"'!"&"$A:$K"),8,FALSE) -> 9.952975632 | K37: =VLOOKUP(VLOOKUP($F37,'Data BI Summary'!$A:$F,MATCH(K$1,'Data BI Summary'!$2:$2,0),FALSE),INDIRECT("'"&$E37&"'!"&"$A:$K"),9,FALSE) -> 0.2505441502 | L37: TOU
B38: Typical | C38: =VLOOKUP(A$37,'Data Billing Quantities'!A:P,MATCH($B38&" kWh",'Data Billing Quantities'!$4:$4,0),FALSE) -> 2000 | E38: BI_HCHI_AGSe_Typical | F38: BI Template_EnergyHCHI | G38: =VLOOKUP(VLOOKUP($F38,'Data BI Summary'!$A:$F,MATCH(G$1,'Data BI Summary'!$2:$2,0),FALSE),INDIRECT("'"&$E38&"'!"&"$A:$K"),4,FALSE) -> 303.4545457 | H38: =VLOOKUP(VLOOKUP($F38,'Data BI Summary'!$A:$F,MATCH(H$1,'Data BI Summary'!$2:$2,0),FALSE),INDIRECT("'"&$E38&"'!"&"$A:$K"),8,FALSE) -> 5.55 | I38: =VLOOKUP(VLOOKUP($F38,'Data BI Summary'!$A:$F,MATCH(I$1,'Data BI Summary'!$2:$2,0),FALSE),INDIRECT("'"&$E38&"'!"&"$A:$K"),9,FALSE) -> 0.08235643271 | J38: =VLOOKUP(VLOOKUP($F38,'Data BI Summary'!$A:$F,MATCH(J$1,'Data BI Summary'!$2:$2,0),FALSE),INDIRECT("'"&$E38&"'!"&"$A:$K"),8,FALSE) -> 10.49256404 | K38: =VLOOKUP(VLOOKUP($F38,'Data BI Summary'!$A:$F,MATCH(K$1,'Data BI Summary'!$2:$2,0),FALSE),INDIRECT("'"&$E38&"'!"&"$A:$K"),9,FALSE) -> 0.03457705343
B39: Average | C39: =VLOOKUP(A$37,'Data Billing Quantities'!A:P,MATCH($B39&" kWh",'Data Billing Quantities'!$4:$4,0),FALSE) -> 2261 | E39: BI_HCHI_AGSe_Avg | F39: BI Template_EnergyHCHI | G39: =VLOOKUP(VLOOKUP($F39,'Data BI Summary'!$A:$F,MATCH(G$1,'Data BI Summary'!$2:$2,0),FALSE),INDIRECT("'"&$E39&"'!"&"$A:$K"),4,FALSE) -> 339.4929214 | H39: =VLOOKUP(VLOOKUP($F39,'Data BI Summary'!$A:$F,MATCH(H$1,'Data BI Summary'!$2:$2,0),FALSE),INDIRECT("'"&$E39&"'!"&"$A:$K"),8,FALSE) -> 4.8975 | I39: =VLOOKUP(VLOOKUP($F39,'Data BI Summary'!$A:$F,MATCH(I$1,'Data BI Summary'!$2:$2,0),FALSE),INDIRECT("'"&$E39&"'!"&"$A:$K"),9,FALSE) -> 0.06754650675 | J39: =VLOOKUP(VLOOKUP($F39,'Data BI Summary'!$A:$F,MATCH(J$1,'Data BI Summary'!$2:$2,0),FALSE),INDIRECT("'"&$E39&"'!"&"$A:$K"),8,FALSE) -> 10.56629837 | K39: =VLOOKUP(VLOOKUP($F39,'Data BI Summary'!$A:$F,MATCH(K$1,'Data BI Summary'!$2:$2,0),FALSE),INDIRECT("'"&$E39&"'!"&"$A:$K"),9,FALSE) -> 0.03112376637
B40: High | C40: =VLOOKUP(A$37,'Data Billing Quantities'!A:P,MATCH($B40&" kWh",'Data Billing Quantities'!$4:$4,0),FALSE) -> 5430 | E40: BI_HCHI_AGSe_High | F40: BI Template_EnergyHCHI | G40: =VLOOKUP(VLOOKUP($F40,'Data BI Summary'!$A:$F,MATCH(G$1,'Data BI Summary'!$2:$2,0),FALSE),INDIRECT("'"&$E40&"'!"&"$A:$K"),4,FALSE) -> 777.0623185 | H40: =VLOOKUP(VLOOKUP($F40,'Data BI Summary'!$A:$F,MATCH(H$1,'Data BI Summary'!$2:$2,0),FALSE),INDIRECT("'"&$E40&"'!"&"$A:$K"),8,FALSE) -> -3.025 | I40: =VLOOKUP(VLOOKUP($F40,'Data BI Summary'!$A:$F,MATCH(I$1,'Data BI Summary'!$2:$2,0),FALSE),INDIRECT("'"&$E40&"'!"&"$A:$K"),9,FALSE) -> -0.02247099199 | J40: =VLOOKUP(VLOOKUP($F40,'Data BI Summary'!$A:$F,MATCH(J$1,'Data BI Summary'!$2:$2,0),FALSE),INDIRECT("'"&$E40&"'!"&"$A:$K"),8,FALSE) -> 11.46156312 | K40: =VLOOKUP(VLOOKUP($F40,'Data BI Summary'!$A:$F,MATCH(K$1,'Data BI Summary'!$2:$2,0),FALSE),INDIRECT("'"&$E40&"'!"&"$A:$K"),9,FALSE) -> 0.01474986349
A41: AGSd-HCHI | B41: Low | C41: =VLOOKUP(A$41,'Data Billing Quantities'!A:P,MATCH($B41&" kWh",'Data Billing Quantities'!$4:$4,0),FALSE) -> 10880 | D41: =VLOOKUP(A$41,'Data Billing Quantities'!A:P,MATCH(B41&" kW",'Data Billing Quantities'!$4:$4,0),FALSE) -> 55 | E41: BI_HCHI_AGSd_Low | F41: BI Template_DemandHCHI | G41: =VLOOKUP(VLOOKUP($F41,'Data BI Summary'!$A:$F,MATCH(G$1,'Data BI Summary'!$2:$2,0),FALSE),INDIRECT("'"&$E41&"'!"&"$A:$K"),4,FALSE) -> 2264.03854 | H41: =VLOOKUP(VLOOKUP($F41,'Data BI Summary'!$A:$F,MATCH(H$1,'Data BI Summary'!$2:$2,0),FALSE),INDIRECT("'"&$E41&"'!"&"$A:$K"),8,FALSE) -> 94.3215 | I41: =VLOOKUP(VLOOKUP($F41,'Data BI Summary'!$A:$F,MATCH(I$1,'Data BI Summary'!$2:$2,0),FALSE),INDIRECT("'"&$E41&"'!"&"$A:$K"),9,FALSE) -> 0.2997392577 | J41: =VLOOKUP(VLOOKUP($F41,'Data BI Summary'!$A:$F,MATCH(J$1,'Data BI Summary'!$2:$2,0),FALSE),INDIRECT("'"&$E41&"'!"&"$A:$K"),8,FALSE) -> 78.19557783 | K41: =VLOOKUP(VLOOKUP($F41,'Data BI Summary'!$A:$F,MATCH(K$1,'Data BI Summary'!$2:$2,0),FALSE),INDIRECT("'"&$E41&"'!"&"$A:$K"),9,FALSE) -> 0.03453809484 | L41: WAHSP
B42: Average | C42: =VLOOKUP(A$41,'Data Billing Quantities'!A:P,MATCH($B42&" kWh",'Data Billing Quantities'!$4:$4,0),FALSE) -> 57529 | D42: =VLOOKUP(A$41,'Data Billing Quantities'!A:P,MATCH(B42&" kW",'Data Billing Quantities'!$4:$4,0),FALSE) -> 175 | E42: BI_HCHI_AGSd_Avg | F42: BI Template_DemandHCHI | G42: =VLOOKUP(VLOOKUP($F42,'Data BI Summary'!$A:$F,MATCH(G$1,'Data BI Summary'!$2:$2,0),FALSE),INDIRECT("'"&$E42&"'!"&"$A:$K"),4,FALSE) -> 10343.58756 | H42: =VLOOKUP(VLOOKUP($F42,'Data BI Summary'!$A:$F,MATCH(H$1,'Data BI Summary'!$2:$2,0),FALSE),INDIRECT("'"&$E42&"'!"&"$A:$K"),8,FALSE) -> 67.2472 | I42: =VLOOKUP(VLOOKUP($F42,'Data BI Summary'!$A:$F,MATCH(I$1,'Data BI Summary'!$2:$2,0),FALSE),INDIRECT("'"&$E42&"'!"&"$A:$K"),9,FALSE) -> 0.08298409662 | J42: =VLOOKUP(VLOOKUP($F42,'Data BI Summary'!$A:$F,MATCH(J$1,'Data BI Summary'!$2:$2,0),FALSE),INDIRECT("'"&$E42&"'!"&"$A:$K"),8,FALSE) -> -20.06243288 | K42: =VLOOKUP(VLOOKUP($F42,'Data BI Summary'!$A:$F,MATCH(K$1,'Data BI Summary'!$2:$2,0),FALSE),INDIRECT("'"&$E42&"'!"&"$A:$K"),9,FALSE) -> -0.001939601009
B43: High | C43: =VLOOKUP(A$41,'Data Billing Quantities'!A:P,MATCH($B43&" kWh",'Data Billing Quantities'!$4:$4,0),FALSE) -> 135160 | D43: =VLOOKUP(A$41,'Data Billing Quantities'!A:P,MATCH(B43&" kW",'Data Billing Quantities'!$4:$4,0),FALSE) -> 375 | E43: BI_HCHI_AGSd_High | F43: BI Template_DemandHCHI | G43: =VLOOKUP(VLOOKUP($F43,'Data BI Summary'!$A:$F,MATCH(G$1,'Data BI Summary'!$2:$2,0),FALSE),INDIRECT("'"&$E43&"'!"&"$A:$K"),4,FALSE) -> 23792.31474 | H43: =VLOOKUP(VLOOKUP($F43,'Data BI Summary'!$A:$F,MATCH(H$1,'Data BI Summary'!$2:$2,0),FALSE),INDIRECT("'"&$E43&"'!"&"$A:$K"),8,FALSE) -> 22.2055 | I43: =VLOOKUP(VLOOKUP($F43,'Data BI Summary'!$A:$F,MATCH(I$1,'Data BI Summary'!$2:$2,0),FALSE),INDIRECT("'"&$E43&"'!"&"$A:$K"),9,FALSE) -> 0.01356887631 | J43: =VLOOKUP(VLOOKUP($F43,'Data BI Summary'!$A:$F,MATCH(J$1,'Data BI Summary'!$2:$2,0),FALSE),INDIRECT("'"&$E43&"'!"&"$A:$K"),8,FALSE) -> -183.7036426 | K43: =VLOOKUP(VLOOKUP($F43,'Data BI Summary'!$A:$F,MATCH(K$1,'Data BI Summary'!$2:$2,0),FALSE),INDIRECT("'"&$E43&"'!"&"$A:$K"),9,FALSE) -> -0.007721133676
A44: St Lgt-HCHI | B44: Average | C44: =VLOOKUP(A$44,'Data Billing Quantities'!A:P,MATCH($B44&" kWh",'Data Billing Quantities'!$4:$4,0),FALSE) -> 31001 | D44: =VLOOKUP(A$44,'Data Billing Quantities'!A:P,MATCH(B44&" kW",'Data Billing Quantities'!$4:$4,0),FALSE) -> 85 | E44: BI_HCHI_StLgt_Avg | F44: BI Template_unmHCHI | G44: =VLOOKUP(VLOOKUP($F44,'Data BI Summary'!$A:$F,MATCH(G$1,'Data BI Summary'!$2:$2,0),FALSE),INDIRECT("'"&$E44&"'!"&"$A:$K"),4,FALSE) -> 10861.18161 | H44: =VLOOKUP(VLOOKUP($F44,'Data BI Summary'!$A:$F,MATCH(H$1,'Data BI Summary'!$2:$2,0),FALSE),INDIRECT("'"&$E44&"'!"&"$A:$K"),8,FALSE) -> -2004.819 | I44: =VLOOKUP(VLOOKUP($F44,'Data BI Summary'!$A:$F,MATCH(I$1,'Data BI Summary'!$2:$2,0),FALSE),INDIRECT("'"&$E44&"'!"&"$A:$K"),9,FALSE) -> -0.3721629987 | J44: =VLOOKUP(VLOOKUP($F44,'Data BI Summary'!$A:$F,MATCH(J$1,'Data BI Summary'!$2:$2,0),FALSE),INDIRECT("'"&$E44&"'!"&"$A:$K"),8,FALSE) -> -2118.746915 | K44: =VLOOKUP(VLOOKUP($F44,'Data BI Summary'!$A:$F,MATCH(K$1,'Data BI Summary'!$2:$2,0),FALSE),INDIRECT("'"&$E44&"'!"&"$A:$K"),9,FALSE) -> -0.1950751762 | L44: Two-tier RPP
A45: Sen Lgt-HCHI | B45: Average | C45: =VLOOKUP(A$45,'Data Billing Quantities'!A:P,MATCH($B45&" kWh",'Data Billing Quantities'!$4:$4,0),FALSE) -> 61 | D45: =VLOOKUP(A$45,'Data Billing Quantities'!A:P,MATCH(B45&" kW",'Data Billing Quantities'!$4:$4,0),FALSE) -> 0.1956473214 | E45: BI_HCHI_SenLgt_Avg | F45: BI Template_unmHCHI | G45: =VLOOKUP(VLOOKUP($F45,'Data BI Summary'!$A:$F,MATCH(G$1,'Data BI Summary'!$2:$2,0),FALSE),INDIRECT("'"&$E45&"'!"&"$A:$K"),4,FALSE) -> 28.18017138 | H45: =VLOOKUP(VLOOKUP($F45,'Data BI Summary'!$A:$F,MATCH(H$1,'Data BI Summary'!$2:$2,0),FALSE),INDIRECT("'"&$E45&"'!"&"$A:$K"),8,FALSE) -> -10.15974753 | I45: =VLOOKUP(VLOOKUP($F45,'Data BI Summary'!$A:$F,MATCH(I$1,'Data BI Summary'!$2:$2,0),FALSE),INDIRECT("'"&$E45&"'!"&"$A:$K"),9,FALSE) -> -0.4545331929 | J45: =VLOOKUP(VLOOKUP($F45,'Data BI Summary'!$A:$F,MATCH(J$1,'Data BI Summary'!$2:$2,0),FALSE),INDIRECT("'"&$E45&"'!"&"$A:$K"),8,FALSE) -> -9.451595178 | K45: =VLOOKUP(VLOOKUP($F45,'Data BI Summary'!$A:$F,MATCH(K$1,'Data BI Summary'!$2:$2,0),FALSE),INDIRECT("'"&$E45&"'!"&"$A:$K"),9,FALSE) -> -0.3353987827 | L45: Two-tier RPP
A46: USL-HCHI | B46: Average | C46: =VLOOKUP(A$46,'Data Billing Quantities'!A:P,MATCH($B46&" kWh",'Data Billing Quantities'!$4:$4,0),FALSE) -> 471 | E46: BI_HCHI_USL_Avg | F46: BI Template_unmHCHI | G46: =VLOOKUP(VLOOKUP($F46,'Data BI Summary'!$A:$F,MATCH(G$1,'Data BI Summary'!$2:$2,0),FALSE),INDIRECT("'"&$E46&"'!"&"$A:$K"),4,FALSE) -> 74.2138206 | H46: =VLOOKUP(VLOOKUP($F46,'Data BI Summary'!$A:$F,MATCH(H$1,'Data BI Summary'!$2:$2,0),FALSE),INDIRECT("'"&$E46&"'!"&"$A:$K"),8,FALSE) -> 23.0732 | I46: =VLOOKUP(VLOOKUP($F46,'Data BI Summary'!$A:$F,MATCH(I$1,'Data BI Summary'!$2:$2,0),FALSE),INDIRECT("'"&$E46&"'!"&"$A:$K"),9,FALSE) -> 1.075362832 | J46: =VLOOKUP(VLOOKUP($F46,'Data BI Summary'!$A:$F,MATCH(J$1,'Data BI Summary'!$2:$2,0),FALSE),INDIRECT("'"&$E46&"'!"&"$A:$K"),8,FALSE) -> 22.9044512 | K46: =VLOOKUP(VLOOKUP($F46,'Data BI Summary'!$A:$F,MATCH(K$1,'Data BI Summary'!$2:$2,0),FALSE),INDIRECT("'"&$E46&"'!"&"$A:$K"),9,FALSE) -> 0.3086278406 | L46: Two-tier RPP

Sheet BI Template_Energy (hidden)
A1: 2023 Bill Impacts (Low Consumption Level) - R1
A3: Rate Class | B3: =RIGHT(A1,LEN(A1)-FIND("- ",A1,1)-1) -> R1
A4: Monthly Consumption (kWh) | B4: =IF(COUNTIF(A1,"*Low*")>0,VLOOKUP(B3,'Data Billing Quantities'!$A:$Z,MATCH("Low kWh",'Data Billing Quantities'!4:4,0),FALSE),IF(COUNTIF(A1,"*Typical*")>0,VLOOKUP(B3,'Data Billing Quantities'!$A:$Z,MATCH("Typical kWh",'Data Billing Quantities'!4:4,0),FALSE),IF(COUNTIF(A1,"*Average*")>0,VLOOKUP(B3,'Data Billing Quantities'!$A:$Z,MATCH("Average kWh",'Data Billing Quantities'!4:4,0),FALSE),IF(COUNTIF(A1,"*High*")>0,VLOOKUP(B3,'Data Billing Quantities'!$A:$Z,MATCH("High kWh",'Data Billing Quantities'!4:4,0),FALSE),"error")))) -> 370
A5: Peak (kW) | B5: =IF(COUNTIF(A1,"*Low*")>0,VLOOKUP(B3,'Data Billing Quantities'!$A:$Z,MATCH("Low kW",'Data Billing Quantities'!4:4,0),FALSE),IF(COUNTIF(A1,"*Typical*")>0,VLOOKUP(B3,'Data Billing Quantities'!$A:$Z,MATCH("Typical kW",'Data Billing Quantities'!4:4,0),FALSE),IF(COUNTIF(A1,"*Average*")>0,VLOOKUP(B3,'Data Billing Quantities'!$A:$Z,MATCH("Average kW",'Data Billing Quantities'!4:4,0),FALSE),IF(COUNTIF(A1,"*High*")>0,VLOOKUP(B3,'Data Billing Quantities'!$A:$Z,MATCH("High kW",'Data Billing Quantities'!4:4,0),FALSE),"error")))) -> 0
A6: Loss factor | B6: =VLOOKUP(B3,'Data Billing Quantities'!A:D,MATCH(A6,'Data Billing Quantities'!4:4,0),FALSE) -> 1.076
A7: Commodity Threshold | B7: =VLOOKUP(B3,'Data Billing Quantities'!A:D,MATCH(A7,'Data Billing Quantities'!4:4,0),FALSE) -> 600
A8: Monthly Consumption (kWh) - Uplifted | B8: =B4*B6 -> 398.12
A9: Charge determinant | B9: =VLOOKUP(B3,'Data Billing Quantities'!A:D,MATCH(A9,'Data Billing Quantities'!4:4,0),FALSE) -> kWh
B11: Volume | C11: Current Rate ($) | D11: Current Charge ($) | E11: Volume | F11: Proposed Rate ($) | G11: Proposed Charge ($) | H11: Change ($) | I11: Change (%) | J11: % of Total Bill on RPP | K11: % of Total Bill
A12: Energy First Tier | B12: =IF(B4>B7,B7,B4) -> 370 | C12: =VLOOKUP($A12,'Data Pass Through'!$A:$D,2,FALSE) -> 0.098 | D12: =B12*C12 -> 36.26 | E12: =B12 -> 370 | F12: =VLOOKUP($A12,'Data Pass Through'!$A:$D,3,FALSE) -> 0.098 | G12: =E12*F12 -> 36.26 | H12: =G12-D12 -> 0 | I12: =IF(ISERROR(H12/ABS(D12)),"N/A",(H12/ABS(D12))) -> 0 | J12: =G12/$G$47 -> 0.4535092546
A13: Energy Second Tier | B13: =IF(B4>B7,(B4)-B7,0) -> 0 | C13: =VLOOKUP($A13,'Data Pass Through'!$A:$D,2,FALSE) -> 0.115 | D13: =B13*C13 -> 0 | E13: =B13 -> 0 | F13: =VLOOKUP($A13,'Data Pass Through'!$A:$D,3,FALSE) -> 0.115 | G13: =E13*F13 -> 0 | H13: 0 | I13: N/A | J13: =G13/$G$47 -> 0
A14: Sub-Total: Energy (RPP Tiered) | D14: =SUM(D12:D13) -> 36.26 | G14: =SUM(G12:G13) -> 36.26 | H14: 0 | I14: 0 | J14: =G14/$G$47 -> 0.4535092546
A15: TOU-Off Peak | B15: =B$4*VLOOKUP($B$3,'Data Billing Quantities'!$A:$O,MATCH('BI Template_Energy'!$A15,'Data Billing Quantities'!$4:$4,0),FALSE) -> 236.8 | C15: =VLOOKUP($A15,'Data Pass Through'!$A:$D,2,FALSE) -> 0.082 | D15: =B15*C15 -> 19.4176 | E15: 236.8 | F15: =VLOOKUP($A15,'Data Pass Through'!$A:$D,3,FALSE) -> 0.082 | G15: =E15*F15 -> 19.4176 | H15: 0 | I15: 0 | K15: =G15/$G$52 -> 0.2368439995
A16: TOU-Mid Peak | B16: =B$4*VLOOKUP($B$3,'Data Billing Quantities'!$A:$O,MATCH('BI Template_Energy'!$A16,'Data Billing Quantities'!$4:$4,0),FALSE) -> 66.6 | C16: =VLOOKUP($A16,'Data Pass Through'!$A:$D,2,FALSE) -> 0.113 | D16: =B16*C16 -> 7.5258 | E16: 66.6 | F16: =VLOOKUP($A16,'Data Pass Through'!$A:$D,3,FALSE) -> 0.113 | G16: =E16*F16 -> 7.5258 | H16: 0 | I16: 0 | K16: 0.09179510193
A17: TOU-On Peak | B17: =B$4*VLOOKUP($B$3,'Data Billing Quantities'!$A:$O,MATCH('BI Template_Energy'!$A17,'Data Billing Quantities'!$4:$4,0),FALSE) -> 66.6 | C17: =VLOOKUP($A17,'Data Pass Through'!$A:$D,2,FALSE) -> 0.17 | D17: =B17*C17 -> 11.322 | E17: 66.6 | F17: =VLOOKUP($A17,'Data Pass Through'!$A:$D,3,FALSE) -> 0.17 | G17: =E17*F17 -> 11.322 | H17: 0 | I17: 0 | K17: 0.1380988259
A18: Sub-Total: Energy (RPP TOU) | D18: =SUM(D15:D17) -> 38.2654 | G18: =SUM(G15:G17) -> 38.2654 | H18: 0 | I18: 0 | J18: =G18/$G$47 -> 0.4785910929 | K18: 0.4667379273
A19: Service Charge | B19: 1 | C19: =VLOOKUP($B$3,'Data Current Rates'!$A:$AL,MATCH('BI Template_Energy'!$A19,CurrentHeader,0),FALSE) -> 56.06 | D19: =B19*C19 -> 56.06 | E19: 1 | F19: =VLOOKUP($B$3,'Data Proposed Rates'!$A:$BA,MATCH('BI Template_Energy'!$A19,ProposedHeader,0),FALSE) -> 58.76 | G19: =E19*F19 -> 58.76 | H19: 2.7 | I19: 0.04816268284 | J19: 0.7349201268 | K19: 0.7167185136
A20: Fixed Base Rate Adjustment to Recover Past Tax Amounts | B20: 1 | C20: =VLOOKUP($B$3,'Data Current Rates'!$A:$AL,MATCH('BI Template_Energy'!$A20,CurrentHeader,0),FALSE) -> 1.56 | D20: =B20*C20 -> 1.56 | E20: 1 | F20: =VLOOKUP($B$3,'Data Proposed Rates'!$A:$BA,MATCH('BI Template_Energy'!$A20,ProposedHeader,0),FALSE) -> 1.44 | G20: 1.44 | H20: -0.12 | I20: -0.07692307692 | J20: 0.01801029582 | K20: 0.01756423859
A21: Group 2 Fixed DVA Rider | E21: 1 | F21: =VLOOKUP($B$3,'Data Proposed Rates'!$A:$BA,MATCH('BI Template_Energy'!$A21,ProposedHeader,0),FALSE) -> -0.14 | G21: -0.14 | H21: -0.14 | I21: N/A | J21: -0.001751000983 | K21: -0.001707634307
A22: Distribution Volumetric Charge | B22: =IF($B$9="kWh",$B$4,$B$5) -> 370 | C22: =VLOOKUP($B$3,'Data Current Rates'!$A:$AL,MATCH('BI Template_Energy'!$A22,CurrentHeader,0),FALSE) -> 0.01 | D22: 3.7 | E22: 370 | F22: =VLOOKUP($B$3,'Data Proposed Rates'!$A:$BA,MATCH('BI Template_Energy'!$A22,ProposedHeader,0),FALSE) -> 0.0054 | G22: 1.998 | H22: -1.702 | I22: -0.46 | J22: 0.02498928546 | K22: 0.02437038104
A23: Volumetric Base Rate Adjustment to Recover Past Tax Amounts | B23: =IF($B$9="kWh",$B$4,$B$5) -> 370 | C23: =VLOOKUP($B$3,'Data Current Rates'!$A:$AL,MATCH('BI Template_Energy'!$A23,CurrentHeader,0),FALSE) -> 0 | D23: 0 | E23: 370 | F23: =VLOOKUP($B$3,'Data Proposed Rates'!$A:$BA,MATCH('BI Template_Energy'!$A23,ProposedHeader,0),FALSE) -> 0 | G23: 0 | H23: 0 | I23: N/A | J23: 0 | K23: 0
A24: Group 1 Volumetric DVA Rider (General) | E24: =B4 -> 370 | F24: =VLOOKUP($B$3,'Data Proposed Rates'!$A:$BA,MATCH('BI Template_Energy'!$A24,ProposedHeader,0),FALSE) -> -0.0004 | G24: =E24*F24 -> -0.148 | H24: =G24-D24 -> -0.148 | I24: =IF(ISERROR(H24/ABS(D24)),"N/A",(H24/ABS(D24))) -> N/A | J24: -0.001851058182 | K24: -0.001805213411
A25: Group 2 Volumetric DVA Rider | E25: =B4 -> 370 | F25: =VLOOKUP($B$3,'Data Proposed Rates'!$A:$BA,MATCH('BI Template_Energy'!$A25,ProposedHeader,0),FALSE) -> 0 | G25: 0 | H25: 0 | I25: N/A | J25: 0 | K25: 0
A26: Fair Hydro Plan - Distribution Rate Protection Savings* | D26: =IF(AND(B3<>"R1",B3<>"R2"),0,IF(VLOOKUP($A26,'Data Pass Through'!$A:$D,2,FALSE)=0,0,IF(SUM(D19:D20,D22:D23)<VLOOKUP($A26,'Data Pass Through'!$A:$D,2,FALSE),0,VLOOKUP($A26,'Data Pass Through'!$A:$D,2,FALSE)-SUM(D19:D20,D22:D23)))) -> -24.46 | G26: =IF(AND(B3<>"R1",B3<>"R2"),0,IF(VLOOKUP($A26,'Data Pass Through'!$A:$D,2,FALSE)=0,0,IF(SUM(G19:G20,G22:G23)<VLOOKUP($A26,'Data Pass Through'!$A:$D,2,FALSE),0,VLOOKUP($A26,'Data Pass Through'!$A:$D,2,FALSE)-SUM(G19:G20,G22:G23)))) -> -25.338 | H26: -0.878 | I26: -0.03589533933 | J26: -0.3169061636 | K26: -0.3090574149
A27: Sub-Total: Distribution (excluding pass through) | D27: =SUM(INDIRECT("D19:D"&ROW()-1)) -> 36.86 | G27: =SUM(INDIRECT("g19:g"&ROW()-1)) -> 36.572 | H27: =G27-D27 -> -0.288 | I27: =IF(ISERROR(H27/ABS(D27)),"N/A",(H27/ABS(D27))) -> -0.007813347802 | J27: 0.4574114853 | K27: 0.4460828706
A28: Smart Metering Entity Charge | B28: 1 | C28: =VLOOKUP($A28,'Data Pass Through'!$A:$D,2,FALSE) -> 0.57 | D28: =B28*C28 -> 0.57 | E28: 1 | F28: =VLOOKUP($A28,'Data Pass Through'!$A:$D,3,FALSE) -> 0.57 | G28: =E28*F28 -> 0.57 | H28: 0 | I28: 0 | J28: 0.00712907543 | K28: 0.006952511108
A29: Line Losses on Cost of Power (based on two-tier RPP prices) | B29: =B8-B4 -> 28.12 | C29: =IF(B4>B7,C13,C12) -> 0.098 | D29: =B29*C29 -> 2.75576 | E29: 28.12 | F29: =IF(B4>B7,F13,F12) -> 0.098 | G29: =E29*F29 -> 2.75576 | H29: 0 | I29: 0 | J29: 0.03446670335 | K29: 0.03361307371
A30: Line Losses on Cost of Power (based on TOU prices) | B30: =B8-B4 -> 28.12 | C30: =VLOOKUP($B$3,'Data Billing Quantities'!$A:$O,MATCH('BI Template_Energy'!$A15,'Data Billing Quantities'!$4:$4,0),FALSE)*C15+VLOOKUP($B$3,'Data Billing Quantities'!$A:$O,MATCH('BI Template_Energy'!$A16,'Data Billing Quantities'!$4:$4,0),FALSE)*C16+VLOOKUP($B$3,'Data Billing Quantities'!$A:$O,MATCH('BI Template_Energy'!$A17,'Data Billing Quantities'!$4:$4,0),FALSE)*C17 -> 0.10342 | D30: =B30*C30 -> 2.9081704 | E30: 28.12 | F30: =VLOOKUP($B$3,'Data Billing Quantities'!$A:$O,MATCH('BI Template_Energy'!$A15,'Data Billing Quantities'!$4:$4,0),FALSE)*F15+VLOOKUP($B$3,'Data Billing Quantities'!$A:$O,MATCH('BI Template_Energy'!$A16,'Data Billing Quantities'!$4:$4,0),FALSE)*F16+VLOOKUP($B$3,'Data Billing Quantities'!$A:$O,MATCH('BI Template_Energy'!$A17,'Data Billing Quantities'!$4:$4,0),FALSE)*F17 -> 0.10342 | G30: =E30*F30 -> 2.9081704 | H30: 0 | I30: 0 | J30: 0.03637292306 | K30: 0.03547208248
A31: Sub-Total: Distribution (based on two-tier RPP prices) | D31: =SUM(D27,D28:D29) -> 40.18576 | G31: =SUM(G27,G28:G29) -> 39.89776 | H31: -0.288 | I31: -0.007166717763 | J31: 0.4990072641 | K31: 0.4866484554
A32: Sub-Total: Distribution (based on TOU prices) | D32: =SUM(D27,D28,D30) -> 40.3381704 | G32: =SUM(G27,G28,G30) -> 40.0501704 | H32: -0.288 | I32: -0.00713963963 | J32: 0.5009134838 | K32: 0.4885074642
A33: Retail Transmission Rate – Network Service Rate | B33: =B8 -> 398.12 | C33: =VLOOKUP($B$3,'Data Current Rates'!$A:$AL,MATCH('BI Template_Energy'!$A33,CurrentHeader,0),FALSE) -> 0.0103 | D33: =B33*C33 -> 4.100636 | E33: 398.12 | F33: =VLOOKUP($B$3,'Data Proposed Rates'!$A:$BA,MATCH('BI Template_Energy'!$A33,ProposedHeader,0),FALSE) -> 0.0101 | G33: =E33*F33 -> 4.021012 | H33: =G33-D33 -> -0.079624 | I33: -0.01941747573 | J33: 0.05029139975 | K33: 0.04904584315
A34: Retail Transmission Rate – Line and Transformation Connection Service Rate | B34: =B8 -> 398.12 | C34: =VLOOKUP($B$3,'Data Current Rates'!$A:$AL,MATCH('BI Template_Energy'!$A34,CurrentHeader,0),FALSE) -> 0.0076 | D34: =B34*C34 -> 3.025712 | E34: 398.12 | F34: =VLOOKUP($B$3,'Data Proposed Rates'!$A:$BA,MATCH('BI Template_Energy'!$A34,ProposedHeader,0),FALSE) -> 0.0075 | G34: =E34*F34 -> 2.9859 | H34: =G34-D34 -> -0.039812 | I34: -0.01315789474 | J34: 0.03734509882 | K34: 0.03642018056
A35: Sub-Total: Retail Transmission | D35: =SUM(D33:D34) -> 7.126348 | G35: =SUM(G33:G34) -> 7.006912 | H35: =G35-D35 -> -0.119436 | I35: -0.01675977654 | J35: 0.08763649857 | K35: 0.08546602371
A36: Sub-Total: Delivery (based on two-tier RPP prices) | D36: =D31+D35 -> 47.312108 | G36: =G31+G35 -> 46.904672 | H36: =G36-D36 -> -0.407436 | I36: -0.008611664481 | J36: 0.5866437627 | K36: 0.5721144792
A37: Sub-Total: Delivery (based on TOU prices) | D37: =D32+D35 -> 47.4645184 | G37: =G32+G35 -> 47.0570824 | H37: =G37-D37 -> -0.407436 | I37: -0.008584012094 | J37: 0.5885499824 | K37: 0.5739734879
A38: Wholesale Market Service Rate (WMS) - not including CBR | B38: =B8 -> 398.12 | C38: =VLOOKUP($A38,'Data Pass Through'!$A:$D,2,FALSE) -> 0.003 | D38: =B38*C38 -> 1.19436 | E38: =$B$8 -> 398.12 | F38: =VLOOKUP($A38,'Data Pass Through'!$A:$D,3,FALSE) -> 0.003 | G38: =E38*F38 -> 1.19436 | H38: 0 | I38: 0 | J38: 0.01493803953 | K38: 0.01456807222
A39: Capacity Based Recovery (CBR) - Applicable for Class B Customers | B39: =B8 -> 398.12 | C39: =VLOOKUP($A39,'Data Pass Through'!$A:$D,2,FALSE) -> 0.0004 | D39: =B39*C39 -> 0.159248 | E39: =$B$8 -> 398.12 | F39: =VLOOKUP($A39,'Data Pass Through'!$A:$D,3,FALSE) -> 0.0004 | G39: =E39*F39 -> 0.159248 | H39: =G39-D39 -> 0 | I39: =IF(ISERROR(H39/ABS(D39)),"N/A",(H39/ABS(D39))) -> 0 | J39: 0.001991738604 | K39: 0.00194240963
A40: Rural Rate Protection Charge | B40: =B8 -> 398.12 | C40: =VLOOKUP($A40,'Data Pass Through'!$A:$D,2,FALSE) -> 0.0005 | D40: 0.19906 | E40: 398.12 | F40: =VLOOKUP($A40,'Data Pass Through'!$A:$D,3,FALSE) -> 0.0005 | G40: 0.19906 | H40: 0 | I40: 0 | J40: 0.002489673255 | K40: 0.002428012037
A41: Standard Supply Service – Administration Charge (if applicable) | B41: 1 | C41: =VLOOKUP($A41,'Data Pass Through'!$A:$D,2,FALSE) -> 0.25 | D41: =B41*C41 -> 0.25 | E41: 1 | F41: =VLOOKUP($A41,'Data Pass Through'!$A:$D,3,FALSE) -> 0.25 | G41: 0.25 | H41: 0 | I41: 0 | J41: 0.003126787469 | K41: 0.003049346977
A42: Sub-Total: Regulatory | D42: =SUM(D38:D41) -> 1.802668 | G42: =SUM(G38:G41) -> 1.802668 | H42: 0 | I42: 0 | J42: 0.02254623886 | K42: 0.02198784087
A43: Total Electricty Charge on Two-Tier RPP | D43: =SUM(D14,D27,D28,D29,D35,D42) -> 85.374776 | G43: =SUM(G14,G27,G28,G29,G35,G42) -> 84.96734 | H43: -0.407436 | I43: -0.004772322917 | J43: 1.062699256
A44: HST | C44: 0.13 | D44: =D43*C44 -> 11.09872088 | F44: =C44 -> 0.13 | G44: =G43*F44 -> 11.0457542 | H44: -0.05296668 | I44: -0.004772322917 | J44: 0.1381509033
A45: Total Electricity Charge on Two-Tier RPP (including HST) | D45: =SUM(D43:D44) -> 96.47349688 | G45: =SUM(G43:G44) -> 96.0130942 | H45: -0.46040268 | I45: -0.004772322917 | J45: 1.200850159
A46: Ontario Electricity Rebate (OER) | C46: =IF(($B$4*12)<250000,VLOOKUP(A46,'Data Pass Through'!$A$4:$C$20,2,0),0) -> -0.189 | D46: =D43*C46 -> -16.13583266 | F46: =C46 -> -0.189 | G46: =G43*F46 -> -16.05882726 | H46: 0.077005404 | I46: 0.004772322917 | J46: -0.2008501594
A47: Total Amount on Two-Tier RPP | D47: =SUM(D45:D46) -> 80.33766422 | G47: =SUM(G45:G46) -> 79.95426694 | H47: -0.383397276 | I47: -0.004772322917 | J47: 1
A48: Total Electricty Charge on TOU (before HST) | D48: =SUM(D18,D27,D28,D30,D35,D42) -> 87.5325864 | G48: =SUM(G18,G27,G28,G30,G35,G42) -> 87.1251504 | H48: -0.407436 | I48: -0.004654677952 | K48: =G48/$G$52 -> 1.062699256
A49: HST | C49: 0.13 | D49: =D48*C49 -> 11.37923623 | F49: =C49 -> 0.13 | G49: =G48*F49 -> 11.32626955 | H49: -0.05296668 | I49: -0.004654677952 | K49: =G49/$G$52 -> 0.1381509033
A50: Total Electricity Charge on TOU (including HST) | D50: =SUM(D48:D49) -> 98.91182263 | G50: =SUM(G48:G49) -> 98.45141995 | H50: -0.46040268 | I50: -0.004654677952 | K50: =G50/$G$52 -> 1.200850159
A51: Ontario Electricity Rebate (OER) | C51: =IF(($B$4*12)<250000,VLOOKUP(A51,'Data Pass Through'!$A$4:$C$20,2,0),0) -> -0.189 | D51: =D48*C51 -> -16.54365883 | F51: =C51 -> -0.189 | G51: =G48*F51 -> -16.46665343 | H51: 0.077005404 | I51: 0.004654677952 | K51: =G51/$G$52 -> -0.2008501594
A52: Total Amount on TOU | D52: =SUM(D50:D51) -> 82.3681638 | G52: =SUM(G50:G51) -> 81.98476653 | H52: -0.383397276 | I52: -0.004654677952 | K52: =G52/$G$52 -> 1
A53: * Distribution rate protection applies to R1 and R2 customers

Sheet BI Template_EnergyUNM (hidden)
A1: 2023 Bill Impacts (Average Consumption Level) - USL
A3: Rate Class | B3: =RIGHT(A1,LEN(A1)-FIND("- ",A1,1)-1) -> USL
A4: Monthly Consumption (kWh) | B4: =IF(COUNTIF(A1,"*Low*")>0,VLOOKUP(B3,'Data Billing Quantities'!$A:$Z,MATCH("Low kWh",'Data Billing Quantities'!4:4,0),FALSE),IF(COUNTIF(A1,"*Typical*")>0,VLOOKUP(B3,'Data Billing Quantities'!$A:$Z,MATCH("Typical kWh",'Data Billing Quantities'!4:4,0),FALSE),IF(COUNTIF(A1,"*Average*")>0,VLOOKUP(B3,'Data Billing Quantities'!$A:$Z,MATCH("Average kWh",'Data Billing Quantities'!4:4,0),FALSE),IF(COUNTIF(A1,"*High*")>0,VLOOKUP(B3,'Data Billing Quantities'!$A:$Z,MATCH("High kWh",'Data Billing Quantities'!4:4,0),FALSE),"error")))) -> 477
A5: Peak (kW) | B5: =IF(COUNTIF(A1,"*Low*")>0,VLOOKUP(B3,'Data Billing Quantities'!$A:$Z,MATCH("Low kW",'Data Billing Quantities'!4:4,0),FALSE),IF(COUNTIF(A1,"*Typical*")>0,VLOOKUP(B3,'Data Billing Quantities'!$A:$Z,MATCH("Typical kW",'Data Billing Quantities'!4:4,0),FALSE),IF(COUNTIF(A1,"*Average*")>0,VLOOKUP(B3,'Data Billing Quantities'!$A:$Z,MATCH("Average kW",'Data Billing Quantities'!4:4,0),FALSE),IF(COUNTIF(A1,"*High*")>0,VLOOKUP(B3,'Data Billing Quantities'!$A:$Z,MATCH("High kW",'Data Billing Quantities'!4:4,0),FALSE),"error")))) -> 0
A6: Loss factor | B6: =VLOOKUP(B3,'Data Billing Quantities'!A:D,MATCH(A6,'Data Billing Quantities'!4:4,0),FALSE) -> 1.092
A7: Commodity Threshold | B7: =VLOOKUP(B3,'Data Billing Quantities'!A:D,MATCH(A7,'Data Billing Quantities'!4:4,0),FALSE) -> 750
A8: Monthly Consumption (kWh) - Uplifted | B8: =B4*B6 -> 520.884
A9: Charge determinant | B9: =VLOOKUP(B3,'Data Billing Quantities'!A:D,MATCH(A9,'Data Billing Quantities'!4:4,0),FALSE) -> kWh
B11: Volume | C11: Current Rate ($) | D11: Current Charge ($) | E11: Volume | F11: Proposed Rate ($) | G11: Proposed Charge ($) | H11: Change ($) | I11: Change (%) | J11: % of Total Bill
A12: Energy First Tier | B12: =IF(B4>B7,B7,B4) -> 477 | C12: =VLOOKUP($A12,'Data Pass Through'!$A:$D,2,FALSE) -> 0.098 | D12: =B12*C12 -> 46.746 | E12: =B12 -> 477 | F12: =VLOOKUP($A12,'Data Pass Through'!$A:$D,3,FALSE) -> 0.098 | G12: =E12*F12 -> 46.746 | H12: =G12-D12 -> 0 | I12: =IF(ISERROR(H12/ABS(D12)),"N/A",(H12/ABS(D12))) -> 0 | J12: =G12/$G$37 -> 0.472479136
A13: Energy Second Tier | B13: =IF(B4>B7,(B4)-B7,0) -> 0 | C13: =VLOOKUP($A13,'Data Pass Through'!$A:$D,2,FALSE) -> 0.115 | D13: =B13*C13 -> 0 | E13: =B13 -> 0 | F13: =VLOOKUP($A13,'Data Pass Through'!$A:$D,3,FALSE) -> 0.115 | G13: =E13*F13 -> 0 | H13: 0 | I13: N/A | J13: =G13/$G$37 -> 0
A14: Sub-Total: Energy (RPP Tiered) | D14: =SUM(D12:D13) -> 46.746 | G14: =SUM(G12:G13) -> 46.746 | H14: 0 | I14: 0 | J14: =G14/$G$37 -> 0.472479136
A15: Service Charge | B15: 1 | C15: =VLOOKUP($B$3,'Data Current Rates'!$A:$AL,MATCH('BI Template_EnergyUNM'!$A15,CurrentHeader,0),FALSE) -> 39.8 | D15: =B15*C15 -> 39.8 | E15: 1 | F15: =VLOOKUP($B$3,'Data Proposed Rates'!$A:$BA,MATCH('BI Template_EnergyUNM'!$A15,ProposedHeader,0),FALSE) -> 34.45 | G15: =E15*F15 -> 34.45 | H15: -5.35 | I15: -0.1344221106 | J15: =G15/$G$37 -> 0.3481989098
A16: Fixed Base Rate Adjustment to Recover Past Tax Amounts | B16: 1 | C16: =VLOOKUP($B$3,'Data Current Rates'!$A:$AL,MATCH('BI Template_EnergyUNM'!$A16,CurrentHeader,0),FALSE) -> 0.89 | D16: =B16*C16 -> 0.89 | E16: 1 | F16: =VLOOKUP($B$3,'Data Proposed Rates'!$A:$BA,MATCH('BI Template_EnergyUNM'!$A16,ProposedHeader,0),FALSE) -> 0.87 | G16: =E16*F16 -> 0.87 | H16: =G16-D16 -> -0.02 | I16: =IF(ISERROR(H16/ABS(D16)),"N/A",(H16/ABS(D16))) -> -0.02247191011
A17: Distribution Volumetric Charge | B17: =IF($B$9="kWh",$B$4,$B$5) -> 477 | C17: =VLOOKUP($B$3,'Data Current Rates'!$A:$AL,MATCH('BI Template_EnergyUNM'!$A17,CurrentHeader,0),FALSE) -> 0.0265 | D17: 12.6405 | E17: 477 | F17: =VLOOKUP($B$3,'Data Proposed Rates'!$A:$BA,MATCH('BI Template_EnergyUNM'!$A17,ProposedHeader,0),FALSE) -> 0.0218 | G17: 10.3986 | H17: -2.2419 | I17: -0.1773584906 | J17: =G17/$G$37 -> 0.1051025017
A18: Volumetric Base Rate Adjustment to Recover Past Tax Amounts | B18: =IF($B$9="kWh",$B$4,$B$5) -> 477 | C18: =VLOOKUP($B$3,'Data Current Rates'!$A:$AL,MATCH('BI Template_EnergyUNM'!$A18,CurrentHeader,0),FALSE) -> 0.0006 | D18: =B18*C18 -> 0.2862 | E18: =B18 -> 477 | F18: =VLOOKUP($B$3,'Data Proposed Rates'!$A:$BA,MATCH('BI Template_EnergyUNM'!$A18,ProposedHeader,0),FALSE) -> 0.0006 | G18: =E18*F18 -> 0.2862 | H18: =G18-D18 -> 0 | I18: =IF(ISERROR(H18/ABS(D18)),"N/A",(H18/ABS(D18))) -> 0 | J18: 0.002892729404
A19: Group 1 Volumetric DVA Rider (General) | E19: =B4 -> 477 | F19: =VLOOKUP($B$3,'Data Proposed Rates'!$A:$BA,MATCH('BI Template_EnergyUNM'!$A19,ProposedHeader,0),FALSE) -> -0.0004 | G19: =E19*F19 -> -0.1908 | H19: =G19-D19 -> -0.1908 | I19: =IF(ISERROR(H19/ABS(D19)),"N/A",(H19/ABS(D19))) -> N/A | J19: -0.00192848627
A20: Group 2 Volumetric DVA Rider | E20: =B4 -> 477 | F20: =VLOOKUP($B$3,'Data Proposed Rates'!$A:$BA,MATCH('BI Template_EnergyUNM'!$A20,ProposedHeader,0),FALSE) -> -0.0002 | G20: -0.0954 | H20: -0.0954 | I20: N/A | J20: -0.0009642431348
A21: Sub-Total: Distribution (excluding pass through) | D21: =SUM(INDIRECT("D15:D"&ROW()-1)) -> 53.6167 | G21: =SUM(INDIRECT("g15:g"&ROW()-1)) -> 45.7186 | H21: =G21-D21 -> -7.8981 | I21: -0.147306716 | J21: 0.4620948237
A22: Line Losses on Cost of Power (based on two-tier RPP prices) | B22: =B8-B4 -> 43.884 | C22: =IF(B4>B7,C13,C12) -> 0.098 | D22: =B22*C22 -> 4.300632 | E22: 43.884 | F22: =IF(B4>B7,F13,F12) -> 0.098 | G22: =E22*F22 -> 4.300632 | H22: 0 | I22: 0 | J22: 0.04346808052
A23: Sub-Total: Distribution (based on two-tier RPP prices) | D23: =SUM(D21,D22:D22) -> 57.917332 | G23: =SUM(G21,G22:G22) -> 50.019232 | H23: -7.8981 | I23: -0.1363685054 | J23: 0.5055629042
A24: Retail Transmission Rate – Network Service Rate | B24: =B8 -> 520.884 | C24: =VLOOKUP($B$3,'Data Current Rates'!$A:$AL,MATCH('BI Template_EnergyUNM'!$A24,CurrentHeader,0),FALSE) -> 0.0068 | D24: =B24*C24 -> 3.5420112 | E24: 520.884 | F24: =VLOOKUP($B$3,'Data Proposed Rates'!$A:$BA,MATCH('BI Template_EnergyUNM'!$A24,ProposedHeader,0),FALSE) -> 0.0068 | G24: =E24*F24 -> 3.5420112 | H24: =G24-D24 -> 0 | I24: 0 | J24: 0.03580041911
A25: Retail Transmission Rate – Line and Transformation Connection Service Rate | B25: =B8 -> 520.884 | C25: =VLOOKUP($B$3,'Data Current Rates'!$A:$AL,MATCH('BI Template_EnergyUNM'!$A25,CurrentHeader,0),FALSE) -> 0.0049 | D25: =B25*C25 -> 2.5523316 | E25: 520.884 | F25: =VLOOKUP($B$3,'Data Proposed Rates'!$A:$BA,MATCH('BI Template_EnergyUNM'!$A25,ProposedHeader,0),FALSE) -> 0.0049 | G25: =E25*F25 -> 2.5523316 | H25: =G25-D25 -> 0 | I25: 0 | J25: 0.02579736083
A26: Sub-Total: Retail Transmission | D26: =SUM(D24:D25) -> 6.0943428 | G26: =SUM(G24:G25) -> 6.0943428 | H26: =G26-D26 -> 0 | I26: 0 | J26: 0.06159777994
A27: Sub-Total: Delivery (based on two-tier RPP prices) | D27: =D23+D26 -> 64.0116748 | G27: =G23+G26 -> 56.1135748 | H27: =G27-D27 -> -7.8981 | I27: -0.1233853047 | J27: 0.5671606842
A28: Wholesale Market Service Rate (WMS) - not including CBR | B28: =B8 -> 520.884 | C28: =VLOOKUP($A28,'Data Pass Through'!$A:$D,2,FALSE) -> 0.003 | D28: =B28*C28 -> 1.562652 | E28: =$B$8 -> 520.884 | F28: =VLOOKUP($A28,'Data Pass Through'!$A:$D,3,FALSE) -> 0.003 | G28: =E28*F28 -> 1.562652 | H28: =G28-D28 -> 0 | I28: 0 | J28: 0.01579430255
A29: Capacity Based Recovery (CBR) - Applicable for Class B Customers | B29: =B8 -> 520.884 | C29: =VLOOKUP($A29,'Data Pass Through'!$A:$D,2,FALSE) -> 0.0004 | D29: =B29*C29 -> 0.2083536 | E29: =$B$8 -> 520.884 | F29: =VLOOKUP($A29,'Data Pass Through'!$A:$D,3,FALSE) -> 0.0004 | G29: =E29*F29 -> 0.2083536 | H29: 0 | I29: 0 | J29: 0.002105907006
A30: Rural Rate Protection Charge | B30: =B8 -> 520.884 | C30: =VLOOKUP($A30,'Data Pass Through'!$A:$D,2,FALSE) -> 0.0005 | D30: 0.260442 | E30: 520.884 | F30: =VLOOKUP($A30,'Data Pass Through'!$A:$D,3,FALSE) -> 0.0005 | G30: 0.260442 | H30: 0 | I30: 0 | J30: 0.002632383758
A31: Standard Supply Service – Administration Charge (if applicable) | B31: 1 | C31: =VLOOKUP($A31,'Data Pass Through'!$A:$D,2,FALSE) -> 0.25 | D31: =B31*C31 -> 0.25 | E31: 1 | F31: =VLOOKUP($A31,'Data Pass Through'!$A:$D,3,FALSE) -> 0.25 | G31: 0.25 | H31: 0 | I31: 0 | J31: 0.002526842596
A32: Sub-Total: Regulatory | D32: =SUM(D28:D31) -> 2.2814476 | G32: =SUM(G28:G31) -> 2.2814476 | H32: 0 | I32: 0 | J32: 0.02305943591
A33: Total Electricty Charge on Two-Tier RPP | D33: =SUM(D14,D21,D22,D26,D32) -> 113.0391224 | G33: =SUM(G14,G21,G22,G26,G32) -> 105.1410224 | H33: -7.8981 | I33: -0.06987049999 | J33: 1.062699256
A34: HST | C34: 0.13 | D34: =D33*C34 -> 14.69508591 | F34: =C34 -> 0.13 | G34: =G33*F34 -> 13.66833291 | H34: -1.026753 | I34: -0.06987049999 | J34: 0.1381509033
A35: Total Electricity Charge on Two-Tier RPP (including HST) | D35: =SUM(D33:D34) -> 127.7342083 | G35: =SUM(G33:G34) -> 118.8093553 | H35: -8.924853 | I35: -0.06987049999 | J35: 1.200850159
A36: Ontario Electricity Rebate (OER) | C36: =IF(($B$4*12)<250000,VLOOKUP(A36,'Data Pass Through'!$A$4:$C$20,2,0),0) -> -0.189 | D36: =D33*C36 -> -21.36439413 | F36: =C36 -> -0.189 | G36: =G33*F36 -> -19.87165323 | H36: 1.4927409 | I36: 0.06987049999 | J36: -0.2008501594
A37: Total Amount on Two-Tier RPP | D37: =SUM(D35:D36) -> 106.3698142 | G37: =SUM(G35:G36) -> 98.93770208 | H37: -7.4321121 | I37: -0.06987049999 | J37: 1

Sheet BI Template_Demand (hidden)
A1: 2023 Bill Impacts (Average Consumption Level) - GSd
A3: Rate Class | B3: =RIGHT(A1,LEN(A1)-FIND("- ",A1,1)-1) -> GSd
A4: Monthly Consumption (kWh) | B4: =IF(COUNTIF(A1,"*Low*")>0,VLOOKUP(B3,'Data Billing Quantities'!$A:$Z,MATCH("Low kWh",'Data Billing Quantities'!4:4,0),FALSE),IF(COUNTIF(A1,"*Typical*")>0,VLOOKUP(B3,'Data Billing Quantities'!$A:$Z,MATCH("Typical kWh",'Data Billing Quantities'!4:4,0),FALSE),IF(COUNTIF(A1,"*Average*")>0,VLOOKUP(B3,'Data Billing Quantities'!$A:$Z,MATCH("Average kWh",'Data Billing Quantities'!4:4,0),FALSE),IF(COUNTIF(A1,"*High*")>0,VLOOKUP(B3,'Data Billing Quantities'!$A:$Z,MATCH("High kWh",'Data Billing Quantities'!4:4,0),FALSE),"error")))) -> 34334
A5: Peak (kW) | B5: =IF(COUNTIF(A1,"*Low*")>0,VLOOKUP(B3,'Data Billing Quantities'!$A:$Z,MATCH("Low kW",'Data Billing Quantities'!4:4,0),FALSE),IF(COUNTIF(A1,"*Typical*")>0,VLOOKUP(B3,'Data Billing Quantities'!$A:$Z,MATCH("Typical kW",'Data Billing Quantities'!4:4,0),FALSE),IF(COUNTIF(A1,"*Average*")>0,VLOOKUP(B3,'Data Billing Quantities'!$A:$Z,MATCH("Average kW",'Data Billing Quantities'!4:4,0),FALSE),IF(COUNTIF(A1,"*High*")>0,VLOOKUP(B3,'Data Billing Quantities'!$A:$Z,MATCH("High kW",'Data Billing Quantities'!4:4,0),FALSE),"error")))) -> 110
A6: Loss factor | B6: =VLOOKUP(B3,'Data Billing Quantities'!A:D,MATCH(A6,'Data Billing Quantities'!4:4,0),FALSE) -> 1.061
A7: Load factor | B7: =B4/(B5*730) -> 0.4275716065
A8: Monthly Consumption (kWh) - Uplifted | B8: =B4*B6 -> 36428.374
A9: Charge determinant | B9: =VLOOKUP(B3,'Data Billing Quantities'!A:D,MATCH(A9,'Data Billing Quantities'!4:4,0),FALSE) -> kW
B11: Volume | C11: Current Rate ($) | D11: Current Charge ($) | E11: Volume | F11: Proposed Rate ($) | G11: Proposed Charge ($) | H11: Change ($) | I11: Change (%) | J11: % of Total Bill
A12: Weighted Average Hourly Spot Price | B12: =B8 -> 36428.374 | C12: =VLOOKUP($A12,'Data Pass Through'!$A:$D,2,FALSE) -> 0.119 | D12: =B12*C12 -> 4334.976506 | E12: =B8 -> 36428.374 | F12: =VLOOKUP($A12,'Data Pass Through'!$A:$D,3,FALSE) -> 0.119 | G12: =E12*F12 -> 4334.976506 | H12: =G12-D12 -> 0 | I12: =IF(ISERROR(H12/ABS(D12)),"N/A",(H12/ABS(D12))) -> 0 | J12: =G12/$G$34 -> 0.5319693238
A13: Sub-Total: Energy (WAHSP) | D13: =SUM(D12:D12) -> 4334.976506 | G13: =SUM(G12:G12) -> 4334.976506 | H13: =G13-D13 -> 0 | I13: 0 | J13: 0.5319693238
A14: Service Charge | B14: 1 | C14: =VLOOKUP($B$3,'Data Current Rates'!$A:$AM,MATCH($A14,CurrentHeader,0),FALSE) -> 113.67 | D14: =B14*C14 -> 113.67 | E14: =B14 -> 1 | F14: =VLOOKUP($B$3,'Data Proposed Rates'!$A:$BA,MATCH($A14,ProposedHeader,0),FALSE) -> 100.96 | G14: =E14*F14 -> 100.96 | H14: -12.71 | I14: -0.1118149028 | J14: 0.01238936886
A15: Fixed Base Rate Adjustment to Recover Past Tax Amounts | B15: 1 | C15: =VLOOKUP($B$3,'Data Current Rates'!$A:$AM,MATCH($A15,CurrentHeader,0),FALSE) -> 4.34 | D15: =B15*C15 -> 4.34 | E15: 1 | F15: =VLOOKUP($B$3,'Data Proposed Rates'!$A:$BA,MATCH($A15,ProposedHeader,0),FALSE) -> 4.43 | G15: =E15*F15 -> 4.43 | H15: 0.09 | I15: 0.02073732719 | J15: 0.0005436301907
A16: Distribution Volumetric Charge | B16: =IF($B$9="kWh",$B$4,$B$5) -> 110 | C16: =VLOOKUP($B$3,'Data Current Rates'!$A:$AM,MATCH($A16,CurrentHeader,0),FALSE) -> 19.3834 | D16: =B16*C16 -> 2132.174 | E16: =$B$5 -> 110 | F16: =VLOOKUP($B$3,'Data Proposed Rates'!$A:$BA,MATCH($A16,ProposedHeader,0),FALSE) -> 18.9446 | G16: 2083.906 | H16: -48.268 | I16: =IF(ISERROR(H16/ABS(D16)),"N/A",(H16/ABS(D16))) -> -0.0226379273 | J16: 0.255727814
A17: Volumetric Base Rate Adjustment to Recover Past Tax Amounts | B17: =IF($B$9="kWh",$B$4,$B$5) -> 110 | C17: =VLOOKUP($B$3,'Data Current Rates'!$A:$AM,MATCH($A17,CurrentHeader,0),FALSE) -> 0.7338 | D17: 80.718 | E17: =$B$5 -> 110 | F17: =VLOOKUP($B$3,'Data Proposed Rates'!$A:$BA,MATCH($A17,ProposedHeader,0),FALSE) -> 0.8249 | G17: 90.739 | H17: 10.021 | I17: =IF(ISERROR(H17/ABS(D17)),"N/A",(H17/ABS(D17))) -> 0.1241482693 | J17: 0.01113509252
A18: Group 1 Volumetric DVA Rider (General) | E18: 110 | F18: =VLOOKUP($B$3,'Data Proposed Rates'!$A:$BA,MATCH($A18,ProposedHeader,0),FALSE) -> -0.0519 | G18: -5.709 | H18: -5.709 | I18: N/A | J18: -0.0007005834669
A19: Group 1 Volumetric Deferral/Variance Account Rider (Sub-Account RSVA Wholesale Market Service Charge & RSVA Power) | E19: 110 | F19: =VLOOKUP($B$3,'Data Proposed Rates'!$A:$BA,MATCH($A19,ProposedHeader,0),FALSE) -> -0.0726 | G19: -7.986 | H19: -7.986 | I19: N/A | J19: -0.0009800069306
A20: Group 1 Volumetric Deferral/Variance Account Rider (Sub-Account Global Adjustment) | E20: =B4 -> 34334 | F20: =VLOOKUP($B$3,'Data Proposed Rates'!$A:$BA,MATCH($A20,ProposedHeader,0),FALSE) -> -0.0007 | G20: -24.0338 | H20: -24.0338 | I20: N/A | J20: -0.002949322636
A21: Group 2 Volumetric DVA Rider | E21: =B5 -> 110 | F21: =VLOOKUP($B$3,'Data Proposed Rates'!$A:$BA,MATCH($A21,ProposedHeader,0),FALSE) -> -0.0475 | G21: =E21*F21 -> -5.225 | H21: =G21-D21 -> -5.225 | I21: =IF(ISERROR(H21/ABS(D21)),"N/A",(H21/ABS(D21))) -> N/A | J21: -0.0006411891075
A22: Sub-Total: Distribution | D22: =SUM(INDIRECT("D14:D"&ROW()-1)) -> 2330.902 | G22: =SUM(INDIRECT("g14:g"&ROW()-1)) -> 2237.0812 | H22: -93.8208 | I22: -0.04025085568 | J22: 0.2745248035
A23: Retail Transmission Rate – Network Service Rate | B23: =IF($B$9="kWh",$B$4,$B$5) -> 110 | C23: =VLOOKUP($B$3,'Data Current Rates'!$A:$AM,MATCH($A23,CurrentHeader,0),FALSE) -> 2.5526 | D23: =B23*C23 -> 280.786 | E23: 110 | F23: =VLOOKUP($B$3,'Data Proposed Rates'!$A:$BA,MATCH($A23,ProposedHeader,0),FALSE) -> 2.5967 | G23: =E23*F23 -> 285.637 | H23: 4.851 | I23: 0.01727650239 | J23: 0.03505212117
A24: Retail Transmission Rate – Line and Transformation Connection Service Rate | B24: =IF($B$9="kWh",$B$4,$B$5) -> 110 | C24: =VLOOKUP($B$3,'Data Current Rates'!$A:$AM,MATCH($A24,CurrentHeader,0),FALSE) -> 1.7916 | D24: =B24*C24 -> 197.076 | E24: 110 | F24: =VLOOKUP($B$3,'Data Proposed Rates'!$A:$BA,MATCH($A24,ProposedHeader,0),FALSE) -> 1.922 | G24: =E24*F24 -> 211.42 | H24: 14.344 | I24: 0.07278410359 | J24: 0.0259445361
A25: Sub-Total: Retail Transmission | D25: =SUM(D23:D24) -> 477.862 | G25: =SUM(G23:G24) -> 497.057 | H25: 19.195 | I25: 0.04016850053 | J25: 0.06099665727
A26: Sub-Total: Delivery | D26: =D22+D25 -> 2808.764 | G26: =G22+G25 -> 2734.1382 | H26: -74.6258 | I26: -0.02656891074 | J26: 0.3355214607
A27: Wholesale Market Service Rate (WMS) - not including CBR | B27: =$B$8 -> 36428.374 | C27: =VLOOKUP($A27,'Data Pass Through'!$A:$D,2,FALSE) -> 0.003 | D27: =B27*C27 -> 109.285122 | E27: =$B$8 -> 36428.374 | F27: =VLOOKUP($A27,'Data Pass Through'!$A:$D,3,FALSE) -> 0.003 | G27: =E27*F27 -> 109.285122 | H27: 0 | I27: 0 | J27: 0.01341099136
A28: Capacity Based Recovery (CBR) - Applicable for Class B Customers | B28: =$B$8 -> 36428.374 | C28: =VLOOKUP($A28,'Data Pass Through'!$A:$D,2,FALSE) -> 0.0004 | D28: =B28*C28 -> 14.5713496 | E28: =$B$8 -> 36428.374 | F28: =VLOOKUP($A28,'Data Pass Through'!$A:$D,3,FALSE) -> 0.0004 | G28: =E28*F28 -> 14.5713496 | H28: =G28-D28 -> 0 | I28: 0 | J28: 0.001788132181
A29: Rural Rate Protection Charge | B29: =$B$8 -> 36428.374 | C29: =VLOOKUP($A29,'Data Pass Through'!$A:$D,2,FALSE) -> 0.0005 | D29: =B29*C29 -> 18.214187 | E29: =$B$8 -> 36428.374 | F29: =VLOOKUP($A29,'Data Pass Through'!$A:$D,3,FALSE) -> 0.0005 | G29: =E29*F29 -> 18.214187 | H29: =G29-D29 -> 0 | I29: 0 | J29: 0.002235165226
A30: Standard Supply Service – Administration Charge (if applicable) | B30: 1 | C30: =VLOOKUP($A30,'Data Pass Through'!$A:$D,2,FALSE) -> 0.25 | D30: =B30*C30 -> 0.25 | E30: 1 | F30: =VLOOKUP($A30,'Data Pass Through'!$A:$D,3,FALSE) -> 0.25 | G30: =E30*F30 -> 0.25 | H30: 0 | I30: 0 | J30: 3.067890467e-05
A31: Sub-Total: Regulatory | D31: =SUM(D27:D30) -> 142.3206586 | G31: =SUM(G27:G30) -> 142.3206586 | H31: 0 | I31: 0 | J31: 0.01746496767
A32: Total Electricity Charge on Two-Tier RPP (before HST) | D32: =SUM(D13,D22,D25,D31) -> 7286.061165 | G32: =SUM(G13,G22,G25,G31) -> 7211.435365 | H32: -74.6258 | I32: -0.01024226922 | J32: 0.8849557522
A33: HST | C33: 0.13 | D33: =D32*C33 -> 947.1879514 | F33: =C33 -> 0.13 | G33: =G32*F33 -> 937.4865974 | H33: -9.701354 | I33: -0.01024226922 | J33: 0.1150442478
A34: Total Amount on WAHSP | D34: =SUM(D32:D33) -> 8233.249116 | G34: =SUM(G32:G33) -> 8148.921962 | H34: -84.327154 | I34: -0.01024226922 | J34: 1

Sheet BI Template_Seasonal (hidden)
A1: 2023 Bill Impacts (Low Consumption Level) - Seas-UR
A3: Rate Class | B3: =VLOOKUP(A1,'Data BI List Acq_Seas'!C:E,2,FALSE) -> Seasonal | C3: =VLOOKUP(A1,'Data BI List Acq_Seas'!C:E,3,FALSE) -> UR
A4: Monthly Consumption (kWh) | B4: =IF(COUNTIF(A1,"*Low*")>0,VLOOKUP(B3,'Data Billing Quantities'!$A:$Z,MATCH("Low kWh",'Data Billing Quantities'!4:4,0),FALSE),IF(COUNTIF(A1,"*Typical*")>0,VLOOKUP(B3,'Data Billing Quantities'!$A:$Z,MATCH("Typical kWh",'Data Billing Quantities'!4:4,0),FALSE),IF(COUNTIF(A1,"*Average*")>0,VLOOKUP(B3,'Data Billing Quantities'!$A:$Z,MATCH("Average kWh",'Data Billing Quantities'!4:4,0),FALSE),IF(COUNTIF(A1,"*High*")>0,VLOOKUP(B3,'Data Billing Quantities'!$A:$Z,MATCH("High kWh",'Data Billing Quantities'!4:4,0),FALSE),"error")))) -> 40 | C4: =B4 -> 40
A5: Peak (kW) | B5: =IF(COUNTIF(A1,"*Low*")>0,VLOOKUP(B3,'Data Billing Quantities'!$A:$Z,MATCH("Low kW",'Data Billing Quantities'!4:4,0),FALSE),IF(COUNTIF(A1,"*Typical*")>0,VLOOKUP(B3,'Data Billing Quantities'!$A:$Z,MATCH("Typical kW",'Data Billing Quantities'!4:4,0),FALSE),IF(COUNTIF(A1,"*Average*")>0,VLOOKUP(B3,'Data Billing Quantities'!$A:$Z,MATCH("Average kW",'Data Billing Quantities'!4:4,0),FALSE),IF(COUNTIF(A1,"*High*")>0,VLOOKUP(B3,'Data Billing Quantities'!$A:$Z,MATCH("High kW",'Data Billing Quantities'!4:4,0),FALSE),"error")))) -> 0 | C5: =B5 -> 0
A6: Loss factor | B6: =VLOOKUP(B3,'Data Billing Quantities'!A:D,MATCH(A6,'Data Billing Quantities'!4:4,0),FALSE) -> 1.104 | C6: =VLOOKUP(C3,'Data Billing Quantities'!A:D,MATCH(A6,'Data Billing Quantities'!4:4,0),FALSE) -> 1.057
A7: Commodity Threshold | B7: =VLOOKUP(B3,'Data Billing Quantities'!A:D,MATCH(A7,'Data Billing Quantities'!4:4,0),FALSE) -> 600 | C7: =B7 -> 600
A8: Monthly Consumption (kWh) - Uplifted | B8: =B4*B6 -> 44.16 | C8: =C4*C6 -> 42.28
A9: Charge determinant | B9: =VLOOKUP(B3,'Data Billing Quantities'!A:D,MATCH(A9,'Data Billing Quantities'!4:4,0),FALSE) -> kWh | C9: =VLOOKUP(C3,'Data Billing Quantities'!A:D,MATCH(A9,'Data Billing Quantities'!4:4,0),FALSE) -> kWh
B11: Volume | C11: Current Rate ($) | D11: Current Charge ($) | E11: Volume | F11: Proposed Rate ($) | G11: Proposed Charge ($) | H11: Change ($) | I11: Change (%) | J11: % of Total Bill on RPP | K11: % of Total Bill
A12: Energy First Tier | B12: =IF(B4>B7,B7,B4) -> 40 | C12: =VLOOKUP($A12,'Data Pass Through'!$A:$D,2,FALSE) -> 0.098 | D12: =B12*C12 -> 3.92 | E12: =B12 -> 40 | F12: =VLOOKUP($A12,'Data Pass Through'!$A:$D,3,FALSE) -> 0.098 | G12: =E12*F12 -> 3.92 | H12: =G12-D12 -> 0 | I12: =IF(ISERROR(H12/ABS(D12)),"N/A",(H12/ABS(D12))) -> 0 | J12: =G12/$G$46 -> 0.0957399391
A13: Energy Second Tier | B13: =IF(B4>B7,(B4)-B7,0) -> 0 | C13: =VLOOKUP($A13,'Data Pass Through'!$A:$D,2,FALSE) -> 0.115 | D13: =B13*C13 -> 0 | E13: =B13 -> 0 | F13: =VLOOKUP($A13,'Data Pass Through'!$A:$D,3,FALSE) -> 0.115 | G13: =E13*F13 -> 0 | H13: 0 | I13: N/A | J13: =G13/$G$46 -> 0
A14: Sub-Total: Energy (RPP Tiered) | D14: =SUM(D12:D13) -> 3.92 | G14: =SUM(G12:G13) -> 3.92 | H14: 0 | I14: 0 | J14: =G14/$G$46 -> 0.0957399391
A15: TOU-Off Peak | B15: =B$4*VLOOKUP($B$3,'Data Billing Quantities'!$A:$O,MATCH('BI Template_Seasonal'!$A15,'Data Billing Quantities'!$4:$4,0),FALSE) -> 25.6 | C15: =VLOOKUP($A15,'Data Pass Through'!$A:$D,2,FALSE) -> 0.082 | D15: =B15*C15 -> 2.0992 | E15: 25.6 | F15: =VLOOKUP($A15,'Data Pass Through'!$A:$D,3,FALSE) -> 0.082 | G15: =E15*F15 -> 2.0992 | H15: 0 | I15: 0 | K15: =G15/$G$51 -> 0.05100111148
A16: TOU-Mid Peak | B16: =B$4*VLOOKUP($B$3,'Data Billing Quantities'!$A:$O,MATCH('BI Template_Seasonal'!$A16,'Data Billing Quantities'!$4:$4,0),FALSE) -> 7.2 | C16: =VLOOKUP($A16,'Data Pass Through'!$A:$D,2,FALSE) -> 0.113 | D16: =B16*C16 -> 0.8136 | E16: 7.2 | F16: =VLOOKUP($A16,'Data Pass Through'!$A:$D,3,FALSE) -> 0.113 | G16: =E16*F16 -> 0.8136 | H16: 0 | I16: 0 | K16: 0.01976681798
A17: TOU-On Peak | B17: =B$4*VLOOKUP($B$3,'Data Billing Quantities'!$A:$O,MATCH('BI Template_Seasonal'!$A17,'Data Billing Quantities'!$4:$4,0),FALSE) -> 7.2 | C17: =VLOOKUP($A17,'Data Pass Through'!$A:$D,2,FALSE) -> 0.17 | D17: =B17*C17 -> 1.224 | E17: 7.2 | F17: =VLOOKUP($A17,'Data Pass Through'!$A:$D,3,FALSE) -> 0.17 | G17: =E17*F17 -> 1.224 | H17: 0 | I17: 0 | K17: 0.02973769076
A18: Sub-Total: Energy (RPP TOU) | D18: =SUM(D15:D17) -> 4.1368 | G18: =SUM(G15:G17) -> 4.1368 | H18: 0 | I18: 0 | J18: =G18/$G$46 -> 0.1010349439 | K18: 0.1005056202
A19: Service Charge | B19: 1 | C19: =VLOOKUP($B$3,'Data Current Rates'!$A:$AL,MATCH('BI Template_Seasonal'!$A19,CurrentHeader,0),FALSE) -> 58.43 | D19: =B19*C19 -> 58.43 | E19: 1 | F19: =IF(C3="R2",(VLOOKUP($C$3,'Data Proposed Rates'!$A:$BA,MATCH('BI Template_Seasonal'!$A19,ProposedHeader,0),FALSE)+'Data Pass Through'!B4),VLOOKUP($C$3,'Data Proposed Rates'!$A:$BA,MATCH('BI Template_Seasonal'!$A19,ProposedHeader,0),FALSE)) -> 36.88 | G19: =E19*F19 -> 36.88 | H19: -21.55 | I19: -0.3688173883 | J19: 0.9007369781 | K19: 0.8960180028
A20: Fixed Base Rate Adjustment to Recover Past Tax Amounts | B20: 1 | C20: =VLOOKUP($B$3,'Data Current Rates'!$A:$AL,MATCH('BI Template_Seasonal'!$A20,CurrentHeader,0),FALSE) -> 1.79 | D20: =B20*C20 -> 1.79 | E20: 1 | F20: =IF(C4="R2",(VLOOKUP($C$3,'Data Proposed Rates'!$A:$BA,MATCH('BI Template_Seasonal'!$A20,ProposedHeader,0),FALSE)+'Data Pass Through'!B5),VLOOKUP($C$3,'Data Proposed Rates'!$A:$BA,MATCH('BI Template_Seasonal'!$A20,ProposedHeader,0),FALSE)) -> 0.8 | G20: =E20*F20 -> 0.8 | H20: -0.99 | I20: -0.5530726257 | J20: 0.01953876308 | K20: 0.01943639919
A21: Group 2 Fixed DVA Rider | E21: 1 | F21: =VLOOKUP($C$3,'Data Proposed Rates'!$A:$BA,MATCH('BI Template_Seasonal'!$A21,ProposedHeader,0),FALSE) -> -0.08 | G21: -0.08 | H21: -0.08 | I21: N/A | J21: -0.001953876308 | K21: -0.001943639919
A22: Distribution Volumetric Charge | B22: =IF($B$9="kWh",$B$4,$B$5) -> 40 | C22: =VLOOKUP($B$3,'Data Current Rates'!$A:$AL,MATCH('BI Template_Seasonal'!$A22,CurrentHeader,0),FALSE) -> 0.0311 | D22: 1.244 | E22: =IF($C$9="kWh",$C$4,$C$5) -> 40 | F22: =VLOOKUP($C$3,'Data Proposed Rates'!$A:$BA,MATCH('BI Template_Seasonal'!$A22,ProposedHeader,0),FALSE) -> 0 | G22: 0 | H22: -1.244 | I22: -1 | J22: 0 | K22: 0
A23: Volumetric Base Rate Adjustment to Recover Past Tax Amounts | B23: =IF($B$9="kWh",$B$4,$B$5) -> 40 | C23: =VLOOKUP($B$3,'Data Current Rates'!$A:$AL,MATCH('BI Template_Seasonal'!$A23,CurrentHeader,0),FALSE) -> 0 | D23: 0 | E23: =IF($C$9="kWh",$C$4,$C$5) -> 40 | F23: =VLOOKUP($C$3,'Data Proposed Rates'!$A:$BA,MATCH('BI Template_Seasonal'!$A23,ProposedHeader,0),FALSE) -> 0 | G23: =E23*F23 -> 0 | H23: 0 | I23: N/A | J23: 0 | K23: 0
A24: Group 1 Volumetric DVA Rider (General) | E24: =IF($C$9="kWh",$C$4,$C$5) -> 40 | F24: =VLOOKUP($C$3,'Data Proposed Rates'!$A:$BA,MATCH('BI Template_Seasonal'!$A24,ProposedHeader,0),FALSE) -> -0.0004 | G24: -0.016 | H24: -0.016 | I24: N/A | J24: -0.0003907752616 | K24: -0.0003887279838
A25: Group 2 Volumetric DVA Rider | E25: 40 | F25: =VLOOKUP($C$3,'Data Proposed Rates'!$A:$BA,MATCH('BI Template_Seasonal'!$A25,ProposedHeader,0),FALSE) -> 0 | G25: 0 | H25: 0 | I25: N/A | J25: 0 | K25: 0
A26: Sub-Total: Distribution (excluding pass through) | D26: =SUM(INDIRECT("D19:D"&ROW()-1)) -> 61.464 | G26: =SUM(INDIRECT("g19:g"&ROW()-1)) -> 37.584 | H26: =G26-D26 -> -23.88 | I26: -0.3885201093 | J26: 0.9179310896 | K26: 0.9131220341
A27: Smart Metering Entity Charge | B27: =B19 -> 1 | C27: =VLOOKUP($A27,'Data Pass Through'!$A:$D,2,FALSE) -> 0.57 | D27: =B27*C27 -> 0.57 | E27: =E19 -> 1 | F27: =VLOOKUP($A27,'Data Pass Through'!$A:$D,3,FALSE) -> 0.57 | G27: =E27*F27 -> 0.57 | H27: 0 | I27: 0 | J27: 0.0139213687 | K27: 0.01384843442
A28: Line Losses on Cost of Power (based on two-tier RPP prices) | B28: =B8-B4 -> 4.16 | C28: =IF(B4>B7,C13,C12) -> 0.098 | D28: =B28*C28 -> 0.40768 | E28: =C8-C4 -> 2.28 | F28: =IF(C4>C7,F13,F12) -> 0.098 | G28: =E28*F28 -> 0.22344 | H28: -0.18424 | I28: -0.4519230769 | J28: 0.005457176529 | K28: 0.005428586294
A29: Line Losses on Cost of Power (based on TOU prices) | B29: =B8-B4 -> 4.16 | C29: =VLOOKUP($B$3,'Data Billing Quantities'!$A:$O,MATCH('BI Template_Seasonal'!$A15,'Data Billing Quantities'!$4:$4,0),FALSE)*C15+VLOOKUP($B$3,'Data Billing Quantities'!$A:$O,MATCH('BI Template_Seasonal'!$A16,'Data Billing Quantities'!$4:$4,0),FALSE)*C16+VLOOKUP($B$3,'Data Billing Quantities'!$A:$O,MATCH('BI Template_Seasonal'!$A17,'Data Billing Quantities'!$4:$4,0),FALSE)*C17 -> 0.10342 | D29: =B29*C29 -> 0.4302272 | E29: =C8-C4 -> 2.28 | F29: =VLOOKUP($C$3,'Data Billing Quantities'!$A:$O,MATCH('BI Template_Seasonal'!$A15,'Data Billing Quantities'!$4:$4,0),FALSE)*F15+VLOOKUP($C$3,'Data Billing Quantities'!$A:$O,MATCH('BI Template_Seasonal'!$A16,'Data Billing Quantities'!$4:$4,0),FALSE)*F16+VLOOKUP($C$3,'Data Billing Quantities'!$A:$O,MATCH('BI Template_Seasonal'!$A17,'Data Billing Quantities'!$4:$4,0),FALSE)*F17 -> 0.10342 | G29: =E29*F29 -> 0.2357976 | H29: -0.1944296 | I29: -0.4519230769 | J29: 0.005758991802 | K29: 0.005728820353
A30: Sub-Total: Distribution (based on two-tier RPP prices) | D30: =SUM(D26,D27:D28) -> 62.44168 | G30: =SUM(G26,G27:G28) -> 38.37744 | H30: -24.06424 | I30: -0.3853874527 | J30: 0.9373096348 | K30: 0.9323990548
A31: Sub-Total: Distribution (based on TOU prices) | D31: =SUM(D26,D27,D29) -> 62.4642272 | G31: =SUM(G26,G27,G29) -> 38.3897976 | H31: -24.0744296 | I31: -0.3854114696 | J31: 0.9376114501 | K31: 0.9326992888
A32: Retail Transmission Rate – Network Service Rate | B32: =IF($B$9="kWh",$B$8,$B$5) -> 44.16 | C32: =VLOOKUP($B$3,'Data Current Rates'!$A:$AL,MATCH('BI Template_Seasonal'!$A32,CurrentHeader,0),FALSE) -> 0.0081 | D32: =B32*C32 -> 0.357696 | E32: =IF($C$9="kWh",$C$8,$C$5) -> 42.28 | F32: =VLOOKUP($C$3,'Data Proposed Rates'!$A:$BA,MATCH('BI Template_Seasonal'!$A32,ProposedHeader,0),FALSE) -> 0.0109 | G32: =E32*F32 -> 0.460852 | H32: =G32-D32 -> 0.103156 | I32: 0.2883901413 | J32: 0.01125559755 | K32: 0.0111966293
A33: Retail Transmission Rate – Line and Transformation Connection Service Rate | B33: =IF($B$9="kWh",$B$8,$B$5) -> 44.16 | C33: =VLOOKUP($B$3,'Data Current Rates'!$A:$AL,MATCH('BI Template_Seasonal'!$A33,CurrentHeader,0),FALSE) -> 0.0064 | D33: =B33*C33 -> 0.282624 | E33: =IF($C$9="kWh",$C$8,$C$5) -> 42.28 | F33: =VLOOKUP($C$3,'Data Proposed Rates'!$A:$BA,MATCH('BI Template_Seasonal'!$A33,ProposedHeader,0),FALSE) -> 0.008 | G33: =E33*F33 -> 0.33824 | H33: =G33-D33 -> 0.055616 | I33: 0.1967844203 | J33: 0.008260989031 | K33: 0.008217709579
A34: Sub-Total: Retail Transmission | D34: =SUM(D32:D33) -> 0.64032 | G34: =SUM(G32:G33) -> 0.799092 | H34: =G34-D34 -> 0.158772 | I34: 0.2479572714 | J34: 0.01951658659 | K34: 0.01941433888
A35: Sub-Total: Delivery (based on two-tier RPP prices) | D35: =D30+D34 -> 63.082 | G35: =G30+G34 -> 39.176532 | H35: =G35-D35 -> -23.905468 | I35: -0.3789586253 | J35: 0.9568262214 | K35: 0.9518133937
A36: Sub-Total: Delivery (based on TOU prices) | D36: =D31+D34 -> 63.1045472 | G36: =G31+G34 -> 39.1888896 | H36: =G36-D36 -> -23.9156576 | I36: -0.3789846954 | J36: 0.9571280367 | K36: 0.9521136277
A37: Wholesale Market Service Rate (WMS) - not including CBR | B37: =B8 -> 44.16 | C37: =VLOOKUP($A37,'Data Pass Through'!$A:$D,2,FALSE) -> 0.003 | D37: =B37*C37 -> 0.13248 | E37: =$C$8 -> 42.28 | F37: =VLOOKUP($A37,'Data Pass Through'!$A:$D,3,FALSE) -> 0.003 | G37: =E37*F37 -> 0.12684 | H37: -0.00564 | I37: -0.04257246377 | J37: 0.003097870887 | K37: 0.003081641092
A38: Capacity Based Recovery (CBR) - Applicable for Class B Customers | B38: =B8 -> 44.16 | C38: =VLOOKUP($A38,'Data Pass Through'!$A:$D,2,FALSE) -> 0.0004 | D38: =B38*C38 -> 0.017664 | E38: =$C$8 -> 42.28 | F38: =VLOOKUP($A38,'Data Pass Through'!$A:$D,3,FALSE) -> 0.0004 | G38: =E38*F38 -> 0.016912 | H38: -0.000752 | I38: -0.04257246377 | J38: 0.0004130494515 | K38: 0.0004108854789
A39: Rural Rate Protection Charge | B39: =B8 -> 44.16 | C39: =VLOOKUP($A39,'Data Pass Through'!$A:$D,2,FALSE) -> 0.0005 | D39: 0.02208 | E39: 42.28 | F39: =VLOOKUP($A39,'Data Pass Through'!$A:$D,3,FALSE) -> 0.0005 | G39: 0.02114 | H39: -0.00094 | I39: -0.04257246377 | J39: 0.0005163118144 | K39: 0.0005136068487
A40: Standard Supply Service – Administration Charge (if applicable) | B40: 1 | C40: =VLOOKUP($A40,'Data Pass Through'!$A:$D,2,FALSE) -> 0.25 | D40: =B40*C40 -> 0.25 | E40: 1 | F40: =VLOOKUP($A40,'Data Pass Through'!$A:$D,3,FALSE) -> 0.25 | G40: 0.25 | H40: 0 | I40: 0 | J40: 0.006105863463 | K40: 0.006073874748
A41: Sub-Total: Regulatory | D41: =SUM(D37:D40) -> 0.422224 | G41: =SUM(G37:G40) -> 0.414892 | H41: -0.007332 | I41: -0.01736519004 | J41: 0.01013309562 | K41: 0.01008000817
A42: Total Electricty Charge on Two-Tier RPP | D42: =SUM(D14,D26,D27,D28,D34,D41) -> 67.424224 | G42: =SUM(G14,G26,G27,G28,G34,G41) -> 43.511424 | H42: -23.9128 | I42: -0.3546618497 | J42: 1.062699256
A43: HST | C43: 0.13 | D43: =D42*C43 -> 8.76514912 | F43: =C43 -> 0.13 | G43: =G42*F43 -> 5.65648512 | H43: -3.108664 | I43: -0.3546618497 | J43: 0.1381509033
A44: Total Electricity Charge on Two-Tier RPP (including HST) | D44: =SUM(D42:D43) -> 76.18937312 | G44: =SUM(G42:G43) -> 49.16790912 | H44: -27.021464 | I44: -0.3546618497 | J44: 1.200850159
A45: Ontario Electricity Rebate (OER) | C45: =IF(($B$4*12)<250000,VLOOKUP(A45,'Data Pass Through'!$A$4:$C$20,2,0),0) -> -0.189 | D45: =D42*C45 -> -12.74317834 | F45: =C45 -> -0.189 | G45: =G42*F45 -> -8.223659136 | H45: 4.5195192 | I45: 0.3546618497 | J45: -0.2008501594
A46: Total Amount on Two-Tier RPP | D46: =SUM(D44:D45) -> 63.44619478 | G46: =SUM(G44:G45) -> 40.94424998 | H46: -22.5019448 | I46: -0.3546618497 | J46: 1
A47: Total Electricty Charge on TOU (before HST) | D47: =SUM(D18,D26,D27,D29,D34,D41) -> 67.6635712 | G47: =SUM(G18,G26,G27,G29,G34,G41) -> 43.7405816 | H47: -23.9229896 | I47: -0.353557892 | K47: =G47/$G$51 -> 1.062699256
A48: HST | C48: 0.13 | D48: =D47*C48 -> 8.796264256 | F48: =C48 -> 0.13 | G48: =G47*F48 -> 5.686275608 | H48: -3.109988648 | I48: -0.353557892 | K48: =G48/$G$51 -> 0.1381509033
A49: Total Electricity Charge on TOU (including HST) | D49: =SUM(D47:D48) -> 76.45983546 | G49: =SUM(G47:G48) -> 49.42685721 | H49: -27.03297825 | I49: -0.353557892 | K49: =G49/$G$51 -> 1.200850159
A50: Ontario Electricity Rebate (OER) | C50: =IF(($B$4*12)<250000,VLOOKUP(A50,'Data Pass Through'!$A$4:$C$20,2,0),0) -> -0.189 | D50: =D47*C50 -> -12.78841496 | F50: =C50 -> -0.189 | G50: =G47*F50 -> -8.266969922 | H50: 4.521445034 | I50: 0.353557892 | K50: =G50/$G$51 -> -0.2008501594
A51: Total Amount on TOU | D51: =SUM(D49:D50) -> 63.6714205 | G51: =SUM(G49:G50) -> 41.15988729 | H51: -22.51153321 | I51: -0.353557892 | K51: =G51/$G$51 -> 1
A52: * Distribution rate protection applies to R1 and R2 customers

Sheet BI Template_EnergyNPDI (hidden)
A1: 2023 Bill Impacts (Low Consumption Level) - AR_NPDI
A3: Rate Class | B3: =VLOOKUP(A1,'Data BI List Acq_Seas'!C:E,2,FALSE) -> NPDI_RES | C3: =VLOOKUP(A1,'Data BI List Acq_Seas'!C:E,3,FALSE) -> AR-NPDI
A4: Monthly Consumption (kWh) | B4: =IF(COUNTIF(A1,"*Low*")>0,VLOOKUP(B3,'Data Billing Quantities'!$A:$Z,MATCH("Low kWh",'Data Billing Quantities'!4:4,0),FALSE),IF(COUNTIF(A1,"*Typical*")>0,VLOOKUP(B3,'Data Billing Quantities'!$A:$Z,MATCH("Typical kWh",'Data Billing Quantities'!4:4,0),FALSE),IF(COUNTIF(A1,"*Average*")>0,VLOOKUP(B3,'Data Billing Quantities'!$A:$Z,MATCH("Average kWh",'Data Billing Quantities'!4:4,0),FALSE),IF(COUNTIF(A1,"*High*")>0,VLOOKUP(B3,'Data Billing Quantities'!$A:$Z,MATCH("High kWh",'Data Billing Quantities'!4:4,0),FALSE),"error")))) -> 290 | C4: =B4 -> 290
A5: Peak (kW) | B5: =IF(COUNTIF(A1,"*Low*")>0,VLOOKUP(B3,'Data Billing Quantities'!$A:$Z,MATCH("Low kW",'Data Billing Quantities'!4:4,0),FALSE),IF(COUNTIF(A1,"*Typical*")>0,VLOOKUP(B3,'Data Billing Quantities'!$A:$Z,MATCH("Typical kW",'Data Billing Quantities'!4:4,0),FALSE),IF(COUNTIF(A1,"*Average*")>0,VLOOKUP(B3,'Data Billing Quantities'!$A:$Z,MATCH("Average kW",'Data Billing Quantities'!4:4,0),FALSE),IF(COUNTIF(A1,"*High*")>0,VLOOKUP(B3,'Data Billing Quantities'!$A:$Z,MATCH("High kW",'Data Billing Quantities'!4:4,0),FALSE),"error")))) -> 0 | C5: =B5 -> 0
A6: Loss factor | B6: =VLOOKUP(B3,'Data Billing Quantities'!A:D,MATCH(A6,'Data Billing Quantities'!4:4,0),FALSE) -> 1.0564 | C6: =VLOOKUP(C3,'Data Billing Quantities'!A:D,MATCH(A6,'Data Billing Quantities'!4:4,0),FALSE) -> 1.064
A7: Commodity Threshold | B7: =VLOOKUP(B3,'Data Billing Quantities'!A:D,MATCH(A7,'Data Billing Quantities'!4:4,0),FALSE) -> 600 | C7: =B7 -> 600
A8: Monthly Consumption (kWh) - Uplifted | B8: =B4*B6 -> 306.356 | C8: =C4*C6 -> 308.56
A9: Charge determinant | B9: =VLOOKUP(B3,'Data Billing Quantities'!A:D,MATCH(A9,'Data Billing Quantities'!4:4,0),FALSE) -> kWh | C9: =VLOOKUP(C3,'Data Billing Quantities'!A:D,MATCH(A9,'Data Billing Quantities'!4:4,0),FALSE) -> kWh
B11: Volume | C11: Current Rate ($) | D11: Current Charge ($) | E11: Volume | F11: Proposed Rate ($) | G11: Proposed Charge ($) | H11: Change ($) | I11: Change (%) | J11: % of Total Bill on RPP | K11: % of Total Bill
A12: Energy First Tier | B12: =IF(B4>B7,B7,B4) -> 290 | C12: =VLOOKUP($A12,'Data Pass Through'!$A:$D,2,FALSE) -> 0.098 | D12: =B12*C12 -> 28.42 | E12: =B12 -> 290 | F12: =VLOOKUP($A12,'Data Pass Through'!$A:$D,3,FALSE) -> 0.098 | G12: =E12*F12 -> 28.42 | H12: =G12-D12 -> 0 | I12: =IF(ISERROR(H12/ABS(D12)),"N/A",(H12/ABS(D12))) -> 0 | J12: =G12/$G$47 -> 0.402947479
A13: Energy Second Tier | B13: =IF(B4>B7,(B4)-B7,0) -> 0 | C13: =VLOOKUP($A13,'Data Pass Through'!$A:$D,2,FALSE) -> 0.115 | D13: =B13*C13 -> 0 | E13: =B13 -> 0 | F13: =VLOOKUP($A13,'Data Pass Through'!$A:$D,3,FALSE) -> 0.115 | G13: =E13*F13 -> 0 | H13: 0 | I13: N/A | J13: =G13/$G$47 -> 0
A14: Sub-Total: Energy (RPP Tiered) | D14: =SUM(D12:D13) -> 28.42 | G14: =SUM(G12:G13) -> 28.42 | H14: 0 | I14: 0 | J14: =G14/$G$47 -> 0.402947479
A15: TOU-Off Peak | B15: =B$4*VLOOKUP($B$3,'Data Billing Quantities'!$A:$O,MATCH('BI Template_EnergyNPDI'!$A15,'Data Billing Quantities'!$4:$4,0),FALSE) -> 185.6 | C15: =VLOOKUP($A15,'Data Pass Through'!$A:$D,2,FALSE) -> 0.082 | D15: =B15*C15 -> 15.2192 | E15: 185.6 | F15: =VLOOKUP($A15,'Data Pass Through'!$A:$D,3,FALSE) -> 0.082 | G15: =E15*F15 -> 15.2192 | H15: 0 | I15: 0 | K15: =G15/$G$52 -> 0.2110728726
A16: TOU-Mid Peak | B16: =B$4*VLOOKUP($B$3,'Data Billing Quantities'!$A:$O,MATCH('BI Template_EnergyNPDI'!$A16,'Data Billing Quantities'!$4:$4,0),FALSE) -> 52.2 | C16: =VLOOKUP($A16,'Data Pass Through'!$A:$D,2,FALSE) -> 0.113 | D16: =B16*C16 -> 5.8986 | E16: 52.2 | F16: =VLOOKUP($A16,'Data Pass Through'!$A:$D,3,FALSE) -> 0.113 | G16: =E16*F16 -> 5.8986 | H16: 0 | I16: 0 | K16: 0.08180682599
A17: TOU-On Peak | B17: =B$4*VLOOKUP($B$3,'Data Billing Quantities'!$A:$O,MATCH('BI Template_EnergyNPDI'!$A17,'Data Billing Quantities'!$4:$4,0),FALSE) -> 52.2 | C17: =VLOOKUP($A17,'Data Pass Through'!$A:$D,2,FALSE) -> 0.17 | D17: =B17*C17 -> 8.874 | E17: 52.2 | F17: =VLOOKUP($A17,'Data Pass Through'!$A:$D,3,FALSE) -> 0.17 | G17: =E17*F17 -> 8.874 | H17: 0 | I17: 0 | K17: 0.1230722161
A18: Sub-Total: Energy (RPP TOU) | D18: =SUM(D15:D17) -> 29.9918 | G18: =SUM(G15:G17) -> 29.9918 | H18: 0 | I18: 0 | J18: =G18/$G$47 -> 0.4252329416 | K18: 0.4159519147
A19: Service Charge | B19: 1 | C19: =VLOOKUP($B$3,'Data Current Rates'!$A:$AL,MATCH('BI Template_EnergyNPDI'!$A19,CurrentHeader,0),FALSE) -> 39.1 | D19: =B19*C19 -> 39.1 | E19: 1 | F19: =VLOOKUP($C$3,'Data Proposed Rates'!$A:$BA,MATCH('BI Template_EnergyNPDI'!$A19,ProposedHeader,0),FALSE) -> 36.98 | G19: =E19*F19 -> 36.98 | H19: -2.12 | I19: -0.05421994885 | J19: 0.5243137851 | K19: 0.5128702447
A20: Distribution Volumetric Charge | B20: =IF($B$9="kWh",$B$4,$B$5) -> 290 | C20: =VLOOKUP($B$3,'Data Current Rates'!$A:$AL,MATCH('BI Template_EnergyNPDI'!$A20,CurrentHeader,0),FALSE) -> 0 | D20: =B20*C20 -> 0 | E20: =IF($C$9="kWh",$C$4,$C$5) -> 290 | F20: =VLOOKUP($C$3,'Data Proposed Rates'!$A:$BA,MATCH('BI Template_EnergyNPDI'!$A20,ProposedHeader,0),FALSE) -> 0 | G20: 0 | H20: 0 | I20: N/A | J20: 0 | K20: 0
A21: Low Voltage Service Rate | B21: =IF($B$9="kWh",$B$4,$B$5) -> 290 | C21: =VLOOKUP($B$3,'Data Current Rates'!$A:$AL,MATCH('BI Template_EnergyNPDI'!$A21,CurrentHeader,0),FALSE) -> 0.0009 | D21: 0.261 | H21: =G21-D21 -> -0.261 | I21: =IF(ISERROR(H21/ABS(D21)),"N/A",(H21/ABS(D21))) -> -1 | J21: 0 | K21: 0
A22: Rate Rider for Application of Tax Change | B22: 290 | C22: =VLOOKUP($B$3,'Data Current Rates'!$A:$AL,MATCH('BI Template_EnergyNPDI'!$A22,CurrentHeader,0),FALSE) -> 0.0002 | D22: 0.058 | H22: -0.058 | I22: -1 | J22: 0 | K22: 0
A23: Group 1 Volumetric DVA Rider (General) | E23: =IF($C$9="kWh",$C$4,$C$5) -> 290 | F23: =VLOOKUP($C$3,'Data Proposed Rates'!$A:$BA,MATCH('BI Template_EnergyNPDI'!$A23,ProposedHeader,0),FALSE) -> -0.0005 | G23: -0.145 | H23: -0.145 | I23: N/A | J23: -0.002055854485 | K23: -0.002010983923
A24: Group 2 Fixed DVA Rider | B24: 1 | C24: =VLOOKUP($B$3,'Data Current Rates'!$A:$AL,MATCH('BI Template_EnergyNPDI'!$A24,CurrentHeader,0),FALSE) -> -0.14 | D24: -0.14 | H24: =G24-D24 -> 0.14 | I24: =IF(ISERROR(H24/ABS(D24)),"N/A",(H24/ABS(D24))) -> 1 | J24: =G24/$G$47 -> 0 | K24: =G24/$G$52 -> 0
A25: Group 2 Volumetric DVA Rider | B25: =IF($B$9="kWh",$B$4,$B$5) -> 290 | C25: =VLOOKUP($B$3,'Data Current Rates'!$A:$AL,MATCH('BI Template_EnergyNPDI'!$A25,CurrentHeader,0),FALSE) -> 0 | D25: 0 | H25: 0 | I25: N/A | J25: 0 | K25: 0
A26: LRAMVA Volumetric Rate Rider | B26: 290 | C26: =VLOOKUP($B$3,'Data Current Rates'!$A:$AL,MATCH('BI Template_EnergyNPDI'!$A26,CurrentHeader,0),FALSE) -> 0.0004 | D26: 0.116 | E26: =IF($C$9="kWh",$C$4,$C$5) -> 290 | F26: =VLOOKUP($C$3,'Data Proposed Rates'!$A:$BA,MATCH('BI Template_EnergyNPDI'!$A26,ProposedHeader,0),FALSE) -> 0.0004 | G26: =E26*F26 -> 0.116 | H26: 0 | I26: 0 | J26: 0.001644683588 | K26: 0.001608787138
A27: Sub-Total: Distribution (excluding pass through) | D27: =SUM(INDIRECT("D19:D"&ROW()-1)) -> 39.395 | G27: =SUM(INDIRECT("g19:g"&ROW()-1)) -> 36.951 | H27: =G27-D27 -> -2.444 | I27: -0.06203832974 | J27: =G27/$G$47 -> 0.5239026142 | K27: =G27/$G$52 -> 0.5124680479
A28: Smart Metering Entity Charge | B28: =B19 -> 1 | C28: =VLOOKUP($A28,'Data Pass Through'!$A:$D,2,FALSE) -> 0.57 | D28: =B28*C28 -> 0.57 | E28: =E19 -> 1 | F28: =VLOOKUP($A28,'Data Pass Through'!$A:$D,3,FALSE) -> 0.57 | G28: =E28*F28 -> 0.57 | H28: 0 | I28: 0 | J28: 0.00808163487 | K28: 0.007905247146
A29: Line Losses on Cost of Power (based on two-tier RPP prices) | B29: =B8-B4 -> 16.356 | C29: =IF(B4>B7,C13,C12) -> 0.098 | D29: =B29*C29 -> 1.602888 | E29: =C8-C4 -> 18.56 | F29: =IF(C4>C7,F13,F12) -> 0.098 | G29: =E29*F29 -> 1.81888 | H29: 0.215992 | I29: 0.134751773 | J29: 0.02578863865 | K29: 0.02522578233
A30: Line Losses on Cost of Power (based on TOU prices) | B30: =B8-B4 -> 16.356 | C30: =VLOOKUP($B$3,'Data Billing Quantities'!$A:$O,MATCH('BI Template_EnergyNPDI'!$A15,'Data Billing Quantities'!$4:$4,0),FALSE)*C15+VLOOKUP($B$3,'Data Billing Quantities'!$A:$O,MATCH('BI Template_EnergyNPDI'!$A16,'Data Billing Quantities'!$4:$4,0),FALSE)*C16+VLOOKUP($B$3,'Data Billing Quantities'!$A:$O,MATCH('BI Template_EnergyNPDI'!$A17,'Data Billing Quantities'!$4:$4,0),FALSE)*C17 -> 0.10342 | D30: =B30*C30 -> 1.69153752 | E30: =C8-C4 -> 18.56 | F30: =VLOOKUP($C$3,'Data Billing Quantities'!$A:$O,MATCH('BI Template_EnergyNPDI'!$A15,'Data Billing Quantities'!$4:$4,0),FALSE)*F15+VLOOKUP($C$3,'Data Billing Quantities'!$A:$O,MATCH('BI Template_EnergyNPDI'!$A16,'Data Billing Quantities'!$4:$4,0),FALSE)*F16+VLOOKUP($C$3,'Data Billing Quantities'!$A:$O,MATCH('BI Template_EnergyNPDI'!$A17,'Data Billing Quantities'!$4:$4,0),FALSE)*F17 -> 0.10342 | G30: =E30*F30 -> 1.9194752 | H30: 0.22793768 | I30: 0.134751773 | J30: 0.02721490826 | K30: 0.02662092254
A31: Sub-Total: Distribution (based on two-tier RPP prices) | D31: =SUM(D27,D28:D29) -> 41.567888 | G31: =SUM(G27,G28:G29) -> 39.33988 | H31: -2.228008 | I31: -0.05359925912 | J31: 0.5577728877 | K31: 0.5455990774
A32: Sub-Total: Distribution (based on TOU prices) | D32: =SUM(D27,D28,D30) -> 41.65653752 | G32: =SUM(G27,G28,G30) -> 39.4404752 | H32: -2.21606232 | I32: -0.05319842819 | J32: 0.5591991573 | K32: 0.5469942176
A33: Retail Transmission Rate – Network Service Rate | B33: =IF($B$9="kWh",$B$8,$B$5) -> 306.356 | C33: =VLOOKUP($B$3,'Data Current Rates'!$A:$AL,MATCH('BI Template_EnergyNPDI'!$A33,CurrentHeader,0),FALSE) -> 0.0072 | D33: =B33*C33 -> 2.2057632 | E33: =IF($C$9="kWh",$C$8,$C$5) -> 308.56 | F33: =VLOOKUP($C$3,'Data Proposed Rates'!$A:$BA,MATCH('BI Template_EnergyNPDI'!$A33,ProposedHeader,0),FALSE) -> 0.0107 | G33: =E33*F33 -> 3.301592 | H33: =G33-D33 -> 1.0958288 | I33: 0.496802558 | J33: 0.04681098427 | K33: 0.04578929954
A34: Retail Transmission Rate – Line and Transformation Connection Service Rate | B34: =IF($B$9="kWh",$B$8,$B$5) -> 306.356 | C34: =VLOOKUP($B$3,'Data Current Rates'!$A:$AL,MATCH('BI Template_EnergyNPDI'!$A34,CurrentHeader,0),FALSE) -> 0.0041 | D34: =B34*C34 -> 1.2560596 | E34: =IF($C$9="kWh",$C$8,$C$5) -> 308.56 | F34: =VLOOKUP($C$3,'Data Proposed Rates'!$A:$BA,MATCH('BI Template_EnergyNPDI'!$A34,ProposedHeader,0),FALSE) -> 0.0079 | G34: =E34*F34 -> 2.437624 | H34: =G34-D34 -> 1.1815644 | I34: 0.9406913494 | J34: 0.03456138091 | K34: 0.03380705293
A35: Sub-Total: Retail Transmission | D35: =SUM(D33:D34) -> 3.4618228 | G35: =SUM(G33:G34) -> 5.739216 | H35: =G35-D35 -> 2.2773932 | I35: 0.6578595531 | J35: 0.08137236518 | K35: 0.07959635246
A36: Sub-Total: Delivery (based on two-tier RPP prices) | D36: =D31+D35 -> 45.0297108 | G36: =G31+G35 -> 45.079096 | H36: =G36-D36 -> 0.0493852 | I36: 0.001096724787 | J36: 0.6391452529 | K36: 0.6251954298
A37: Sub-Total: Delivery (based on TOU prices) | D37: =D32+D35 -> 45.11836032 | G37: =G32+G35 -> 45.1796912 | H37: =G37-D37 -> 0.06133088 | I37: 0.001359333087 | J37: 0.6405715225 | K37: 0.62659057
A38: Wholesale Market Service Rate (WMS) - not including CBR | B38: =B8 -> 306.356 | C38: =VLOOKUP($A38,'Data Pass Through'!$A:$D,2,FALSE) -> 0.003 | D38: =B38*C38 -> 0.919068 | E38: =$C$8 -> 308.56 | F38: =VLOOKUP($A38,'Data Pass Through'!$A:$D,3,FALSE) -> 0.003 | G38: =E38*F38 -> 0.92568 | H38: 0.006612 | I38: 0.007194244604 | J38: 0.01312457503 | K38: 0.01283812137
A39: Capacity Based Recovery (CBR) - Applicable for Class B Customers | B39: =B8 -> 306.356 | C39: =VLOOKUP($A39,'Data Pass Through'!$A:$D,2,FALSE) -> 0.0004 | D39: =B39*C39 -> 0.1225424 | E39: =$C$8 -> 308.56 | F39: =VLOOKUP($A39,'Data Pass Through'!$A:$D,3,FALSE) -> 0.0004 | G39: =E39*F39 -> 0.123424 | H39: 0.0008816 | I39: 0.007194244604 | J39: 0.001749943337 | K39: 0.001711749515
A40: Rural Rate Protection Charge | B40: =B8 -> 306.356 | C40: =VLOOKUP($A40,'Data Pass Through'!$A:$D,2,FALSE) -> 0.0005 | D40: 0.153178 | E40: 308.56 | F40: =VLOOKUP($A40,'Data Pass Through'!$A:$D,3,FALSE) -> 0.0005 | G40: 0.15428 | H40: 0.001102 | I40: 0.007194244604 | J40: 0.002187429172 | K40: 0.002139686894
A41: Standard Supply Service – Administration Charge (if applicable) | B41: 1 | C41: =VLOOKUP($A41,'Data Pass Through'!$A:$D,2,FALSE) -> 0.25 | D41: =B41*C41 -> 0.25 | E41: 1 | F41: =VLOOKUP($A41,'Data Pass Through'!$A:$D,3,FALSE) -> 0.25 | G41: 0.25 | H41: 0 | I41: 0 | J41: 0.003544576697 | K41: 0.003467213661
A42: Sub-Total: Regulatory | D42: =SUM(D38:D41) -> 1.4447884 | G42: =SUM(G38:G41) -> 1.453384 | H42: 0.0085956 | I42: 0.005949383315 | J42: 0.02060652424 | K42: 0.02015677144
A43: Total Electricty Charge on Two-Tier RPP | D43: =SUM(D14,D27,D28,D29,D35,D42) -> 74.8944992 | G43: =SUM(G14,G27,G28,G29,G35,G42) -> 74.95248 | H43: 0.0579808 | I43: 0.0007741663356 | J43: 1.062699256
A44: HST | C44: 0.13 | D44: =D43*C44 -> 9.736284896 | F44: =C44 -> 0.13 | G44: =G43*F44 -> 9.7438224 | H44: 0.007537504 | I44: 0.0007741663356 | J44: 0.1381509033
A45: Total Electricity Charge on Two-Tier RPP (including HST) | D45: =SUM(D43:D44) -> 84.6307841 | G45: =SUM(G43:G44) -> 84.6963024 | H45: 0.065518304 | I45: 0.0007741663356 | J45: 1.200850159
A46: Ontario Electricity Rebate (OER) | C46: =IF(($B$4*12)<250000,VLOOKUP(A46,'Data Pass Through'!$A$4:$C$20,2,0),0) -> -0.189 | D46: =D43*C46 -> -14.15506035 | F46: =C46 -> -0.189 | G46: =G43*F46 -> -14.16601872 | H46: -0.0109583712 | I46: -0.0007741663356 | J46: -0.2008501594
A47: Total Amount on Two-Tier RPP | D47: =SUM(D45:D46) -> 70.47572375 | G47: =SUM(G45:G46) -> 70.53028368 | H47: 0.0545599328 | I47: 0.0007741663356 | J47: 1
A48: Total Electricty Charge on TOU (before HST) | D48: =SUM(D18,D27,D28,D30,D35,D42) -> 76.55494872 | G48: =SUM(G18,G27,G28,G30,G35,G42) -> 76.6248752 | H48: 0.06992648 | I48: 0.0009134155423 | K48: =G48/$G$52 -> 1.062699256
A49: HST | C49: 0.13 | D49: =D48*C49 -> 9.952143334 | F49: =C49 -> 0.13 | G49: =G48*F49 -> 9.961233776 | H49: 0.0090904424 | I49: 0.0009134155423 | K49: =G49/$G$52 -> 0.1381509033
A50: Total Electricity Charge on TOU (including HST) | D50: =SUM(D48:D49) -> 86.50709205 | G50: =SUM(G48:G49) -> 86.58610898 | H50: 0.0790169224 | I50: 0.0009134155423 | K50: =G50/$G$52 -> 1.200850159
A51: Ontario Electricity Rebate (OER) | C51: =IF(($B$4*12)<250000,VLOOKUP(A51,'Data Pass Through'!$A$4:$C$20,2,0),0) -> -0.189 | D51: =D48*C51 -> -14.46888531 | F51: =C51 -> -0.189 | G51: =G48*F51 -> -14.48210141 | H51: -0.01321610472 | I51: -0.0009134155423 | K51: =G51/$G$52 -> -0.2008501594
A52: Total Amount on TOU | D52: =SUM(D50:D51) -> 72.03820675 | G52: =SUM(G50:G51) -> 72.10400756 | H52: 0.06580081768 | I52: 0.0009134155423 | K52: =G52/$G$52 -> 1

Sheet BI Template_DemandNPDI (hidden)
A1: 2023 Bill Impacts (Low Consumption Level) - AGSd_NPDI
A3: Rate Class | B3: =VLOOKUP(A1,'Data BI List Acq_Seas'!C:E,2,FALSE) -> NPDI_GS >50 | C3: =VLOOKUP(A1,'Data BI List Acq_Seas'!C:E,3,FALSE) -> AGSd-NPDI
A4: Monthly Consumption (kWh) | B4: =IF(COUNTIF(A1,"*Low*")>0,VLOOKUP(B3,'Data Billing Quantities'!$A:$Z,MATCH("Low kWh",'Data Billing Quantities'!4:4,0),FALSE),IF(COUNTIF(A1,"*Typical*")>0,VLOOKUP(B3,'Data Billing Quantities'!$A:$Z,MATCH("Typical kWh",'Data Billing Quantities'!4:4,0),FALSE),IF(COUNTIF(A1,"*Average*")>0,VLOOKUP(B3,'Data Billing Quantities'!$A:$Z,MATCH("Average kWh",'Data Billing Quantities'!4:4,0),FALSE),IF(COUNTIF(A1,"*High*")>0,VLOOKUP(B3,'Data Billing Quantities'!$A:$Z,MATCH("High kWh",'Data Billing Quantities'!4:4,0),FALSE),"error")))) -> 13020 | C4: =B4 -> 13020
A5: Peak (kW) | B5: =IF(COUNTIF(A1,"*Low*")>0,VLOOKUP(B3,'Data Billing Quantities'!$A:$Z,MATCH("Low kW",'Data Billing Quantities'!4:4,0),FALSE),IF(COUNTIF(A1,"*Typical*")>0,VLOOKUP(B3,'Data Billing Quantities'!$A:$Z,MATCH("Typical kW",'Data Billing Quantities'!4:4,0),FALSE),IF(COUNTIF(A1,"*Average*")>0,VLOOKUP(B3,'Data Billing Quantities'!$A:$Z,MATCH("Average kW",'Data Billing Quantities'!4:4,0),FALSE),IF(COUNTIF(A1,"*High*")>0,VLOOKUP(B3,'Data Billing Quantities'!$A:$Z,MATCH("High kW",'Data Billing Quantities'!4:4,0),FALSE),"error")))) -> 55 | C5: =B5 -> 55
A6: Loss factor | B6: =VLOOKUP(B3,'Data Billing Quantities'!A:D,MATCH(A6,'Data Billing Quantities'!4:4,0),FALSE) -> 1.0464 | C6: =VLOOKUP(C3,'Data Billing Quantities'!A:D,MATCH(A6,'Data Billing Quantities'!4:4,0),FALSE) -> 1.053
A7: Commodity Threshold | B7: =VLOOKUP(B3,'Data Billing Quantities'!A:D,MATCH(A7,'Data Billing Quantities'!4:4,0),FALSE) -> 0 | C7: =B7 -> 0
A8: Monthly Consumption (kWh) - Uplifted | B8: =B4*B6 -> 13624.128 | C8: =C4*C6 -> 13710.06
A9: Charge determinant | B9: =VLOOKUP(B3,'Data Billing Quantities'!A:D,MATCH(A9,'Data Billing Quantities'!4:4,0),FALSE) -> kW | C9: =VLOOKUP(C3,'Data Billing Quantities'!A:D,MATCH(A9,'Data Billing Quantities'!4:4,0),FALSE) -> kW
B11: Volume | C11: Current Rate ($) | D11: Current Charge ($) | E11: Volume | F11: Proposed Rate ($) | G11: Proposed Charge ($) | H11: Change ($) | I11: Change (%) | J11: % of Total Bill
A12: Weighted Average Hourly Spot Price | B12: =B8 -> 13624.128 | C12: =VLOOKUP($A12,'Data Pass Through'!$A:$D,2,FALSE) -> 0.119 | D12: =B12*C12 -> 1621.271232 | E12: =C8 -> 13710.06 | F12: =VLOOKUP($A12,'Data Pass Through'!$A:$D,3,FALSE) -> 0.119 | G12: =E12*F12 -> 1631.49714 | H12: =G12-D12 -> 10.225908 | I12: =IF(ISERROR(H12/ABS(D12)),"N/A",(H12/ABS(D12))) -> 0.00630733945 | J12: =G12/G$35 -> 0.6096746518
A13: Sub-Total: Energy (WASHP) | D13: =SUM(D12:D12) -> 1621.271232 | G13: =SUM(G12:G12) -> 1631.49714 | H13: 10.225908 | I13: 0.00630733945 | J13: 0.6096746518
A14: Service Charge | B14: 1 | C14: =VLOOKUP($B$3,'Data Current Rates'!$A:$AL,MATCH('BI Template_DemandNPDI'!$A14,CurrentHeader,0),FALSE) -> 260.95 | D14: =B14*C14 -> 260.95 | E14: 1 | F14: =VLOOKUP($C$3,'Data Proposed Rates'!$A:$BA,MATCH('BI Template_DemandNPDI'!$A14,ProposedHeader,0),FALSE) -> 186.87 | G14: =E14*F14 -> 186.87 | H14: -74.08 | I14: -0.2838858019 | J14: 0.06983150591
A15: Distribution Volumetric Charge | B15: =IF($B$9="kWh",$B$4,$B$5) -> 55 | C15: =VLOOKUP($B$3,'Data Current Rates'!$A:$AL,MATCH('BI Template_DemandNPDI'!$A15,CurrentHeader,0),FALSE) -> 4.2086 | D15: =B15*C15 -> 231.473 | E15: =IF($C$9="kWh",$C$4,$C$5) -> 55 | F15: =VLOOKUP($C$3,'Data Proposed Rates'!$A:$BA,MATCH('BI Template_DemandNPDI'!$A15,ProposedHeader,0),FALSE) -> 4.3771 | G15: 240.7405 | H15: 9.2675 | I15: 0.04003706696 | J15: 0.08996238909
A16: Low Voltage Service Rate | B16: =IF($B$9="kWh",$B$4,$B$5) -> 55 | C16: =VLOOKUP($B$3,'Data Current Rates'!$A:$AL,MATCH('BI Template_DemandNPDI'!$A16,CurrentHeader,0),FALSE) -> 0.305 | D16: 16.775 | H16: -16.775 | I16: -1 | J16: 0
A17: Rate Rider for Application of Tax Change | B17: 55 | C17: =VLOOKUP($B$3,'Data Current Rates'!$A:$AL,MATCH('BI Template_DemandNPDI'!$A17,CurrentHeader,0),FALSE) -> 0.0211 | D17: 1.1605 | H17: -1.1605 | I17: -1 | J17: 0
A18: Group 1 Volumetric DVA Rider (General) | E18: =IF($C$9="kWh",$C$4,$C$5) -> 55 | F18: =VLOOKUP($C$3,'Data Proposed Rates'!$A:$BA,MATCH('BI Template_DemandNPDI'!$A18,ProposedHeader,0),FALSE) -> -0.0399 | G18: -2.1945 | H18: -2.1945 | I18: N/A | J18: -0.0008200633581
A19: Group 1 Volumetric Deferral/Variance Account Rider (Sub-Account RSVA Wholesale Market Service Charge & RSVA Power) | E19: 55 | F19: =VLOOKUP($C$3,'Data Proposed Rates'!$A:$BA,MATCH('BI Template_DemandNPDI'!$A19,ProposedHeader,0),FALSE) -> -0.0829 | G19: -4.5595 | H19: -4.5595 | I19: N/A | J19: -0.001703840912
A20: Group 1 Volumetric Deferral/Variance Account Rider (Sub-Account Global Adjustment) | E20: =C4 -> 13020 | F20: =VLOOKUP($C$3,'Data Proposed Rates'!$A:$BA,MATCH('BI Template_DemandNPDI'!$A20,ProposedHeader,0),FALSE) -> -0.0007 | G20: -9.114 | H20: -9.114 | I20: N/A | J20: -0.003405813372
A21: Group 2 Volumetric DVA Rider | B21: =IF($B$9="kWh",$B$4,$B$5) -> 55 | C21: =VLOOKUP($B$3,'Data Current Rates'!$A:$AL,MATCH('BI Template_DemandNPDI'!$A21,CurrentHeader,0),FALSE) -> -0.0203 | D21: =B21*C21 -> -1.1165 | H21: =G21-D21 -> 1.1165 | I21: =IF(ISERROR(H21/ABS(D21)),"N/A",(H21/ABS(D21))) -> 1 | J21: =G21/G$35 -> 0
A22: LRAMVA Volumetric Rate Rider | B22: 55 | C22: =VLOOKUP($B$3,'Data Current Rates'!$A:$AL,MATCH('BI Template_DemandNPDI'!$A22,CurrentHeader,0),FALSE) -> 0.2853 | D22: 15.6915 | E22: =IF($C$9="kWh",$C$4,$C$5) -> 55 | F22: =VLOOKUP($C$3,'Data Proposed Rates'!$A:$BA,MATCH('BI Template_DemandNPDI'!$A22,ProposedHeader,0),FALSE) -> 0.2853 | G22: =E22*F22 -> 15.6915 | H22: 0 | I22: 0 | J22: 0.005863761305
A23: Sub-Total: Distribution | D23: =SUM(INDIRECT("D14:D"&ROW()-1)) -> 524.9335 | G23: =SUM(INDIRECT("g14:g"&ROW()-1)) -> 427.434 | H23: =G23-D23 -> -97.4995 | I23: -0.18573686 | J23: =G23/G$35 -> 0.1597279387
A24: Retail Transmission Rate – Network Service Rate | B24: =IF($B$9="kWh",$B$4,$B$5) -> 55 | C24: =VLOOKUP($B$3,'Data Current Rates'!$A:$AL,MATCH('BI Template_DemandNPDI'!$A24,CurrentHeader,0),FALSE) -> 2.7046 | D24: =B24*C24 -> 148.753 | E24: =IF($C$9="kWh",$C$4,$C$5) -> 55 | F24: =VLOOKUP($C$3,'Data Proposed Rates'!$A:$BA,MATCH('BI Template_DemandNPDI'!$A24,ProposedHeader,0),FALSE) -> 2.6521 | G24: =E24*F24 -> 145.8655 | H24: =G24-D24 -> -2.8875 | I24: -0.01941137322 | J24: 0.0545085221
A25: Retail Transmission Rate – Line and Transformation Connection Service Rate | B25: =IF($B$9="kWh",$B$4,$B$5) -> 55 | C25: =VLOOKUP($B$3,'Data Current Rates'!$A:$AL,MATCH('BI Template_DemandNPDI'!$A25,CurrentHeader,0),FALSE) -> 1.3772 | D25: =B25*C25 -> 75.746 | E25: =IF($C$9="kWh",$C$4,$C$5) -> 55 | F25: =VLOOKUP($C$3,'Data Proposed Rates'!$A:$BA,MATCH('BI Template_DemandNPDI'!$A25,ProposedHeader,0),FALSE) -> 1.9934 | G25: =E25*F25 -> 109.637 | H25: =G25-D25 -> 33.891 | I25: 0.4474295672 | J25: 0.04097028316
A26: Sub-Total: Retail Transmission | D26: =SUM(D24:D25) -> 224.499 | G26: =SUM(G24:G25) -> 255.5025 | H26: =G26-D26 -> 31.0035 | I26: 0.1381008379 | J26: 0.09547880526
A27: Sub-Total: Delivery (based on two-tier RPP prices) | D27: =SUM(D23,D26) -> 749.4325 | G27: =SUM(G23,G26) -> 682.9365 | H27: =G27-D27 -> -66.496 | I27: -0.08872847121 | J27: 0.2552067439
A28: Wholesale Market Service Rate (WMS) - not including CBR | B28: =B8 -> 13624.128 | C28: =VLOOKUP($A28,'Data Pass Through'!$A:$D,2,FALSE) -> 0.003 | D28: =B28*C28 -> 40.872384 | E28: =$C$8 -> 13710.06 | F28: =VLOOKUP($A28,'Data Pass Through'!$A:$D,3,FALSE) -> 0.003 | G28: =E28*F28 -> 41.13018 | H28: =G28-D28 -> 0.257796 | I28: 0.00630733945 | J28: 0.0153699492
A29: Capacity Based Recovery (CBR) - Applicable for Class B Customers | B29: =B8 -> 13624.128 | C29: =VLOOKUP($A29,'Data Pass Through'!$A:$D,2,FALSE) -> 0.0004 | D29: =B29*C29 -> 5.4496512 | E29: =$C$8 -> 13710.06 | F29: =VLOOKUP($A29,'Data Pass Through'!$A:$D,3,FALSE) -> 0.0004 | G29: =E29*F29 -> 5.484024 | H29: 0.0343728 | I29: 0.00630733945 | J29: 0.002049326561
A30: Rural Rate Protection Charge | B30: =B8 -> 13624.128 | C30: =VLOOKUP($A30,'Data Pass Through'!$A:$D,2,FALSE) -> 0.0005 | D30: 6.812064 | E30: 13710.06 | F30: =VLOOKUP($A30,'Data Pass Through'!$A:$D,3,FALSE) -> 0.0005 | G30: 6.85503 | H30: 0.042966 | I30: 0.00630733945 | J30: 0.002561658201
A31: Standard Supply Service – Administration Charge (if applicable) | B31: 1 | C31: =VLOOKUP($A31,'Data Pass Through'!$A:$D,2,FALSE) -> 0.25 | D31: =B31*C31 -> 0.25 | E31: =B31 -> 1 | F31: =VLOOKUP($A31,'Data Pass Through'!$A:$D,3,FALSE) -> 0.25 | G31: 0.25 | H31: 0 | I31: 0 | J31: 9.34225744e-05
A32: Sub-Total: Regulatory | D32: =SUM(D28:D31) -> 53.3840992 | G32: =SUM(G28:G31) -> 53.719234 | H32: 0.3351348 | I32: 0.006277801911 | J32: 0.02007435654
A33: Total Electricity Charge on WAHSP | D33: =SUM(D13,D27,D32) -> 2424.087831 | G33: =SUM(G13,G27,G32) -> 2368.152874 | H33: -55.9349572 | I33: -0.02307464131 | J33: 0.8849557522
A34: HST | C34: 0.13 | D34: =D33*C34 -> 315.1314181 | F34: =C34 -> 0.13 | G34: =G33*F34 -> 307.8598736 | H34: -7.271544436 | I34: -0.02307464131 | J34: 0.1150442478
A35: Total Amount on WAHSP | D35: =SUM(D33:D34) -> 2739.219249 | G35: =SUM(G33:G34) -> 2676.012748 | H35: -63.20650164 | I35: -0.02307464131 | J35: 1

Sheet BI Template_unmNPDI (hidden)
A1: 2023 Bill Impacts (Average Consumption Level) - St Lgt_NPDI
A3: Rate Class | B3: =VLOOKUP(A1,'Data BI List Acq_Seas'!C:E,2,FALSE) -> NPDI_St Lgt | C3: =VLOOKUP(A1,'Data BI List Acq_Seas'!C:E,3,FALSE) -> St Lgt-NPDI
A4: Monthly Consumption (kWh) | B4: =IF(COUNTIF(A1,"*Low*")>0,VLOOKUP(B3,'Data Billing Quantities'!$A:$Z,MATCH("Low kWh",'Data Billing Quantities'!4:4,0),FALSE),IF(COUNTIF(A1,"*Typical*")>0,VLOOKUP(B3,'Data Billing Quantities'!$A:$Z,MATCH("Typical kWh",'Data Billing Quantities'!4:4,0),FALSE),IF(COUNTIF(A1,"*Average*")>0,VLOOKUP(B3,'Data Billing Quantities'!$A:$Z,MATCH("Average kWh",'Data Billing Quantities'!4:4,0),FALSE),IF(COUNTIF(A1,"*High*")>0,VLOOKUP(B3,'Data Billing Quantities'!$A:$Z,MATCH("High kWh",'Data Billing Quantities'!4:4,0),FALSE),"error")))) -> 11389 | C4: =B4 -> 11389
A5: Peak (kW) | B5: =IF(COUNTIF(A1,"*Low*")>0,VLOOKUP(B3,'Data Billing Quantities'!$A:$Z,MATCH("Low kW",'Data Billing Quantities'!4:4,0),FALSE),IF(COUNTIF(A1,"*Typical*")>0,VLOOKUP(B3,'Data Billing Quantities'!$A:$Z,MATCH("Typical kW",'Data Billing Quantities'!4:4,0),FALSE),IF(COUNTIF(A1,"*Average*")>0,VLOOKUP(B3,'Data Billing Quantities'!$A:$Z,MATCH("Average kW",'Data Billing Quantities'!4:4,0),FALSE),IF(COUNTIF(A1,"*High*")>0,VLOOKUP(B3,'Data Billing Quantities'!$A:$Z,MATCH("High kW",'Data Billing Quantities'!4:4,0),FALSE),"error")))) -> 39 | C5: =B5 -> 39
A6: Loss factor | B6: =VLOOKUP(B3,'Data Billing Quantities'!A:D,MATCH(A6,'Data Billing Quantities'!4:4,0),FALSE) -> 1.0564 | C6: =VLOOKUP(C3,'Data Billing Quantities'!A:D,MATCH(A6,'Data Billing Quantities'!4:4,0),FALSE) -> 1.092
A7: Commodity Threshold | B7: =VLOOKUP(B3,'Data Billing Quantities'!A:D,MATCH(A7,'Data Billing Quantities'!4:4,0),FALSE) -> 750 | C7: =B7 -> 750
A8: Monthly Consumption (kWh) - Uplifted | B8: =B4*B6 -> 12031.3396 | C8: =C4*C6 -> 12436.788
A9: Charge determinant | B9: =VLOOKUP(B3,'Data Billing Quantities'!A:D,MATCH(A9,'Data Billing Quantities'!4:4,0),FALSE) -> kW | C9: =VLOOKUP(C3,'Data Billing Quantities'!A:D,MATCH(A9,'Data Billing Quantities'!4:4,0),FALSE) -> kWh
B11: Volume | C11: Current Rate ($) | D11: Current Charge ($) | E11: Volume | F11: Proposed Rate ($) | G11: Proposed Charge ($) | H11: Change ($) | I11: Change (%) | J11: % of Total Bill
A12: Energy First Tier | B12: =IF(B4>B7,B7,B4) -> 750 | C12: =VLOOKUP($A12,'Data Pass Through'!$A:$D,2,FALSE) -> 0.098 | D12: =B12*C12 -> 73.5 | E12: =B12 -> 750 | F12: =VLOOKUP($A12,'Data Pass Through'!$A:$D,3,FALSE) -> 0.098 | G12: =E12*F12 -> 73.5 | H12: =G12-D12 -> 0 | I12: =IF(ISERROR(H12/ABS(D12)),"N/A",(H12/ABS(D12))) -> 0 | J12: =G12/$G$37 -> 0.02757247026
A13: Energy Second Tier | B13: =IF(B4>B7,(B4)-B7,0) -> 10639 | C13: =VLOOKUP($A13,'Data Pass Through'!$A:$D,2,FALSE) -> 0.115 | D13: =B13*C13 -> 1223.485 | E13: =B13 -> 10639 | F13: =VLOOKUP($A13,'Data Pass Through'!$A:$D,3,FALSE) -> 0.115 | G13: =E13*F13 -> 1223.485 | H13: 0 | I13: 0 | J13: 0.4589728405
A14: Sub-Total: Energy (RPP Tiered) | D14: =SUM(D12:D13) -> 1296.985 | G14: =SUM(G12:G13) -> 1296.985 | H14: 0 | I14: 0 | J14: 0.4865453107
A15: Service Charge | B15: =IF(VLOOKUP(B$3,'Data Billing Quantities'!A:P,MATCH("Acquired Street Light Service Charge",'Data Billing Quantities'!$4:$4,0),FALSE)>0,VLOOKUP(B$3,'Data Billing Quantities'!A:P,MATCH("Acquired Street Light Service Charge",'Data Billing Quantities'!$4:$4,0),FALSE),1) -> 328 | C15: =VLOOKUP($B$3,'Data Current Rates'!$A:$AL,MATCH('BI Template_unmNPDI'!$A15,CurrentHeader,0),FALSE) -> 2.1 | D15: =B15*C15 -> 688.8 | E15: 1 | F15: =VLOOKUP($C$3,'Data Proposed Rates'!$A:$BA,MATCH('BI Template_unmNPDI'!$A15,ProposedHeader,0),FALSE) -> 3.01 | G15: =E15*F15 -> 3.01 | H15: -685.79 | I15: -0.9956300813 | J15: 0.001129158306
A16: Distribution Volumetric Charge | B16: =IF($B$9="kWh",$B$4,$B$5) -> 39 | C16: =VLOOKUP($B$3,'Data Current Rates'!$A:$AL,MATCH('BI Template_unmNPDI'!$A16,CurrentHeader,0),FALSE) -> 7.8927 | D16: =B16*C16 -> 307.8153 | E16: =IF($C$9="kWh",$C$4,$C$5) -> 11389 | F16: =VLOOKUP($C$3,'Data Proposed Rates'!$A:$BA,MATCH('BI Template_unmNPDI'!$A16,ProposedHeader,0),FALSE) -> 0.1094 | G16: 1245.9566 | H16: 938.1413 | I16: 3.047740967 | J16: 0.4674027387
A17: Low Voltage Service Rate | B17: =IF($B$9="kWh",$B$4,$B$5) -> 39 | C17: =VLOOKUP($B$3,'Data Current Rates'!$A:$AL,MATCH('BI Template_unmNPDI'!$A17,CurrentHeader,0),FALSE) -> 0.2358 | D17: 9.1962 | H17: -9.1962 | I17: -1 | J17: 0
A18: Rate Rider for Application of Tax Change | B18: 39 | C18: =VLOOKUP($B$3,'Data Current Rates'!$A:$AL,MATCH('BI Template_unmNPDI'!$A18,CurrentHeader,0),FALSE) -> 0.0655 | D18: 2.5545 | H18: -2.5545 | I18: -1 | J18: 0
A19: Group 1 Volumetric DVA Rider (General) | E19: =IF($C$9="kWh",$C$4,$C$5) -> 11389 | F19: =VLOOKUP($C$3,'Data Proposed Rates'!$A:$BA,MATCH('BI Template_unmNPDI'!$A19,ProposedHeader,0),FALSE) -> -0.0007 | G19: -7.9723 | H19: -7.9723 | I19: N/A | J19: -0.002990693941
A20: Group 2 Volumetric DVA Rider | B20: 39 | C20: =VLOOKUP($B$3,'Data Current Rates'!$A:$AL,MATCH('BI Template_unmNPDI'!$A20,CurrentHeader,0),FALSE) -> -0.0946 | D20: =B20*C20 -> -3.6894 | H20: =G20-D20 -> 3.6894 | I20: =IF(ISERROR(H20/ABS(D20)),"N/A",(H20/ABS(D20))) -> 1 | J20: =G20/$G$37 -> 0
A21: Sub-Total: Distribution (excluding pass through) | D21: =SUM(INDIRECT("D15:D"&ROW()-1)) -> 1004.6766 | G21: =SUM(INDIRECT("g15:g"&ROW()-1)) -> 1240.9943 | H21: =G21-D21 -> 236.3177 | I21: 0.235217681 | J21: 0.4655412031
A22: Line Losses on Cost of Power (based on two-tier RPP prices) | B22: =B8-B4 -> 642.3396 | C22: =IF(B4>B7,C13,C12) -> 0.115 | D22: =B22*C22 -> 73.869054 | E22: =C8-C4 -> 1047.788 | F22: =IF(C4>C7,F13,F12) -> 0.115 | G22: =E22*F22 -> 120.49562 | H22: 46.626566 | I22: 0.6312056738 | J22: 0.0452022027
A23: Sub-Total: Distribution (based on two-tier RPP prices) | D23: =SUM(D21,D22:D22) -> 1078.545654 | G23: =SUM(G21,G22:G22) -> 1361.48992 | H23: 282.944266 | I23: 0.2623387011 | J23: 0.5107434058
A24: Retail Transmission Rate – Network Service Rate | B24: =IF($B$9="kWh",$B$8,$B$5) -> 39 | C24: =VLOOKUP($B$3,'Data Current Rates'!$A:$AL,MATCH('BI Template_unmNPDI'!$A24,CurrentHeader,0),FALSE) -> 2.0398 | D24: =B24*C24 -> 79.5522 | E24: =IF($C$9="kWh",$C$8,$C$5) -> 12436.788 | F24: =VLOOKUP($C$3,'Data Proposed Rates'!$A:$BA,MATCH('BI Template_unmNPDI'!$A24,ProposedHeader,0),FALSE) -> 0.0059 | G24: =E24*F24 -> 73.3770492 | H24: =G24-D24 -> -6.1751508 | I24: -0.07762388469 | J24: 0.02752634703
A25: Retail Transmission Rate – Line and Transformation Connection Service Rate | B25: =IF($B$9="kWh",$B$8,$B$5) -> 39 | C25: =VLOOKUP($B$3,'Data Current Rates'!$A:$AL,MATCH('BI Template_unmNPDI'!$A25,CurrentHeader,0),FALSE) -> 1.0647 | D25: =B25*C25 -> 41.5233 | E25: =IF($C$9="kWh",$C$8,$C$5) -> 12436.788 | F25: =VLOOKUP($C$3,'Data Proposed Rates'!$A:$BA,MATCH('BI Template_unmNPDI'!$A25,ProposedHeader,0),FALSE) -> 0.0042 | G25: =E25*F25 -> 52.2345096 | H25: =G25-D25 -> 10.7112096 | I25: 0.2579566075 | J25: 0.0195950267
A26: Sub-Total: Retail Transmission | D26: =SUM(D24:D25) -> 121.0755 | G26: =SUM(G24:G25) -> 125.6115588 | H26: =G26-D26 -> 4.5360588 | I26: 0.03746471251 | J26: 0.04712137373
A27: Sub-Total: Delivery (based on two-tier RPP prices) | D27: =D23+D26 -> 1199.621154 | G27: =G23+G26 -> 1487.101479 | H27: =G27-D27 -> 287.4803248 | I27: 0.2396425937 | J27: 0.5578647795
A28: Wholesale Market Service Rate (WMS) - not including CBR | B28: =B8 -> 12031.3396 | C28: =VLOOKUP($A28,'Data Pass Through'!$A:$D,2,FALSE) -> 0.003 | D28: =B28*C28 -> 36.0940188 | E28: =$C$8 -> 12436.788 | F28: =VLOOKUP($A28,'Data Pass Through'!$A:$D,3,FALSE) -> 0.003 | G28: =E28*F28 -> 37.310364 | H28: =G28-D28 -> 1.2163452 | I28: 0.0336993563 | J28: 0.01399644764
A29: Capacity Based Recovery (CBR) - Applicable for Class B Customers | B29: =B8 -> 12031.3396 | C29: =VLOOKUP($A29,'Data Pass Through'!$A:$D,2,FALSE) -> 0.0004 | D29: =B29*C29 -> 4.81253584 | E29: =$C$8 -> 12436.788 | F29: =VLOOKUP($A29,'Data Pass Through'!$A:$D,3,FALSE) -> 0.0004 | G29: =E29*F29 -> 4.9747152 | H29: 0.16217936 | I29: 0.0336993563 | J29: 0.001866193019
A30: Rural Rate Protection Charge | B30: =B8 -> 12031.3396 | C30: =VLOOKUP($A30,'Data Pass Through'!$A:$D,2,FALSE) -> 0.0005 | D30: 6.0156698 | E30: 12436.788 | F30: =VLOOKUP($A30,'Data Pass Through'!$A:$D,3,FALSE) -> 0.0005 | G30: 6.218394 | H30: 0.2027242 | I30: 0.0336993563 | J30: 0.002332741274
A31: Standard Supply Service – Administration Charge (if applicable) | B31: 1 | C31: =VLOOKUP($A31,'Data Pass Through'!$A:$D,2,FALSE) -> 0.25 | D31: =B31*C31 -> 0.25 | E31: 1 | F31: =VLOOKUP($A31,'Data Pass Through'!$A:$D,3,FALSE) -> 0.25 | G31: 0.25 | H31: 0 | I31: 0 | J31: 9.378391244e-05
A32: Sub-Total: Regulatory | D32: =SUM(D28:D31) -> 47.17222444 | G32: =SUM(G28:G31) -> 48.7534732 | H32: 1.58124876 | I32: 0.03352075885 | J32: 0.01828916585
A33: Total Electricty Charge on Two-Tier RPP | D33: =SUM(D27,D32,D14) -> 2543.778378 | G33: =SUM(G27,G32,G14) -> 2832.839952 | H33: 289.0615736 | I33: 0.1136347317 | J33: 1.062699256
A34: HST | C34: 0.13 | D34: =D33*C34 -> 330.6911892 | F34: =C34 -> 0.13 | G34: =G33*F34 -> 368.2691938 | H34: 37.57800456 | I34: 0.1136347317 | J34: 0.1381509033
A35: Total Electricity Charge on Two-Tier RPP (including HST) | D35: =SUM(D33:D34) -> 2874.469568 | G35: =SUM(G33:G34) -> 3201.109146 | H35: 326.6395781 | I35: 0.1136347317 | J35: 1.200850159
A36: Ontario Electricity Rebate (OER) | C36: =IF(($B$4*12)<250000,VLOOKUP(A36,'Data Pass Through'!$A$4:$C$20,2,0),0) -> -0.189 | D36: =D33*C36 -> -480.7741135 | F36: =C36 -> -0.189 | G36: =G33*F36 -> -535.4067509 | H36: -54.6326374 | I36: -0.1136347317 | J36: -0.2008501594
A37: Total Amount on Two-Tier RPP | D37: =SUM(D35:D36) -> 2393.695454 | G37: =SUM(G35:G36) -> 2665.702395 | H37: 272.0069407 | I37: 0.1136347317 | J37: 1

Sheet BI Template_EnergyHCHI (hidden)
A1: 2023 Bill Impacts (Low Consumption Level) - AR_HCHI
A3: Rate Class | B3: =VLOOKUP(A1,'Data BI List Acq_Seas'!C:E,2,FALSE) -> HCHI_RES | C3: =VLOOKUP(A1,'Data BI List Acq_Seas'!C:E,3,FALSE) -> AR-HCHI
A4: Monthly Consumption (kWh) | B4: =IF(COUNTIF(A1,"*Low*")>0,VLOOKUP(B3,'Data Billing Quantities'!$A:$Z,MATCH("Low kWh",'Data Billing Quantities'!4:4,0),FALSE),IF(COUNTIF(A1,"*Typical*")>0,VLOOKUP(B3,'Data Billing Quantities'!$A:$Z,MATCH("Typical kWh",'Data Billing Quantities'!4:4,0),FALSE),IF(COUNTIF(A1,"*Average*")>0,VLOOKUP(B3,'Data Billing Quantities'!$A:$Z,MATCH("Average kWh",'Data Billing Quantities'!4:4,0),FALSE),IF(COUNTIF(A1,"*High*")>0,VLOOKUP(B3,'Data Billing Quantities'!$A:$Z,MATCH("High kWh",'Data Billing Quantities'!4:4,0),FALSE),"error")))) -> 250 | C4: =B4 -> 250
A5: Peak (kW) | B5: =IF(COUNTIF(A1,"*Low*")>0,VLOOKUP(B3,'Data Billing Quantities'!$A:$Z,MATCH("Low kW",'Data Billing Quantities'!4:4,0),FALSE),IF(COUNTIF(A1,"*Typical*")>0,VLOOKUP(B3,'Data Billing Quantities'!$A:$Z,MATCH("Typical kW",'Data Billing Quantities'!4:4,0),FALSE),IF(COUNTIF(A1,"*Average*")>0,VLOOKUP(B3,'Data Billing Quantities'!$A:$Z,MATCH("Average kW",'Data Billing Quantities'!4:4,0),FALSE),IF(COUNTIF(A1,"*High*")>0,VLOOKUP(B3,'Data Billing Quantities'!$A:$Z,MATCH("High kW",'Data Billing Quantities'!4:4,0),FALSE),"error")))) -> 0 | C5: =B5 -> 0
A6: Loss factor | B6: =VLOOKUP(B3,'Data Billing Quantities'!A:D,MATCH(A6,'Data Billing Quantities'!4:4,0),FALSE) -> 1.0655 | C6: =VLOOKUP(C3,'Data Billing Quantities'!A:D,MATCH(A6,'Data Billing Quantities'!4:4,0),FALSE) -> 1.064
A7: Commodity Threshold | B7: =VLOOKUP(B3,'Data Billing Quantities'!A:D,MATCH(A7,'Data Billing Quantities'!4:4,0),FALSE) -> 600 | C7: =B7 -> 600
A8: Monthly Consumption (kWh) - Uplifted | B8: =B4*B6 -> 266.375 | C8: =C4*C6 -> 266
A9: Charge determinant | B9: =VLOOKUP(B3,'Data Billing Quantities'!A:D,MATCH(A9,'Data Billing Quantities'!4:4,0),FALSE) -> kWh | C9: =VLOOKUP(C3,'Data Billing Quantities'!A:D,MATCH(A9,'Data Billing Quantities'!4:4,0),FALSE) -> kWh
B11: Volume | C11: Current Rate ($) | D11: Current Charge ($) | E11: Volume | F11: Proposed Rate ($) | G11: Proposed Charge ($) | H11: Change ($) | I11: Change (%) | J11: % of Total Bill on RPP | K11: % of Total Bill
A12: Energy First Tier | B12: =IF(B4>B7,B7,B4) -> 250 | C12: =VLOOKUP($A12,'Data Pass Through'!$A:$D,2,FALSE) -> 0.098 | D12: =B12*C12 -> 24.5 | E12: =B12 -> 250 | F12: =VLOOKUP($A12,'Data Pass Through'!$A:$D,3,FALSE) -> 0.098 | G12: =E12*F12 -> 24.5 | H12: =G12-D12 -> 0 | I12: =IF(ISERROR(H12/ABS(D12)),"N/A",(H12/ABS(D12))) -> 0 | J12: =G12/$G$47 -> 0.3728609122
A13: Energy Second Tier | B13: =IF(B4>B7,(B4)-B7,0) -> 0 | C13: =VLOOKUP($A13,'Data Pass Through'!$A:$D,2,FALSE) -> 0.115 | D13: =B13*C13 -> 0 | E13: =B13 -> 0 | F13: =VLOOKUP($A13,'Data Pass Through'!$A:$D,3,FALSE) -> 0.115 | G13: =E13*F13 -> 0 | H13: 0 | I13: N/A | J13: =G13/$G$47 -> 0
A14: Sub-Total: Energy (RPP Tiered) | D14: =SUM(D12:D13) -> 24.5 | G14: =SUM(G12:G13) -> 24.5 | H14: 0 | I14: 0 | J14: =G14/$G$47 -> 0.3728609122
A15: TOU-Off Peak | B15: =B$4*VLOOKUP($B$3,'Data Billing Quantities'!$A:$O,MATCH('BI Template_EnergyHCHI'!$A15,'Data Billing Quantities'!$4:$4,0),FALSE) -> 160 | C15: =VLOOKUP($A15,'Data Pass Through'!$A:$D,2,FALSE) -> 0.082 | D15: =B15*C15 -> 13.12 | E15: 160 | F15: =VLOOKUP($A15,'Data Pass Through'!$A:$D,3,FALSE) -> 0.082 | G15: =E15*F15 -> 13.12 | H15: 0 | I15: 0 | K15: =G15/$G$52 -> 0.1956316685
A16: TOU-Mid Peak | B16: =B$4*VLOOKUP($B$3,'Data Billing Quantities'!$A:$O,MATCH('BI Template_EnergyHCHI'!$A16,'Data Billing Quantities'!$4:$4,0),FALSE) -> 45 | C16: =VLOOKUP($A16,'Data Pass Through'!$A:$D,2,FALSE) -> 0.113 | D16: =B16*C16 -> 5.085 | E16: 45 | F16: =VLOOKUP($A16,'Data Pass Through'!$A:$D,3,FALSE) -> 0.113 | G16: =E16*F16 -> 5.085 | H16: 0 | I16: 0 | K16: 0.07582218251
A17: TOU-On Peak | B17: =B$4*VLOOKUP($B$3,'Data Billing Quantities'!$A:$O,MATCH('BI Template_EnergyHCHI'!$A17,'Data Billing Quantities'!$4:$4,0),FALSE) -> 45 | C17: =VLOOKUP($A17,'Data Pass Through'!$A:$D,2,FALSE) -> 0.17 | D17: =B17*C17 -> 7.65 | E17: 45 | F17: =VLOOKUP($A17,'Data Pass Through'!$A:$D,3,FALSE) -> 0.17 | G17: =E17*F17 -> 7.65 | H17: 0 | I17: 0 | K17: 0.1140687701
A18: Sub-Total: Energy (RPP TOU) | D18: =SUM(D15:D17) -> 25.855 | G18: =SUM(G15:G17) -> 25.855 | H18: 0 | I18: 0 | J18: =G18/$G$47 -> 0.3934824034 | K18: 0.3855226212
A19: Service Charge | B19: 1 | C19: =VLOOKUP($B$3,'Data Current Rates'!$A:$AL,MATCH('BI Template_EnergyHCHI'!$A19,CurrentHeader,0),FALSE) -> 37.31 | D19: =B19*C19 -> 37.31 | E19: 1 | F19: =VLOOKUP($C$3,'Data Proposed Rates'!$A:$BA,MATCH('BI Template_EnergyHCHI'!$A19,ProposedHeader,0),FALSE) -> 36.98 | G19: =E19*F19 -> 36.98 | H19: -0.33 | I19: -0.008844813723 | J19: 0.5627916952 | K19: 0.5514069438
A20: Distribution Volumetric Charge | B20: =IF($B$9="kWh",$B$4,$B$5) -> 250 | C20: =VLOOKUP($B$3,'Data Current Rates'!$A:$AL,MATCH('BI Template_EnergyHCHI'!$A20,CurrentHeader,0),FALSE) -> 0 | D20: =B20*C20 -> 0 | E20: =IF($C$9="kWh",$C$4,$C$5) -> 250 | F20: =VLOOKUP($C$3,'Data Proposed Rates'!$A:$BA,MATCH('BI Template_EnergyHCHI'!$A20,ProposedHeader,0),FALSE) -> 0 | G20: 0 | H20: 0 | I20: N/A | J20: 0 | K20: 0
A21: Low Voltage Service Rate | B21: =IF($B$9="kWh",$B$4,$B$5) -> 250 | C21: =VLOOKUP($B$3,'Data Current Rates'!$A:$AL,MATCH('BI Template_EnergyHCHI'!$A21,CurrentHeader,0),FALSE) -> 0.0004 | D21: 0.1 | H21: -0.1 | I21: -1 | J21: 0 | K21: 0
A22: Funding Adder for Renewable Energy Generation | B22: 250 | C22: =VLOOKUP($B$3,'Data Current Rates'!$A:$AL,MATCH('BI Template_EnergyHCHI'!$A22,CurrentHeader,0),FALSE) -> 0.0002 | D22: 0.05 | H22: -0.05 | I22: -1 | J22: 0 | K22: 0
A23: Group 1 Volumetric DVA Rider (General) | E23: =IF($C$9="kWh",$C$4,$C$5) -> 250 | F23: =VLOOKUP($C$3,'Data Proposed Rates'!$A:$BA,MATCH('BI Template_EnergyHCHI'!$A23,ProposedHeader,0),FALSE) -> -0.0004 | G23: -0.1 | H23: -0.1 | I23: N/A | J23: -0.001521881274 | K23: -0.001491095035
A24: Group 2 Fixed DVA Rider | B24: 1 | C24: =VLOOKUP($B$3,'Data Current Rates'!$A:$AL,MATCH('BI Template_EnergyHCHI'!$A24,CurrentHeader,0),FALSE) -> -0.83 | D24: =B24*C24 -> -0.83 | H24: =G24-D24 -> 0.83 | I24: =IF(ISERROR(H24/ABS(D24)),"N/A",(H24/ABS(D24))) -> 1 | J24: =G24/$G$47 -> 0 | K24: =G24/$G$52 -> 0
A25: Group 2 Volumetric DVA Rider | B25: 250 | C25: =VLOOKUP($B$3,'Data Current Rates'!$A:$AL,MATCH('BI Template_EnergyHCHI'!$A25,CurrentHeader,0),FALSE) -> 0 | D25: 0 | H25: 0 | I25: N/A | J25: 0 | K25: 0
A26: LRAMVA Volumetric Rate Rider | B26: 250 | C26: =VLOOKUP($B$3,'Data Current Rates'!$A:$AL,MATCH('BI Template_EnergyHCHI'!$A26,CurrentHeader,0),FALSE) -> 0.0003 | D26: 0.075 | E26: =IF($C$9="kWh",$C$4,$C$5) -> 250 | F26: =VLOOKUP($C$3,'Data Proposed Rates'!$A:$BA,MATCH('BI Template_EnergyHCHI'!$A26,ProposedHeader,0),FALSE) -> 0.0003 | G26: =E26*F26 -> 0.075 | H26: 0 | I26: 0 | J26: 0.001141410956 | K26: 0.001118321276
A27: Sub-Total: Distribution (excluding pass through) | D27: =SUM(INDIRECT("D19:D"&ROW()-1)) -> 36.705 | G27: =SUM(INDIRECT("g19:g"&ROW()-1)) -> 36.955 | H27: =G27-D27 -> 0.25 | I27: 0.006811061163 | J27: 0.5624112249 | K27: 0.55103417
A28: Smart Metering Entity Charge | B28: =B19 -> 1 | C28: =VLOOKUP($A28,'Data Pass Through'!$A:$D,2,FALSE) -> 0.57 | D28: =B28*C28 -> 0.57 | E28: =E19 -> 1 | F28: =VLOOKUP($A28,'Data Pass Through'!$A:$D,3,FALSE) -> 0.57 | G28: =E28*F28 -> 0.57 | H28: 0 | I28: 0 | J28: 0.008674723263 | K28: 0.008499241697
A29: Line Losses on Cost of Power (based on two-tier RPP prices) | B29: =B8-B4 -> 16.375 | C29: =IF(B4>B7,C13,C12) -> 0.098 | D29: =B29*C29 -> 1.60475 | E29: =C8-C4 -> 16 | F29: =IF(C4>C7,F13,F12) -> 0.098 | G29: =E29*F29 -> 1.568 | H29: -0.03675 | I29: -0.02290076336 | J29: 0.02386309838 | K29: 0.02338037014
A30: Line Losses on Cost of Power (based on TOU prices) | B30: =B8-B4 -> 16.375 | C30: =VLOOKUP($B$3,'Data Billing Quantities'!$A:$O,MATCH('BI Template_EnergyHCHI'!$A15,'Data Billing Quantities'!$4:$4,0),FALSE)*C15+VLOOKUP($B$3,'Data Billing Quantities'!$A:$O,MATCH('BI Template_EnergyHCHI'!$A16,'Data Billing Quantities'!$4:$4,0),FALSE)*C16+VLOOKUP($B$3,'Data Billing Quantities'!$A:$O,MATCH('BI Template_EnergyHCHI'!$A17,'Data Billing Quantities'!$4:$4,0),FALSE)*C17 -> 0.10342 | D30: =B30*C30 -> 1.6935025 | E30: =C8-C4 -> 16 | F30: =VLOOKUP($C$3,'Data Billing Quantities'!$A:$O,MATCH('BI Template_EnergyHCHI'!$A15,'Data Billing Quantities'!$4:$4,0),FALSE)*F15+VLOOKUP($C$3,'Data Billing Quantities'!$A:$O,MATCH('BI Template_EnergyHCHI'!$A16,'Data Billing Quantities'!$4:$4,0),FALSE)*F16+VLOOKUP($C$3,'Data Billing Quantities'!$A:$O,MATCH('BI Template_EnergyHCHI'!$A17,'Data Billing Quantities'!$4:$4,0),FALSE)*F17 -> 0.10342 | G30: =E30*F30 -> 1.65472 | H30: -0.0387825 | I30: -0.02290076336 | J30: 0.02518287382 | K30: 0.02467344776
A31: Sub-Total: Distribution (based on two-tier RPP prices) | D31: =SUM(D27,D28:D29) -> 38.87975 | G31: =SUM(G27,G28:G29) -> 39.093 | H31: 0.21325 | I31: 0.005484860371 | J31: 0.5949490465 | K31: 0.5829137819
A32: Sub-Total: Distribution (based on TOU prices) | D32: =SUM(D27,D28,D30) -> 38.9685025 | G32: =SUM(G27,G28,G30) -> 39.17972 | H32: 0.2112175 | I32: 0.005420210848 | J32: 0.5962688219 | K32: 0.5842068595
A33: Retail Transmission Rate – Network Service Rate | B33: =IF($B$9="kWh",$B$8,$B$5) -> 266.375 | C33: =VLOOKUP($B$3,'Data Current Rates'!$A:$AL,MATCH('BI Template_EnergyHCHI'!$A33,CurrentHeader,0),FALSE) -> 0.0069 | D33: =B33*C33 -> 1.8379875 | E33: =IF($C$9="kWh",$C$8,$C$5) -> 266 | F33: =VLOOKUP($C$3,'Data Proposed Rates'!$A:$BA,MATCH('BI Template_EnergyHCHI'!$A33,ProposedHeader,0),FALSE) -> 0.0107 | G33: =E33*F33 -> 2.8462 | H33: =G33-D33 -> 1.0082125 | I33: 0.5485415434 | J33: 0.04331578482 | K33: 0.04243954688
A34: Retail Transmission Rate – Line and Transformation Connection Service Rate | B34: =IF($B$9="kWh",$B$8,$B$5) -> 266.375 | C34: =VLOOKUP($B$3,'Data Current Rates'!$A:$AL,MATCH('BI Template_EnergyHCHI'!$A34,CurrentHeader,0),FALSE) -> 0.0061 | D34: =B34*C34 -> 1.6248875 | E34: =IF($C$9="kWh",$C$8,$C$5) -> 266 | F34: =VLOOKUP($C$3,'Data Proposed Rates'!$A:$BA,MATCH('BI Template_EnergyHCHI'!$A34,ProposedHeader,0),FALSE) -> 0.0079 | G34: =E34*F34 -> 2.1014 | H34: =G34-D34 -> 0.4765125 | I34: 0.2932587641 | J34: 0.03198081309 | K34: 0.03133387106
A35: Sub-Total: Retail Transmission | D35: =SUM(D33:D34) -> 3.462875 | G35: =SUM(G33:G34) -> 4.9476 | H35: =G35-D35 -> 1.484725 | I35: 0.4287550085 | J35: 0.07529659792 | K35: 0.07377341793
A36: Sub-Total: Delivery (based on two-tier RPP prices) | D36: =D31+D35 -> 42.342625 | G36: =G31+G35 -> 44.0406 | H36: =G36-D36 -> 1.697975 | I36: 0.04010084401 | J36: 0.6702456444 | K36: 0.6566871998
A37: Sub-Total: Delivery (based on TOU prices) | D37: =D32+D35 -> 42.4313775 | G37: =G32+G35 -> 44.12732 | H37: =G37-D37 -> 1.6959425 | I37: 0.03996906535 | J37: 0.6715654199 | K37: 0.6579802774
A38: Wholesale Market Service Rate (WMS) - not including CBR | B38: =B8 -> 266.375 | C38: =VLOOKUP($A38,'Data Pass Through'!$A:$D,2,FALSE) -> 0.003 | D38: =B38*C38 -> 0.799125 | E38: =$C$8 -> 266 | F38: =VLOOKUP($A38,'Data Pass Through'!$A:$D,3,FALSE) -> 0.003 | G38: =E38*F38 -> 0.798 | H38: -0.001125 | I38: -0.00140778977 | J38: 0.01214461257 | K38: 0.01189893838
A39: Capacity Based Recovery (CBR) - Applicable for Class B Customers | B39: =B8 -> 266.375 | C39: =VLOOKUP($A39,'Data Pass Through'!$A:$D,2,FALSE) -> 0.0004 | D39: =B39*C39 -> 0.10655 | E39: =$C$8 -> 266 | F39: =VLOOKUP($A39,'Data Pass Through'!$A:$D,3,FALSE) -> 0.0004 | G39: =E39*F39 -> 0.1064 | H39: -0.00015 | I39: -0.00140778977 | J39: 0.001619281676 | K39: 0.001586525117
A40: Rural Rate Protection Charge | B40: =B8 -> 266.375 | C40: =VLOOKUP($A40,'Data Pass Through'!$A:$D,2,FALSE) -> 0.0005 | D40: 0.1331875 | E40: 266 | F40: =VLOOKUP($A40,'Data Pass Through'!$A:$D,3,FALSE) -> 0.0005 | G40: 0.133 | H40: -0.0001875 | I40: -0.00140778977 | J40: 0.002024102095 | K40: 0.001983156396
A41: Standard Supply Service – Administration Charge (if applicable) | B41: 1 | C41: =VLOOKUP($A41,'Data Pass Through'!$A:$D,2,FALSE) -> 0.25 | D41: =B41*C41 -> 0.25 | E41: 1 | F41: =VLOOKUP($A41,'Data Pass Through'!$A:$D,3,FALSE) -> 0.25 | G41: 0.25 | H41: 0 | I41: 0 | J41: 0.003804703185 | K41: 0.003727737587
A42: Sub-Total: Regulatory | D42: =SUM(D38:D41) -> 1.2888625 | G42: =SUM(G38:G41) -> 1.2874 | H42: -0.0014625 | I42: -0.001134721508 | J42: 0.01959269952 | K42: 0.01919635748
A43: Total Electricty Charge on Two-Tier RPP | D43: =SUM(D14,D27,D28,D29,D35,D42) -> 68.1314875 | G43: =SUM(G14,G27,G28,G29,G35,G42) -> 69.828 | H43: 1.6965125 | I43: 0.02490056452 | J43: 1.062699256
A44: HST | C44: 0.13 | D44: =D43*C44 -> 8.857093375 | F44: =C44 -> 0.13 | G44: =G43*F44 -> 9.07764 | H44: 0.220546625 | I44: 0.02490056452 | J44: 0.1381509033
A45: Total Electricity Charge on Two-Tier RPP (including HST) | D45: =SUM(D43:D44) -> 76.98858088 | G45: =SUM(G43:G44) -> 78.90564 | H45: 1.917059125 | I45: 0.02490056452 | J45: 1.200850159
A46: Ontario Electricity Rebate (OER) | C46: =IF(($B$4*12)<250000,VLOOKUP(A46,'Data Pass Through'!$A$4:$C$20,2,0),0) -> -0.189 | D46: =D43*C46 -> -12.87685114 | F46: =C46 -> -0.189 | G46: =G43*F46 -> -13.197492 | H46: -0.3206408625 | I46: -0.02490056452 | J46: -0.2008501594
A47: Total Amount on Two-Tier RPP | D47: =SUM(D45:D46) -> 64.11172974 | G47: =SUM(G45:G46) -> 65.708148 | H47: 1.596418262 | I47: 0.02490056452 | J47: 1
A48: Total Electricty Charge on TOU (before HST) | D48: =SUM(D18,D27,D28,D30,D35,D42) -> 69.57524 | G48: =SUM(G18,G27,G28,G30,G35,G42) -> 71.26972 | H48: 1.69448 | I48: 0.02435464111 | K48: =G48/$G$52 -> 1.062699256
A49: HST | C49: 0.13 | D49: =D48*C49 -> 9.0447812 | F49: =C49 -> 0.13 | G49: =G48*F49 -> 9.2650636 | H49: 0.2202824 | I49: 0.02435464111 | K49: =G49/$G$52 -> 0.1381509033
A50: Total Electricity Charge on TOU (including HST) | D50: =SUM(D48:D49) -> 78.6200212 | G50: =SUM(G48:G49) -> 80.5347836 | H50: 1.9147624 | I50: 0.02435464111 | K50: =G50/$G$52 -> 1.200850159
A51: Ontario Electricity Rebate (OER) | C51: =IF(($B$4*12)<250000,VLOOKUP(A51,'Data Pass Through'!$A$4:$C$20,2,0),0) -> -0.189 | D51: =D48*C51 -> -13.14972036 | F51: =C51 -> -0.189 | G51: =G48*F51 -> -13.46997708 | H51: -0.32025672 | I51: -0.02435464111 | K51: =G51/$G$52 -> -0.2008501594
A52: Total Amount on TOU | D52: =SUM(D50:D51) -> 65.47030084 | G52: =SUM(G50:G51) -> 67.06480652 | H52: 1.59450568 | I52: 0.02435464111 | K52: =G52/$G$52 -> 1

Sheet BI Template_DemandHCHI (hidden)
A1: 2023 Bill Impacts (Low Consumption Level) - AGSd_HCHI
A3: Rate Class | B3: =VLOOKUP(A1,'Data BI List Acq_Seas'!C:E,2,FALSE) -> HCHI_GS >50 | C3: =VLOOKUP(A1,'Data BI List Acq_Seas'!C:E,3,FALSE) -> AGSd-HCHI
A4: Monthly Consumption (kWh) | B4: =IF(COUNTIF(A1,"*Low*")>0,VLOOKUP(B3,'Data Billing Quantities'!$A:$Z,MATCH("Low kWh",'Data Billing Quantities'!4:4,0),FALSE),IF(COUNTIF(A1,"*Typical*")>0,VLOOKUP(B3,'Data Billing Quantities'!$A:$Z,MATCH("Typical kWh",'Data Billing Quantities'!4:4,0),FALSE),IF(COUNTIF(A1,"*Average*")>0,VLOOKUP(B3,'Data Billing Quantities'!$A:$Z,MATCH("Average kWh",'Data Billing Quantities'!4:4,0),FALSE),IF(COUNTIF(A1,"*High*")>0,VLOOKUP(B3,'Data Billing Quantities'!$A:$Z,MATCH("High kWh",'Data Billing Quantities'!4:4,0),FALSE),"error")))) -> 10880 | C4: =B4 -> 10880
A5: Peak (kW) | B5: =IF(COUNTIF(A1,"*Low*")>0,VLOOKUP(B3,'Data Billing Quantities'!$A:$Z,MATCH("Low kW",'Data Billing Quantities'!4:4,0),FALSE),IF(COUNTIF(A1,"*Typical*")>0,VLOOKUP(B3,'Data Billing Quantities'!$A:$Z,MATCH("Typical kW",'Data Billing Quantities'!4:4,0),FALSE),IF(COUNTIF(A1,"*Average*")>0,VLOOKUP(B3,'Data Billing Quantities'!$A:$Z,MATCH("Average kW",'Data Billing Quantities'!4:4,0),FALSE),IF(COUNTIF(A1,"*High*")>0,VLOOKUP(B3,'Data Billing Quantities'!$A:$Z,MATCH("High kW",'Data Billing Quantities'!4:4,0),FALSE),"error")))) -> 55 | C5: =B5 -> 55
A6: Loss factor | B6: =VLOOKUP(B3,'Data Billing Quantities'!A:D,MATCH(A6,'Data Billing Quantities'!4:4,0),FALSE) -> 1.0548 | C6: =VLOOKUP(C3,'Data Billing Quantities'!A:D,MATCH(A6,'Data Billing Quantities'!4:4,0),FALSE) -> 1.053
A7: Commodity Threshold | B7: =VLOOKUP(B3,'Data Billing Quantities'!A:D,MATCH(A7,'Data Billing Quantities'!4:4,0),FALSE) -> 0 | C7: =B7 -> 0
A8: Monthly Consumption (kWh) - Uplifted | B8: =B4*B6 -> 11476.224 | C8: =C4*C6 -> 11456.64
A9: Charge determinant | B9: =VLOOKUP(B3,'Data Billing Quantities'!A:D,MATCH(A9,'Data Billing Quantities'!4:4,0),FALSE) -> kW | C9: =VLOOKUP(C3,'Data Billing Quantities'!A:D,MATCH(A9,'Data Billing Quantities'!4:4,0),FALSE) -> kW
B11: Volume | C11: Current Rate ($) | D11: Current Charge ($) | E11: Volume | F11: Proposed Rate ($) | G11: Proposed Charge ($) | H11: Change ($) | I11: Change (%) | J11: % of Total Bill
A12: Weighted Average Hourly Spot Price | B12: =B8 -> 11476.224 | C12: =VLOOKUP($A12,'Data Pass Through'!$A:$D,2,FALSE) -> 0.119 | D12: =B12*C12 -> 1365.670656 | E12: =C8 -> 11456.64 | F12: =VLOOKUP($A12,'Data Pass Through'!$A:$D,3,FALSE) -> 0.119 | G12: =E12*F12 -> 1363.34016 | H12: =G12-D12 -> -2.330496 | I12: =IF(ISERROR(H12/ABS(D12)),"N/A",(H12/ABS(D12))) -> -0.001706484642 | J12: =G12/G$35 -> 0.5820682695
A13: Sub-Total: Energy (WAHSP) | D13: =SUM(D12:D12) -> 1365.670656 | G13: =SUM(G12:G12) -> 1363.34016 | H13: -2.330496 | I13: -0.001706484642 | J13: 0.5820682695
A14: Service Charge | B14: 1 | C14: =VLOOKUP($B$3,'Data Current Rates'!$A:$AL,MATCH('BI Template_DemandHCHI'!$A14,CurrentHeader,0),FALSE) -> 87.49 | D14: =B14*C14 -> 87.49 | E14: 1 | F14: =VLOOKUP($C$3,'Data Proposed Rates'!$A:$BA,MATCH('BI Template_DemandHCHI'!$A14,ProposedHeader,0),FALSE) -> 186.87 | G14: =E14*F14 -> 186.87 | H14: 99.38 | I14: 1.135901246 | J14: 0.07978280162
A15: Distribution Volumetric Charge | B15: =IF($B$9="kWh",$B$4,$B$5) -> 55 | C15: =VLOOKUP($B$3,'Data Current Rates'!$A:$AL,MATCH('BI Template_DemandHCHI'!$A15,CurrentHeader,0),FALSE) -> 4.1168 | D15: =B15*C15 -> 226.424 | E15: =IF($C$9="kWh",$C$4,$C$5) -> 55 | F15: =VLOOKUP($C$3,'Data Proposed Rates'!$A:$BA,MATCH('BI Template_DemandHCHI'!$A15,ProposedHeader,0),FALSE) -> 4.3771 | G15: 240.7405 | H15: 14.3165 | I15: 0.06322872134 | J15: 0.1027824239
A16: Low Voltage Service Rate | B16: =IF($B$9="kWh",$B$4,$B$5) -> 55 | C16: =VLOOKUP($B$3,'Data Current Rates'!$A:$AL,MATCH('BI Template_DemandHCHI'!$A16,CurrentHeader,0),FALSE) -> 0.155 | D16: 8.525 | H16: -8.525 | I16: -1 | J16: 0
A17: Funding Adder for Renewable Energy Generation | B17: 55 | C17: =VLOOKUP($B$3,'Data Current Rates'!$A:$AL,MATCH('BI Template_DemandHCHI'!$A17,CurrentHeader,0),FALSE) -> 0.0195 | D17: 1.0725 | H17: -1.0725 | I17: -1 | J17: 0
A18: Group 1 Volumetric DVA Rider (General) | E18: =IF($C$9="kWh",$C$4,$C$5) -> 55 | F18: =VLOOKUP($C$3,'Data Proposed Rates'!$A:$BA,MATCH('BI Template_DemandHCHI'!$A18,ProposedHeader,0),FALSE) -> -0.0595 | G18: -3.2725 | H18: -3.2725 | I18: N/A | J18: -0.001397170323
A19: Group 1 Volumetric Deferral/Variance Account Rider (Sub-Account RSVA Wholesale Market Service Charge & RSVA Power) | E19: 55 | F19: =VLOOKUP($C$3,'Data Proposed Rates'!$A:$BA,MATCH('BI Template_DemandHCHI'!$A19,ProposedHeader,0),FALSE) -> -0.0829 | G19: -4.5595 | H19: -4.5595 | I19: N/A | J19: -0.001946645711
A20: Group 1 Volumetric Deferral/Variance Account Rider (Sub-Account Global Adjustment) | E20: =C4 -> 10880 | F20: =VLOOKUP($C$3,'Data Proposed Rates'!$A:$BA,MATCH('BI Template_DemandHCHI'!$A20,ProposedHeader,0),FALSE) -> -0.0007 | G20: -7.616 | H20: -7.616 | I20: N/A | J20: -0.003251596388
A21: Group 2 Volumetric DVA Rider | B21: =IF($B$9="kWh",$B$4,$B$5) -> 55 | C21: =VLOOKUP($B$3,'Data Current Rates'!$A:$AL,MATCH('BI Template_DemandHCHI'!$A21,CurrentHeader,0),FALSE) -> -0.1031 | D21: =B21*C21 -> -5.6705 | H21: =G21-D21 -> 5.6705 | I21: =IF(ISERROR(H21/ABS(D21)),"N/A",(H21/ABS(D21))) -> 1 | J21: =G21/G$35 -> 0
A22: LRAMVA Volumetric Rate Rider | B22: 55 | C22: =VLOOKUP($B$3,'Data Current Rates'!$A:$AL,MATCH('BI Template_DemandHCHI'!$A22,CurrentHeader,0),FALSE) -> -0.0575 | D22: -3.1625 | E22: =IF($C$9="kWh",$C$4,$C$5) -> 55 | F22: =VLOOKUP($C$3,'Data Proposed Rates'!$A:$BA,MATCH('BI Template_DemandHCHI'!$A22,ProposedHeader,0),FALSE) -> -0.0575 | G22: =E22*F22 -> -3.1625 | H22: 0 | I22: 0 | J22: -0.001350206615
A23: Sub-Total: Distribution | D23: =SUM(INDIRECT("D14:D"&ROW()-1)) -> 314.6785 | G23: =SUM(INDIRECT("g14:g"&ROW()-1)) -> 409 | H23: =G23-D23 -> 94.3215 | I23: 0.2997392577 | J23: 0.1746196065
A24: Retail Transmission Rate – Network Service Rate | B24: =IF($B$9="kWh",$B$4,$B$5) -> 55 | C24: =VLOOKUP($B$3,'Data Current Rates'!$A:$AL,MATCH('BI Template_DemandHCHI'!$A24,CurrentHeader,0),FALSE) -> 2.6512 | D24: =B24*C24 -> 145.816 | E24: =IF($C$9="kWh",$C$4,$C$5) -> 55 | F24: =VLOOKUP($C$3,'Data Proposed Rates'!$A:$BA,MATCH('BI Template_DemandHCHI'!$A24,ProposedHeader,0),FALSE) -> 2.6521 | G24: =E24*F24 -> 145.8655 | H24: =G24-D24 -> 0.0495 | I24: 0.0003394689197 | J24: 0.06227622545
A25: Retail Transmission Rate – Line and Transformation Connection Service Rate | B25: =IF($B$9="kWh",$B$4,$B$5) -> 55 | C25: =VLOOKUP($B$3,'Data Current Rates'!$A:$AL,MATCH('BI Template_DemandHCHI'!$A25,CurrentHeader,0),FALSE) -> 2.4073 | D25: =B25*C25 -> 132.4015 | E25: =IF($C$9="kWh",$C$4,$C$5) -> 55 | F25: =VLOOKUP($C$3,'Data Proposed Rates'!$A:$BA,MATCH('BI Template_DemandHCHI'!$A25,ProposedHeader,0),FALSE) -> 1.9934 | G25: =E25*F25 -> 109.637 | H25: =G25-D25 -> -22.7645 | I25: -0.1719353633 | J25: 0.0468087281
A26: Sub-Total: Retail Transmission | D26: =SUM(D24:D25) -> 278.2175 | G26: =SUM(G24:G25) -> 255.5025 | H26: =G26-D26 -> -22.715 | I26: -0.08164475635 | J26: 0.1090849536
A27: Sub-Total: Delivery (based on two-tier RPP prices) | D27: =SUM(D23,D26) -> 592.896 | G27: =SUM(G23,G26) -> 664.5025 | H27: =G27-D27 -> 71.6065 | I27: 0.1207741324 | J27: 0.28370456
A28: Wholesale Market Service Rate (WMS) - not including CBR | B28: =B8 -> 11476.224 | C28: =VLOOKUP($A28,'Data Pass Through'!$A:$D,2,FALSE) -> 0.003 | D28: =B28*C28 -> 34.428672 | E28: =$C$8 -> 11456.64 | F28: =VLOOKUP($A28,'Data Pass Through'!$A:$D,3,FALSE) -> 0.003 | G28: =E28*F28 -> 34.36992 | H28: =G28-D28 -> -0.058752 | I28: -0.001706484642 | J28: 0.01467398999
A29: Capacity Based Recovery (CBR) - Applicable for Class B Customers | B29: =B8 -> 11476.224 | C29: =VLOOKUP($A29,'Data Pass Through'!$A:$D,2,FALSE) -> 0.0004 | D29: =B29*C29 -> 4.5904896 | E29: =$C$8 -> 11456.64 | F29: =VLOOKUP($A29,'Data Pass Through'!$A:$D,3,FALSE) -> 0.0004 | G29: =E29*F29 -> 4.582656 | H29: -0.0078336 | I29: -0.001706484642 | J29: 0.001956531998
A30: Rural Rate Protection Charge | B30: =B8 -> 11476.224 | C30: =VLOOKUP($A30,'Data Pass Through'!$A:$D,2,FALSE) -> 0.0005 | D30: 5.738112 | E30: 11456.64 | F30: =VLOOKUP($A30,'Data Pass Through'!$A:$D,3,FALSE) -> 0.0005 | G30: 5.72832 | H30: -0.009792 | I30: -0.001706484642 | J30: 0.002445664998
A31: Standard Supply Service – Administration Charge (if applicable) | B31: 1 | C31: =VLOOKUP($A31,'Data Pass Through'!$A:$D,2,FALSE) -> 0.25 | D31: =B31*C31 -> 0.25 | E31: =B31 -> 1 | F31: =VLOOKUP($A31,'Data Pass Through'!$A:$D,3,FALSE) -> 0.25 | G31: 0.25 | H31: 0 | I31: 0 | J31: 0.0001067357008
A32: Sub-Total: Regulatory | D32: =SUM(D28:D31) -> 45.0072736 | G32: =SUM(G28:G31) -> 44.930896 | H32: -0.0763776 | I32: -0.001697005704 | J32: 0.01918292268
A33: Total Electricty Charge on WAHSP | D33: =SUM(D13,D27,D32) -> 2003.57393 | G33: =SUM(G13,G27,G32) -> 2072.773556 | H33: 69.1996264 | I33: 0.03453809484 | J33: 0.8849557522
A34: HST | C34: 0.13 | D34: =D33*C34 -> 260.4646108 | F34: =C34 -> 0.13 | G34: =G33*F34 -> 269.4605623 | H34: 8.995951432 | I34: 0.03453809484 | J34: 0.1150442478
A35: Total Amount on WAHSP | D35: =SUM(D33:D34) -> 2264.03854 | G35: =SUM(G33:G34) -> 2342.234118 | H35: 78.19557783 | I35: 0.03453809484 | J35: 1

Sheet BI Template_unmHCHI (hidden)
A1: 2023 Bill Impacts (Average Consumption Level) - St Lgt_HCHI
A3: Rate Class | B3: =VLOOKUP(A1,'Data BI List Acq_Seas'!C:E,2,FALSE) -> HCHI_St Lgt | C3: =VLOOKUP(A1,'Data BI List Acq_Seas'!C:E,3,FALSE) -> St Lgt-HCHI
A4: Monthly Consumption (kWh) | B4: =IF(COUNTIF(A1,"*Low*")>0,VLOOKUP(B3,'Data Billing Quantities'!$A:$Z,MATCH("Low kWh",'Data Billing Quantities'!4:4,0),FALSE),IF(COUNTIF(A1,"*Typical*")>0,VLOOKUP(B3,'Data Billing Quantities'!$A:$Z,MATCH("Typical kWh",'Data Billing Quantities'!4:4,0),FALSE),IF(COUNTIF(A1,"*Average*")>0,VLOOKUP(B3,'Data Billing Quantities'!$A:$Z,MATCH("Average kWh",'Data Billing Quantities'!4:4,0),FALSE),IF(COUNTIF(A1,"*High*")>0,VLOOKUP(B3,'Data Billing Quantities'!$A:$Z,MATCH("High kWh",'Data Billing Quantities'!4:4,0),FALSE),"error")))) -> 31001 | C4: =B4 -> 31001
A5: Peak (kW) | B5: =IF(COUNTIF(A1,"*Low*")>0,VLOOKUP(B3,'Data Billing Quantities'!$A:$Z,MATCH("Low kW",'Data Billing Quantities'!4:4,0),FALSE),IF(COUNTIF(A1,"*Typical*")>0,VLOOKUP(B3,'Data Billing Quantities'!$A:$Z,MATCH("Typical kW",'Data Billing Quantities'!4:4,0),FALSE),IF(COUNTIF(A1,"*Average*")>0,VLOOKUP(B3,'Data Billing Quantities'!$A:$Z,MATCH("Average kW",'Data Billing Quantities'!4:4,0),FALSE),IF(COUNTIF(A1,"*High*")>0,VLOOKUP(B3,'Data Billing Quantities'!$A:$Z,MATCH("High kW",'Data Billing Quantities'!4:4,0),FALSE),"error")))) -> 85 | C5: =B5 -> 85
A6: Loss factor | B6: =VLOOKUP(B3,'Data Billing Quantities'!A:D,MATCH(A6,'Data Billing Quantities'!4:4,0),FALSE) -> 1.0655 | C6: =VLOOKUP(C3,'Data Billing Quantities'!A:D,MATCH(A6,'Data Billing Quantities'!4:4,0),FALSE) -> 1.092
A7: Commodity Threshold | B7: =VLOOKUP(B3,'Data Billing Quantities'!A:D,MATCH(A7,'Data Billing Quantities'!4:4,0),FALSE) -> 750 | C7: =B7 -> 750
A8: Monthly Consumption (kWh) - Uplifted | B8: =B4*B6 -> 33031.5655 | C8: =C4*C6 -> 33853.092
A9: Charge determinant | B9: =VLOOKUP(B3,'Data Billing Quantities'!A:D,MATCH(A9,'Data Billing Quantities'!4:4,0),FALSE) -> kW | C9: =VLOOKUP(C3,'Data Billing Quantities'!A:D,MATCH(A9,'Data Billing Quantities'!4:4,0),FALSE) -> kWh
B11: Volume | C11: Current Rate ($) | D11: Current Charge ($) | E11: Volume | F11: Proposed Rate ($) | G11: Proposed Charge ($) | H11: Change ($) | I11: Change (%) | J11: % of Total Bill
A12: Energy First Tier | B12: =IF(B4>B7,B7,B4) -> 750 | C12: =VLOOKUP($A12,'Data Pass Through'!$A:$D,2,FALSE) -> 0.098 | D12: =B12*C12 -> 73.5 | E12: =B12 -> 750 | F12: =VLOOKUP($A12,'Data Pass Through'!$A:$D,3,FALSE) -> 0.098 | G12: =E12*F12 -> 73.5 | H12: =G12-D12 -> 0 | I12: =IF(ISERROR(H12/ABS(D12)),"N/A",(H12/ABS(D12))) -> 0 | J12: =G12/$G$37 -> 0.008407268982
A13: Energy Second Tier | B13: =IF(B4>B7,(B4)-B7,0) -> 30251 | C13: =VLOOKUP($A13,'Data Pass Through'!$A:$D,2,FALSE) -> 0.115 | D13: =B13*C13 -> 3478.865 | E13: =B13 -> 30251 | F13: =VLOOKUP($A13,'Data Pass Through'!$A:$D,3,FALSE) -> 0.115 | G13: =E13*F13 -> 3478.865 | H13: 0 | I13: 0 | J13: 0.3979286232
A14: Sub-Total: Energy (RPP Tiered) | D14: =SUM(D12:D13) -> 3552.365 | G14: =SUM(G12:G13) -> 3552.365 | H14: 0 | I14: 0 | J14: 0.4063358922
A15: Service Charge | B15: =IF(VLOOKUP(B$3,'Data Billing Quantities'!A:P,MATCH("Acquired Street Light Service Charge",'Data Billing Quantities'!$4:$4,0),FALSE)>0,VLOOKUP(B$3,'Data Billing Quantities'!A:P,MATCH("Acquired Street Light Service Charge",'Data Billing Quantities'!$4:$4,0),FALSE),1) -> 701 | C15: =VLOOKUP($B$3,'Data Current Rates'!$A:$AL,MATCH('BI Template_unmHCHI'!$A15,CurrentHeader,0),FALSE) -> 5.97 | D15: =B15*C15 -> 4184.97 | E15: 1 | F15: =VLOOKUP($C$3,'Data Proposed Rates'!$A:$BA,MATCH('BI Template_unmHCHI'!$A15,ProposedHeader,0),FALSE) -> 3.01 | G15: =E15*F15 -> 3.01 | H15: -4181.96 | I15: -0.9992807595 | J15: 0.0003442976821
A16: Distribution Volumetric Charge | B16: =IF($B$9="kWh",$B$4,$B$5) -> 85 | C16: =VLOOKUP($B$3,'Data Current Rates'!$A:$AL,MATCH('BI Template_unmHCHI'!$A16,CurrentHeader,0),FALSE) -> 15.2665 | D16: =B16*C16 -> 1297.6525 | E16: =IF($C$9="kWh",$C$4,$C$5) -> 31001 | F16: =VLOOKUP($C$3,'Data Proposed Rates'!$A:$BA,MATCH('BI Template_unmHCHI'!$A16,ProposedHeader,0),FALSE) -> 0.1094 | G16: 3391.5094 | H16: 2093.8569 | I16: 1.613572894 | J16: 0.3879364868
A17: Low Voltage Service Rate | B17: =IF($B$9="kWh",$B$4,$B$5) -> 85 | C17: =VLOOKUP($B$3,'Data Current Rates'!$A:$AL,MATCH('BI Template_unmHCHI'!$A17,CurrentHeader,0),FALSE) -> 0.113 | D17: 9.605 | H17: -9.605 | I17: -1 | J17: 0
A18: Funding Adder for Renewable Energy Generation | B18: 85 | C18: =VLOOKUP($B$3,'Data Current Rates'!$A:$AL,MATCH('BI Template_unmHCHI'!$A18,CurrentHeader,0),FALSE) -> 0.2152 | D18: 18.292 | H18: -18.292 | I18: -1 | J18: 0
A19: Group 1 Volumetric DVA Rider (General) | E19: =IF($C$9="kWh",$C$4,$C$5) -> 31001 | F19: =VLOOKUP($C$3,'Data Proposed Rates'!$A:$BA,MATCH('BI Template_unmHCHI'!$A19,ProposedHeader,0),FALSE) -> -0.0004 | G19: -12.4004 | H19: -12.4004 | I19: N/A | J19: -0.001418414943
A20: Group 2 Volumetric DVA Rider | B20: 85 | C20: =VLOOKUP($B$3,'Data Current Rates'!$A:$AL,MATCH('BI Template_unmHCHI'!$A20,CurrentHeader,0),FALSE) -> -1.4539 | D20: =B20*C20 -> -123.5815 | H20: =G20-D20 -> 123.5815 | I20: =IF(ISERROR(H20/ABS(D20)),"N/A",(H20/ABS(D20))) -> 1 | J20: =G20/$G$37 -> 0
A21: Sub-Total: Distribution (excluding pass through) | D21: =SUM(INDIRECT("D15:D"&ROW()-1)) -> 5386.938 | G21: =SUM(INDIRECT("g15:g"&ROW()-1)) -> 3382.119 | H21: =G21-D21 -> -2004.819 | I21: -0.3721629987 | J21: 0.3868623695
A22: Line Losses on Cost of Power (based on two-tier RPP prices) | B22: =B8-B4 -> 2030.5655 | C22: =IF(B4>B7,C13,C12) -> 0.115 | D22: =B22*C22 -> 233.5150325 | E22: =C8-C4 -> 2852.092 | F22: =IF(C4>C7,F13,F12) -> 0.115 | G22: =E22*F22 -> 327.99058 | H22: 94.4755475 | I22: 0.4045801527 | J22: 0.03751707523
A23: Sub-Total: Distribution (based on two-tier RPP prices) | D23: =SUM(D21,D22:D22) -> 5620.453032 | G23: =SUM(G21,G22:G22) -> 3710.10958 | H23: -1910.343452 | I23: -0.3398913649 | J23: 0.4243794448
A24: Retail Transmission Rate – Network Service Rate | B24: =IF($B$9="kWh",$B$8,$B$5) -> 85 | C24: =VLOOKUP($B$3,'Data Current Rates'!$A:$AL,MATCH('BI Template_unmHCHI'!$A24,CurrentHeader,0),FALSE) -> 1.915 | D24: =B24*C24 -> 162.775 | E24: =IF($C$9="kWh",$C$8,$C$5) -> 33853.092 | F24: =VLOOKUP($C$3,'Data Proposed Rates'!$A:$BA,MATCH('BI Template_unmHCHI'!$A24,ProposedHeader,0),FALSE) -> 0.0059 | G24: =E24*F24 -> 199.7332428 | H24: =G24-D24 -> 36.9582428 | I24: 0.2270511 | J24: 0.02284640948
A25: Retail Transmission Rate – Line and Transformation Connection Service Rate | B25: =IF($B$9="kWh",$B$8,$B$5) -> 85 | C25: =VLOOKUP($B$3,'Data Current Rates'!$A:$AL,MATCH('BI Template_unmHCHI'!$A25,CurrentHeader,0),FALSE) -> 1.7294 | D25: =B25*C25 -> 146.999 | E25: =IF($C$9="kWh",$C$8,$C$5) -> 33853.092 | F25: =VLOOKUP($C$3,'Data Proposed Rates'!$A:$BA,MATCH('BI Template_unmHCHI'!$A25,ProposedHeader,0),FALSE) -> 0.0042 | G25: =E25*F25 -> 142.1829864 | H25: =G25-D25 -> -4.8160136 | I25: -0.03276222015 | J25: 0.01626354573
A26: Sub-Total: Retail Transmission | D26: =SUM(D24:D25) -> 309.774 | G26: =SUM(G24:G25) -> 341.9162292 | H26: =G26-D26 -> 32.1422292 | I26: 0.1037602549 | J26: 0.03910995521
A27: Sub-Total: Delivery (based on two-tier RPP prices) | D27: =D23+D26 -> 5930.227032 | G27: =G23+G26 -> 4052.025809 | H27: =G27-D27 -> -1878.201223 | I27: -0.3167165798 | J27: 0.4634894
A28: Wholesale Market Service Rate (WMS) - not including CBR | B28: =B8 -> 33031.5655 | C28: =VLOOKUP($A28,'Data Pass Through'!$A:$D,2,FALSE) -> 0.003 | D28: =B28*C28 -> 99.0946965 | E28: =$C$8 -> 33853.092 | F28: =VLOOKUP($A28,'Data Pass Through'!$A:$D,3,FALSE) -> 0.003 | G28: =E28*F28 -> 101.559276 | H28: =G28-D28 -> 2.4645795 | I28: 0.0248709526 | J28: 0.01161681838
A29: Capacity Based Recovery (CBR) - Applicable for Class B Customers | B29: =B8 -> 33031.5655 | C29: =VLOOKUP($A29,'Data Pass Through'!$A:$D,2,FALSE) -> 0.0004 | D29: =B29*C29 -> 13.2126262 | E29: =$C$8 -> 33853.092 | F29: =VLOOKUP($A29,'Data Pass Through'!$A:$D,3,FALSE) -> 0.0004 | G29: =E29*F29 -> 13.5412368 | H29: 0.3286106 | I29: 0.0248709526 | J29: 0.001548909117
A30: Rural Rate Protection Charge | B30: =B8 -> 33031.5655 | C30: =VLOOKUP($A30,'Data Pass Through'!$A:$D,2,FALSE) -> 0.0005 | D30: 16.51578275 | E30: 33853.092 | F30: =VLOOKUP($A30,'Data Pass Through'!$A:$D,3,FALSE) -> 0.0005 | G30: 16.926546 | H30: 0.41076325 | I30: 0.0248709526 | J30: 0.001936136397
A31: Standard Supply Service – Administration Charge (if applicable) | B31: 1 | C31: =VLOOKUP($A31,'Data Pass Through'!$A:$D,2,FALSE) -> 0.25 | D31: =B31*C31 -> 0.25 | E31: 1 | F31: =VLOOKUP($A31,'Data Pass Through'!$A:$D,3,FALSE) -> 0.25 | G31: 0.25 | H31: 0 | I31: 0 | J31: 2.8596153e-05
A32: Sub-Total: Regulatory | D32: =SUM(D28:D31) -> 129.0731055 | G32: =SUM(G28:G31) -> 132.2770588 | H32: 3.20395335 | I32: 0.02482278038 | J32: 0.01513046005
A33: Total Electricty Charge on Two-Tier RPP | D33: =SUM(D27,D32,D14) -> 9611.665138 | G33: =SUM(G27,G32,G14) -> 7736.667868 | H33: -1874.99727 | I33: -0.1950751762 | J33: 0.8849557522
A34: HST | C34: 0.13 | D34: =D33*C34 -> 1249.516468 | F34: =C34 -> 0.13 | G34: =G33*F34 -> 1005.766823 | H34: -243.7496451 | I34: -0.1950751762 | J34: 0.1150442478
A35: Total Electricity Charge on Two-Tier RPP (including HST) | D35: =SUM(D33:D34) -> 10861.18161 | G35: =SUM(G33:G34) -> 8742.434691 | H35: -2118.746915 | I35: -0.1950751762 | J35: 1
A36: Ontario Electricity Rebate (OER) | C36: =IF(($B$4*12)<250000,VLOOKUP(A36,'Data Pass Through'!$A$4:$C$20,2,0),0) -> 0 | D36: =D33*C36 -> 0 | F36: =C36 -> 0 | G36: =G33*F36 -> 0 | H36: 0 | I36: N/A | J36: 0
A37: Total Amount on Two-Tier RPP | D37: =SUM(D35:D36) -> 10861.18161 | G37: =SUM(G35:G36) -> 8742.434691 | H37: -2118.746915 | I37: -0.1950751762 | J37: 1

Sheet BI Template_EnergyWHSI (hidden)
A1: 2023 Bill Impacts (Low Consumption Level) - AUR_WHSI
A3: Rate Class | B3: =VLOOKUP(A1,'Data BI List Acq_Seas'!C:E,2,FALSE) -> WHSI_RES | C3: =VLOOKUP(A1,'Data BI List Acq_Seas'!C:E,3,FALSE) -> AUR-WHSI
A4: Monthly Consumption (kWh) | B4: =IF(COUNTIF(A1,"*Low*")>0,VLOOKUP(B3,'Data Billing Quantities'!$A:$Z,MATCH("Low kWh",'Data Billing Quantities'!4:4,0),FALSE),IF(COUNTIF(A1,"*Typical*")>0,VLOOKUP(B3,'Data Billing Quantities'!$A:$Z,MATCH("Typical kWh",'Data Billing Quantities'!4:4,0),FALSE),IF(COUNTIF(A1,"*Average*")>0,VLOOKUP(B3,'Data Billing Quantities'!$A:$Z,MATCH("Average kWh",'Data Billing Quantities'!4:4,0),FALSE),IF(COUNTIF(A1,"*High*")>0,VLOOKUP(B3,'Data Billing Quantities'!$A:$Z,MATCH("High kWh",'Data Billing Quantities'!4:4,0),FALSE),"error")))) -> 310 | C4: =B4 -> 310
A5: Peak (kW) | B5: =IF(COUNTIF(A1,"*Low*")>0,VLOOKUP(B3,'Data Billing Quantities'!$A:$Z,MATCH("Low kW",'Data Billing Quantities'!4:4,0),FALSE),IF(COUNTIF(A1,"*Typical*")>0,VLOOKUP(B3,'Data Billing Quantities'!$A:$Z,MATCH("Typical kW",'Data Billing Quantities'!4:4,0),FALSE),IF(COUNTIF(A1,"*Average*")>0,VLOOKUP(B3,'Data Billing Quantities'!$A:$Z,MATCH("Average kW",'Data Billing Quantities'!4:4,0),FALSE),IF(COUNTIF(A1,"*High*")>0,VLOOKUP(B3,'Data Billing Quantities'!$A:$Z,MATCH("High kW",'Data Billing Quantities'!4:4,0),FALSE),"error")))) -> 0 | C5: =B5 -> 0
A6: Loss factor | B6: =VLOOKUP(B3,'Data Billing Quantities'!A:D,MATCH(A6,'Data Billing Quantities'!4:4,0),FALSE) -> 1.0431 | C6: =VLOOKUP(C3,'Data Billing Quantities'!A:D,MATCH(A6,'Data Billing Quantities'!4:4,0),FALSE) -> 1.043
A7: Commodity Threshold | B7: =VLOOKUP(B3,'Data Billing Quantities'!A:D,MATCH(A7,'Data Billing Quantities'!4:4,0),FALSE) -> 600 | C7: =B7 -> 600
A8: Monthly Consumption (kWh) - Uplifted | B8: =B4*B6 -> 323.361 | C8: =C4*C6 -> 323.33
A9: Charge determinant | B9: =VLOOKUP(B3,'Data Billing Quantities'!A:D,MATCH(A9,'Data Billing Quantities'!4:4,0),FALSE) -> kWh | C9: =VLOOKUP(C3,'Data Billing Quantities'!A:D,MATCH(A9,'Data Billing Quantities'!4:4,0),FALSE) -> kWh
B11: Volume | C11: Current Rate ($) | D11: Current Charge ($) | E11: Volume | F11: Proposed Rate ($) | G11: Proposed Charge ($) | H11: Change ($) | I11: Change (%) | J11: % of Total Bill on RPP | K11: % of Total Bill
A12: Energy First Tier | B12: =IF(B4>B7,B7,B4) -> 310 | C12: =VLOOKUP($A12,'Data Pass Through'!$A:$D,2,FALSE) -> 0.098 | D12: =B12*C12 -> 30.38 | E12: =B12 -> 310 | F12: =VLOOKUP($A12,'Data Pass Through'!$A:$D,3,FALSE) -> 0.098 | G12: =E12*F12 -> 30.38 | H12: =G12-D12 -> 0 | I12: =IF(ISERROR(H12/ABS(D12)),"N/A",(H12/ABS(D12))) -> 0 | J12: =G12/$G$49 -> 0.4581337217
A13: Energy Second Tier | B13: =IF(B4>B7,(B4)-B7,0) -> 0 | C13: =VLOOKUP($A13,'Data Pass Through'!$A:$D,2,FALSE) -> 0.115 | D13: =B13*C13 -> 0 | E13: =B13 -> 0 | F13: =VLOOKUP($A13,'Data Pass Through'!$A:$D,3,FALSE) -> 0.115 | G13: =E13*F13 -> 0 | H13: 0 | I13: N/A | J13: =G13/$G$49 -> 0
A14: Sub-Total: Energy (RPP Tiered) | D14: =SUM(D12:D13) -> 30.38 | G14: =SUM(G12:G13) -> 30.38 | H14: 0 | I14: 0 | J14: =G14/$G$49 -> 0.4581337217
A15: TOU-Off Peak | B15: =B$4*VLOOKUP($B$3,'Data Billing Quantities'!$A:$O,MATCH('BI Template_EnergyWHSI'!$A15,'Data Billing Quantities'!$4:$4,0),FALSE) -> 198.4 | C15: =VLOOKUP($A15,'Data Pass Through'!$A:$D,2,FALSE) -> 0.082 | D15: =B15*C15 -> 16.2688 | E15: 198.4 | F15: =VLOOKUP($A15,'Data Pass Through'!$A:$D,3,FALSE) -> 0.082 | G15: =E15*F15 -> 16.2688 | H15: 0 | I15: 0 | K15: =G15/$G$54 -> 0.2393823427
A16: TOU-Mid Peak | B16: =B$4*VLOOKUP($B$3,'Data Billing Quantities'!$A:$O,MATCH('BI Template_EnergyWHSI'!$A16,'Data Billing Quantities'!$4:$4,0),FALSE) -> 55.8 | C16: =VLOOKUP($A16,'Data Pass Through'!$A:$D,2,FALSE) -> 0.113 | D16: =B16*C16 -> 6.3054 | E16: 55.8 | F16: =VLOOKUP($A16,'Data Pass Through'!$A:$D,3,FALSE) -> 0.113 | G16: =E16*F16 -> 6.3054 | H16: 0 | I16: 0 | K16: 0.09277890339
A17: TOU-On Peak | B17: =B$4*VLOOKUP($B$3,'Data Billing Quantities'!$A:$O,MATCH('BI Template_EnergyWHSI'!$A17,'Data Billing Quantities'!$4:$4,0),FALSE) -> 55.8 | C17: =VLOOKUP($A17,'Data Pass Through'!$A:$D,2,FALSE) -> 0.17 | D17: =B17*C17 -> 9.486 | E17: 55.8 | F17: =VLOOKUP($A17,'Data Pass Through'!$A:$D,3,FALSE) -> 0.17 | G17: =E17*F17 -> 9.486 | H17: 0 | I17: 0 | K17: 0.1395788812
A18: Sub-Total: Energy (RPP TOU) | D18: =SUM(D15:D17) -> 32.0602 | G18: =SUM(G15:G17) -> 32.0602 | H18: 0 | I18: 0 | J18: =G18/$G$49 -> 0.4834713214 | K18: 0.4717401273
A19: Service Charge | B19: 1 | C19: =VLOOKUP($B$3,'Data Current Rates'!$A:$AL,MATCH('BI Template_EnergyWHSI'!$A19,CurrentHeader,0),FALSE) -> 31.42 | D19: =B19*C19 -> 31.42 | E19: 1 | F19: =VLOOKUP($C$3,'Data Proposed Rates'!$A:$BA,MATCH('BI Template_EnergyWHSI'!$A19,ProposedHeader,0),FALSE) -> 30.46 | G19: =E19*F19 -> 30.46 | H19: -0.96 | I19: -0.0305537874 | J19: 0.4593401305 | K19: 0.4481944678
A20: Rate Rider for Recovery of Smart Meter Incremental Revenue Requirement | B20: 1 | C20: =VLOOKUP($B$3,'Data Current Rates'!$A:$AL,MATCH('BI Template_EnergyWHSI'!$A20,CurrentHeader,0),FALSE) -> 0.64 | D20: =B20*C20 -> 0.64 | H20: =G20-D20 -> -0.64 | I20: =IF(ISERROR(H20/ABS(D20)),"N/A",(H20/ABS(D20))) -> -1 | J20: 0 | K20: 0
A21: Distribution Volumetric Charge | B21: =IF($B$9="kWh",$B$4,$B$5) -> 310 | C21: =VLOOKUP($B$3,'Data Current Rates'!$A:$AL,MATCH('BI Template_EnergyWHSI'!$A21,CurrentHeader,0),FALSE) -> 0 | D21: =B21*C21 -> 0 | E21: =IF($C$9="kWh",$C$4,$C$5) -> 310 | F21: =VLOOKUP($C$3,'Data Proposed Rates'!$A:$BA,MATCH('BI Template_EnergyWHSI'!$A21,ProposedHeader,0),FALSE) -> 0 | G21: 0 | H21: 0 | I21: N/A | J21: 0 | K21: 0
A22: Rate Rider for Recovery of Incremental Capital | B22: =IF($B$9="kWh",$B$4,$B$5) -> 310 | C22: =VLOOKUP($B$3,'Data Current Rates'!$A:$AL,MATCH('BI Template_EnergyWHSI'!$A22,CurrentHeader,0),FALSE) -> 0 | D22: 0 | H22: 0 | I22: N/A | J22: 0 | K22: 0
A23: Group 1 Volumetric DVA Rider (General) | E23: =IF($C$9="kWh",$C$4,$C$5) -> 310 | F23: =VLOOKUP($C$3,'Data Proposed Rates'!$A:$BA,MATCH('BI Template_EnergyWHSI'!$A23,ProposedHeader,0),FALSE) -> -0.0005 | G23: -0.155 | H23: -0.155 | I23: N/A | J23: -0.002337416948 | K23: -0.002280700673
A24: Group 2 Fixed DVA Rider | B24: 1 | C24: =VLOOKUP($B$3,'Data Current Rates'!$A:$AL,MATCH('BI Template_EnergyWHSI'!$A24,CurrentHeader,0),FALSE) -> 0.62 | D24: =B24*C24 -> 0.62 | H24: =G24-D24 -> -0.62 | I24: =IF(ISERROR(H24/ABS(D24)),"N/A",(H24/ABS(D24))) -> -1 | J24: =G24/$G$49 -> 0 | K24: =G24/$G$54 -> 0
A25: Group 2 Volumetric DVA Rider | B25: 310 | C25: =VLOOKUP($B$3,'Data Current Rates'!$A:$AL,MATCH('BI Template_EnergyWHSI'!$A25,CurrentHeader,0),FALSE) -> 0 | D25: 0 | H25: 0 | I25: N/A | J25: 0 | K25: 0
A26: Account 1576 Fixed Rate Rider | B26: 1 | C26: =VLOOKUP($B$3,'Data Current Rates'!$A:$AL,MATCH('BI Template_EnergyWHSI'!$A26,CurrentHeader,0),FALSE) -> -8.64 | D26: -8.64 | H26: 8.64 | I26: 1 | J26: 0 | K26: 0
A27: Account 1576 Volumetric Rate Rider | B27: 310 | C27: =VLOOKUP($B$3,'Data Current Rates'!$A:$AL,MATCH('BI Template_EnergyWHSI'!$A27,CurrentHeader,0),FALSE) -> 0 | D27: 0 | H27: 0 | I27: N/A | J27: 0 | K27: 0
A28: LRAMVA Volumetric Rate Rider | B28: 310 | C28: =VLOOKUP($B$3,'Data Current Rates'!$A:$AL,MATCH('BI Template_EnergyWHSI'!$A28,CurrentHeader,0),FALSE) -> 0.0003 | D28: 0.093 | E28: =IF($B$9="kWh",$B$4,$B$5) -> 310 | F28: =VLOOKUP($B$3,'Data Current Rates'!$A:$AL,MATCH('BI Template_EnergyWHSI'!$A28,CurrentHeader,0),FALSE) -> 0.0003 | G28: =E28*F28 -> 0.093 | H28: 0 | I28: 0 | J28: 0.001402450169 | K28: 0.001368420404
A29: Sub-Total: Distribution (excluding pass through) | D29: =SUM(INDIRECT("D19:D"&ROW()-1)) -> 24.133 | G29: =SUM(INDIRECT("g19:g"&ROW()-1)) -> 30.398 | H29: =G29-D29 -> 6.265 | I29: 0.2596030332 | J29: 0.4584051637 | K29: 0.4472821875
A30: Smart Metering Entity Charge | B30: =B19 -> 1 | C30: =VLOOKUP($A30,'Data Pass Through'!$A:$D,2,FALSE) -> 0.57 | D30: =B30*C30 -> 0.57 | E30: =E19 -> 1 | F30: =VLOOKUP($A30,'Data Pass Through'!$A:$D,3,FALSE) -> 0.57 | G30: =E30*F30 -> 0.57 | H30: 0 | I30: 0 | J30: 0.008595662323 | K30: 0.008387092799
A31: Line Losses on Cost of Power (based on two-tier RPP prices) | B31: =B8-B4 -> 13.361 | C31: =IF(B4>B7,C13,C12) -> 0.098 | D31: =B31*C31 -> 1.309378 | E31: =C8-C4 -> 13.33 | F31: =IF(C4>C7,F13,F12) -> 0.098 | G31: =E31*F31 -> 1.30634 | H31: -0.003038 | I31: -0.002320185615 | J31: 0.01969975003 | K31: 0.01922174528
A32: Line Losses on Cost of Power (based on TOU prices) | B32: =B8-B4 -> 13.361 | C32: =VLOOKUP($B$3,'Data Billing Quantities'!$A:$O,MATCH('BI Template_EnergyWHSI'!$A15,'Data Billing Quantities'!$4:$4,0),FALSE)*C15+VLOOKUP($B$3,'Data Billing Quantities'!$A:$O,MATCH('BI Template_EnergyWHSI'!$A16,'Data Billing Quantities'!$4:$4,0),FALSE)*C16+VLOOKUP($B$3,'Data Billing Quantities'!$A:$O,MATCH('BI Template_EnergyWHSI'!$A17,'Data Billing Quantities'!$4:$4,0),FALSE)*C17 -> 0.10342 | D32: =B32*C32 -> 1.38179462 | E32: =C8-C4 -> 13.33 | F32: =VLOOKUP($C$3,'Data Billing Quantities'!$A:$O,MATCH('BI Template_EnergyWHSI'!$A15,'Data Billing Quantities'!$4:$4,0),FALSE)*F15+VLOOKUP($C$3,'Data Billing Quantities'!$A:$O,MATCH('BI Template_EnergyWHSI'!$A16,'Data Billing Quantities'!$4:$4,0),FALSE)*F16+VLOOKUP($C$3,'Data Billing Quantities'!$A:$O,MATCH('BI Template_EnergyWHSI'!$A17,'Data Billing Quantities'!$4:$4,0),FALSE)*F17 -> 0.10342 | G32: =E32*F32 -> 1.3785886 | H32: -0.00320602 | I32: -0.002320185615 | J32: 0.02078926682 | K32: 0.02028482547
A33: Sub-Total: Distribution (based on two-tier RPP prices) | D33: =SUM(D29,D30:D31) -> 26.012378 | G33: =SUM(G29,G30:G31) -> 32.27434 | H33: 6.261962 | I33: 0.2407300863 | J33: 0.486700576 | K33: 0.4748910256
A34: Sub-Total: Distribution (based on TOU prices) | D34: =SUM(D29,D30,D32) -> 26.08479462 | G34: =SUM(G29,G30,G32) -> 32.3465886 | H34: 6.26179398 | I34: 0.24005533 | J34: 0.4877900928 | K34: 0.4759541058
A35: Retail Transmission Rate – Network Service Rate | B35: =IF($B$9="kWh",$B$8,$B$5) -> 323.361 | C35: =VLOOKUP($B$3,'Data Current Rates'!$A:$AL,MATCH('BI Template_EnergyWHSI'!$A35,CurrentHeader,0),FALSE) -> 0.0077 | D35: =B35*C35 -> 2.4898797 | E35: =IF($C$9="kWh",$C$8,$C$5) -> 323.33 | F35: =VLOOKUP($C$3,'Data Proposed Rates'!$A:$BA,MATCH('BI Template_EnergyWHSI'!$A35,ProposedHeader,0),FALSE) -> 0.0113 | G35: =E35*F35 -> 3.653629 | H35: =G35-D35 -> 1.1637493 | I35: 0.467391778 | J35: 0.0550971248 | K35: 0.05376022013
A36: Retail Transmission Rate – Line and Transformation Connection Service Rate | B36: =IF($B$9="kWh",$B$8,$B$5) -> 323.361 | C36: =VLOOKUP($B$3,'Data Current Rates'!$A:$AL,MATCH('BI Template_EnergyWHSI'!$A36,CurrentHeader,0),FALSE) -> 0.0064 | D36: =B36*C36 -> 2.0695104 | E36: =IF($C$9="kWh",$C$8,$C$5) -> 323.33 | F36: =VLOOKUP($C$3,'Data Proposed Rates'!$A:$BA,MATCH('BI Template_EnergyWHSI'!$A36,ProposedHeader,0),FALSE) -> 0.0082 | G36: =E36*F36 -> 2.651306 | H36: =G36-D36 -> 0.5817956 | I36: 0.281127169 | J36: 0.03998198437 | K36: 0.03901184116
A37: Sub-Total: Retail Transmission | D37: =SUM(D35:D36) -> 4.5593901 | G37: =SUM(G35:G36) -> 6.304935 | H37: =G37-D37 -> 1.7455449 | I37: 0.3828461399 | J37: 0.09507910918 | K37: 0.09277206129
A38: Sub-Total: Delivery (based on two-tier RPP prices) | D38: =D33+D37 -> 30.5717681 | G38: =G33+G37 -> 38.579275 | H38: =G38-D38 -> 8.0075069 | I38: 0.2619248868 | J38: 0.5817796852 | K38: 0.5676630869
A39: Sub-Total: Delivery (based on TOU prices) | D39: =D34+D37 -> 30.64418472 | G39: =G34+G37 -> 38.6515236 | H39: =G39-D39 -> 8.00733888 | I39: 0.2613004377 | J39: 0.582869202 | K39: 0.5687261671
A40: Wholesale Market Service Rate (WMS) - not including CBR | B40: =B8 -> 323.361 | C40: =VLOOKUP($A40,'Data Pass Through'!$A:$D,2,FALSE) -> 0.003 | D40: =B40*C40 -> 0.970083 | E40: =$C$8 -> 323.33 | F40: =VLOOKUP($A40,'Data Pass Through'!$A:$D,3,FALSE) -> 0.003 | G40: =E40*F40 -> 0.96999 | H40: -9.3e-05 | I40: -9.586808551e-05 | J40: 0.01462755526 | K40: 0.01427262481
A41: Capacity Based Recovery (CBR) - Applicable for Class B Customers | B41: =B8 -> 323.361 | C41: =VLOOKUP($A41,'Data Pass Through'!$A:$D,2,FALSE) -> 0.0004 | D41: =B41*C41 -> 0.1293444 | E41: =$C$8 -> 323.33 | F41: =VLOOKUP($A41,'Data Pass Through'!$A:$D,3,FALSE) -> 0.0004 | G41: =E41*F41 -> 0.129332 | H41: -1.24e-05 | I41: -9.586808551e-05 | J41: 0.001950340701 | K41: 0.001903016642
A42: Rural Rate Protection Charge | B42: =B8 -> 323.361 | C42: =VLOOKUP($A42,'Data Pass Through'!$A:$D,2,FALSE) -> 0.0005 | D42: 0.1616805 | E42: 323.33 | F42: =VLOOKUP($A42,'Data Pass Through'!$A:$D,3,FALSE) -> 0.0005 | G42: 0.161665 | H42: -1.55e-05 | I42: -9.586808551e-05 | J42: 0.002437925876 | K42: 0.002378770802
A43: Standard Supply Service – Administration Charge (if applicable) | B43: 1 | C43: =VLOOKUP($A43,'Data Pass Through'!$A:$D,2,FALSE) -> 0.25 | D43: =B43*C43 -> 0.25 | E43: 1 | F43: =VLOOKUP($A43,'Data Pass Through'!$A:$D,3,FALSE) -> 0.25 | G43: 0.25 | H43: 0 | I43: 0 | J43: 0.003770027335 | K43: 0.003678549473
A44: Sub-Total: Regulatory | D44: =SUM(D40:D43) -> 1.5111079 | G44: =SUM(G40:G43) -> 1.510987 | H44: -0.0001209 | I44: -8.000752296e-05 | J44: 0.02278584917 | K44: 0.02223296173
A45: Total Electricty Charge on Two-Tier RPP | D45: =SUM(D14,D29,D30,D31,D37,D44) -> 62.462876 | G45: =SUM(G14,G29,G30,G31,G37,G44) -> 70.470262 | H45: 8.007386 | I45: 0.1281943214 | J45: 1.062699256
A46: HST | C46: 0.13 | D46: =D45*C46 -> 8.12017388 | F46: =C46 -> 0.13 | G46: =G45*F46 -> 9.16113406 | H46: 1.04096018 | I46: 0.1281943214 | J46: 0.1381509033
A47: Total Electricity Charge on Two-Tier RPP (including HST) | D47: =SUM(D45:D46) -> 70.58304988 | G47: =SUM(G45:G46) -> 79.63139606 | H47: 9.04834618 | I47: 0.1281943214 | J47: 1.200850159
A48: Ontario Electricity Rebate (OER) | C48: =IF(($B$4*12)<250000,VLOOKUP(A48,'Data Pass Through'!$A$4:$C$20,2,0),0) -> -0.189 | D48: =D45*C48 -> -11.80548356 | F48: =C48 -> -0.189 | G48: =G45*F48 -> -13.31887952 | H48: -1.513395954 | I48: -0.1281943214 | J48: -0.2008501594
A49: Total Amount on Two-Tier RPP | D49: =SUM(D47:D48) -> 58.77756632 | G49: =SUM(G47:G48) -> 66.31251654 | H49: 7.534950226 | I49: 0.1281943214 | J49: 1
A50: Total Electricty Charge on TOU (before HST) | D50: =SUM(D18,D29,D30,D32,D37,D44) -> 64.21549262 | G50: =SUM(G18,G29,G30,G32,G37,G44) -> 72.2227106 | H50: 8.00721798 | I50: 0.1246929308 | K50: =G50/$G$54 -> 1.062699256
A51: HST | C51: 0.13 | D51: =D50*C51 -> 8.348014041 | F51: =C51 -> 0.13 | G51: =G50*F51 -> 9.388952378 | H51: 1.040938337 | I51: 0.1246929308 | K51: =G51/$G$54 -> 0.1381509033
A52: Total Electricity Charge on TOU (including HST) | D52: =SUM(D50:D51) -> 72.56350666 | G52: =SUM(G50:G51) -> 81.61166298 | H52: 9.048156317 | I52: 0.1246929308 | K52: =G52/$G$54 -> 1.200850159
A53: Ontario Electricity Rebate (OER) | C53: =IF(($B$4*12)<250000,VLOOKUP(A53,'Data Pass Through'!$A$4:$C$20,2,0),0) -> -0.189 | D53: =D50*C53 -> -12.13672811 | F53: =C53 -> -0.189 | G53: =G50*F53 -> -13.6500923 | H53: -1.513364198 | I53: -0.1246929308 | K53: =G53/$G$54 -> -0.2008501594
A54: Total Amount on TOU | D54: =SUM(D52:D53) -> 60.42677856 | G54: =SUM(G52:G53) -> 67.96157067 | H54: 7.534792119 | I54: 0.1246929308 | K54: =G54/$G$54 -> 1

Sheet BI Template_DemandWHSI (hidden)
A1: 2023 Bill Impacts (Low Consumption Level) - AUGd_WHSI
A3: Rate Class | B3: =VLOOKUP(A1,'Data BI List Acq_Seas'!C:E,2,FALSE) -> WHSI_GS 50-999 | C3: =VLOOKUP(A1,'Data BI List Acq_Seas'!C:E,3,FALSE) -> AUGd-WHSI
A4: Monthly Consumption (kWh) | B4: =IF(COUNTIF(A1,"*Low*")>0,VLOOKUP(B3,'Data Billing Quantities'!$A:$Z,MATCH("Low kWh",'Data Billing Quantities'!4:4,0),FALSE),IF(COUNTIF(A1,"*Typical*")>0,VLOOKUP(B3,'Data Billing Quantities'!$A:$Z,MATCH("Typical kWh",'Data Billing Quantities'!4:4,0),FALSE),IF(COUNTIF(A1,"*Average*")>0,VLOOKUP(B3,'Data Billing Quantities'!$A:$Z,MATCH("Average kWh",'Data Billing Quantities'!4:4,0),FALSE),IF(COUNTIF(A1,"*High*")>0,VLOOKUP(B3,'Data Billing Quantities'!$A:$Z,MATCH("High kWh",'Data Billing Quantities'!4:4,0),FALSE),"error")))) -> 9370 | C4: =B4 -> 9370
A5: Peak (kW) | B5: =IF(COUNTIF(A1,"*Low*")>0,VLOOKUP(B3,'Data Billing Quantities'!$A:$Z,MATCH("Low kW",'Data Billing Quantities'!4:4,0),FALSE),IF(COUNTIF(A1,"*Typical*")>0,VLOOKUP(B3,'Data Billing Quantities'!$A:$Z,MATCH("Typical kW",'Data Billing Quantities'!4:4,0),FALSE),IF(COUNTIF(A1,"*Average*")>0,VLOOKUP(B3,'Data Billing Quantities'!$A:$Z,MATCH("Average kW",'Data Billing Quantities'!4:4,0),FALSE),IF(COUNTIF(A1,"*High*")>0,VLOOKUP(B3,'Data Billing Quantities'!$A:$Z,MATCH("High kW",'Data Billing Quantities'!4:4,0),FALSE),"error")))) -> 50 | C5: =B5 -> 50
A6: Loss factor | B6: =VLOOKUP(B3,'Data Billing Quantities'!A:D,MATCH(A6,'Data Billing Quantities'!4:4,0),FALSE) -> 1.0431 | C6: =VLOOKUP(C3,'Data Billing Quantities'!A:D,MATCH(A6,'Data Billing Quantities'!4:4,0),FALSE) -> 1.033
A7: Commodity Threshold | B7: =VLOOKUP(B3,'Data Billing Quantities'!A:D,MATCH(A7,'Data Billing Quantities'!4:4,0),FALSE) -> 0 | C7: =B7 -> 0
A8: Monthly Consumption (kWh) - Uplifted | B8: =B4*B6 -> 9773.847 | C8: =C4*C6 -> 9679.21
A9: Charge determinant | B9: =VLOOKUP(B3,'Data Billing Quantities'!A:D,MATCH(A9,'Data Billing Quantities'!4:4,0),FALSE) -> kW | C9: =VLOOKUP(C3,'Data Billing Quantities'!A:D,MATCH(A9,'Data Billing Quantities'!4:4,0),FALSE) -> kW
B11: Volume | C11: Current Rate ($) | D11: Current Charge ($) | E11: Volume | F11: Proposed Rate ($) | G11: Proposed Charge ($) | H11: Change ($) | I11: Change (%) | J11: % of Total Bill
A12: Weighted Average Hourly Spot Price | B12: =B8 -> 9773.847 | C12: =VLOOKUP($A12,'Data Pass Through'!$A:$D,2,FALSE) -> 0.119 | D12: =B12*C12 -> 1163.087793 | E12: =C8 -> 9679.21 | F12: =VLOOKUP($A12,'Data Pass Through'!$A:$D,3,FALSE) -> 0.119 | G12: =E12*F12 -> 1151.82599 | H12: =G12-D12 -> -11.261803 | I12: =IF(ISERROR(H12/ABS(D12)),"N/A",(H12/ABS(D12))) -> -0.009682676637 | J12: =G12/G$34 -> 0.5787547889
A13: Sub-Total: Energy (WAHSP) | D13: =SUM(D12:D12) -> 1163.087793 | G13: =SUM(G12:G12) -> 1151.82599 | H13: -11.261803 | I13: -0.009682676637 | J13: 0.5787547889
A14: Service Charge | B14: 1 | C14: =VLOOKUP($B$3,'Data Current Rates'!$A:$AL,MATCH('BI Template_DemandWHSI'!$A14,CurrentHeader,0),FALSE) -> 146.47 | D14: =B14*C14 -> 146.47 | E14: 1 | F14: =VLOOKUP($C$3,'Data Proposed Rates'!$A:$BA,MATCH('BI Template_DemandWHSI'!$A14,ProposedHeader,0),FALSE) -> 159.51 | G14: =E14*F14 -> 159.51 | H14: 13.04 | I14: 0.08902846999 | J14: 0.08014854429
A15: Distribution Volumetric Charge | B15: =IF($B$9="kWh",$B$4,$B$5) -> 50 | C15: =VLOOKUP($B$3,'Data Current Rates'!$A:$AL,MATCH('BI Template_DemandWHSI'!$A15,CurrentHeader,0),FALSE) -> 2.6975 | D15: =B15*C15 -> 134.875 | E15: =IF($C$9="kWh",$C$4,$C$5) -> 50 | F15: =VLOOKUP($C$3,'Data Proposed Rates'!$A:$BA,MATCH('BI Template_DemandWHSI'!$A15,ProposedHeader,0),FALSE) -> 2.5877 | G15: 129.385 | H15: -5.49 | I15: -0.04070435589 | J15: 0.06501171966
A16: Group 1 Volumetric DVA Rider (General) | E16: =IF($C$9="kWh",$C$4,$C$5) -> 50 | F16: =VLOOKUP($C$3,'Data Proposed Rates'!$A:$BA,MATCH('BI Template_DemandWHSI'!$A16,ProposedHeader,0),FALSE) -> -0.0394 | G16: -1.97 | H16: -1.97 | I16: N/A | J16: -0.0009898603991
A17: Group 1 Volumetric Deferral/Variance Account Rider (Sub-Account RSVA Wholesale Market Service Charge & RSVA Power) | E17: 50 | F17: =VLOOKUP($C$3,'Data Proposed Rates'!$A:$BA,MATCH('BI Template_DemandWHSI'!$A17,ProposedHeader,0),FALSE) -> -0.0821 | G17: -4.105 | H17: -4.105 | I17: N/A | J17: -0.002062627887
A18: Group 1 Volumetric Deferral/Variance Account Rider (Sub-Account Global Adjustment) | E18: =C4 -> 9370 | F18: =VLOOKUP($C$3,'Data Proposed Rates'!$A:$BA,MATCH('BI Template_DemandWHSI'!$A18,ProposedHeader,0),FALSE) -> -0.0007 | G18: -6.559 | H18: -6.559 | I18: N/A | J18: -0.003295682415
A19: Group 2 Volumetric DVA Rider | B19: =IF($B$9="kWh",$B$4,$B$5) -> 50 | C19: =VLOOKUP($B$3,'Data Current Rates'!$A:$AL,MATCH('BI Template_DemandWHSI'!$A19,CurrentHeader,0),FALSE) -> 0.0724 | D19: =B19*C19 -> 3.62 | H19: =G19-D19 -> -3.62 | I19: =IF(ISERROR(H19/ABS(D19)),"N/A",(H19/ABS(D19))) -> -1 | J19: =G19/G$34 -> 0
A20: Account 1576 Volumetric Rate Rider | B20: 50 | C20: =VLOOKUP($B$3,'Data Current Rates'!$A:$AL,MATCH('BI Template_DemandWHSI'!$A20,CurrentHeader,0),FALSE) -> -1.0156 | D20: -50.78 | H20: 50.78 | I20: 1 | J20: 0
A21: LRAMVA Volumetric Rate Rider | B21: 50 | C21: =VLOOKUP($B$3,'Data Current Rates'!$A:$AL,MATCH('BI Template_DemandWHSI'!$A21,CurrentHeader,0),FALSE) -> 0.6839 | D21: 34.195 | E21: =IF($C$9="kWh",$C$4,$C$5) -> 50 | F21: =VLOOKUP($C$3,'Data Proposed Rates'!$A:$BA,MATCH('BI Template_DemandWHSI'!$A21,ProposedHeader,0),FALSE) -> 0.6839 | G21: =E21*F21 -> 34.195 | H21: 0 | I21: 0 | J21: 0.01718186617
A22: Sub-Total: Distribution | D22: =SUM(INDIRECT("D14:D"&ROW()-1)) -> 268.38 | G22: =SUM(INDIRECT("g14:g"&ROW()-1)) -> 310.456 | H22: =G22-D22 -> 42.076 | I22: 0.1567777033 | J22: =G22/G$34 -> 0.1559939594
A23: Retail Transmission Rate – Network Service Rate | B23: =IF($B$9="kWh",$B$4,$B$5) -> 50 | C23: =VLOOKUP($B$3,'Data Current Rates'!$A:$AL,MATCH('BI Template_DemandWHSI'!$A23,CurrentHeader,0),FALSE) -> 2.9915 | D23: =B23*C23 -> 149.575 | E23: =IF($C$9="kWh",$C$4,$C$5) -> 50 | F23: =VLOOKUP($C$3,'Data Proposed Rates'!$A:$BA,MATCH('BI Template_DemandWHSI'!$A23,ProposedHeader,0),FALSE) -> 3.021 | G23: =E23*F23 -> 151.05 | H23: =G23-D23 -> 1.475 | I23: 0.009861273609 | J23: 0.07589767172
A24: Retail Transmission Rate – Line and Transformation Connection Service Rate | B24: =IF($B$9="kWh",$B$4,$B$5) -> 50 | C24: =VLOOKUP($B$3,'Data Current Rates'!$A:$AL,MATCH('BI Template_DemandWHSI'!$A24,CurrentHeader,0),FALSE) -> 2.5605 | D24: =B24*C24 -> 128.025 | E24: =IF($C$9="kWh",$C$4,$C$5) -> 50 | F24: =VLOOKUP($C$3,'Data Proposed Rates'!$A:$BA,MATCH('BI Template_DemandWHSI'!$A24,ProposedHeader,0),FALSE) -> 2.1978 | G24: =E24*F24 -> 109.89 | H24: =G24-D24 -> -18.135 | I24: -0.1416520211 | J24: 0.05521612145
A25: Sub-Total: Retail Transmission | D25: =SUM(D23:D24) -> 277.6 | G25: =SUM(G23:G24) -> 260.94 | H25: =G25-D25 -> -16.66 | I25: -0.06001440922 | J25: 0.1311137932
A26: Sub-Total: Delivery (based on two-tier RPP prices) | D26: =SUM(D22,D25) -> 545.98 | G26: =SUM(G22,G25) -> 571.396 | H26: =G26-D26 -> 25.416 | I26: 0.04655115572 | J26: 0.2871077526
A27: Wholesale Market Service Rate (WMS) - not including CBR | B27: =B8 -> 9773.847 | C27: =VLOOKUP($A27,'Data Pass Through'!$A:$D,2,FALSE) -> 0.003 | D27: =B27*C27 -> 29.321541 | E27: =$C$8 -> 9679.21 | F27: =VLOOKUP($A27,'Data Pass Through'!$A:$D,3,FALSE) -> 0.003 | G27: =E27*F27 -> 29.03763 | H27: =G27-D27 -> -0.283911 | I27: -0.009682676637 | J27: 0.01459045686
A28: Capacity Based Recovery (CBR) - Applicable for Class B Customers | B28: =B8 -> 9773.847 | C28: =VLOOKUP($A28,'Data Pass Through'!$A:$D,2,FALSE) -> 0.0004 | D28: =B28*C28 -> 3.9095388 | E28: =$C$8 -> 9679.21 | F28: =VLOOKUP($A28,'Data Pass Through'!$A:$D,3,FALSE) -> 0.0004 | G28: =E28*F28 -> 3.871684 | H28: -0.0378548 | I28: -0.009682676637 | J28: 0.001945394248
A29: Rural Rate Protection Charge | B29: =B8 -> 9773.847 | C29: =VLOOKUP($A29,'Data Pass Through'!$A:$D,2,FALSE) -> 0.0005 | D29: 4.8869235 | E29: 9679.21 | F29: =VLOOKUP($A29,'Data Pass Through'!$A:$D,3,FALSE) -> 0.0005 | G29: 4.839605 | H29: -0.0473185 | I29: -0.009682676637 | J29: 0.002431742811
A30: Standard Supply Service – Administration Charge (if applicable) | B30: 1 | C30: =VLOOKUP($A30,'Data Pass Through'!$A:$D,2,FALSE) -> 0.25 | D30: =B30*C30 -> 0.25 | E30: =B30 -> 1 | F30: =VLOOKUP($A30,'Data Pass Through'!$A:$D,3,FALSE) -> 0.25 | G30: 0.25 | H30: 0 | I30: 0 | J30: 0.0001256168019
A31: Sub-Total: Regulatory | D31: =SUM(D27:D30) -> 38.3680033 | G31: =SUM(G27:G30) -> 37.998919 | H31: -0.3690843 | I31: -0.009619585807 | J31: 0.01909321072
A32: Total Electricty Charge on WAHSP | D32: =SUM(D13,D26,D31) -> 1747.435796 | G32: =SUM(G13,G26,G31) -> 1761.220909 | H32: 13.7851127 | I32: 0.007888766345 | J32: 0.8849557522
A33: HST | C33: 0.13 | D33: =D32*C33 -> 227.1666535 | F33: =C33 -> 0.13 | G33: =G32*F33 -> 228.9587182 | H33: 1.792064651 | I33: 0.007888766345 | J33: 0.1150442478
A34: Total Amount on WAHSP | D34: =SUM(D32:D33) -> 1974.60245 | G34: =SUM(G32:G33) -> 1990.179627 | H34: 15.57717735 | I34: 0.007888766345 | J34: 1

Sheet BI Template_unmWHSI (hidden)
A1: 2023 Bill Impacts (Average Consumption Level) - St Lgt_WHSI
A3: Rate Class | B3: =VLOOKUP(A1,'Data BI List Acq_Seas'!C:E,2,FALSE) -> WHSI_St Lgt | C3: =VLOOKUP(A1,'Data BI List Acq_Seas'!C:E,3,FALSE) -> St Lgt-WHSI
A4: Monthly Consumption (kWh) | B4: =IF(COUNTIF(A1,"*Low*")>0,VLOOKUP(B3,'Data Billing Quantities'!$A:$Z,MATCH("Low kWh",'Data Billing Quantities'!4:4,0),FALSE),IF(COUNTIF(A1,"*Typical*")>0,VLOOKUP(B3,'Data Billing Quantities'!$A:$Z,MATCH("Typical kWh",'Data Billing Quantities'!4:4,0),FALSE),IF(COUNTIF(A1,"*Average*")>0,VLOOKUP(B3,'Data Billing Quantities'!$A:$Z,MATCH("Average kWh",'Data Billing Quantities'!4:4,0),FALSE),IF(COUNTIF(A1,"*High*")>0,VLOOKUP(B3,'Data Billing Quantities'!$A:$Z,MATCH("High kWh",'Data Billing Quantities'!4:4,0),FALSE),"error")))) -> 37079 | C4: =B4 -> 37079
A5: Peak (kW) | B5: =IF(COUNTIF(A1,"*Low*")>0,VLOOKUP(B3,'Data Billing Quantities'!$A:$Z,MATCH("Low kW",'Data Billing Quantities'!4:4,0),FALSE),IF(COUNTIF(A1,"*Typical*")>0,VLOOKUP(B3,'Data Billing Quantities'!$A:$Z,MATCH("Typical kW",'Data Billing Quantities'!4:4,0),FALSE),IF(COUNTIF(A1,"*Average*")>0,VLOOKUP(B3,'Data Billing Quantities'!$A:$Z,MATCH("Average kW",'Data Billing Quantities'!4:4,0),FALSE),IF(COUNTIF(A1,"*High*")>0,VLOOKUP(B3,'Data Billing Quantities'!$A:$Z,MATCH("High kW",'Data Billing Quantities'!4:4,0),FALSE),"error")))) -> 104 | C5: =B5 -> 104
A6: Loss factor | B6: =VLOOKUP(B3,'Data Billing Quantities'!A:D,MATCH(A6,'Data Billing Quantities'!4:4,0),FALSE) -> 1.0431 | C6: =VLOOKUP(C3,'Data Billing Quantities'!A:D,MATCH(A6,'Data Billing Quantities'!4:4,0),FALSE) -> 1.092
A7: Commodity Threshold | B7: =VLOOKUP(B3,'Data Billing Quantities'!A:D,MATCH(A7,'Data Billing Quantities'!4:4,0),FALSE) -> 750 | C7: =B7 -> 750
A8: Monthly Consumption (kWh) - Uplifted | B8: =B4*B6 -> 38677.1049 | C8: =C4*C6 -> 40490.268
A9: Charge determinant | B9: =VLOOKUP(B3,'Data Billing Quantities'!A:D,MATCH(A9,'Data Billing Quantities'!4:4,0),FALSE) -> kW | C9: =VLOOKUP(C3,'Data Billing Quantities'!A:D,MATCH(A9,'Data Billing Quantities'!4:4,0),FALSE) -> kWh
B11: Volume | C11: Current Rate ($) | D11: Current Charge ($) | E11: Volume | F11: Proposed Rate ($) | G11: Proposed Charge ($) | H11: Change ($) | I11: Change (%) | J11: % of Total Bill
A12: Energy First Tier | B12: =IF(B4>B7,B7,B4) -> 750 | C12: =VLOOKUP($A12,'Data Pass Through'!$A:$D,2,FALSE) -> 0.098 | D12: =B12*C12 -> 73.5 | E12: =B12 -> 750 | F12: =VLOOKUP($A12,'Data Pass Through'!$A:$D,3,FALSE) -> 0.098 | G12: =E12*F12 -> 73.5 | H12: =G12-D12 -> 0 | I12: =IF(ISERROR(H12/ABS(D12)),"N/A",(H12/ABS(D12))) -> 0 | J12: =G12/$G$37 -> 0.007024919716
A13: Energy Second Tier | B13: =IF(B4>B7,(B4)-B7,0) -> 36329 | C13: =VLOOKUP($A13,'Data Pass Through'!$A:$D,2,FALSE) -> 0.115 | D13: =B13*C13 -> 4177.835 | E13: =B13 -> 36329 | F13: =VLOOKUP($A13,'Data Pass Through'!$A:$D,3,FALSE) -> 0.115 | G13: =E13*F13 -> 4177.835 | H13: 0 | I13: 0 | J13: 0.3993055165
A14: Sub-Total: Energy (RPP Tiered) | D14: =SUM(D12:D13) -> 4251.335 | G14: =SUM(G12:G13) -> 4251.335 | H14: 0 | I14: 0 | J14: 0.4063304362
A15: Service Charge | B15: =IF(VLOOKUP(B$3,'Data Billing Quantities'!A:P,MATCH("Acquired Street Light Service Charge",'Data Billing Quantities'!$4:$4,0),FALSE)>0,VLOOKUP(B$3,'Data Billing Quantities'!A:P,MATCH("Acquired Street Light Service Charge",'Data Billing Quantities'!$4:$4,0),FALSE),1) -> 786 | C15: =VLOOKUP($B$3,'Data Current Rates'!$A:$AL,MATCH('BI Template_unmWHSI'!$A15,CurrentHeader,0),FALSE) -> 3.23 | D15: =B15*C15 -> 2538.78 | E15: 1 | F15: =VLOOKUP($C$3,'Data Proposed Rates'!$A:$BA,MATCH('BI Template_unmWHSI'!$A15,ProposedHeader,0),FALSE) -> 3.01 | G15: =E15*F15 -> 3.01 | H15: -2535.77 | I15: -0.9988143912 | J15: 0.0002876871884
A16: Distribution Volumetric Charge | B16: =IF($B$9="kWh",$B$4,$B$5) -> 104 | C16: =VLOOKUP($B$3,'Data Current Rates'!$A:$AL,MATCH('BI Template_unmWHSI'!$A16,CurrentHeader,0),FALSE) -> 13.0344 | D16: =B16*C16 -> 1355.5776 | E16: =IF($C$9="kWh",$C$4,$C$5) -> 37079 | F16: =VLOOKUP($C$3,'Data Proposed Rates'!$A:$BA,MATCH('BI Template_unmWHSI'!$A16,ProposedHeader,0),FALSE) -> 0.1094 | G16: 4056.4426 | H16: 2700.865 | I16: 1.992408992 | J16: 0.3877031782
A17: Rate Rider for Recovery of Incremental Capital | B17: =IF($B$9="kWh",$B$4,$B$5) -> 104 | C17: =VLOOKUP($B$3,'Data Current Rates'!$A:$AL,MATCH('BI Template_unmWHSI'!$A17,CurrentHeader,0),FALSE) -> 0 | D17: 0 | H17: 0 | I17: N/A | J17: 0
A18: Group 1 Volumetric DVA Rider (General) | E18: =IF($C$9="kWh",$C$4,$C$5) -> 37079 | F18: =VLOOKUP($C$3,'Data Proposed Rates'!$A:$BA,MATCH('BI Template_unmWHSI'!$A18,ProposedHeader,0),FALSE) -> -0.0003 | G18: -11.1237 | H18: -11.1237 | I18: N/A | J18: -0.001063171421
A19: Group 2 Volumetric DVA Rider | B19: 104 | C19: =VLOOKUP($B$3,'Data Current Rates'!$A:$AL,MATCH('BI Template_unmWHSI'!$A19,CurrentHeader,0),FALSE) -> 0.7382 | D19: =B19*C19 -> 76.7728 | H19: =G19-D19 -> -76.7728 | I19: =IF(ISERROR(H19/ABS(D19)),"N/A",(H19/ABS(D19))) -> -1 | J19: =G19/$G$37 -> 0
A20: Account 1576 Volumetric Rate Rider | B20: 104 | C20: =VLOOKUP($B$3,'Data Current Rates'!$A:$AL,MATCH('BI Template_unmWHSI'!$A20,CurrentHeader,0),FALSE) -> -10.3543 | D20: -1076.8472 | H20: 1076.8472 | I20: 1 | J20: 0
A21: Sub-Total: Distribution (excluding pass through) | D21: =SUM(INDIRECT("D15:D"&ROW()-1)) -> 2894.2832 | G21: =SUM(INDIRECT("g15:g"&ROW()-1)) -> 4048.3289 | H21: =G21-D21 -> 1154.0457 | I21: 0.3987328192 | J21: 0.386927694
A22: Line Losses on Cost of Power (based on two-tier RPP prices) | B22: =B8-B4 -> 1598.1049 | C22: =IF(B4>B7,C13,C12) -> 0.115 | D22: =B22*C22 -> 183.7820635 | E22: =C8-C4 -> 3411.268 | F22: =IF(C4>C7,F13,F12) -> 0.115 | G22: =E22*F22 -> 392.29582 | H22: 208.5137565 | I22: 1.134570766 | J22: 0.03749451212
A23: Sub-Total: Distribution (based on two-tier RPP prices) | D23: =SUM(D21,D22:D22) -> 3078.065264 | G23: =SUM(G21,G22:G22) -> 4440.62472 | H23: 1362.559457 | I23: 0.4426675005 | J23: 0.4244222061
A24: Retail Transmission Rate – Network Service Rate | B24: =IF($B$9="kWh",$B$8,$B$5) -> 104 | C24: =VLOOKUP($B$3,'Data Current Rates'!$A:$AL,MATCH('BI Template_unmWHSI'!$A24,CurrentHeader,0),FALSE) -> 2.2078 | D24: =B24*C24 -> 229.6112 | E24: =IF($C$9="kWh",$C$8,$C$5) -> 40490.268 | F24: =VLOOKUP($C$3,'Data Proposed Rates'!$A:$BA,MATCH('BI Template_unmWHSI'!$A24,ProposedHeader,0),FALSE) -> 0.0059 | G24: =E24*F24 -> 238.8925812 | H24: =G24-D24 -> 9.2813812 | I24: 0.04042216233 | J24: 0.02283266944
A25: Retail Transmission Rate – Line and Transformation Connection Service Rate | B25: =IF($B$9="kWh",$B$8,$B$5) -> 104 | C25: =VLOOKUP($B$3,'Data Current Rates'!$A:$AL,MATCH('BI Template_unmWHSI'!$A25,CurrentHeader,0),FALSE) -> 1.8899 | D25: =B25*C25 -> 196.5496 | E25: =IF($C$9="kWh",$C$8,$C$5) -> 40490.268 | F25: =VLOOKUP($C$3,'Data Proposed Rates'!$A:$BA,MATCH('BI Template_unmWHSI'!$A25,ProposedHeader,0),FALSE) -> 0.0042 | G25: =E25*F25 -> 170.0591256 | H25: =G25-D25 -> -26.4904744 | I25: -0.1347775544 | J25: 0.01625376469
A26: Sub-Total: Retail Transmission | D26: =SUM(D24:D25) -> 426.1608 | G26: =SUM(G24:G25) -> 408.9517068 | H26: =G26-D26 -> -17.2090932 | I26: -0.04038168973 | J26: 0.03908643412
A27: Sub-Total: Delivery (based on two-tier RPP prices) | D27: =D23+D26 -> 3504.226064 | G27: =G23+G26 -> 4849.576427 | H27: =G27-D27 -> 1345.350363 | I27: 0.3839222524 | J27: 0.4635086402
A28: Wholesale Market Service Rate (WMS) - not including CBR | B28: =B8 -> 38677.1049 | C28: =VLOOKUP($A28,'Data Pass Through'!$A:$D,2,FALSE) -> 0.003 | D28: =B28*C28 -> 116.0313147 | E28: =$C$8 -> 40490.268 | F28: =VLOOKUP($A28,'Data Pass Through'!$A:$D,3,FALSE) -> 0.003 | G28: =E28*F28 -> 121.470804 | H28: =G28-D28 -> 5.4394893 | I28: 0.04687949382 | J28: 0.01160983192
A29: Capacity Based Recovery (CBR) - Applicable for Class B Customers | B29: =B8 -> 38677.1049 | C29: =VLOOKUP($A29,'Data Pass Through'!$A:$D,2,FALSE) -> 0.0004 | D29: =B29*C29 -> 15.47084196 | E29: =$C$8 -> 40490.268 | F29: =VLOOKUP($A29,'Data Pass Through'!$A:$D,3,FALSE) -> 0.0004 | G29: =E29*F29 -> 16.1961072 | H29: 0.72526524 | I29: 0.04687949382 | J29: 0.001547977589
A30: Rural Rate Protection Charge | B30: =B8 -> 38677.1049 | C30: =VLOOKUP($A30,'Data Pass Through'!$A:$D,2,FALSE) -> 0.0005 | D30: 19.33855245 | E30: 40490.268 | F30: =VLOOKUP($A30,'Data Pass Through'!$A:$D,3,FALSE) -> 0.0005 | G30: 20.245134 | H30: 0.90658155 | I30: 0.04687949382 | J30: 0.001934971986
A31: Standard Supply Service – Administration Charge (if applicable) | B31: 1 | C31: =VLOOKUP($A31,'Data Pass Through'!$A:$D,2,FALSE) -> 0.25 | D31: =B31*C31 -> 0.25 | E31: 1 | F31: =VLOOKUP($A31,'Data Pass Through'!$A:$D,3,FALSE) -> 0.25 | G31: 0.25 | H31: 0 | I31: 0 | J31: 2.389428475e-05
A32: Sub-Total: Regulatory | D32: =SUM(D28:D31) -> 151.0907091 | G32: =SUM(G28:G31) -> 158.1620452 | H32: 7.07133609 | I32: 0.04680192536 | J32: 0.01511667578
A33: Total Electricty Charge on Two-Tier RPP | D33: =SUM(D27,D32,D14) -> 7906.651773 | G33: =SUM(G27,G32,G14) -> 9259.073472 | H33: 1352.421699 | I33: 0.1710485978 | J33: 0.8849557522
A34: HST | C34: 0.13 | D34: =D33*C34 -> 1027.86473 | F34: =C34 -> 0.13 | G34: =G33*F34 -> 1203.679551 | H34: 175.8148209 | I34: 0.1710485978 | J34: 0.1150442478
A35: Total Electricity Charge on Two-Tier RPP (including HST) | D35: =SUM(D33:D34) -> 8934.516503 | G35: =SUM(G33:G34) -> 10462.75302 | H35: 1528.23652 | I35: 0.1710485978 | J35: 1
A36: Ontario Electricity Rebate (OER) | C36: =IF(($B$4*12)<250000,VLOOKUP(A36,'Data Pass Through'!$A$4:$C$20,2,0),0) -> 0 | D36: =D33*C36 -> 0 | F36: =C36 -> 0 | G36: =G33*F36 -> 0 | H36: 0 | I36: N/A | J36: 0
A37: Total Amount on Two-Tier RPP | D37: =SUM(D35:D36) -> 8934.516503 | G37: =SUM(G35:G36) -> 10462.75302 | H37: 1528.23652 | I37: 0.1710485978 | J37: 1

Sheet BI_UR_Low
A1: 2023 Bill Impacts (Low Consumption Level) - UR
A3: Rate Class | B3: =RIGHT(A1,LEN(A1)-FIND("- ",A1,1)-1) -> UR
A4: Monthly Consumption (kWh) | B4: =IF(COUNTIF(A1,"*Low*")>0,VLOOKUP(B3,'Data Billing Quantities'!$A:$Z,MATCH("Low kWh",'Data Billing Quantities'!4:4,0),FALSE),IF(COUNTIF(A1,"*Typical*")>0,VLOOKUP(B3,'Data Billing Quantities'!$A:$Z,MATCH("Typical kWh",'Data Billing Quantities'!4:4,0),FALSE),IF(COUNTIF(A1,"*Average*")>0,VLOOKUP(B3,'Data Billing Quantities'!$A:$Z,MATCH("Average kWh",'Data Billing Quantities'!4:4,0),FALSE),IF(COUNTIF(A1,"*High*")>0,VLOOKUP(B3,'Data Billing Quantities'!$A:$Z,MATCH("High kWh",'Data Billing Quantities'!4:4,0),FALSE),"error")))) -> 340
A5: Peak (kW) | B5: =IF(COUNTIF(A1,"*Low*")>0,VLOOKUP(B3,'Data Billing Quantities'!$A:$Z,MATCH("Low kW",'Data Billing Quantities'!4:4,0),FALSE),IF(COUNTIF(A1,"*Typical*")>0,VLOOKUP(B3,'Data Billing Quantities'!$A:$Z,MATCH("Typical kW",'Data Billing Quantities'!4:4,0),FALSE),IF(COUNTIF(A1,"*Average*")>0,VLOOKUP(B3,'Data Billing Quantities'!$A:$Z,MATCH("Average kW",'Data Billing Quantities'!4:4,0),FALSE),IF(COUNTIF(A1,"*High*")>0,VLOOKUP(B3,'Data Billing Quantities'!$A:$Z,MATCH("High kW",'Data Billing Quantities'!4:4,0),FALSE),"error")))) -> 0
A6: Loss factor | B6: =VLOOKUP(B3,'Data Billing Quantities'!A:D,MATCH(A6,'Data Billing Quantities'!4:4,0),FALSE) -> 1.057
A7: Commodity Threshold | B7: =VLOOKUP(B3,'Data Billing Quantities'!A:D,MATCH(A7,'Data Billing Quantities'!4:4,0),FALSE) -> 600
A8: Monthly Consumption (kWh) - Uplifted | B8: =B4*B6 -> 359.38
A9: Charge determinant | B9: =VLOOKUP(B3,'Data Billing Quantities'!A:D,MATCH(A9,'Data Billing Quantities'!4:4,0),FALSE) -> kWh
B11: Volume | C11: Current Rate ($) | D11: Current Charge ($) | E11: Volume | F11: Proposed Rate ($) | G11: Proposed Charge ($) | H11: Change ($) | I11: Change (%) | J11: % of Total Bill on RPP | K11: % of Total Bill
A12: Energy First Tier | B12: =IF(B4>B7,B7,B4) -> 340 | C12: =VLOOKUP($A12,'Data Pass Through'!$A:$D,2,FALSE) -> 0.098 | D12: =B12*C12 -> 33.32 | E12: =B12 -> 340 | F12: =VLOOKUP($A12,'Data Pass Through'!$A:$D,3,FALSE) -> 0.098 | G12: =E12*F12 -> 33.32 | H12: =G12-D12 -> 0 | I12: =IF(ISERROR(H12/ABS(D12)),"N/A",(H12/ABS(D12))) -> 0 | J12: =G12/$G$47 -> 0.4334197601
A13: Energy Second Tier | B13: =IF(B4>B7,(B4)-B7,0) -> 0 | C13: =VLOOKUP($A13,'Data Pass Through'!$A:$D,2,FALSE) -> 0.115 | D13: =B13*C13 -> 0 | E13: =B13 -> 0 | F13: =VLOOKUP($A13,'Data Pass Through'!$A:$D,3,FALSE) -> 0.115 | G13: =E13*F13 -> 0 | H13: 0 | I13: N/A | J13: =G13/$G$47 -> 0
A14: Sub-Total: Energy (RPP Tiered) | D14: =SUM(D12:D13) -> 33.32 | G14: =SUM(G12:G13) -> 33.32 | H14: 0 | I14: 0 | J14: =G14/$G$47 -> 0.4334197601
A15: TOU-Off Peak | B15: =B$4*VLOOKUP($B$3,'Data Billing Quantities'!$A:$O,MATCH(BI_UR_Low!$A15,'Data Billing Quantities'!$4:$4,0),FALSE) -> 217.6 | C15: =VLOOKUP($A15,'Data Pass Through'!$A:$D,2,FALSE) -> 0.082 | D15: =B15*C15 -> 17.8432 | E15: 217.6 | F15: =VLOOKUP($A15,'Data Pass Through'!$A:$D,3,FALSE) -> 0.082 | G15: =E15*F15 -> 17.8432 | H15: 0 | I15: 0 | K15: =G15/$G$52 -> 0.2266957756
A16: TOU-Mid Peak | B16: =B$4*VLOOKUP($B$3,'Data Billing Quantities'!$A:$O,MATCH(BI_UR_Low!$A16,'Data Billing Quantities'!$4:$4,0),FALSE) -> 61.2 | C16: =VLOOKUP($A16,'Data Pass Through'!$A:$D,2,FALSE) -> 0.113 | D16: =B16*C16 -> 6.9156 | E16: 61.2 | F16: =VLOOKUP($A16,'Data Pass Through'!$A:$D,3,FALSE) -> 0.113 | G16: =E16*F16 -> 6.9156 | H16: 0 | I16: 0 | K16: 0.0878618917
A17: TOU-On Peak | B17: =B$4*VLOOKUP($B$3,'Data Billing Quantities'!$A:$O,MATCH(BI_UR_Low!$A17,'Data Billing Quantities'!$4:$4,0),FALSE) -> 61.2 | C17: =VLOOKUP($A17,'Data Pass Through'!$A:$D,2,FALSE) -> 0.17 | D17: =B17*C17 -> 10.404 | E17: 61.2 | F17: =VLOOKUP($A17,'Data Pass Through'!$A:$D,3,FALSE) -> 0.17 | G17: =E17*F17 -> 10.404 | H17: 0 | I17: 0 | K17: 0.132181607
A18: Sub-Total: Energy (RPP TOU) | D18: =SUM(D15:D17) -> 35.1628 | G18: =SUM(G15:G17) -> 35.1628 | H18: 0 | I18: 0 | J18: =G18/$G$47 -> 0.4573905264 | K18: 0.4467392743
A19: Service Charge | B19: 1 | C19: =VLOOKUP($B$3,'Data Current Rates'!$A:$AL,MATCH(BI_UR_Low!$A19,CurrentHeader,0),FALSE) -> 38.03 | D19: =B19*C19 -> 38.03 | E19: 1 | F19: =VLOOKUP($B$3,'Data Proposed Rates'!$A:$BA,MATCH(BI_UR_Low!$A19,ProposedHeader,0),FALSE) -> 36.88 | G19: =E19*F19 -> 36.88 | H19: -1.15 | I19: -0.03023928478 | J19: 0.4797275135 | K19: 0.4685561001
A20: Fixed Base Rate Adjustment to Recover Past Tax Amounts | B20: 1 | C20: =VLOOKUP($B$3,'Data Current Rates'!$A:$AL,MATCH(BI_UR_Low!$A20,CurrentHeader,0),FALSE) -> 0.83 | D20: 0.83 | E20: 1 | F20: =VLOOKUP($B$3,'Data Proposed Rates'!$A:$BA,MATCH(BI_UR_Low!$A20,ProposedHeader,0),FALSE) -> 0.8 | G20: 0.8 | H20: -0.03 | I20: -0.03614457831 | J20: 0.01040623674 | K20: 0.01016390673
A21: Group 2 Fixed DVA Rider | E21: 1 | F21: =VLOOKUP($B$3,'Data Proposed Rates'!$A:$BA,MATCH(BI_UR_Low!$A21,ProposedHeader,0),FALSE) -> -0.08 | G21: -0.08 | H21: -0.08 | I21: N/A | J21: -0.001040623674 | K21: -0.001016390673
A22: Distribution Volumetric Charge | B22: =IF($B$9="kWh",$B$4,$B$5) -> 340 | C22: =VLOOKUP($B$3,'Data Current Rates'!$A:$AL,MATCH(BI_UR_Low!$A22,CurrentHeader,0),FALSE) -> 0 | D22: 0 | E22: 340 | F22: =VLOOKUP($B$3,'Data Proposed Rates'!$A:$BA,MATCH(BI_UR_Low!$A22,ProposedHeader,0),FALSE) -> 0 | G22: 0 | H22: 0 | I22: N/A | J22: 0 | K22: 0
A23: Volumetric Base Rate Adjustment to Recover Past Tax Amounts | B23: =IF($B$9="kWh",$B$4,$B$5) -> 340 | C23: =VLOOKUP($B$3,'Data Current Rates'!$A:$AL,MATCH(BI_UR_Low!$A23,CurrentHeader,0),FALSE) -> 0 | D23: 0 | E23: 340 | F23: =VLOOKUP($B$3,'Data Proposed Rates'!$A:$BA,MATCH(BI_UR_Low!$A23,ProposedHeader,0),FALSE) -> 0 | G23: 0 | H23: 0 | I23: N/A | J23: 0 | K23: 0
A24: Group 1 Volumetric DVA Rider (General) | E24: =B4 -> 340 | F24: =VLOOKUP($B$3,'Data Proposed Rates'!$A:$BA,MATCH(BI_UR_Low!$A24,ProposedHeader,0),FALSE) -> -0.0004 | G24: -0.136 | H24: -0.136 | I24: N/A | J24: -0.001769060245 | K24: -0.001727864143
A25: Group 2 Volumetric DVA Rider | E25: =B4 -> 340 | F25: =VLOOKUP($B$3,'Data Proposed Rates'!$A:$BA,MATCH(BI_UR_Low!$A25,ProposedHeader,0),FALSE) -> 0 | G25: 0 | H25: 0 | I25: N/A | J25: 0 | K25: 0
A26: Fair Hydro Plan - Distribution Rate Protection Savings* | D26: =IF(AND(B3<>"R1",B3<>"R2"),0,IF(VLOOKUP($A26,'Data Pass Through'!$A:$D,2,FALSE)=0,0,IF(SUM(D19:D20,D22:D23)<VLOOKUP($A26,'Data Pass Through'!$A:$D,2,FALSE),0,VLOOKUP($A26,'Data Pass Through'!$A:$D,2,FALSE)-SUM(D19:D20,D22:D23)))) -> 0 | G26: =IF(AND(B3<>"R1",B3<>"R2"),0,IF(VLOOKUP($A26,'Data Pass Through'!$A:$D,2,FALSE)=0,0,IF(SUM(G19:G20,G22:G23)<VLOOKUP($A26,'Data Pass Through'!$A:$D,2,FALSE),0,VLOOKUP($A26,'Data Pass Through'!$A:$D,2,FALSE)-SUM(G19:G20,G22:G23)))) -> 0 | H26: 0 | I26: N/A | J26: 0 | K26: 0
A27: Sub-Total: Distribution (excluding pass through) | D27: =SUM(INDIRECT("D19:D"&ROW()-1)) -> 38.86 | G27: =SUM(INDIRECT("g19:g"&ROW()-1)) -> 37.464 | H27: =G27-D27 -> -1.396 | I27: -0.03592382913 | J27: 0.4873240664 | K27: 0.475975752
A28: Smart Metering Entity Charge | B28: 1 | C28: =VLOOKUP($A28,'Data Pass Through'!$A:$D,2,FALSE) -> 0.57 | D28: =B28*C28 -> 0.57 | E28: 1 | F28: =VLOOKUP($A28,'Data Pass Through'!$A:$D,3,FALSE) -> 0.57 | G28: =E28*F28 -> 0.57 | H28: 0 | I28: 0 | J28: 0.007414443675 | K28: 0.007241783543
